Workbook

Sheet MENU
J1: PM
E2: =CHOOSE(MATCH(Objeto,{"PM","PO"}),"PLANILHA MÚLTIPLA ","PLANILHA ORÇAMENTÁRIA ")& Versao -> PLANILHA MÚLTIPLA v3.0.5 | J2: v3.0.5
O3: 1
O4: 2
J5: Proposto
E6: DADOS DO CONTRATO | G6: NOVIDADES DA VERSÃO | J6: Licitado
J7: PLE
B8: =IF($O$3<>2,"DOCUMENTAÇÃO DA PROPOSTA","PROPOSTA: Para visualizar/preencher esta seção, altere o TIPO DE ORÇAMENTO para 'Proposto'") -> DOCUMENTAÇÃO DA PROPOSTA | J8: BM | L8: LEGENDA:
L9: Cores das células:
C10: =IF(TIPOORCAMENTO<>"Proposto",""," BDI ") -> BDI | E10: =IF(TIPOORCAMENTO<>"Proposto",""," ORÇAMENTO ") -> ORÇAMENTO | G10: =IF(TIPOORCAMENTO<>"Proposto","","MEMÓRIA DE CÁLCULO / PLQ") -> MEMÓRIA DE CÁLCULO / PLQ | N10: Fundo amarelo: células para preencher
C12: =IF(TIPOORCAMENTO<>"Proposto",""," QCI ") -> QCI | E12: =IF(TIPOORCAMENTO<>"Proposto","","CRONOGRAMA FÍSICO-FINANCEIRO") -> CRONOGRAMA FÍSICO-FINANCEIRO | N12: Fundo azul: células para seleção de opções
C14: =IF(TIPOORCAMENTO<>"Proposto","","Obs: Composições e Cotações devem ser preenchidas diretamente no arquivo Referência "&IF(ISBLANK(Import.DataBase),"mm-aaaa",TEXT(Import.DataBase,"mm-aaaa"))&".xls.") -> Obs: Composições e Cotações devem ser preenchidas diretamente no arquivo Referência 05-2020.xls.
L15: Cores dos botões:
B16: =IF($O$3<>2,"PÓS-LICITADO: Para visualizar/preencher esta seção, altere o TIPO DE ORÇAMENTO para 'Licitado'","RESULTADO DO PROCESSO LICITATÓRIO") -> PÓS-LICITADO: Para visualizar/preencher esta seção, altere o TIPO DE ORÇAMENTO para 'Licitado' | N16: Fundo azul: navegação entre abas
C18: =IF(TIPOORCAMENTO<>"Licitado",""," ORÇAMENTO ") ->  | E18: =IF(TIPOORCAMENTO<>"Licitado",""," QCI ") ->  | G18: =IF(TIPOORCAMENTO<>"Licitado","","CRONOGRAMA FÍSICO-FINANCEIRO") ->  | N18: Fundo laranja: execução de macro
B20: =IF($O$3<>2,"ACOMPANHAMENTO: Para visualizar/preencher esta seção, altere o TIPO DE ORÇAMENTO para 'Licitado'","ACOMPANHAMENTO DO EMPREENDIMENTO") -> ACOMPANHAMENTO: Para visualizar/preencher esta seção, altere o TIPO DE ORÇAMENTO para 'Licitado'
C22: =IF(OR(TIPOORCAMENTO<>"Licitado",ACOMPANHAMENTO<>"PLE"),"","PLAN. DE LEVANT. DE EVENTOS - PLE") ->  | E22: =IF(TIPOORCAMENTO<>"Licitado",""," RRE ") ->  | G22: =IF(OR(TIPOORCAMENTO<>"Licitado",ACOMPANHAMENTO<>"BM"),""," BOLETIM DE MEDIÇÃO - BM ") -> 
E24: =IF(TIPOORCAMENTO<>"Licitado","","OF. DE SOLICITAÇÃO DE DESBLOQUEIO") -> 

Sheet DADOS
E1: A. DOCUMENTAÇÃO DA PROPOSTA | L1: Sub-Itens de Investimento
J2: Itens de Investimento | K2: Unidades habitacionais | L2: =COUNTA(K:K)-1 -> 3 | M2: Equipamentos comunitários | N2: =COUNTA(M:M)-1 -> 6 | O2: Pavimentação | P2: =COUNTA(O:O)-1 -> 6 | Q2: Drenagem | R2: =COUNTA(Q:Q)-1 -> 6 | S2: Abastecimento de água | T2: =COUNTA(S:S)-1 -> 11 | U2: Esgotamento sanitário | V2: =COUNTA(U:U)-1 -> 8 | W2: Energia elétrica e iluminação pública | X2: =COUNTA(W:W)-1 -> 4 | Y2: Coleta e tratamento de resíduos sólidos | Z2: =COUNTA(Y:Y)-1 -> 6 | AA2: Contenção e estabilização de encostas | AB2: =COUNTA(AA:AA)-1 -> 2 | AC2: Regularização fundiária | AD2: =COUNTA(AC:AC)-1 -> 2 | AE2: Aquisição de terreno | AF2: =COUNTA(AE:AE)-1 -> 2 | AG2: Aquisição de equipamentos e insumos | AH2: =COUNTA(AG:AG)-1 -> 1 | AI2: Elaboração de estudos e projetos | AJ2: =COUNTA(AI:AI)-1 -> 1 | AK2: Instrumentos e ações em planejamento e gestão pública | AL2: =COUNTA(AK:AK)-1 -> 1 | AM2: Ações complementares às obras | AN2: =COUNTA(AM:AM)-1 -> 3 | AO2: Gerenciamento | AP2: =COUNTA(AO:AO)-1 -> 1 | AQ2: Trabalho social | AR2: =COUNTA(AQ:AQ)-1 -> 4
E3: Dados do Contrato (Inicial) | J3: Unidades habitacionais | K3: Aquisição | L3: un | M3: Convivência comunitária, assistência social e/ou comunitária | N3: m² | O3: Capeamento de vias | P3: m² | Q3: Obras de microdrenagem | R3: m | S3: Captação subterrânea | T3: m³/s | U3: Ligações domiciliares e/ou intradomiciliares | V3: un | W3: Iluminação pública - luminárias | X3: un | Y3: Acondicionamento | Z3: un | AA3: Estabilização de taludes | AB3: m² | AC3: Desapropriacões/Indenizações | AD3: m² | AE3: Aquisição de terreno | AF3: m² | AG3: Aquisição de equipamentos e insumos | AH3: un | AI3: Elaboração de estudos e projetos | AJ3: un | AK3: Instrumentos e ações em planejamento e gestão pública | AL3: un | AM3: Avaliação pós intervenção | AN3: un | AO3: Gerenciamento | AP3: %CT | AQ3: Projeto de Trabalho Social Preliminar | AR3: nº fam
E4: Fonte de recursos: | F4: (SELECIONAR) | J4: Equipamentos comunitários | K4: Construção | L4: un | M4: Educação e cultura | N4: m² | O4: Recapeamento de vias | P4: m² | Q4: Desassoreamento de cursos de água | R4: m | S4: Captação superficial | T4: m³/s | U4: Rede coletora e/ou condominial | V4: m | W4: Ligações domiciliares | X4: un | Y4: Aterro sanitário e/ou disposição final | Z4: m³ | AA4: Obras complementares a ações de redução de risco e/ou contenções | AB4: m² | AC4: Projeto de Regularização Fundiária | AD4: m² | AE4: Benfeitorias | AF4: m² | AM4: Demolições | AN4: un | AQ4: Projeto de Trabalho Social | AR4: nº fam
E5: Proponente/Tomador: | F5: Prefeitura Municipal de Ouro/SC | J5: Pavimentação | K5: Reforma e/ou melhoria | L5: un | M5: Esportes | N5: m² | O5: Obras de artes especiais | P5: m | Q5: Canalização de cursos de água | R5: m | S5: Estação de bombeamento de água bruta | T5: m³/s | U5: Coletor tronco e/ou interceptores | V5: m | W5: Linhas de distribuição - baixa tensão | X5: m | Y5: Erradicação de lixões | Z5: m³ | AM5: Plano de Reassentamento e medidas compensatórias | AN5: un | AQ5: Plano de Desenvolvimento Socioterritorial | AR5: nº fam
E6: Município/UF: | F6: Ouro/SC | J6: Drenagem | M6: Lazer e turismo | N6: m² | O6: Pavimentação de calçadas | P6: m² | Q6: Recomposição de vegetação ciliar, renaturalização de cursos de água ou restauração de margens | R6: m² | S6: Adução | T6: m | U6: Emissário | V6: m | W6: Linhas de transmissão - alta tensão | X6: m | Y6: Sistema de coleta seletiva tradicional, transporte e/ou equipamentos | Z6: un | AQ6: Plano de Gestão Condominial | AR6: nº fam
E7: Nº da Operação (0000000-00): | J7: Abastecimento de água | M7: Saúde | N7: m² | O7: Pavimentação de vias | P7: m² | Q7: Reservatório de amortecimento de cheias | R7: m³ | S7: Estação de Tratamento de Água (ETA) | T7: m³/s | U7: Estação Elevatória | V7: m³/s | Y7: Tratamento local | Z7: un
E8: Nº do SICONV (000000): | J8: Esgotamento sanitário | M8: Segurança pública | N8: m² | O8: Sinalização | P8: m² | Q8: Estação de Bombeamento | R8: m³/s | S8: Estação de bombeamento de água tratada | T8: m³/s | U8: Estação de Tratamento de Esgoto (ETE) | V8: m³/s | Y8: Usinas de reciclagem | Z8: m²
E9: =IF(F4="FGTS","Valor de Financiamento Contratado (R$):","Valor do Repasse Contratado (R$):") -> Valor do Repasse Contratado (R$): | J9: Energia elétrica e iluminação pública | S9: Linha de recalque | T9: m | U9: Sistema simplificado de tratamento | V9: m³/s
E10: Valor de Contrapartida Contratada (R$): | J10: Coleta e tratamento de resíduos sólidos | S10: Reservação | T10: m³ | U10: Unidades sanitárias | V10: un
E11: % mínimo de Contrapartida: | J11: Contenção e estabilização de encostas | S11: Rede de distribuição | T11: m
E12: R$ mínimo de Contrapartida (se houver): | J12: Regularização fundiária | S12: Ligações domiciliares e/ou intradomiciliares | T12: un
E13: % máximo de Contrapartida: | J13: Aquisição de terreno | S13: Sistema simplificado de abastecimento | T13: m
J14: Aquisição de equipamentos e insumos
E15: Dados do Empreendimento e Orçamento | J15: Elaboração de estudos e projetos
E16: Nome/apelido: | F16: FECHAMENTO DA GARAGEM DE MÁQUINAS | J16: Instrumentos e ações em planejamento e gestão pública
E17: Descrição do Objeto do Lote / CTEF: | F17: GARAGEM DE MÁQUINAS | J17: Ações complementares às obras
E18: Regime previdenciário previsto para a obra: | F18: NÃO DESONERADO | J18: Gerenciamento
E19: Data base do Orçamento: | F19: 2020-05-01 | J19: Trabalho social
E21: Responsável pelo Orçamento
E22: Nome: | F22: André Brito Dotti
E23: CREA/CAU: | F23: 162.237-5
E24: ART/RRT: | F24: 7.438.364-2
E25: Data do preenchimento: | F25: =TODAY() -> 2020-07-23
E27: Responsável pelo Tomador (Prefeito, no caso de Municípios)
E28: Nome: | F28: Antonio José Bissani
E29: Cargo: | F29: Prefeito Municipal
E32: B. RESULTADO DO PROCESSO LICITATÓRIO
E34: Licitação
E35: Data de emissão dos documentos de licitação:
E36: Nº do CTEF (contrato com empresa):
E37: Nome da empresa:
E38: CNPJ da empresa:
E39: Regime de execução do CTEF: | F39: (SELECIONAR)
E40: Data base do CTEF:
E43: C. ACOMPANHAMENTO DO EMPREENDIMENTO
E45: Dados da obra
E46: Data do Início da Obra:
E47: Data de fechamento do RRE: | F47: =TODAY() -> 2020-07-23
E49: Responsável pela Fiscalização
E50: Nome:
E51: Profissão:
E52: CREA/CAU (para obras/projetos):
E53: ART/RRT (para obras/projetos):
E56: D. ACOMPANHAMENTO CAIXA
E58: Responsável Gerencial
E59: Nome:
E60: Função:

Sheet NOVO
B3: Novidades da Versão
A6: V3.0.0
B7: GERAL
C8: =IF(D8<>"","▪","") -> ▪ | D8: Lançamento: Adequação à Portaria 424/2016. Acompanhamento por Eventos.
C9: =IF(D9<>"","▪","") -> 
A10: V3.0.1
B11: GERAL
C12: =IF(D12<>"","▪","") -> ▪ | D12: Ajustes de formatações.
B13: PO
C14: =IF(D14<>"","▪","") -> ▪ | D14: Correção da aplicação do BDI não desonerado.
C15: =IF(D15<>"","▪","") -> ▪ | D15: Inclusão de coluna exclusiva "Preço Unitário Edital", para o Modo 'Orçamento Licitado'.
A17: V3.0.2
B18: GERAL
C19: =IF(D19<>"","▪","") -> ▪ | D19: Ajustes de formatações.
C20: =IF(D20<>"","▪","") -> ▪ | D20: Correção do Problema de Guias ocultas no BROFFICE.
B21: ORÇAMENTO
C22: =IF(D22<>"","▪","") -> ▪ | D22: Ampliada obtenção de dados da Planilha Referência de 20.000 para 65.536 linhas.
B23: CRONOGRAMA
C24: =IF(D24<>"","▪","") -> ▪ | D24: Correção na formulação do total acumulado por Repasse, CP e Outros
B25: QCI
C26: =IF(D26<>"","▪","") -> ▪ | D26: Correção na formulação do arredondamento no rateio dos valores do QCI.
B27: RRE
C28: =IF(D28<>"","▪","") -> ▪ | D28: Correção na formulação do total por Repasse, CP e Outros.
A30: V3.0.3
B31: GERAL
C32: =IF(D32<>"","▪","") -> ▪ | D32: Correção do Problema de Guias ocultas no BROFFICE.
B33: CÁLCULO
C34: =IF(D34<>"","▪","") -> ▪ | D34: Corrigida lentidão e travamento ao incluir e excluir frentes.
A37: V3.0.4
B38: BDI
C39: =IF(D39<>"","▪","") -> ▪ | D39: Correção da CPRB que exibia 4,5% mesmo quando não desonerado.
B40: CRONOGRAMA
C41: =IF(D41<>"","▪","") -> ▪ | D41: Correção da distribuição de Repasse, CP e Outros para as metas manuais.
B42: QCI
C43: =IF(D43<>"","▪","") -> ▪ | D43: Adicionado botão para adotar a CP do QCI como CP do contrato (zera saldo a reprogramar de CP).
A45: V3.0.5
B46: GERAL
C47: =IF(D47<>"","▪","") -> ▪ | D47: Corrigido modo de Cálculo da Planilha para Automático.

Sheet BDI
E1: MIN | F1: MED | G1: MAX | O1: ="Quadro de Composição do BDI" -> Quadro de Composição do BDI | R1: Grau de Sigilo
A2: Construção e Reforma de Edifícios | B2: AC | C2: =CONCATENATE(A2,"-",B2) -> Construção e Reforma de Edifícios-AC | E2: 0.03 | F2: 0.04 | G2: 0.055 | R2: #PUBLICO
A3: =A2 -> Construção e Reforma de Edifícios | B3: SG | C3: Construção e Reforma de Edifícios-SG | E3: 0.008 | F3: 0.008 | G3: 0.01
A4: =A3 -> Construção e Reforma de Edifícios | B4: R | C4: Construção e Reforma de Edifícios-R | E4: 0.0097 | F4: 0.0127 | G4: 0.0127 | J4: Nº OPERAÇÃO | L4: Nº SICONV | N4: PROPONENTE / TOMADOR
A5: =A4 -> Construção e Reforma de Edifícios | B5: DF | C5: Construção e Reforma de Edifícios-DF | E5: 0.0059 | F5: 0.0123 | G5: 0.0139 | J5: =Import.CR -> 0 | L5: =Import.SICONV -> 0 | N5: =Import.Proponente -> Prefeitura Municipal de Ouro/SC
A6: =A5 -> Construção e Reforma de Edifícios | B6: L | C6: Construção e Reforma de Edifícios-L | E6: 0.0616 | F6: 0.074 | G6: 0.0896 | I6: FILTRO
A7: =A6 -> Construção e Reforma de Edifícios | B7: BDI PAD | C7: Construção e Reforma de Edifícios-BDI PAD | E7: 0.2034 | F7: 0.2212 | G7: 0.25 | J7: APELIDO DO EMPREENDIMENTO / DESCRIÇÃO DO LOTE
A8: Construção de Praças Urbanas, Rodovias, Ferrovias e recapeamento e pavimentação de vias urbanas | B8: AC | C8: Construção de Praças Urbanas, Rodovias, Ferrovias e recapeamento e pavimentação de vias urbanas-AC | E8: 0.038 | F8: 0.0401 | G8: 0.0467 | J8: =Import.Apelido&" / "&Import.DescLote -> FECHAMENTO DA GARAGEM DE MÁQUINAS / GARAGEM DE MÁQUINAS
A9: Construção de Praças Urbanas, Rodovias, Ferrovias e recapeamento e pavimentação de vias urbanas | B9: SG | C9: Construção de Praças Urbanas, Rodovias, Ferrovias e recapeamento e pavimentação de vias urbanas-SG | E9: 0.0032 | F9: 0.004 | G9: 0.0074
A10: Construção de Praças Urbanas, Rodovias, Ferrovias e recapeamento e pavimentação de vias urbanas | B10: R | C10: Construção de Praças Urbanas, Rodovias, Ferrovias e recapeamento e pavimentação de vias urbanas-R | E10: 0.005 | F10: 0.0056 | G10: 0.0097 | J10: Conforme legislação tributária municipal, definir estimativa de percentual da base de cálculo para o ISS: | R10: 0.03
A11: Construção de Praças Urbanas, Rodovias, Ferrovias e recapeamento e pavimentação de vias urbanas | B11: DF | C11: Construção de Praças Urbanas, Rodovias, Ferrovias e recapeamento e pavimentação de vias urbanas-DF | E11: 0.0102 | F11: 0.0111 | G11: 0.0121 | I11: ↓ | J11: Sobre a base de cálculo, definir a respectiva alíquota do ISS (entre 2% e 5%): | R11: 1
A12: Construção de Praças Urbanas, Rodovias, Ferrovias e recapeamento e pavimentação de vias urbanas | B12: L | C12: Construção de Praças Urbanas, Rodovias, Ferrovias e recapeamento e pavimentação de vias urbanas-L | E12: 0.0664 | F12: 0.073 | G12: 0.0869 | I12: F
A13: Construção de Praças Urbanas, Rodovias, Ferrovias e recapeamento e pavimentação de vias urbanas | B13: BDI PAD | C13: Construção de Praças Urbanas, Rodovias, Ferrovias e recapeamento e pavimentação de vias urbanas-BDI PAD | E13: 0.196 | F13: 0.2097 | G13: 0.2423 | I13: F
A14: Construção de Redes de Abastecimento de Água, Coleta de Esgoto | B14: AC | C14: Construção de Redes de Abastecimento de Água, Coleta de Esgoto-AC | E14: 0.0343 | F14: 0.0493 | G14: 0.0671 | I14: F | J14: BDI 1
A15: =A14 -> Construção de Redes de Abastecimento de Água, Coleta de Esgoto | B15: SG | C15: Construção de Redes de Abastecimento de Água, Coleta de Esgoto-SG | E15: 0.0028 | F15: 0.0049 | G15: 0.0075 | I15: F
A16: =A15 -> Construção de Redes de Abastecimento de Água, Coleta de Esgoto | B16: R | C16: Construção de Redes de Abastecimento de Água, Coleta de Esgoto-R | E16: 0.01 | F16: 0.0139 | G16: 0.0174 | I16: F | J16: TIPO DE OBRA
A17: =A16 -> Construção de Redes de Abastecimento de Água, Coleta de Esgoto | B17: DF | C17: Construção de Redes de Abastecimento de Água, Coleta de Esgoto-DF | E17: 0.0094 | F17: 0.0099 | G17: 0.0117 | I17: F | J17: Construção e Reforma de Edifícios
A18: =A17 -> Construção de Redes de Abastecimento de Água, Coleta de Esgoto | B18: L | C18: Construção de Redes de Abastecimento de Água, Coleta de Esgoto-L | E18: 0.0674 | F18: 0.0804 | G18: 0.094 | I18: F
A19: =A18 -> Construção de Redes de Abastecimento de Água, Coleta de Esgoto | B19: BDI PAD | C19: Construção de Redes de Abastecimento de Água, Coleta de Esgoto-BDI PAD | E19: 0.2076 | F19: 0.2418 | G19: 0.2644 | I19: F | J19: Itens | R19: Siglas | S19: % Adotado | U19: Situação | X19: 1º Quartil | Y19: Médio | Z19: 3º Quartil
A20: Construção e Manutenção de Estações e Redes de Distribuição de Energia Elétrica | B20: AC | C20: Construção e Manutenção de Estações e Redes de Distribuição de Energia Elétrica-AC | E20: 0.0529 | F20: 0.0592 | G20: 0.0793 | I20: F
A21: =A20 -> Construção e Manutenção de Estações e Redes de Distribuição de Energia Elétrica | B21: SG | C21: Construção e Manutenção de Estações e Redes de Distribuição de Energia Elétrica-SG | E21: 0.0025 | F21: 0.0051 | G21: 0.0056 | I21: F | J21: =IF($J$17=$A$146,"Encargos Sociais incidentes sobre a mão de obra","Administração Central") -> Administração Central | R21: =IF($J17=$A$146,"K1","AC") -> AC | S21: 0.03 | U21: - | X21: =VLOOKUP(CONCATENATE(J17,"-",R21),$C$2:$G$136,3,FALSE) -> 0.03 | Y21: =VLOOKUP(CONCATENATE(J17,"-",R21),$C$2:$G$136,4,FALSE) -> 0.04 | Z21: =VLOOKUP(CONCATENATE(J17,"-",R21),$C$2:$G$136,5,FALSE) -> 0.055
A22: =A21 -> Construção e Manutenção de Estações e Redes de Distribuição de Energia Elétrica | B22: R | C22: Construção e Manutenção de Estações e Redes de Distribuição de Energia Elétrica-R | E22: 0.01 | F22: 0.0148 | G22: 0.0197 | I22: F | J22: =IF($J$17=$A$146,"Administração Central da empresa ou consultoria - overhead","Seguro e Garantia") -> Seguro e Garantia | R22: =IF($J17=$A$146,"K2","SG") -> SG | S22: 0.008 | U22: - | X22: =VLOOKUP(CONCATENATE(J17,"-",R22),$C$2:$G$136,3,FALSE) -> 0.008 | Y22: =VLOOKUP(CONCATENATE(J17,"-",R22),$C$2:$G$136,4,FALSE) -> 0.008 | Z22: =VLOOKUP(CONCATENATE(J17,"-",R22),$C$2:$G$136,5,FALSE) -> 0.01
A23: =A22 -> Construção e Manutenção de Estações e Redes de Distribuição de Energia Elétrica | B23: DF | C23: Construção e Manutenção de Estações e Redes de Distribuição de Energia Elétrica-DF | E23: 0.0101 | F23: 0.0107 | G23: 0.0111 | I23: F | J23: =IF($J$17=$A$146,"","Risco") -> Risco | R23: =IF($J17=$A$146,"","R") -> R | S23: 0.0097 | U23: - | X23: =VLOOKUP(CONCATENATE(J17,"-",R23),$C$2:$G$136,3,FALSE) -> 0.0097 | Y23: =VLOOKUP(CONCATENATE(J17,"-",R23),$C$2:$G$136,4,FALSE) -> 0.0127 | Z23: =VLOOKUP(CONCATENATE(J17,"-",R23),$C$2:$G$136,5,FALSE) -> 0.0127
A24: =A23 -> Construção e Manutenção de Estações e Redes de Distribuição de Energia Elétrica | B24: L | C24: Construção e Manutenção de Estações e Redes de Distribuição de Energia Elétrica-L | E24: 0.08 | F24: 0.0831 | G24: 0.0951 | I24: F | J24: =IF($J$17=$A$146,"","Despesas Financeiras") -> Despesas Financeiras | R24: =IF($J17=$A$146,"","DF") -> DF | S24: 0.0059 | U24: - | X24: =VLOOKUP(CONCATENATE(J17,"-",R24),$C$2:$G$136,3,FALSE) -> 0.0059 | Y24: =VLOOKUP(CONCATENATE(J17,"-",R24),$C$2:$G$136,4,FALSE) -> 0.0123 | Z24: =VLOOKUP(CONCATENATE(J17,"-",R24),$C$2:$G$136,5,FALSE) -> 0.0139
A25: =A24 -> Construção e Manutenção de Estações e Redes de Distribuição de Energia Elétrica | B25: BDI PAD | C25: Construção e Manutenção de Estações e Redes de Distribuição de Energia Elétrica-BDI PAD | E25: 0.24 | F25: 0.2584 | G25: 0.2786 | I25: F | J25: =IF($J$17=$A$146,"Margem bruta da empresa de consultoria","Lucro") -> Lucro | R25: =IF($J17=$A$146,"K3","L") -> L | S25: 0.066 | U25: - | X25: =VLOOKUP(CONCATENATE(J17,"-",R25),$C$2:$G$136,3,FALSE) -> 0.0616 | Y25: =VLOOKUP(CONCATENATE(J17,"-",R25),$C$2:$G$136,4,FALSE) -> 0.074 | Z25: =VLOOKUP(CONCATENATE(J17,"-",R25),$C$2:$G$136,5,FALSE) -> 0.0896
A26: Obras Portuárias, Marítimas e Fluviais | B26: AC | C26: Obras Portuárias, Marítimas e Fluviais-AC | E26: 0.04 | F26: 0.0552 | G26: 0.0785 | I26: F | J26: Tributos (impostos COFINS 3%, e PIS 0,65%) | R26: CP | S26: 0.0365 | U26: - | X26: 0.0365 | Y26: 0.0365 | Z26: 0.0365
A27: =A26 -> Obras Portuárias, Marítimas e Fluviais | B27: SG | C27: Obras Portuárias, Marítimas e Fluviais-SG | E27: 0.0081 | F27: 0.0122 | G27: 0.0199 | I27: F | J27: Tributos (ISS, variável de acordo com o município) | R27: ISS | S27: =IF(AND($J17<>$A$145,COUNTA(OFFSET(S20,1,0,6))>0),$R$11*$R$10,0) -> 0.03 | U27: - | X27: 0 | Y27: 0.025 | Z27: 0.05
A28: =A27 -> Obras Portuárias, Marítimas e Fluviais | B28: R | C28: Obras Portuárias, Marítimas e Fluviais-R | E28: 0.0146 | F28: 0.0232 | G28: 0.0316 | I28: F | J28: Tributos (Contribuição Previdenciária sobre a Receita Bruta - 0% ou 4,5% - Desoneração) | R28: CPRB | S28: =IF(BDI.Opcao<>"Desonerado",0,IF(AND($J17<>$A$145,COUNTA(OFFSET(S20,1,0,6))>0),4.5%,0%)) -> 0 | U28: - | X28: 0 | Y28: 0.045 | Z28: 0.045
A29: =A28 -> Obras Portuárias, Marítimas e Fluviais | B29: DF | C29: Obras Portuárias, Marítimas e Fluviais-DF | E29: 0.0094 | F29: 0.0102 | G29: 0.0133 | I29: F | J29: BDI SEM desoneração (Fórmula Acórdão TCU) | R29: BDI PAD | S29: =IF($J17=$A$145,0,ROUND((((1+S21+S22+S23)*(1+S24)*(1+S25)/(1-(S26+S27)))-1),4)) -> 0.2035 | U29: =IF(OR($J$17=$A$146,$J$17=$A$145,AND(S29>=X29,S29<=Z29)),"OK","FORA DO INTERVALO") -> OK | X29: =IF($J17=$A$145,0,VLOOKUP(CONCATENATE($J17,"-",$R29),$C$2:$G$136,3,FALSE)) -> 0.2034 | Y29: =IF($J17=$A$145,0,VLOOKUP(CONCATENATE($J17,"-",$R29),$C$2:$G$136,4,FALSE)) -> 0.2212 | Z29: =IF($J17=$A$145,0,VLOOKUP(CONCATENATE($J17,"-",$R29),$C$2:$G$136,5,FALSE)) -> 0.25
A30: =A29 -> Obras Portuárias, Marítimas e Fluviais | B30: L | C30: Obras Portuárias, Marítimas e Fluviais-L | E30: 0.0714 | F30: 0.084 | G30: 0.1043 | I30: F | J30: BDI COM desoneração | R30: BDI DES | S30: =IF($J17=$A$145,0,ROUND((((1+S21+S22+S23)*(1+S24)*(1+S25)/(1-(S26+S27+S28)))-1),4)) -> 0.2035
A31: =A30 -> Obras Portuárias, Marítimas e Fluviais | B31: BDI PAD | C31: Obras Portuárias, Marítimas e Fluviais-BDI PAD | E31: 0.228 | F31: 0.2748 | G31: 0.3095 | I31: F
A32: Fornecimento de Materiais e Equipamentos (aquisição indireta - em conjunto com licitação de obras) | B32: AC | C32: Fornecimento de Materiais e Equipamentos (aquisição indireta - em conjunto com licitação de obras)-AC | E32: 0.015 | F32: 0.0345 | G32: 0.0449 | I32: F | J32: =IF(U29<>"ok","X","") ->  | K32: =IF(U29<>"ok","Anexo: Relatório Técnico Circunstanciado justificando a adoção do percentual de cada parcela do BDI.","") -> 
A33: =A32 -> Fornecimento de Materiais e Equipamentos (aquisição indireta - em conjunto com licitação de obras) | B33: SG | C33: Fornecimento de Materiais e Equipamentos (aquisição indireta - em conjunto com licitação de obras)-SG | E33: 0.003 | F33: 0.0048 | G33: 0.0082 | I33: F
A34: =A33 -> Fornecimento de Materiais e Equipamentos (aquisição indireta - em conjunto com licitação de obras) | B34: R | C34: Fornecimento de Materiais e Equipamentos (aquisição indireta - em conjunto com licitação de obras)-R | E34: 0.0056 | F34: 0.0085 | G34: 0.0089 | I34: F | J34: Os valores de BDI foram calculados com o emprego da fórmula:
A35: =A34 -> Fornecimento de Materiais e Equipamentos (aquisição indireta - em conjunto com licitação de obras) | B35: DF | C35: Fornecimento de Materiais e Equipamentos (aquisição indireta - em conjunto com licitação de obras)-DF | E35: 0.0085 | F35: 0.0085 | G35: 0.0111 | I35: F | M35: BDI = | N35: =IF($J17=$A$146,"(1+K1+K2)*(1+K3)","(1+AC + S + R + G)*(1 + DF)*(1+L)") -> (1+AC + S + R + G)*(1 + DF)*(1+L) | Q35: - 1
A36: =A35 -> Fornecimento de Materiais e Equipamentos (aquisição indireta - em conjunto com licitação de obras) | B36: L | C36: Fornecimento de Materiais e Equipamentos (aquisição indireta - em conjunto com licitação de obras)-L | E36: 0.035 | F36: 0.0511 | G36: 0.0622 | I36: F | N36: (1-CP-ISS-CRPB)
A37: =A36 -> Fornecimento de Materiais e Equipamentos (aquisição indireta - em conjunto com licitação de obras) | B37: BDI PAD | C37: Fornecimento de Materiais e Equipamentos (aquisição indireta - em conjunto com licitação de obras)-BDI PAD | E37: 0.111 | F37: 0.1402 | G37: 0.168 | I37: F
A38: Fornecimento de Materiais e Equipamentos (aquisição direta) | B38: AC | C38: Fornecimento de Materiais e Equipamentos (aquisição direta)-AC | E38: - | F38: - | G38: - | I38: F | J38: =CONCATENATE("Declaro para os devidos fins que, conforme legislação tributária municipal, a base de cálculo deste tipo de obra corresponde à ",$R$10*100,"%, com a respectiva alíquota de ",$R$11*100,"%.") -> Declaro para os devidos fins que, conforme legislação tributária municipal, a base de cálculo deste tipo de obra corresponde à 3%, com a respectiva alíquota de 100%.
A39: Fornecimento de Materiais e Equipamentos (aquisição direta) | B39: SG | C39: Fornecimento de Materiais e Equipamentos (aquisição direta)-SG | E39: - | F39: - | G39: - | I39: F
A40: Fornecimento de Materiais e Equipamentos (aquisição direta) | B40: R | C40: Fornecimento de Materiais e Equipamentos (aquisição direta)-R | E40: - | F40: - | G40: - | I40: F | J40: =CONCATENATE("Declaro para os devidos fins que o regime de Contribuição Previdenciária sobre a Receita Bruta adotado para elaboração do orçamento foi ",IF(DESONERACAO="Sim","COM","SEM")," Desoneração, e que esta é a alternativa mais adequada para a Administração Pública.") -> Declaro para os devidos fins que o regime de Contribuição Previdenciária sobre a Receita Bruta adotado para elaboração do orçamento foi SEM Desoneração, e que esta é a alternativa mais adequada para a Administração Pública.
A41: Fornecimento de Materiais e Equipamentos (aquisição direta) | B41: DF | C41: Fornecimento de Materiais e Equipamentos (aquisição direta)-DF | E41: - | F41: - | G41: - | I41: F
A42: Fornecimento de Materiais e Equipamentos (aquisição direta) | B42: L | C42: Fornecimento de Materiais e Equipamentos (aquisição direta)-L | E42: - | F42: - | G42: - | I42: F | J42: Observações:
A43: Fornecimento de Materiais e Equipamentos (aquisição direta) | B43: BDI PAD | C43: Fornecimento de Materiais e Equipamentos (aquisição direta)-BDI PAD | E43: - | F43: - | G43: - | I43: F
A44: Estudos e Projetos, Planos e Gerenciamento e outros correlatos | B44: K1 | C44: Estudos e Projetos, Planos e Gerenciamento e outros correlatos-K1 | E44: - | F44: - | G44: - | I44: F
A45: =A44 -> Estudos e Projetos, Planos e Gerenciamento e outros correlatos | B45: K2 | C45: Estudos e Projetos, Planos e Gerenciamento e outros correlatos-K2 | E45: - | F45: 0.2 | G45: - | I45: F | J45: =Import.Município -> Ouro/SC | P45: =DADOS!$F$25 -> 2020-07-23
A46: =A45 -> Estudos e Projetos, Planos e Gerenciamento e outros correlatos | C46: Estudos e Projetos, Planos e Gerenciamento e outros correlatos- | E46: - | F46: - | G46: - | I46: F | J46: Local | P46: Data
A47: =A46 -> Estudos e Projetos, Planos e Gerenciamento e outros correlatos | C47: Estudos e Projetos, Planos e Gerenciamento e outros correlatos- | E47: - | F47: - | G47: - | I47: F
A48: =A47 -> Estudos e Projetos, Planos e Gerenciamento e outros correlatos | B48: K3 | C48: Estudos e Projetos, Planos e Gerenciamento e outros correlatos-K3 | E48: - | F48: 0.12 | G48: - | I48: F
A49: =A48 -> Estudos e Projetos, Planos e Gerenciamento e outros correlatos | B49: BDI PAD | C49: Estudos e Projetos, Planos e Gerenciamento e outros correlatos-BDI PAD | E49: - | F49: - | G49: - | I49: F | J49: Responsável Técnico
I50: F | J50: Nome: | K50: =Import.RespOrçamento -> André Brito Dotti
I51: F | J51: CREA/CAU: | K51: 162.237-5
I52: F | J52: ART/RRT: | K52: 7.438.364-2
I53: F
I54: =IF($S$69=0,"","F") ->  | J54: BDI 2
I55: =IF($S$69=0,"","F") -> 
J56: TIPO DE OBRA
J57: (SELECIONAR)
J59: Itens | R59: Siglas | S59: % Adotado | U59: Situação | X59: 1º Quartil | Y59: Médio | Z59: 3º Quartil
J61: =IF($J$17=$A$146,"Encargos Sociais incidentes sobre a mão de obra","Administração Central") -> Administração Central | R61: =IF($J57=$A$146,"K1","AC") -> AC | U61: - | X61: =VLOOKUP(CONCATENATE(J57,"-",R61),$C$2:$G$136,3,FALSE) ->  | Y61: =VLOOKUP(CONCATENATE(J57,"-",R61),$C$2:$G$136,4,FALSE) ->  | Z61: =VLOOKUP(CONCATENATE(J57,"-",R61),$C$2:$G$136,5,FALSE) -> 
J62: =IF($J$17=$A$146,"Administração Central da empresa ou consultoria - overhead","Seguro e Garantia") -> Seguro e Garantia | R62: =IF($J57=$A$146,"K2","SG") -> SG | U62: - | X62: =VLOOKUP(CONCATENATE(J57,"-",R62),$C$2:$G$136,3,FALSE) ->  | Y62: =VLOOKUP(CONCATENATE(J57,"-",R62),$C$2:$G$136,4,FALSE) ->  | Z62: =VLOOKUP(CONCATENATE(J57,"-",R62),$C$2:$G$136,5,FALSE) -> 
J63: =IF($J$17=$A$146,"","Risco") -> Risco | R63: =IF($J57=$A$146,"","R") -> R | U63: - | X63: =VLOOKUP(CONCATENATE(J57,"-",R63),$C$2:$G$136,3,FALSE) ->  | Y63: =VLOOKUP(CONCATENATE(J57,"-",R63),$C$2:$G$136,4,FALSE) ->  | Z63: =VLOOKUP(CONCATENATE(J57,"-",R63),$C$2:$G$136,5,FALSE) -> 
J64: =IF($J$17=$A$146,"","Despesas Financeiras") -> Despesas Financeiras | R64: =IF($J57=$A$146,"","DF") -> DF | U64: - | X64: =VLOOKUP(CONCATENATE(J57,"-",R64),$C$2:$G$136,3,FALSE) ->  | Y64: =VLOOKUP(CONCATENATE(J57,"-",R64),$C$2:$G$136,4,FALSE) ->  | Z64: =VLOOKUP(CONCATENATE(J57,"-",R64),$C$2:$G$136,5,FALSE) -> 
J65: =IF($J$17=$A$146,"Margem bruta da empresa de consultoria","Lucro") -> Lucro | R65: =IF($J57=$A$146,"K3","L") -> L | U65: - | X65: =VLOOKUP(CONCATENATE(J57,"-",R65),$C$2:$G$136,3,FALSE) ->  | Y65: =VLOOKUP(CONCATENATE(J57,"-",R65),$C$2:$G$136,4,FALSE) ->  | Z65: =VLOOKUP(CONCATENATE(J57,"-",R65),$C$2:$G$136,5,FALSE) -> 
J66: Tributos (impostos COFINS 3%, e PIS 0,65%) | R66: CP | U66: - | X66: 0.0365 | Y66: 0.0365 | Z66: 0.0365
J67: Tributos (ISS, variável de acordo com o município) | R67: ISS | S67: =IF(AND($J57<>$A$145,COUNTA(OFFSET(S60,1,0,6))>0),$R$11*$R$10,0) -> 0 | U67: - | X67: 0 | Y67: 0.025 | Z67: 0.05
J68: Tributos (Contribuição Previdenciária sobre a Receita Bruta - 0% ou 4,5% - Desoneração) | R68: CPRB | S68: =IF(BDI.Opcao<>"Desonerado",0,IF(AND($J57<>$A$145,COUNTA(OFFSET(S60,1,0,6))>0),4.5%,0%)) -> 0 | U68: - | X68: 0 | Y68: 0.045 | Z68: 0.045
J69: BDI SEM desoneração (Fórmula Acórdão TCU) | R69: BDI PAD | S69: =IF($J57=$A$145,0,ROUND((((1+S61+S62+S63)*(1+S64)*(1+S65)/(1-(S66+S67)))-1),4)) -> 0 | U69: =IF(OR($J$17=$A$146,$J$17=$A$145,AND(S69>=X69,S69<=Z69)),"OK","FORA DO INTERVALO") ->  | X69: =IF($J57=$A$145,0,VLOOKUP(CONCATENATE($J57,"-",$R69),$C$2:$G$136,3,FALSE)) ->  | Y69: =IF($J57=$A$145,0,VLOOKUP(CONCATENATE($J57,"-",$R69),$C$2:$G$136,4,FALSE)) ->  | Z69: =IF($J57=$A$145,0,VLOOKUP(CONCATENATE($J57,"-",$R69),$C$2:$G$136,5,FALSE)) -> 
J70: BDI COM desoneração | R70: BDI DES | S70: =IF($J57=$A$145,0,ROUND((((1+S61+S62+S63)*(1+S64)*(1+S65)/(1-(S66+S67+S68)))-1),4)) -> 0
J72: =IF(U69<>"ok","X","") ->  | K72: =IF(U69<>"ok","Anexo: Relatório Técnico Circunstanciado justificando a adoção do percentual de cada parcela do BDI.","") -> 
J74: Os valores de BDI foram calculados com o emprego da fórmula:
M75: BDI = | N75: =IF($J57=$A$146,"(1+K1+K2)*(1+K3)","(1+AC + S + R + G)*(1 + DF)*(1+L)") -> (1+AC + S + R + G)*(1 + DF)*(1+L) | Q75: - 1
N76: (1-CP-ISS-CRPB)
J78: =CONCATENATE("Declaro para os devidos fins que, conforme legislação tributária municipal, a base de cálculo deste tipo de obra corresponde à ",$R$10*100,"%, com a respectiva alíquota de ",$R$11*100,"%.") -> Declaro para os devidos fins que, conforme legislação tributária municipal, a base de cálculo deste tipo de obra corresponde à 3%, com a respectiva alíquota de 100%.
J80: =CONCATENATE("Declaro para os devidos fins que o regime de Contribuição Previdenciária sobre a Receita Bruta adotado para elaboração do orçamento foi ",IF(DESONERACAO="Sim","COM","SEM")," Desoneração, e que esta é a alternativa mais adequada para a Administração Pública.") -> Declaro para os devidos fins que o regime de Contribuição Previdenciária sobre a Receita Bruta adotado para elaboração do orçamento foi SEM Desoneração, e que esta é a alternativa mais adequada para a Administração Pública.
J82: Observações:
J85: =Import.Município -> Ouro/SC | P85: =DADOS!$F$25 -> 2020-07-23
J86: Local | P86: Data
J89: Responsável Técnico
J90: Nome: | K90: =Import.RespOrçamento -> André Brito Dotti
J91: CREA/CAU: | K91: 162.237-5
J92: ART/RRT: | K92: 7.438.364-2
I94: =IF($S$109=0,"","F") ->  | J94: BDI 3
I95: =IF($S$109=0,"","F") -> 
J96: TIPO DE OBRA
J97: (SELECIONAR)
J99: Itens | R99: Siglas | S99: % Adotado | U99: Situação | X99: 1º Quartil | Y99: Médio | Z99: 3º Quartil
J101: =IF($J$17=$A$146,"Encargos Sociais incidentes sobre a mão de obra","Administração Central") -> Administração Central | R101: =IF($J97=$A$146,"K1","AC") -> AC | U101: - | X101: =VLOOKUP(CONCATENATE(J97,"-",R101),$C$2:$G$136,3,FALSE) ->  | Y101: =VLOOKUP(CONCATENATE(J97,"-",R101),$C$2:$G$136,4,FALSE) ->  | Z101: =VLOOKUP(CONCATENATE(J97,"-",R101),$C$2:$G$136,5,FALSE) -> 
J102: =IF($J$17=$A$146,"Administração Central da empresa ou consultoria - overhead","Seguro e Garantia") -> Seguro e Garantia | R102: =IF($J97=$A$146,"K2","SG") -> SG | U102: - | X102: =VLOOKUP(CONCATENATE(J97,"-",R102),$C$2:$G$136,3,FALSE) ->  | Y102: =VLOOKUP(CONCATENATE(J97,"-",R102),$C$2:$G$136,4,FALSE) ->  | Z102: =VLOOKUP(CONCATENATE(J97,"-",R102),$C$2:$G$136,5,FALSE) -> 
J103: =IF($J$17=$A$146,"","Risco") -> Risco | R103: =IF($J97=$A$146,"","R") -> R | U103: - | X103: =VLOOKUP(CONCATENATE(J97,"-",R103),$C$2:$G$136,3,FALSE) ->  | Y103: =VLOOKUP(CONCATENATE(J97,"-",R103),$C$2:$G$136,4,FALSE) ->  | Z103: =VLOOKUP(CONCATENATE(J97,"-",R103),$C$2:$G$136,5,FALSE) -> 
J104: =IF($J$17=$A$146,"","Despesas Financeiras") -> Despesas Financeiras | R104: =IF($J97=$A$146,"","DF") -> DF | U104: - | X104: =VLOOKUP(CONCATENATE(J97,"-",R104),$C$2:$G$136,3,FALSE) ->  | Y104: =VLOOKUP(CONCATENATE(J97,"-",R104),$C$2:$G$136,4,FALSE) ->  | Z104: =VLOOKUP(CONCATENATE(J97,"-",R104),$C$2:$G$136,5,FALSE) -> 
J105: =IF($J$17=$A$146,"Margem bruta da empresa de consultoria","Lucro") -> Lucro | R105: =IF($J97=$A$146,"K3","L") -> L | U105: - | X105: =VLOOKUP(CONCATENATE(J97,"-",R105),$C$2:$G$136,3,FALSE) ->  | Y105: =VLOOKUP(CONCATENATE(J97,"-",R105),$C$2:$G$136,4,FALSE) ->  | Z105: =VLOOKUP(CONCATENATE(J97,"-",R105),$C$2:$G$136,5,FALSE) -> 
J106: Tributos (impostos COFINS 3%, e PIS 0,65%) | R106: CP | U106: - | X106: 0.0365 | Y106: 0.0365 | Z106: 0.0365
J107: Tributos (ISS, variável de acordo com o município) | R107: ISS | S107: =IF(AND($J97<>$A$145,COUNTA(OFFSET(S100,1,0,6))>0),$R$11*$R$10,0) -> 0 | U107: - | X107: 0 | Y107: 0.025 | Z107: 0.05
J108: Tributos (Contribuição Previdenciária sobre a Receita Bruta - 0% ou 4,5% - Desoneração) | R108: CPRB | S108: =IF(BDI.Opcao<>"Desonerado",0,IF(AND($J97<>$A$145,COUNTA(OFFSET(S100,1,0,6))>0),4.5%,0%)) -> 0 | U108: - | X108: 0 | Y108: 0.045 | Z108: 0.045
J109: BDI SEM desoneração (Fórmula Acórdão TCU) | R109: BDI PAD | S109: =IF($J97=$A$145,0,ROUND((((1+S101+S102+S103)*(1+S104)*(1+S105)/(1-(S106+S107)))-1),4)) -> 0 | U109: =IF(OR($J$17=$A$146,$J$17=$A$145,AND(S109>=X109,S109<=Z109)),"OK","FORA DO INTERVALO") ->  | X109: =IF($J97=$A$145,0,VLOOKUP(CONCATENATE($J97,"-",$R109),$C$2:$G$136,3,FALSE)) ->  | Y109: =IF($J97=$A$145,0,VLOOKUP(CONCATENATE($J97,"-",$R109),$C$2:$G$136,4,FALSE)) ->  | Z109: =IF($J97=$A$145,0,VLOOKUP(CONCATENATE($J97,"-",$R109),$C$2:$G$136,5,FALSE)) -> 
J110: BDI COM desoneração | R110: BDI DES | S110: =IF($J97=$A$145,0,ROUND((((1+S101+S102+S103)*(1+S104)*(1+S105)/(1-(S106+S107+S108)))-1),4)) -> 0
J112: =IF(U109<>"ok","X","") ->  | K112: =IF(U109<>"ok","Anexo: Relatório Técnico Circunstanciado justificando a adoção do percentual de cada parcela do BDI.","") -> 
J114: Os valores de BDI foram calculados com o emprego da fórmula:
M115: BDI = | N115: =IF($J97=$A$146,"(1+K1+K2)*(1+K3)","(1+AC + S + R + G)*(1 + DF)*(1+L)") -> (1+AC + S + R + G)*(1 + DF)*(1+L) | Q115: - 1
N116: (1-CP-ISS-CRPB)
J118: =CONCATENATE("Declaro para os devidos fins que, conforme legislação tributária municipal, a base de cálculo deste tipo de obra corresponde à ",$R$10*100,"%, com a respectiva alíquota de ",$R$11*100,"%.") -> Declaro para os devidos fins que, conforme legislação tributária municipal, a base de cálculo deste tipo de obra corresponde à 3%, com a respectiva alíquota de 100%.
J120: =CONCATENATE("Declaro para os devidos fins que o regime de Contribuição Previdenciária sobre a Receita Bruta adotado para elaboração do orçamento foi ",IF(DESONERACAO="Sim","COM","SEM")," Desoneração, e que esta é a alternativa mais adequada para a Administração Pública.") -> Declaro para os devidos fins que o regime de Contribuição Previdenciária sobre a Receita Bruta adotado para elaboração do orçamento foi SEM Desoneração, e que esta é a alternativa mais adequada para a Administração Pública.
J122: Observações:
J125: =Import.Município -> Ouro/SC | P125: =DADOS!$F$25 -> 2020-07-23
J126: Local | P126: Data
J129: Responsável Técnico
J130: Nome: | K130: =Import.RespOrçamento -> André Brito Dotti
J131: CREA/CAU: | K131: 162.237-5
J132: ART/RRT: | K132: 7.438.364-2
A138: (SELECIONAR)
A139: Construção e Reforma de Edifícios
A140: Construção de Praças Urbanas, Rodovias, Ferrovias e recapeamento e pavimentação de vias urbanas
A141: Construção de Redes de Abastecimento de Água, Coleta de Esgoto
A142: Construção e Manutenção de Estações e Redes de Distribuição de Energia Elétrica
A143: Obras Portuárias, Marítimas e Fluviais
A144: Fornecimento de Materiais e Equipamentos (aquisição indireta - em conjunto com licitação de obras)
A145: Fornecimento de Materiais e Equipamentos (aquisição direta)
A146: Estudos e Projetos, Planos e Gerenciamento e outros correlatos

Sheet ORÇAMENTO
R1: PO - PLANILHA ORÇAMENTÁRIA | X1: Grau de Sigilo
D2: LOTE | E2: Meta | F2: Nível 2 | G2: Nível 3 | H2: Nível 4 | I2: Serviço | R2: =IF(TIPOORCAMENTO="licitado","Orçamento Licitado","Orçamento Base para Licitação")&" - "&import.recurso -> Orçamento Base para Licitação - (SELECIONAR) | X2: #PUBLICO
A4: Nmax | F4: BDI 1 | G4: BDI 2 | H4: BDI 3 | I4: 0 | O4: Nº OPERAÇÃO | Q4: Nº SICONV | R4: PROPONENTE / TOMADOR | S4: APELIDO DO EMPREENDIMENTO
A5: =MAX($C$15:$C$154) -> 2 | F5: =IF(BDI.Opcao="DESONERADO",BDI!$S$30,BDI!$S$29) -> 0.2035 | G5: =IF(BDI.Opcao="DESONERADO",BDI!$S$70,BDI!$S$69) -> 0 | H5: =IF(BDI.Opcao="DESONERADO",BDI!$S$110,BDI!$S$109) -> 0 | O5: =Import.CR -> 0 | Q5: =Import.SICONV -> 0 | R5: =Import.Proponente -> Prefeitura Municipal de Ouro/SC | S5: =Import.Apelido -> FECHAMENTO DA GARAGEM DE MÁQUINAS | AE5: Arredondamento
O7: LOCALIDADE SINAPI | Q7: DATA BASE | R7: =IF(TIPOORCAMENTO="Licitado","NOME DA EMPRESA","DESCRIÇÃO DO LOTE") -> DESCRIÇÃO DO LOTE | S7: =IF(TIPOORCAMENTO="Licitado","REGIME DE EXECUÇÃO","MUNICÍPIO / UF") -> MUNICÍPIO / UF | V7: =IF(TIPOORCAMENTO="Licitado","","BDI 1") -> BDI 1 | W7: =IF(TIPOORCAMENTO="Licitado","","BDI 2") -> BDI 2 | X7: =IF(TIPOORCAMENTO="Licitado","Nº CTEF","BDI 3") -> BDI 3 | AE7: Quantidade | AF7: TRUE | AJ7: QUANTIDADES: ACOMP. POR BM | AL7: PREÇO UNITÁRIO LICITADO
F8: =IF(LEN(INFO("release"))>5,"'Referência "&Excel_BuiltIn_Database&".xls'#Banco.$a5:$a$65536","'[Referência "&Excel_BuiltIn_Database&".xls]Banco'!$a5:$a$65536") -> '[Referência 05-2020.xls]Banco'!$a5:$a$65536 | L8: FILTRO | O8: =IF(ISERROR(INDIRECT($F$9)),"(N/D: 'Referência "&Excel_BuiltIn_Database&".xls)",INDIRECT($F$9)) -> FLORIANOPOLIS | Q8: =TEXT(Import.DataBase,"mm-aa")&IF(DESONERACAO="Sim"," (DES.)"," (N DES.)") -> 05-20 (N DES.) | R8: =IF(TIPOORCAMENTO="Licitado",Import.empresa,Import.DescLote) -> GARAGEM DE MÁQUINAS | S8: =IF(TIPOORCAMENTO="Licitado",Import.RegimeExecução,Import.Município) -> Ouro/SC | V8: =IF(TIPOORCAMENTO="Licitado","",TEXT(F5,"0,00%")) -> 20,35% | W8: =IF(TIPOORCAMENTO="Licitado","",TEXT(G5,"0,00%")) -> 0,00% | X8: =IF(TIPOORCAMENTO="Licitado",Import.CTEF,TEXT(H5,"0,00%")) -> 0,00% | Y8: RECURSO | Z8: SGL RECURSO | AE8: Custo Unitáro | AF8: TRUE
F9: =IF(LEN(INFO("release"))>5,"'Referência "&Excel_BuiltIn_Database&".xls'#Banco.$d$3","'[Referência "&Excel_BuiltIn_Database&".xls]Banco'!$d$3") -> '[Referência 05-2020.xls]Banco'!$d$3 | AE9: BDI | AF9: TRUE
AC10: ERRO GERAL | AE10: Preço Unitário | AF10: TRUE
AC11: =IF(COUNTIF($AC$15:OFFSET($AC$154,-1,0),"DESCRIÇÃO")+COUNTIF($AC$15:OFFSET($AC$154,-1,0),"UNIDADE")+COUNTIF($AC$15:OFFSET($AC$154,-1,0),"SEM VALOR")>0,"NÃO OK","OK") -> OK | AE11: Preço Total | AF11: TRUE
AA12: Valores não Arredondados | AJ12: ↓ | AL12: ↓
A13: Nível E | B13: Save Nivel | C13: Nível C | D13: Altura | E13: n1 | F13: n2 | G13: n3 | H13: n4 | I13: n5 | J13: Czero | K13: Cnível | L13: ↓ | M13: Nível | N13: Nível Corrigido | O13: Item | P13: Fonte | Q13: Código | R13: Descrição | S13: Unidade | T13: Quantidade | U13: =IF(TIPOORCAMENTO="Licitado","","Custo Unitário (sem BDI) (R$)") -> Custo Unitário (sem BDI) (R$) | V13: =IF(TIPOORCAMENTO="Licitado","","BDI (%)") -> BDI (%) | W13: Preço Unitário (com BDI) (R$) | X13: Preço Total (R$) | Y13: ↓ | Z13: ↓ | AA13: Contrapartida (R$) | AB13: Outros (R$) | AC13: Erro de Dados | AD13: Lista Crono | AE13: Concatenação Fonte-Código | AF13: BancoDesloc | AG13: Custo Unitário Referência (R$) | AH13: =IF(TIPOORCAMENTO="LICITADO","Valor BDI Edital","Valor BDI") -> Valor BDI | AJ13: Quantidade | AL13: Preço Unitário (com BDI) (R$) | AM13: Preço Total Licit. (R$) | AN13: Preço Unitário Edital (R$)
A14: =CHOOSE(1+LOG(1+2*(ORÇAMENTO.Nivel="Meta")+4*(ORÇAMENTO.Nivel="Nível 2")+8*(ORÇAMENTO.Nivel="Nível 3")+16*(ORÇAMENTO.Nivel="Nível 4")+32*(ORÇAMENTO.Nivel="Serviço"),2),0,1,2,3,4,"S") -> S | B14: =IF(OR(C14="s",C14=0),OFFSET(B14,-1,0),C14) -> Save Nivel | C14: =IF(OFFSET(C14,-1,0)="L",1,IF(OFFSET(C14,-1,0)=1,2,IF(OR(A14="s",A14=0),"S",IF(AND(OFFSET(C14,-1,0)=2,A14=4),3,IF(AND(OR(OFFSET(C14,-1,0)="s",OFFSET(C14,-1,0)=0),A14<>"s",A14>OFFSET(B14,-1,0)),OFFSET(B14,-1,0),A14))))) -> S | D14: =IF(OR(C14="S",C14=0),0,IF(ISERROR(K14),J14,SMALL(J14:K14,1))) -> 0 | E14: =IF($C14=1,OFFSET(E14,-1,0)+MAX(1,COUNTIF(QCI!$A$13:$A$24,OFFSET(ORÇAMENTO!E14,-1,0))),OFFSET(E14,-1,0)) -> n1 | F14: =IF($C14=1,0,IF($C14=2,OFFSET(F14,-1,0)+1,OFFSET(F14,-1,0))) -> n2 | G14: =IF(AND($C14<=2,$C14<>0),0,IF($C14=3,OFFSET(G14,-1,0)+1,OFFSET(G14,-1,0))) -> n3 | H14: =IF(AND($C14<=3,$C14<>0),0,IF($C14=4,OFFSET(H14,-1,0)+1,OFFSET(H14,-1,0))) -> n4 | I14: =IF(AND($C14<=4,$C14<>0),0,IF(AND($C14="S",$X14>0),OFFSET(I14,-1,0)+1,OFFSET(I14,-1,0))) -> n5 | J14: =IF(OR($C14="S",$C14=0),0,MATCH(0,OFFSET($D14,1,$C14,ROW($C$154)-ROW($C14)),0)) -> 0 | K14: =IF(OR($C14="S",$C14=0),0,MATCH(OFFSET($D14,0,$C14)+IF($C14<>1,1,COUNTIF(QCI!$A$13:$A$24,ORÇAMENTO!E14)),OFFSET($D14,1,$C14,ROW($C$154)-ROW($C14)),0)) -> 0 | L14: =IF(OR($X14>0,$C14=1,$C14=2,$C14=3,$C14=4),"F","") ->  | M14: Serviço | N14: =CHOOSE(1+LOG(1+2*(C14=1)+4*(C14=2)+8*(C14=3)+16*(C14=4)+32*(C14="S"),2),"","Meta","Nível 2","Nível 3","Nível 4","Serviço") -> Serviço | O14: =IF(OR($C14=0,$L14=""),"-",CONCATENATE(E14&".",IF(AND($A$5>=2,$C14>=2),F14&".",""),IF(AND($A$5>=3,$C14>=3),G14&".",""),IF(AND($A$5>=4,$C14>=4),H14&".",""),IF($C14="S",I14&".",""))) -> - | P14: SINAPI | R14: =IF($C14="S",REFERENCIA.Descricao,"(digite a descrição aqui)") -> (Sem Código) | S14: =REFERENCIA.Unidade -> - | T14: =OFFSET(CÁLCULO!H$15,ROW($T14)-ROW(T$15),0) -> 0 | V14: BDI 1 | W14: =IF($C14="S",ROUND(IF(TIPOORCAMENTO="Proposto",ORÇAMENTO.CustoUnitario*(1+$AH14),ORÇAMENTO.PrecoUnitarioLicitado),15-13*$AF$10),0) -> 0 | X14: =IF($C14="S",VTOTAL1,IF($C14=0,0,ROUND(SomaAgrup,15-13*$AF$11))) -> 0 | Y14: RA | Z14: =IF(AND($C14="S",$X14>0),IF(ISBLANK($Y14),"RA",LEFT($Y14,2)),"") ->  | AA14: =IF($C14="S",IF($Z14="CP",$X14,IF($Z14="RA",(($X14)*QCI!$AA$3),0)),SomaAgrup) -> 0 | AB14: =IF($C14="S",IF($Z14="OU",ROUND($X14,2),0),SomaAgrup) -> 0 | AC14: =IF($N14="","",IF(ORÇAMENTO.Descricao="","DESCRIÇÃO",IF(AND($C14="S",ORÇAMENTO.Unidade=""),"UNIDADE",IF($X14<0,"VALOR NEGATIVO",IF(OR(AND(TIPOORCAMENTO="Proposto",$AG14<>"",$AG14>0,ORÇAMENTO.CustoUnitario>$AG14),AND(TIPOORCAMENTO="LICITADO",ORÇAMENTO.PrecoUnitarioLicitado>$AN14)),"ACIMA REF.",""))))) ->  | AD14: =IF(C14<=CRONO.NivelExibicao,MAX($AD$15:OFFSET(AD14,-1,0))+IF($C14<>1,1,MAX(1,COUNTIF(QCI!$A$13:$A$24,OFFSET($E14,-1,0)))),"") ->  | AE14: =IF(AND($C14="S",ORÇAMENTO.CodBarra<>""),IF(ORÇAMENTO.Fonte="",ORÇAMENTO.CodBarra,CONCATENATE(ORÇAMENTO.Fonte," ",ORÇAMENTO.CodBarra))) -> FALSE | AF14: =IF(ISERROR(INDIRECT(ORÇAMENTO.BancoRef)),"(abra o arquivo 'Referência "&Excel_BuiltIn_Database&".xls)",IF(OR($C14<>"S",ORÇAMENTO.CodBarra=""),"(Sem Código)",IF(ISERROR(MATCH($AE14,INDIRECT(ORÇAMENTO.BancoRef),0)),"(Código não identificado nas referências)",MATCH($AE14,INDIRECT(ORÇAMENTO.BancoRef),0)))) -> (Sem Código) | AG14: =ROUND(IF(DESONERACAO="sim",REFERENCIA.Desonerado,REFERENCIA.NaoDesonerado),2) -> 0 | AH14: =ROUND(IF(ISNUMBER(ORÇAMENTO.OpcaoBDI),ORÇAMENTO.OpcaoBDI,IF(LEFT(ORÇAMENTO.OpcaoBDI,3)="BDI",HLOOKUP(ORÇAMENTO.OpcaoBDI,$F$4:$H$5,2,FALSE),0)),15-11*$AF$9) -> 0.2035 | AM14: =$X14 -> 0 | AN14: =ROUND(ORÇAMENTO.CustoUnitario*(1+$AH14),2) -> 0
A15: 0 | C15: L | D15: =COUNTA(OFFSET(D15,1,0):D$154) -> 138 | E15: 0 | L15: F | M15: =IF(TIPOORCAMENTO="LICITADO","CTEF","LOTE") -> LOTE | N15: =IF(TIPOORCAMENTO="LICITADO","CTEF","LOTE") -> LOTE | O15: =Import.DescLote -> GARAGEM DE MÁQUINAS | X15: =SUMIF(OFFSET($C15,1,0,ROW(X154)-ROW(X15)-1),"S",OFFSET(X15,1,0,ROW(X154)-ROW(X15)-1)) -> 298436.46 | Z15: =IF(AND($C15="S",$X15>0),LEFT($Y15,2),"") ->  | AA15: =SUMIF(OFFSET($C15,1,0,ROW(AA154)-ROW(AA15)-1),"S",OFFSET(AA15,1,0,ROW(AA154)-ROW(AA15)-1)) -> 298436.46 | AB15: =SUMIF(OFFSET($C15,1,0,ROW(AB154)-ROW(AB15)-1),"S",OFFSET(AB15,1,0,ROW(AB154)-ROW(AB15)-1)) -> 0 | AM15: 298436.46
A16: =CHOOSE(1+LOG(1+2*(ORÇAMENTO.Nivel="Meta")+4*(ORÇAMENTO.Nivel="Nível 2")+8*(ORÇAMENTO.Nivel="Nível 3")+16*(ORÇAMENTO.Nivel="Nível 4")+32*(ORÇAMENTO.Nivel="Serviço"),2),0,1,2,3,4,"S") -> 1 | B16: =IF(OR(C16="s",C16=0),OFFSET(B16,-1,0),C16) -> 1 | C16: =IF(OFFSET(C16,-1,0)="L",1,IF(OFFSET(C16,-1,0)=1,2,IF(OR(A16="s",A16=0),"S",IF(AND(OFFSET(C16,-1,0)=2,A16=4),3,IF(AND(OR(OFFSET(C16,-1,0)="s",OFFSET(C16,-1,0)=0),A16<>"s",A16>OFFSET(B16,-1,0)),OFFSET(B16,-1,0),A16))))) -> 1 | D16: =IF(OR(C16="S",C16=0),0,IF(ISERROR(K16),J16,SMALL(J16:K16,1))) -> 138 | E16: =IF($C16=1,OFFSET(E16,-1,0)+MAX(1,COUNTIF(QCI!$A$13:$A$24,OFFSET(ORÇAMENTO!E16,-1,0))),OFFSET(E16,-1,0)) -> 1 | F16: =IF($C16=1,0,IF($C16=2,OFFSET(F16,-1,0)+1,OFFSET(F16,-1,0))) -> 0 | G16: =IF(AND($C16<=2,$C16<>0),0,IF($C16=3,OFFSET(G16,-1,0)+1,OFFSET(G16,-1,0))) -> 0 | H16: =IF(AND($C16<=3,$C16<>0),0,IF($C16=4,OFFSET(H16,-1,0)+1,OFFSET(H16,-1,0))) -> 0 | I16: =IF(AND($C16<=4,$C16<>0),0,IF(AND($C16="S",$X16>0),OFFSET(I16,-1,0)+1,OFFSET(I16,-1,0))) -> 0 | J16: =IF(OR($C16="S",$C16=0),0,MATCH(0,OFFSET($D16,1,$C16,ROW($C$154)-ROW($C16)),0)) -> 138 | K16: =IF(OR($C16="S",$C16=0),0,MATCH(OFFSET($D16,0,$C16)+IF($C16<>1,1,COUNTIF(QCI!$A$13:$A$24,ORÇAMENTO!E16)),OFFSET($D16,1,$C16,ROW($C$154)-ROW($C16)),0)) ->  | L16: =IF(OR($X16>0,$C16=1,$C16=2,$C16=3,$C16=4),"F","") -> F | M16: Meta | N16: =CHOOSE(1+LOG(1+2*(C16=1)+4*(C16=2)+8*(C16=3)+16*(C16=4)+32*(C16="S"),2),"","Meta","Nível 2","Nível 3","Nível 4","Serviço") -> Meta | O16: =IF(OR($C16=0,$L16=""),"-",CONCATENATE(E16&".",IF(AND($A$5>=2,$C16>=2),F16&".",""),IF(AND($A$5>=3,$C16>=3),G16&".",""),IF(AND($A$5>=4,$C16>=4),H16&".",""),IF($C16="S",I16&".",""))) -> 1. | P16: SINAPI | R16: FECHAMENTO GARAGEM DE MÁQUINAS | S16: - | T16: =OFFSET(CÁLCULO!H$15,ROW($T16)-ROW(T$15),0) -> 0 | V16: BDI 1 | W16: =IF($C16="S",ROUND(IF(TIPOORCAMENTO="Proposto",ORÇAMENTO.CustoUnitario*(1+$AH16),ORÇAMENTO.PrecoUnitarioLicitado),15-13*$AF$10),0) -> 0 | X16: =IF($C16="S",VTOTAL1,IF($C16=0,0,ROUND(SomaAgrup,15-13*$AF$11))) -> 298436.46 | Y16: RA | Z16: =IF(AND($C16="S",$X16>0),IF(ISBLANK($Y16),"RA",LEFT($Y16,2)),"") ->  | AA16: =IF($C16="S",IF($Z16="CP",$X16,IF($Z16="RA",(($X16)*QCI!$AA$3),0)),SomaAgrup) -> 298436.46 | AB16: =IF($C16="S",IF($Z16="OU",ROUND($X16,2),0),SomaAgrup) -> 0 | AC16: =IF($N16="","",IF(ORÇAMENTO.Descricao="","DESCRIÇÃO",IF(AND($C16="S",ORÇAMENTO.Unidade=""),"UNIDADE",IF($X16<0,"VALOR NEGATIVO",IF(OR(AND(TIPOORCAMENTO="Proposto",$AG16<>"",$AG16>0,ORÇAMENTO.CustoUnitario>$AG16),AND(TIPOORCAMENTO="LICITADO",ORÇAMENTO.PrecoUnitarioLicitado>$AN16)),"ACIMA REF.",""))))) ->  | AD16: =IF(C16<=CRONO.NivelExibicao,MAX($AD$15:OFFSET(AD16,-1,0))+IF($C16<>1,1,MAX(1,COUNTIF(QCI!$A$13:$A$24,OFFSET($E16,-1,0)))),"") -> 1 | AE16: =IF(AND($C16="S",ORÇAMENTO.CodBarra<>""),IF(ORÇAMENTO.Fonte="",ORÇAMENTO.CodBarra,CONCATENATE(ORÇAMENTO.Fonte," ",ORÇAMENTO.CodBarra))) -> FALSE | AF16: =IF(ISERROR(INDIRECT(ORÇAMENTO.BancoRef)),"(abra o arquivo 'Referência "&Excel_BuiltIn_Database&".xls)",IF(OR($C16<>"S",ORÇAMENTO.CodBarra=""),"(Sem Código)",IF(ISERROR(MATCH($AE16,INDIRECT(ORÇAMENTO.BancoRef),0)),"(Código não identificado nas referências)",MATCH($AE16,INDIRECT(ORÇAMENTO.BancoRef),0)))) -> (Sem Código) | AG16: =ROUND(IF(DESONERACAO="sim",REFERENCIA.Desonerado,REFERENCIA.NaoDesonerado),2) -> 0 | AH16: =ROUND(IF(ISNUMBER(ORÇAMENTO.OpcaoBDI),ORÇAMENTO.OpcaoBDI,IF(LEFT(ORÇAMENTO.OpcaoBDI,3)="BDI",HLOOKUP(ORÇAMENTO.OpcaoBDI,$F$4:$H$5,2,FALSE),0)),15-11*$AF$9) -> 0.2035 | AM16: 298436.46 | AN16: =ROUND(ORÇAMENTO.CustoUnitario*(1+$AH16),2) -> 0
A17: =CHOOSE(1+LOG(1+2*(ORÇAMENTO.Nivel="Meta")+4*(ORÇAMENTO.Nivel="Nível 2")+8*(ORÇAMENTO.Nivel="Nível 3")+16*(ORÇAMENTO.Nivel="Nível 4")+32*(ORÇAMENTO.Nivel="Serviço"),2),0,1,2,3,4,"S") -> 2 | B17: 2 | C17: 2 | D17: 2 | E17: =IF($C17=1,OFFSET(E17,-1,0)+MAX(1,COUNTIF(QCI!$A$13:$A$24,OFFSET(ORÇAMENTO!E17,-1,0))),OFFSET(E17,-1,0)) -> 1 | F17: 1 | G17: 0 | H17: 0 | I17: 0 | J17: 137 | K17: =IF(OR($C17="S",$C17=0),0,MATCH(OFFSET($D17,0,$C17)+IF($C17<>1,1,COUNTIF(QCI!$A$13:$A$24,ORÇAMENTO!E17)),OFFSET($D17,1,$C17,ROW($C$154)-ROW($C17)),0)) -> 2 | L17: F | M17: Nível 2 | N17: Nível 2 | O17: 1.1. | P17: SINAPI | Q17: 74209/001 | R17: SERVIÇOS INICIAIS | S17: - | T17: =OFFSET(CÁLCULO!H$15,ROW($T17)-ROW(T$15),0) -> 0 | V17: BDI 1 | W17: =IF($C17="S",ROUND(IF(TIPOORCAMENTO="Proposto",ORÇAMENTO.CustoUnitario*(1+$AH17),ORÇAMENTO.PrecoUnitarioLicitado),15-13*$AF$10),0) -> 0 | X17: =IF($C17="S",VTOTAL1,IF($C17=0,0,ROUND(SomaAgrup,15-13*$AF$11))) -> 752.2 | Y17: RA | AA17: =IF($C17="S",IF($Z17="CP",$X17,IF($Z17="RA",(($X17)*QCI!$AA$3),0)),SomaAgrup) -> 752.2 | AB17: =IF($C17="S",IF($Z17="OU",ROUND($X17,2),0),SomaAgrup) -> 0 | AC17: =IF($N17="","",IF(ORÇAMENTO.Descricao="","DESCRIÇÃO",IF(AND($C17="S",ORÇAMENTO.Unidade=""),"UNIDADE",IF($X17<0,"VALOR NEGATIVO",IF(OR(AND(TIPOORCAMENTO="Proposto",$AG17<>"",$AG17>0,ORÇAMENTO.CustoUnitario>$AG17),AND(TIPOORCAMENTO="LICITADO",ORÇAMENTO.PrecoUnitarioLicitado>$AN17)),"ACIMA REF.",""))))) ->  | AD17: =IF(C17<=CRONO.NivelExibicao,MAX($AD$15:OFFSET(AD17,-1,0))+IF($C17<>1,1,MAX(1,COUNTIF(QCI!$A$13:$A$24,OFFSET($E17,-1,0)))),"") -> 2 | AE17: =IF(AND($C17="S",ORÇAMENTO.CodBarra<>""),IF(ORÇAMENTO.Fonte="",ORÇAMENTO.CodBarra,CONCATENATE(ORÇAMENTO.Fonte," ",ORÇAMENTO.CodBarra))) -> FALSE | AF17: =IF(ISERROR(INDIRECT(ORÇAMENTO.BancoRef)),"(abra o arquivo 'Referência "&Excel_BuiltIn_Database&".xls)",IF(OR($C17<>"S",ORÇAMENTO.CodBarra=""),"(Sem Código)",IF(ISERROR(MATCH($AE17,INDIRECT(ORÇAMENTO.BancoRef),0)),"(Código não identificado nas referências)",MATCH($AE17,INDIRECT(ORÇAMENTO.BancoRef),0)))) -> (Sem Código) | AG17: =ROUND(IF(DESONERACAO="sim",REFERENCIA.Desonerado,REFERENCIA.NaoDesonerado),2) -> 0 | AH17: =ROUND(IF(ISNUMBER(ORÇAMENTO.OpcaoBDI),ORÇAMENTO.OpcaoBDI,IF(LEFT(ORÇAMENTO.OpcaoBDI,3)="BDI",HLOOKUP(ORÇAMENTO.OpcaoBDI,$F$4:$H$5,2,FALSE),0)),15-11*$AF$9) -> 0.2035 | AM17: 752.2 | AN17: =ROUND(ORÇAMENTO.CustoUnitario*(1+$AH17),2) -> 0
A18: =CHOOSE(1+LOG(1+2*(ORÇAMENTO.Nivel="Meta")+4*(ORÇAMENTO.Nivel="Nível 2")+8*(ORÇAMENTO.Nivel="Nível 3")+16*(ORÇAMENTO.Nivel="Nível 4")+32*(ORÇAMENTO.Nivel="Serviço"),2),0,1,2,3,4,"S") -> S | B18: 2 | C18: S | D18: 0 | E18: =IF($C18=1,OFFSET(E18,-1,0)+MAX(1,COUNTIF(QCI!$A$13:$A$24,OFFSET(ORÇAMENTO!E18,-1,0))),OFFSET(E18,-1,0)) -> 1 | F18: 1 | G18: 0 | H18: 0 | I18: 1 | J18: 0 | K18: =IF(OR($C18="S",$C18=0),0,MATCH(OFFSET($D18,0,$C18)+IF($C18<>1,1,COUNTIF(QCI!$A$13:$A$24,ORÇAMENTO!E18)),OFFSET($D18,1,$C18,ROW($C$154)-ROW($C18)),0)) -> 0 | L18: F | M18: Serviço | N18: Serviço | O18: 1.1.1. | P18: SINAPI-I | Q18: 4813 | R18: PLACA DE OBRA EM CHAPA GALVANIZADA | S18: M2 | T18: =OFFSET(CÁLCULO!H$15,ROW($T18)-ROW(T$15),0) -> 2.5 | U18: 250 | V18: BDI 1 | W18: =IF($C18="S",ROUND(IF(TIPOORCAMENTO="Proposto",ORÇAMENTO.CustoUnitario*(1+$AH18),ORÇAMENTO.PrecoUnitarioLicitado),15-13*$AF$10),0) -> 300.88 | X18: =IF($C18="S",VTOTAL1,IF($C18=0,0,ROUND(SomaAgrup,15-13*$AF$11))) -> 752.2 | Y18: RA | Z18: RA | AA18: =IF($C18="S",IF($Z18="CP",$X18,IF($Z18="RA",(($X18)*QCI!$AA$3),0)),SomaAgrup) -> 752.2 | AB18: =IF($C18="S",IF($Z18="OU",ROUND($X18,2),0),SomaAgrup) -> 0 | AC18: =IF($N18="","",IF(ORÇAMENTO.Descricao="","DESCRIÇÃO",IF(AND($C18="S",ORÇAMENTO.Unidade=""),"UNIDADE",IF($X18<0,"VALOR NEGATIVO",IF(OR(AND(TIPOORCAMENTO="Proposto",$AG18<>"",$AG18>0,ORÇAMENTO.CustoUnitario>$AG18),AND(TIPOORCAMENTO="LICITADO",ORÇAMENTO.PrecoUnitarioLicitado>$AN18)),"ACIMA REF.",""))))) ->  | AD18: =IF(C18<=CRONO.NivelExibicao,MAX($AD$15:OFFSET(AD18,-1,0))+IF($C18<>1,1,MAX(1,COUNTIF(QCI!$A$13:$A$24,OFFSET($E18,-1,0)))),"") ->  | AE18: =IF(AND($C18="S",ORÇAMENTO.CodBarra<>""),IF(ORÇAMENTO.Fonte="",ORÇAMENTO.CodBarra,CONCATENATE(ORÇAMENTO.Fonte," ",ORÇAMENTO.CodBarra))) -> SINAPI-I 4813 | AF18: =IF(ISERROR(INDIRECT(ORÇAMENTO.BancoRef)),"(abra o arquivo 'Referência "&Excel_BuiltIn_Database&".xls)",IF(OR($C18<>"S",ORÇAMENTO.CodBarra=""),"(Sem Código)",IF(ISERROR(MATCH($AE18,INDIRECT(ORÇAMENTO.BancoRef),0)),"(Código não identificado nas referências)",MATCH($AE18,INDIRECT(ORÇAMENTO.BancoRef),0)))) -> 10234 | AG18: =ROUND(IF(DESONERACAO="sim",REFERENCIA.Desonerado,REFERENCIA.NaoDesonerado),2) -> 300 | AH18: =ROUND(IF(ISNUMBER(ORÇAMENTO.OpcaoBDI),ORÇAMENTO.OpcaoBDI,IF(LEFT(ORÇAMENTO.OpcaoBDI,3)="BDI",HLOOKUP(ORÇAMENTO.OpcaoBDI,$F$4:$H$5,2,FALSE),0)),15-11*$AF$9) -> 0.2035 | AJ18: 2.5 | AM18: 752.2 | AN18: =ROUND(ORÇAMENTO.CustoUnitario*(1+$AH18),2) -> 300.88
A19: =CHOOSE(1+LOG(1+2*(ORÇAMENTO.Nivel="Meta")+4*(ORÇAMENTO.Nivel="Nível 2")+8*(ORÇAMENTO.Nivel="Nível 3")+16*(ORÇAMENTO.Nivel="Nível 4")+32*(ORÇAMENTO.Nivel="Serviço"),2),0,1,2,3,4,"S") -> 2 | B19: 2 | C19: 2 | D19: 27 | E19: =IF($C19=1,OFFSET(E19,-1,0)+MAX(1,COUNTIF(QCI!$A$13:$A$24,OFFSET(ORÇAMENTO!E19,-1,0))),OFFSET(E19,-1,0)) -> 1 | F19: 2 | G19: 0 | H19: 0 | I19: 0 | J19: 135 | K19: =IF(OR($C19="S",$C19=0),0,MATCH(OFFSET($D19,0,$C19)+IF($C19<>1,1,COUNTIF(QCI!$A$13:$A$24,ORÇAMENTO!E19)),OFFSET($D19,1,$C19,ROW($C$154)-ROW($C19)),0)) -> 27 | L19: F | M19: Nível 2 | N19: Nível 2 | O19: 1.2. | P19: SINAPI | R19: ESTRUTURA | S19: - | T19: =OFFSET(CÁLCULO!H$15,ROW($T19)-ROW(T$15),0) -> 0 | U19: 0 | V19: BDI 1 | W19: =IF($C19="S",ROUND(IF(TIPOORCAMENTO="Proposto",ORÇAMENTO.CustoUnitario*(1+$AH19),ORÇAMENTO.PrecoUnitarioLicitado),15-13*$AF$10),0) -> 0 | X19: =IF($C19="S",VTOTAL1,IF($C19=0,0,ROUND(SomaAgrup,15-13*$AF$11))) -> 36611.37 | Y19: RA | AA19: =IF($C19="S",IF($Z19="CP",$X19,IF($Z19="RA",(($X19)*QCI!$AA$3),0)),SomaAgrup) -> 36611.37 | AB19: =IF($C19="S",IF($Z19="OU",ROUND($X19,2),0),SomaAgrup) -> 0 | AC19: =IF($N19="","",IF(ORÇAMENTO.Descricao="","DESCRIÇÃO",IF(AND($C19="S",ORÇAMENTO.Unidade=""),"UNIDADE",IF($X19<0,"VALOR NEGATIVO",IF(OR(AND(TIPOORCAMENTO="Proposto",$AG19<>"",$AG19>0,ORÇAMENTO.CustoUnitario>$AG19),AND(TIPOORCAMENTO="LICITADO",ORÇAMENTO.PrecoUnitarioLicitado>$AN19)),"ACIMA REF.",""))))) ->  | AD19: =IF(C19<=CRONO.NivelExibicao,MAX($AD$15:OFFSET(AD19,-1,0))+IF($C19<>1,1,MAX(1,COUNTIF(QCI!$A$13:$A$24,OFFSET($E19,-1,0)))),"") -> 3 | AE19: =IF(AND($C19="S",ORÇAMENTO.CodBarra<>""),IF(ORÇAMENTO.Fonte="",ORÇAMENTO.CodBarra,CONCATENATE(ORÇAMENTO.Fonte," ",ORÇAMENTO.CodBarra))) -> FALSE | AF19: =IF(ISERROR(INDIRECT(ORÇAMENTO.BancoRef)),"(abra o arquivo 'Referência "&Excel_BuiltIn_Database&".xls)",IF(OR($C19<>"S",ORÇAMENTO.CodBarra=""),"(Sem Código)",IF(ISERROR(MATCH($AE19,INDIRECT(ORÇAMENTO.BancoRef),0)),"(Código não identificado nas referências)",MATCH($AE19,INDIRECT(ORÇAMENTO.BancoRef),0)))) -> (Sem Código) | AG19: =ROUND(IF(DESONERACAO="sim",REFERENCIA.Desonerado,REFERENCIA.NaoDesonerado),2) -> 0 | AH19: =ROUND(IF(ISNUMBER(ORÇAMENTO.OpcaoBDI),ORÇAMENTO.OpcaoBDI,IF(LEFT(ORÇAMENTO.OpcaoBDI,3)="BDI",HLOOKUP(ORÇAMENTO.OpcaoBDI,$F$4:$H$5,2,FALSE),0)),15-11*$AF$9) -> 0.2035 | AM19: 36611.37 | AN19: =ROUND(ORÇAMENTO.CustoUnitario*(1+$AH19),2) -> 0
A20: S | B20: 2 | C20: S | D20: 0 | E20: =IF($C20=1,OFFSET(E20,-1,0)+MAX(1,COUNTIF(QCI!$A$13:$A$24,OFFSET(ORÇAMENTO!E20,-1,0))),OFFSET(E20,-1,0)) -> 1 | F20: 2 | G20: 0 | H20: 0 | I20: 1 | J20: 0 | K20: =IF(OR($C20="S",$C20=0),0,MATCH(OFFSET($D20,0,$C20)+IF($C20<>1,1,COUNTIF(QCI!$A$13:$A$24,ORÇAMENTO!E20)),OFFSET($D20,1,$C20,ROW($C$154)-ROW($C20)),0)) -> 0 | L20: F | M20: Serviço | N20: Serviço | O20: 1.2.1. | P20: SINAPI | Q20: 96521 | R20: ESCAVAÇÃO MECANIZADA PARA VIGA BALDRAME E RADIER, COM PREVISÃO DE FÔRMA, COM RETROESCAVADEIRA | S20: M3 | T20: =OFFSET(CÁLCULO!H$15,ROW($T20)-ROW(T$15),0) -> 10.58 | U20: =AG20*0.9 -> 26.28 | V20: BDI 1 | W20: 31.63 | X20: 334.65 | Y20: RA | Z20: RA | AA20: =IF($C20="S",IF($Z20="CP",$X20,IF($Z20="RA",(($X20)*QCI!$AA$3),0)),SomaAgrup) -> 334.65 | AB20: 0 | AD20: =IF(C20<=CRONO.NivelExibicao,MAX($AD$15:OFFSET(AD20,-1,0))+IF($C20<>1,1,MAX(1,COUNTIF(QCI!$A$13:$A$24,OFFSET($E20,-1,0)))),"") ->  | AE20: SINAPI 96521 | AF20: 4884 | AG20: 29.2 | AH20: 0.2035 | AJ20: =(AJ22*0.3)+(0.6*0.25*((15.3*2)+(4.75*5))) -> 10.5825 | AM20: 334.65 | AN20: 31.63
A21: S | B21: 2 | C21: S | D21: 0 | E21: =IF($C21=1,OFFSET(E21,-1,0)+MAX(1,COUNTIF(QCI!$A$13:$A$24,OFFSET(ORÇAMENTO!E21,-1,0))),OFFSET(E21,-1,0)) -> 1 | F21: 2 | G21: 0 | H21: 0 | I21: 2 | J21: 0 | K21: =IF(OR($C21="S",$C21=0),0,MATCH(OFFSET($D21,0,$C21)+IF($C21<>1,1,COUNTIF(QCI!$A$13:$A$24,ORÇAMENTO!E21)),OFFSET($D21,1,$C21,ROW($C$154)-ROW($C21)),0)) -> 0 | L21: F | M21: Serviço | N21: Serviço | O21: 1.2.2. | P21: SINAPI | Q21: 96995 | R21: REATERRO MANUAL APILOADO COM SOQUETE | S21: M3 | T21: =OFFSET(CÁLCULO!H$15,ROW($T21)-ROW(T$15),0) -> 2.12 | U21: 38 | V21: BDI 1 | W21: 45.73 | X21: 96.95 | Y21: RA | Z21: RA | AA21: =IF($C21="S",IF($Z21="CP",$X21,IF($Z21="RA",(($X21)*QCI!$AA$3),0)),SomaAgrup) -> 96.95 | AB21: 0 | AD21: =IF(C21<=CRONO.NivelExibicao,MAX($AD$15:OFFSET(AD21,-1,0))+IF($C21<>1,1,MAX(1,COUNTIF(QCI!$A$13:$A$24,OFFSET($E21,-1,0)))),"") ->  | AE21: SINAPI 96995 | AF21: 5042 | AG21: 40.99 | AH21: 0.2035 | AJ21: =AJ20*0.2 -> 2.1165 | AM21: 96.95 | AN21: 45.73
A22: S | B22: 2 | C22: S | D22: 0 | E22: =IF($C22=1,OFFSET(E22,-1,0)+MAX(1,COUNTIF(QCI!$A$13:$A$24,OFFSET(ORÇAMENTO!E22,-1,0))),OFFSET(E22,-1,0)) -> 1 | F22: 2 | G22: 0 | H22: 0 | I22: 3 | J22: 0 | K22: =IF(OR($C22="S",$C22=0),0,MATCH(OFFSET($D22,0,$C22)+IF($C22<>1,1,COUNTIF(QCI!$A$13:$A$24,ORÇAMENTO!E22)),OFFSET($D22,1,$C22,ROW($C$154)-ROW($C22)),0)) -> 0 | L22: F | M22: Serviço | N22: Serviço | O22: 1.2.3. | P22: SINAPI | Q22: 97083 | R22: COMPACTAÇÃO MECÂNICA DE SOLO PARA EXECUÇÃO DE RADIER, COM COMPACTADOR DE SOLOS A PERCUSSÃO. AF_09/2017 | S22: M2 | T22: =OFFSET(CÁLCULO!H$15,ROW($T22)-ROW(T$15),0) -> 8.1 | U22: 2.5 | V22: BDI 1 | W22: 3.01 | X22: 24.38 | Y22: RA | Z22: RA | AA22: =IF($C22="S",IF($Z22="CP",$X22,IF($Z22="RA",(($X22)*QCI!$AA$3),0)),SomaAgrup) -> 24.38 | AB22: 0 | AD22: =IF(C22<=CRONO.NivelExibicao,MAX($AD$15:OFFSET(AD22,-1,0))+IF($C22<>1,1,MAX(1,COUNTIF(QCI!$A$13:$A$24,OFFSET($E22,-1,0)))),"") ->  | AE22: SINAPI 97083 | AF22: 2100 | AG22: 2.69 | AH22: 0.2035 | AJ22: =1.62/0.2 -> 8.1 | AM22: 24.38 | AN22: 3.01
A23: S | B23: 2 | C23: S | D23: 0 | E23: =IF($C23=1,OFFSET(E23,-1,0)+MAX(1,COUNTIF(QCI!$A$13:$A$24,OFFSET(ORÇAMENTO!E23,-1,0))),OFFSET(E23,-1,0)) -> 1 | F23: 2 | G23: 0 | H23: 0 | I23: 4 | J23: 0 | K23: =IF(OR($C23="S",$C23=0),0,MATCH(OFFSET($D23,0,$C23)+IF($C23<>1,1,COUNTIF(QCI!$A$13:$A$24,ORÇAMENTO!E23)),OFFSET($D23,1,$C23,ROW($C$154)-ROW($C23)),0)) -> 0 | L23: F | M23: Serviço | N23: Serviço | O23: 1.2.4. | P23: SINAPI | Q23: 92759 | R23: ARMAÇÃO DE PILAR OU VIGA DE UMA ESTRUTURA CONVENCIONAL DE CONCRETO ARMADO EM UM EDIFÍCIO DE MÚLTIPLOS PAVIMENTOS UTILIZANDO AÇO CA-60 DE 5,0 MM - MONTAGEM. AF_12/2015 | S23: KG | T23: =OFFSET(CÁLCULO!H$15,ROW($T23)-ROW(T$15),0) -> 142.4 | U23: 10 | V23: BDI 1 | W23: 12.04 | X23: 1714.5 | Y23: RA | Z23: RA | AA23: =IF($C23="S",IF($Z23="CP",$X23,IF($Z23="RA",(($X23)*QCI!$AA$3),0)),SomaAgrup) -> 1714.5 | AB23: 0 | AD23: =IF(C23<=CRONO.NivelExibicao,MAX($AD$15:OFFSET(AD23,-1,0))+IF($C23<>1,1,MAX(1,COUNTIF(QCI!$A$13:$A$24,OFFSET($E23,-1,0)))),"") ->  | AE23: SINAPI 92759 | AF23: 2308 | AG23: 10.73 | AH23: 0.2035 | AJ23: =15.8+88.4+38.2 -> 142.4 | AM23: 1714.5 | AN23: 12.04
A24: S | B24: 2 | C24: S | D24: 0 | E24: =IF($C24=1,OFFSET(E24,-1,0)+MAX(1,COUNTIF(QCI!$A$13:$A$24,OFFSET(ORÇAMENTO!E24,-1,0))),OFFSET(E24,-1,0)) -> 1 | F24: 2 | G24: 0 | H24: 0 | I24: 5 | J24: 0 | K24: =IF(OR($C24="S",$C24=0),0,MATCH(OFFSET($D24,0,$C24)+IF($C24<>1,1,COUNTIF(QCI!$A$13:$A$24,ORÇAMENTO!E24)),OFFSET($D24,1,$C24,ROW($C$154)-ROW($C24)),0)) -> 0 | L24: F | M24: Serviço | N24: Serviço | O24: 1.2.5. | P24: SINAPI | Q24: 92760 | R24: ARMAÇÃO DE PILAR OU VIGA DE UMA ESTRUTURA CONVENCIONAL DE CONCRETO ARMADO EM UM EDIFÍCIO DE MÚLTIPLOS PAVIMENTOS UTILIZANDO AÇO CA-50 DE 6,3 MM - MONTAGEM. AF_12/2015 | S24: KG | T24: =OFFSET(CÁLCULO!H$15,ROW($T24)-ROW(T$15),0) -> 5.1 | U24: 9 | V24: BDI 1 | W24: 10.83 | X24: 55.23 | Y24: RA | Z24: RA | AA24: =IF($C24="S",IF($Z24="CP",$X24,IF($Z24="RA",(($X24)*QCI!$AA$3),0)),SomaAgrup) -> 55.23 | AB24: 0 | AD24: =IF(C24<=CRONO.NivelExibicao,MAX($AD$15:OFFSET(AD24,-1,0))+IF($C24<>1,1,MAX(1,COUNTIF(QCI!$A$13:$A$24,OFFSET($E24,-1,0)))),"") ->  | AE24: SINAPI 92760 | AF24: 2309 | AG24: 9.61 | AH24: 0.2035 | AJ24: =2.3+2.8 -> 5.1 | AM24: 55.23 | AN24: 10.83
A25: S | B25: 2 | C25: S | D25: 0 | E25: =IF($C25=1,OFFSET(E25,-1,0)+MAX(1,COUNTIF(QCI!$A$13:$A$24,OFFSET(ORÇAMENTO!E25,-1,0))),OFFSET(E25,-1,0)) -> 1 | F25: 2 | G25: 0 | H25: 0 | I25: 6 | J25: 0 | K25: =IF(OR($C25="S",$C25=0),0,MATCH(OFFSET($D25,0,$C25)+IF($C25<>1,1,COUNTIF(QCI!$A$13:$A$24,ORÇAMENTO!E25)),OFFSET($D25,1,$C25,ROW($C$154)-ROW($C25)),0)) -> 0 | L25: F | M25: Serviço | N25: Serviço | O25: 1.2.6. | P25: SINAPI | Q25: 92761 | R25: ARMAÇÃO DE PILAR OU VIGA DE UMA ESTRUTURA CONVENCIONAL DE CONCRETO ARMADO EM UM EDIFÍCIO DE MÚLTIPLOS PAVIMENTOS UTILIZANDO AÇO CA-50 DE 8,0 MM - MONTAGEM. AF_12/2015 | S25: KG | T25: =OFFSET(CÁLCULO!H$15,ROW($T25)-ROW(T$15),0) -> 86.8 | U25: 8 | V25: BDI 1 | W25: 9.63 | X25: 835.88 | Y25: RA | Z25: RA | AA25: =IF($C25="S",IF($Z25="CP",$X25,IF($Z25="RA",(($X25)*QCI!$AA$3),0)),SomaAgrup) -> 835.88 | AB25: 0 | AD25: =IF(C25<=CRONO.NivelExibicao,MAX($AD$15:OFFSET(AD25,-1,0))+IF($C25<>1,1,MAX(1,COUNTIF(QCI!$A$13:$A$24,OFFSET($E25,-1,0)))),"") ->  | AE25: SINAPI 92761 | AF25: 2310 | AG25: 8.7 | AH25: 0.2035 | AJ25: =26.2+60.6 -> 86.8 | AM25: 835.88 | AN25: 9.63
A26: S | B26: 2 | C26: S | D26: 0 | E26: =IF($C26=1,OFFSET(E26,-1,0)+MAX(1,COUNTIF(QCI!$A$13:$A$24,OFFSET(ORÇAMENTO!E26,-1,0))),OFFSET(E26,-1,0)) -> 1 | F26: 2 | G26: 0 | H26: 0 | I26: 7 | J26: 0 | K26: =IF(OR($C26="S",$C26=0),0,MATCH(OFFSET($D26,0,$C26)+IF($C26<>1,1,COUNTIF(QCI!$A$13:$A$24,ORÇAMENTO!E26)),OFFSET($D26,1,$C26,ROW($C$154)-ROW($C26)),0)) -> 0 | L26: F | M26: Serviço | N26: Serviço | O26: 1.2.7. | P26: SINAPI | Q26: 92762 | R26: ARMAÇÃO DE PILAR OU VIGA DE UMA ESTRUTURA CONVENCIONAL DE CONCRETO ARMADO EM UM EDIFÍCIO DE MÚLTIPLOS PAVIMENTOS UTILIZANDO AÇO CA-50 DE 10,0 MM - MONTAGEM. AF_12/2015 | S26: KG | T26: =OFFSET(CÁLCULO!H$15,ROW($T26)-ROW(T$15),0) -> 168.8 | U26: 7 | V26: BDI 1 | W26: 8.42 | X26: 1421.3 | Y26: RA | Z26: RA | AA26: =IF($C26="S",IF($Z26="CP",$X26,IF($Z26="RA",(($X26)*QCI!$AA$3),0)),SomaAgrup) -> 1421.3 | AB26: 0 | AD26: =IF(C26<=CRONO.NivelExibicao,MAX($AD$15:OFFSET(AD26,-1,0))+IF($C26<>1,1,MAX(1,COUNTIF(QCI!$A$13:$A$24,OFFSET($E26,-1,0)))),"") ->  | AE26: SINAPI 92762 | AF26: 2311 | AG26: 7.62 | AH26: 0.2035 | AJ26: =28.2+112.9+27.7 -> 168.8 | AM26: 1421.3 | AN26: 8.42
A27: S | B27: 2 | C27: S | D27: 0 | E27: =IF($C27=1,OFFSET(E27,-1,0)+MAX(1,COUNTIF(QCI!$A$13:$A$24,OFFSET(ORÇAMENTO!E27,-1,0))),OFFSET(E27,-1,0)) -> 1 | F27: 2 | G27: 0 | H27: 0 | I27: 8 | J27: 0 | K27: =IF(OR($C27="S",$C27=0),0,MATCH(OFFSET($D27,0,$C27)+IF($C27<>1,1,COUNTIF(QCI!$A$13:$A$24,ORÇAMENTO!E27)),OFFSET($D27,1,$C27,ROW($C$154)-ROW($C27)),0)) -> 0 | L27: F | M27: Serviço | N27: Serviço | O27: 1.2.8. | P27: SINAPI | Q27: 92763 | R27: ARMAÇÃO DE PILAR OU VIGA DE UMA ESTRUTURA CONVENCIONAL DE CONCRETO ARMADO EM UM EDIFÍCIO DE MÚLTIPLOS PAVIMENTOS UTILIZANDO AÇO CA-50 DE 12,5 MM - MONTAGEM. AF_12/2015 | S27: KG | T27: =OFFSET(CÁLCULO!H$15,ROW($T27)-ROW(T$15),0) -> 303.5 | U27: 6 | V27: BDI 1 | W27: 7.22 | X27: 2191.27 | Y27: RA | Z27: RA | AA27: =IF($C27="S",IF($Z27="CP",$X27,IF($Z27="RA",(($X27)*QCI!$AA$3),0)),SomaAgrup) -> 2191.27 | AB27: 0 | AD27: =IF(C27<=CRONO.NivelExibicao,MAX($AD$15:OFFSET(AD27,-1,0))+IF($C27<>1,1,MAX(1,COUNTIF(QCI!$A$13:$A$24,OFFSET($E27,-1,0)))),"") ->  | AE27: SINAPI 92763 | AF27: 2312 | AG27: 6.34 | AH27: 0.2035 | AJ27: =43.6+259.9 -> 303.5 | AM27: 2191.27 | AN27: 7.22
A28: S | B28: 2 | C28: S | D28: 0 | E28: =IF($C28=1,OFFSET(E28,-1,0)+MAX(1,COUNTIF(QCI!$A$13:$A$24,OFFSET(ORÇAMENTO!E28,-1,0))),OFFSET(E28,-1,0)) -> 1 | F28: 2 | G28: 0 | H28: 0 | I28: 9 | J28: 0 | K28: =IF(OR($C28="S",$C28=0),0,MATCH(OFFSET($D28,0,$C28)+IF($C28<>1,1,COUNTIF(QCI!$A$13:$A$24,ORÇAMENTO!E28)),OFFSET($D28,1,$C28,ROW($C$154)-ROW($C28)),0)) -> 0 | L28: F | M28: Serviço | N28: Serviço | O28: 1.2.9. | P28: SINAPI | Q28: 92769 | R28: ARMAÇÃO DE LAJE DE UMA ESTRUTURA CONVENCIONAL DE CONCRETO ARMADO EM UM EDIFÍCIO DE MÚLTIPLOS PAVIMENTOS UTILIZANDO AÇO CA-50 DE 6,3 MM - MONTAGEM. AF_12/2015 | S28: KG | T28: =OFFSET(CÁLCULO!H$15,ROW($T28)-ROW(T$15),0) -> 128.2 | U28: 8 | V28: BDI 1 | W28: 9.63 | X28: 1234.57 | Y28: RA | Z28: RA | AA28: =IF($C28="S",IF($Z28="CP",$X28,IF($Z28="RA",(($X28)*QCI!$AA$3),0)),SomaAgrup) -> 1234.57 | AB28: 0 | AD28: =IF(C28<=CRONO.NivelExibicao,MAX($AD$15:OFFSET(AD28,-1,0))+IF($C28<>1,1,MAX(1,COUNTIF(QCI!$A$13:$A$24,OFFSET($E28,-1,0)))),"") ->  | AE28: SINAPI 92769 | AF28: 2318 | AG28: 8.58 | AH28: 0.2035 | AJ28: =128.2 -> 128.2 | AM28: 1234.57 | AN28: 9.63
A29: S | B29: 2 | C29: S | D29: 0 | E29: =IF($C29=1,OFFSET(E29,-1,0)+MAX(1,COUNTIF(QCI!$A$13:$A$24,OFFSET(ORÇAMENTO!E29,-1,0))),OFFSET(E29,-1,0)) -> 1 | F29: 2 | G29: 0 | H29: 0 | I29: 10 | J29: 0 | K29: =IF(OR($C29="S",$C29=0),0,MATCH(OFFSET($D29,0,$C29)+IF($C29<>1,1,COUNTIF(QCI!$A$13:$A$24,ORÇAMENTO!E29)),OFFSET($D29,1,$C29,ROW($C$154)-ROW($C29)),0)) -> 0 | L29: F | M29: Serviço | N29: Serviço | O29: 1.2.10. | P29: SINAPI | Q29: 92770 | R29: ARMAÇÃO DE LAJE DE UMA ESTRUTURA CONVENCIONAL DE CONCRETO ARMADO EM UM EDIFÍCIO DE MÚLTIPLOS PAVIMENTOS UTILIZANDO AÇO CA-50 DE 8,0 MM - MONTAGEM. AF_12/2015 | S29: KG | T29: =OFFSET(CÁLCULO!H$15,ROW($T29)-ROW(T$15),0) -> 306.3 | U29: 7 | V29: BDI 1 | W29: 8.42 | X29: 2579.05 | Y29: RA | Z29: RA | AA29: =IF($C29="S",IF($Z29="CP",$X29,IF($Z29="RA",(($X29)*QCI!$AA$3),0)),SomaAgrup) -> 2579.05 | AB29: 0 | AD29: =IF(C29<=CRONO.NivelExibicao,MAX($AD$15:OFFSET(AD29,-1,0))+IF($C29<>1,1,MAX(1,COUNTIF(QCI!$A$13:$A$24,OFFSET($E29,-1,0)))),"") ->  | AE29: SINAPI 92770 | AF29: 2319 | AG29: 7.94 | AH29: 0.2035 | AJ29: =136+170.3 -> 306.3 | AM29: 2579.05 | AN29: 8.42
A30: =CHOOSE(1+LOG(1+2*(ORÇAMENTO.Nivel="Meta")+4*(ORÇAMENTO.Nivel="Nível 2")+8*(ORÇAMENTO.Nivel="Nível 3")+16*(ORÇAMENTO.Nivel="Nível 4")+32*(ORÇAMENTO.Nivel="Serviço"),2),0,1,2,3,4,"S") -> S | B30: =IF(OR(C30="s",C30=0),OFFSET(B30,-1,0),C30) -> 2 | C30: =IF(OFFSET(C30,-1,0)="L",1,IF(OFFSET(C30,-1,0)=1,2,IF(OR(A30="s",A30=0),"S",IF(AND(OFFSET(C30,-1,0)=2,A30=4),3,IF(AND(OR(OFFSET(C30,-1,0)="s",OFFSET(C30,-1,0)=0),A30<>"s",A30>OFFSET(B30,-1,0)),OFFSET(B30,-1,0),A30))))) -> S | D30: =IF(OR(C30="S",C30=0),0,IF(ISERROR(K30),J30,SMALL(J30:K30,1))) -> 0 | E30: =IF($C30=1,OFFSET(E30,-1,0)+MAX(1,COUNTIF(QCI!$A$13:$A$24,OFFSET(ORÇAMENTO!E30,-1,0))),OFFSET(E30,-1,0)) -> 1 | F30: =IF($C30=1,0,IF($C30=2,OFFSET(F30,-1,0)+1,OFFSET(F30,-1,0))) -> 2 | G30: =IF(AND($C30<=2,$C30<>0),0,IF($C30=3,OFFSET(G30,-1,0)+1,OFFSET(G30,-1,0))) -> 0 | H30: =IF(AND($C30<=3,$C30<>0),0,IF($C30=4,OFFSET(H30,-1,0)+1,OFFSET(H30,-1,0))) -> 0 | I30: =IF(AND($C30<=4,$C30<>0),0,IF(AND($C30="S",$X30>0),OFFSET(I30,-1,0)+1,OFFSET(I30,-1,0))) -> 11 | J30: 0 | K30: =IF(OR($C30="S",$C30=0),0,MATCH(OFFSET($D30,0,$C30)+IF($C30<>1,1,COUNTIF(QCI!$A$13:$A$24,ORÇAMENTO!E30)),OFFSET($D30,1,$C30,ROW($C$154)-ROW($C30)),0)) -> 0 | L30: =IF(OR($X30>0,$C30=1,$C30=2,$C30=3,$C30=4),"F","") -> F | M30: Serviço | N30: =CHOOSE(1+LOG(1+2*(C30=1)+4*(C30=2)+8*(C30=3)+16*(C30=4)+32*(C30="S"),2),"","Meta","Nível 2","Nível 3","Nível 4","Serviço") -> Serviço | O30: =IF(OR($C30=0,$L30=""),"-",CONCATENATE(E30&".",IF(AND($A$5>=2,$C30>=2),F30&".",""),IF(AND($A$5>=3,$C30>=3),G30&".",""),IF(AND($A$5>=4,$C30>=4),H30&".",""),IF($C30="S",I30&".",""))) -> 1.2.11. | P30: SINAPI | Q30: 92771 | R30: ARMAÇÃO DE LAJE DE UMA ESTRUTURA CONVENCIONAL DE CONCRETO ARMADO EM UM EDIFÍCIO DE MÚLTIPLOS PAVIMENTOS UTILIZANDO AÇO CA-50 DE 10,0 MM - MONTAGEM. AF_12/2015 | S30: KG | T30: =OFFSET(CÁLCULO!H$15,ROW($T30)-ROW(T$15),0) -> 67.5 | U30: 6 | V30: BDI 1 | W30: =IF($C30="S",ROUND(IF(TIPOORCAMENTO="Proposto",ORÇAMENTO.CustoUnitario*(1+$AH30),ORÇAMENTO.PrecoUnitarioLicitado),15-13*$AF$10),0) -> 7.22 | X30: =IF($C30="S",VTOTAL1,IF($C30=0,0,ROUND(SomaAgrup,15-13*$AF$11))) -> 487.35 | Y30: RA | Z30: =IF(AND($C30="S",$X30>0),IF(ISBLANK($Y30),"RA",LEFT($Y30,2)),"") -> RA | AA30: =IF($C30="S",IF($Z30="CP",$X30,IF($Z30="RA",(($X30)*QCI!$AA$3),0)),SomaAgrup) -> 487.35 | AB30: =IF($C30="S",IF($Z30="OU",ROUND($X30,2),0),SomaAgrup) -> 0 | AC30: =IF($N30="","",IF(ORÇAMENTO.Descricao="","DESCRIÇÃO",IF(AND($C30="S",ORÇAMENTO.Unidade=""),"UNIDADE",IF($X30<0,"VALOR NEGATIVO",IF(OR(AND(TIPOORCAMENTO="Proposto",$AG30<>"",$AG30>0,ORÇAMENTO.CustoUnitario>$AG30),AND(TIPOORCAMENTO="LICITADO",ORÇAMENTO.PrecoUnitarioLicitado>$AN30)),"ACIMA REF.",""))))) ->  | AD30: =IF(C30<=CRONO.NivelExibicao,MAX($AD$15:OFFSET(AD30,-1,0))+IF($C30<>1,1,MAX(1,COUNTIF(QCI!$A$13:$A$24,OFFSET($E30,-1,0)))),"") ->  | AE30: =IF(AND($C30="S",ORÇAMENTO.CodBarra<>""),IF(ORÇAMENTO.Fonte="",ORÇAMENTO.CodBarra,CONCATENATE(ORÇAMENTO.Fonte," ",ORÇAMENTO.CodBarra))) -> SINAPI 92771 | AF30: =IF(ISERROR(INDIRECT(ORÇAMENTO.BancoRef)),"(abra o arquivo 'Referência "&Excel_BuiltIn_Database&".xls)",IF(OR($C30<>"S",ORÇAMENTO.CodBarra=""),"(Sem Código)",IF(ISERROR(MATCH($AE30,INDIRECT(ORÇAMENTO.BancoRef),0)),"(Código não identificado nas referências)",MATCH($AE30,INDIRECT(ORÇAMENTO.BancoRef),0)))) -> 2320 | AG30: =ROUND(IF(DESONERACAO="sim",REFERENCIA.Desonerado,REFERENCIA.NaoDesonerado),2) -> 7.02 | AH30: =ROUND(IF(ISNUMBER(ORÇAMENTO.OpcaoBDI),ORÇAMENTO.OpcaoBDI,IF(LEFT(ORÇAMENTO.OpcaoBDI,3)="BDI",HLOOKUP(ORÇAMENTO.OpcaoBDI,$F$4:$H$5,2,FALSE),0)),15-11*$AF$9) -> 0.2035 | AJ30: =0.6+66.9 -> 67.5 | AM30: 487.35 | AN30: =ROUND(ORÇAMENTO.CustoUnitario*(1+$AH30),2) -> 7.22
A31: S | B31: =IF(OR(C31="s",C31=0),OFFSET(B31,-1,0),C31) -> 2 | C31: =IF(OFFSET(C31,-1,0)="L",1,IF(OFFSET(C31,-1,0)=1,2,IF(OR(A31="s",A31=0),"S",IF(AND(OFFSET(C31,-1,0)=2,A31=4),3,IF(AND(OR(OFFSET(C31,-1,0)="s",OFFSET(C31,-1,0)=0),A31<>"s",A31>OFFSET(B31,-1,0)),OFFSET(B31,-1,0),A31))))) -> S | D31: =IF(OR(C31="S",C31=0),0,IF(ISERROR(K31),J31,SMALL(J31:K31,1))) -> 0 | E31: =IF($C31=1,OFFSET(E31,-1,0)+MAX(1,COUNTIF(QCI!$A$13:$A$24,OFFSET(ORÇAMENTO!E31,-1,0))),OFFSET(E31,-1,0)) -> 1 | F31: =IF($C31=1,0,IF($C31=2,OFFSET(F31,-1,0)+1,OFFSET(F31,-1,0))) -> 2 | G31: =IF(AND($C31<=2,$C31<>0),0,IF($C31=3,OFFSET(G31,-1,0)+1,OFFSET(G31,-1,0))) -> 0 | H31: =IF(AND($C31<=3,$C31<>0),0,IF($C31=4,OFFSET(H31,-1,0)+1,OFFSET(H31,-1,0))) -> 0 | I31: =IF(AND($C31<=4,$C31<>0),0,IF(AND($C31="S",$X31>0),OFFSET(I31,-1,0)+1,OFFSET(I31,-1,0))) -> 12 | J31: 0 | K31: =IF(OR($C31="S",$C31=0),0,MATCH(OFFSET($D31,0,$C31)+IF($C31<>1,1,COUNTIF(QCI!$A$13:$A$24,ORÇAMENTO!E31)),OFFSET($D31,1,$C31,ROW($C$154)-ROW($C31)),0)) -> 0 | L31: =IF(OR($X31>0,$C31=1,$C31=2,$C31=3,$C31=4),"F","") -> F | M31: Serviço | N31: =CHOOSE(1+LOG(1+2*(C31=1)+4*(C31=2)+8*(C31=3)+16*(C31=4)+32*(C31="S"),2),"","Meta","Nível 2","Nível 3","Nível 4","Serviço") -> Serviço | O31: =IF(OR($C31=0,$L31=""),"-",CONCATENATE(E31&".",IF(AND($A$5>=2,$C31>=2),F31&".",""),IF(AND($A$5>=3,$C31>=3),G31&".",""),IF(AND($A$5>=4,$C31>=4),H31&".",""),IF($C31="S",I31&".",""))) -> 1.2.12. | P31: SINAPI | Q31: 92772 | R31: ARMAÇÃO DE LAJE DE UMA ESTRUTURA CONVENCIONAL DE CONCRETO ARMADO EM UM EDIFÍCIO DE MÚLTIPLOS PAVIMENTOS UTILIZANDO AÇO CA-50 DE 12,5 MM - MONTAGEM. AF_12/2015 | S31: KG | T31: =OFFSET(CÁLCULO!H$15,ROW($T31)-ROW(T$15),0) -> 6.9 | U31: 5.5 | V31: BDI 1 | W31: 6.62 | X31: 45.68 | Y31: RA | Z31: =IF(AND($C31="S",$X31>0),IF(ISBLANK($Y31),"RA",LEFT($Y31,2)),"") -> RA | AA31: =IF($C31="S",IF($Z31="CP",$X31,IF($Z31="RA",(($X31)*QCI!$AA$3),0)),SomaAgrup) -> 45.68 | AB31: 0 | AD31: =IF(C31<=CRONO.NivelExibicao,MAX($AD$15:OFFSET(AD31,-1,0))+IF($C31<>1,1,MAX(1,COUNTIF(QCI!$A$13:$A$24,OFFSET($E31,-1,0)))),"") ->  | AE31: SINAPI 92772 | AF31: 2321 | AG31: 5.9 | AH31: 0.2035 | AJ31: =6.9 -> 6.9 | AM31: 45.68 | AN31: 6.62
A32: S | B32: 2 | C32: S | D32: 0 | E32: =IF($C32=1,OFFSET(E32,-1,0)+MAX(1,COUNTIF(QCI!$A$13:$A$24,OFFSET(ORÇAMENTO!E32,-1,0))),OFFSET(E32,-1,0)) -> 1 | F32: 2 | G32: 0 | H32: 0 | I32: 13 | J32: 0 | K32: =IF(OR($C32="S",$C32=0),0,MATCH(OFFSET($D32,0,$C32)+IF($C32<>1,1,COUNTIF(QCI!$A$13:$A$24,ORÇAMENTO!E32)),OFFSET($D32,1,$C32,ROW($C$154)-ROW($C32)),0)) -> 0 | L32: F | M32: Serviço | N32: Serviço | O32: 1.2.13. | P32: SINAPI | Q32: 92773 | R32: ARMAÇÃO DE LAJE DE UMA ESTRUTURA CONVENCIONAL DE CONCRETO ARMADO EM UM EDIFÍCIO DE MÚLTIPLOS PAVIMENTOS UTILIZANDO AÇO CA-50 DE 16,0 MM - MONTAGEM. AF_12/2015 | S32: KG | T32: =OFFSET(CÁLCULO!H$15,ROW($T32)-ROW(T$15),0) -> 65.9 | U32: 5 | V32: BDI 1 | W32: 6.02 | X32: 396.72 | Y32: RA | Z32: RA | AA32: =IF($C32="S",IF($Z32="CP",$X32,IF($Z32="RA",(($X32)*QCI!$AA$3),0)),SomaAgrup) -> 396.72 | AB32: 0 | AD32: =IF(C32<=CRONO.NivelExibicao,MAX($AD$15:OFFSET(AD32,-1,0))+IF($C32<>1,1,MAX(1,COUNTIF(QCI!$A$13:$A$24,OFFSET($E32,-1,0)))),"") ->  | AE32: SINAPI 92773 | AF32: 2322 | AG32: 5.59 | AH32: 0.2035 | AJ32: =65.9 -> 65.9 | AM32: 396.72 | AN32: 6.02
A33: S | B33: 2 | C33: S | D33: 0 | E33: =IF($C33=1,OFFSET(E33,-1,0)+MAX(1,COUNTIF(QCI!$A$13:$A$24,OFFSET(ORÇAMENTO!E33,-1,0))),OFFSET(E33,-1,0)) -> 1 | F33: 2 | G33: 0 | H33: 0 | I33: 14 | J33: 0 | K33: =IF(OR($C33="S",$C33=0),0,MATCH(OFFSET($D33,0,$C33)+IF($C33<>1,1,COUNTIF(QCI!$A$13:$A$24,ORÇAMENTO!E33)),OFFSET($D33,1,$C33,ROW($C$154)-ROW($C33)),0)) -> 0 | L33: F | M33: Serviço | N33: Serviço | O33: 1.2.14. | P33: SINAPI | Q33: 95943 | R33: ARMAÇÃO DE ESCADA, COM 2 LANCES, DE UMA ESTRUTURA CONVENCIONAL DE CONCRETO ARMADO UTILIZANDO AÇO CA-60 DE 5,0 MM - MONTAGEM. AF_01/2017 | S33: KG | T33: =OFFSET(CÁLCULO!H$15,ROW($T33)-ROW(T$15),0) -> 20.3 | U33: 15 | V33: BDI 1 | W33: 18.05 | X33: 366.42 | Y33: RA | Z33: RA | AA33: =IF($C33="S",IF($Z33="CP",$X33,IF($Z33="RA",(($X33)*QCI!$AA$3),0)),SomaAgrup) -> 366.42 | AB33: 0 | AD33: =IF(C33<=CRONO.NivelExibicao,MAX($AD$15:OFFSET(AD33,-1,0))+IF($C33<>1,1,MAX(1,COUNTIF(QCI!$A$13:$A$24,OFFSET($E33,-1,0)))),"") ->  | AE33: SINAPI 95943 | AF33: 2399 | AG33: 16.47 | AH33: 0.2035 | AJ33: 20.3 | AM33: 366.42 | AN33: 18.05
A34: S | B34: 2 | C34: S | D34: 0 | E34: =IF($C34=1,OFFSET(E34,-1,0)+MAX(1,COUNTIF(QCI!$A$13:$A$24,OFFSET(ORÇAMENTO!E34,-1,0))),OFFSET(E34,-1,0)) -> 1 | F34: 2 | G34: 0 | H34: 0 | I34: 15 | J34: 0 | K34: =IF(OR($C34="S",$C34=0),0,MATCH(OFFSET($D34,0,$C34)+IF($C34<>1,1,COUNTIF(QCI!$A$13:$A$24,ORÇAMENTO!E34)),OFFSET($D34,1,$C34,ROW($C$154)-ROW($C34)),0)) -> 0 | L34: F | M34: Serviço | N34: Serviço | O34: 1.2.15. | P34: SINAPI | Q34: 95944 | R34: ARMAÇÃO DE ESCADA, COM 2 LANCES, DE UMA ESTRUTURA CONVENCIONAL DE CONCRETO ARMADO UTILIZANDO AÇO CA-50 DE 6,3 MM - MONTAGEM. AF_01/2017 | S34: KG | T34: =OFFSET(CÁLCULO!H$15,ROW($T34)-ROW(T$15),0) -> 22.2 | U34: 13 | V34: BDI 1 | W34: 15.65 | X34: 347.43 | Y34: RA | Z34: RA | AA34: =IF($C34="S",IF($Z34="CP",$X34,IF($Z34="RA",(($X34)*QCI!$AA$3),0)),SomaAgrup) -> 347.43 | AB34: 0 | AD34: =IF(C34<=CRONO.NivelExibicao,MAX($AD$15:OFFSET(AD34,-1,0))+IF($C34<>1,1,MAX(1,COUNTIF(QCI!$A$13:$A$24,OFFSET($E34,-1,0)))),"") ->  | AE34: SINAPI 95944 | AF34: 2400 | AG34: 14.53 | AH34: 0.2035 | AJ34: 22.2 | AM34: 347.43 | AN34: 15.65
A35: S | B35: 2 | C35: S | D35: 0 | E35: =IF($C35=1,OFFSET(E35,-1,0)+MAX(1,COUNTIF(QCI!$A$13:$A$24,OFFSET(ORÇAMENTO!E35,-1,0))),OFFSET(E35,-1,0)) -> 1 | F35: 2 | G35: 0 | H35: 0 | I35: 16 | J35: 0 | K35: =IF(OR($C35="S",$C35=0),0,MATCH(OFFSET($D35,0,$C35)+IF($C35<>1,1,COUNTIF(QCI!$A$13:$A$24,ORÇAMENTO!E35)),OFFSET($D35,1,$C35,ROW($C$154)-ROW($C35)),0)) -> 0 | L35: F | M35: Serviço | N35: Serviço | O35: 1.2.16. | P35: SINAPI | Q35: 95945 | R35: ARMAÇÃO DE ESCADA, COM 2 LANCES, DE UMA ESTRUTURA CONVENCIONAL DE CONCRETO ARMADO UTILIZANDO AÇO CA-50 DE 8,0 MM - MONTAGEM. AF_01/2017 | S35: KG | T35: =OFFSET(CÁLCULO!H$15,ROW($T35)-ROW(T$15),0) -> 10 | U35: 10 | V35: BDI 1 | W35: 12.04 | X35: 120.4 | Y35: RA | Z35: RA | AA35: =IF($C35="S",IF($Z35="CP",$X35,IF($Z35="RA",(($X35)*QCI!$AA$3),0)),SomaAgrup) -> 120.4 | AB35: 0 | AD35: =IF(C35<=CRONO.NivelExibicao,MAX($AD$15:OFFSET(AD35,-1,0))+IF($C35<>1,1,MAX(1,COUNTIF(QCI!$A$13:$A$24,OFFSET($E35,-1,0)))),"") ->  | AE35: SINAPI 95945 | AF35: 2401 | AG35: 11.22 | AH35: 0.2035 | AJ35: 10 | AM35: 120.4 | AN35: 12.04
A36: S | B36: 2 | C36: S | D36: 0 | E36: =IF($C36=1,OFFSET(E36,-1,0)+MAX(1,COUNTIF(QCI!$A$13:$A$24,OFFSET(ORÇAMENTO!E36,-1,0))),OFFSET(E36,-1,0)) -> 1 | F36: 2 | G36: 0 | H36: 0 | I36: 17 | J36: 0 | K36: =IF(OR($C36="S",$C36=0),0,MATCH(OFFSET($D36,0,$C36)+IF($C36<>1,1,COUNTIF(QCI!$A$13:$A$24,ORÇAMENTO!E36)),OFFSET($D36,1,$C36,ROW($C$154)-ROW($C36)),0)) -> 0 | L36: F | M36: Serviço | N36: Serviço | O36: 1.2.17. | P36: SINAPI | Q36: 95946 | R36: ARMAÇÃO DE ESCADA, COM 2 LANCES, DE UMA ESTRUTURA CONVENCIONAL DE CONCRETO ARMADO UTILIZANDO AÇO CA-50 DE 10,0 MM - MONTAGEM. AF_01/2017 | S36: KG | T36: =OFFSET(CÁLCULO!H$15,ROW($T36)-ROW(T$15),0) -> 68.2 | U36: 8 | V36: BDI 1 | W36: 9.63 | X36: 656.77 | Y36: RA | Z36: RA | AA36: =IF($C36="S",IF($Z36="CP",$X36,IF($Z36="RA",(($X36)*QCI!$AA$3),0)),SomaAgrup) -> 656.77 | AB36: 0 | AD36: =IF(C36<=CRONO.NivelExibicao,MAX($AD$15:OFFSET(AD36,-1,0))+IF($C36<>1,1,MAX(1,COUNTIF(QCI!$A$13:$A$24,OFFSET($E36,-1,0)))),"") ->  | AE36: SINAPI 95946 | AF36: 2402 | AG36: 8.57 | AH36: 0.2035 | AJ36: 68.2 | AM36: 656.77 | AN36: 9.63
A37: S | B37: =IF(OR(C37="s",C37=0),OFFSET(B37,-1,0),C37) -> 2 | C37: =IF(OFFSET(C37,-1,0)="L",1,IF(OFFSET(C37,-1,0)=1,2,IF(OR(A37="s",A37=0),"S",IF(AND(OFFSET(C37,-1,0)=2,A37=4),3,IF(AND(OR(OFFSET(C37,-1,0)="s",OFFSET(C37,-1,0)=0),A37<>"s",A37>OFFSET(B37,-1,0)),OFFSET(B37,-1,0),A37))))) -> S | D37: =IF(OR(C37="S",C37=0),0,IF(ISERROR(K37),J37,SMALL(J37:K37,1))) -> 0 | E37: =IF($C37=1,OFFSET(E37,-1,0)+MAX(1,COUNTIF(QCI!$A$13:$A$24,OFFSET(ORÇAMENTO!E37,-1,0))),OFFSET(E37,-1,0)) -> 1 | F37: =IF($C37=1,0,IF($C37=2,OFFSET(F37,-1,0)+1,OFFSET(F37,-1,0))) -> 2 | G37: =IF(AND($C37<=2,$C37<>0),0,IF($C37=3,OFFSET(G37,-1,0)+1,OFFSET(G37,-1,0))) -> 0 | H37: =IF(AND($C37<=3,$C37<>0),0,IF($C37=4,OFFSET(H37,-1,0)+1,OFFSET(H37,-1,0))) -> 0 | I37: =IF(AND($C37<=4,$C37<>0),0,IF(AND($C37="S",$X37>0),OFFSET(I37,-1,0)+1,OFFSET(I37,-1,0))) -> 18 | J37: 0 | K37: =IF(OR($C37="S",$C37=0),0,MATCH(OFFSET($D37,0,$C37)+IF($C37<>1,1,COUNTIF(QCI!$A$13:$A$24,ORÇAMENTO!E37)),OFFSET($D37,1,$C37,ROW($C$154)-ROW($C37)),0)) -> 0 | L37: =IF(OR($X37>0,$C37=1,$C37=2,$C37=3,$C37=4),"F","") -> F | M37: Serviço | N37: =CHOOSE(1+LOG(1+2*(C37=1)+4*(C37=2)+8*(C37=3)+16*(C37=4)+32*(C37="S"),2),"","Meta","Nível 2","Nível 3","Nível 4","Serviço") -> Serviço | O37: =IF(OR($C37=0,$L37=""),"-",CONCATENATE(E37&".",IF(AND($A$5>=2,$C37>=2),F37&".",""),IF(AND($A$5>=3,$C37>=3),G37&".",""),IF(AND($A$5>=4,$C37>=4),H37&".",""),IF($C37="S",I37&".",""))) -> 1.2.18. | P37: SINAPI | Q37: 92413 | R37: FABRICAÇÃO, MONTAGEM E DESMONTAGEM DE FÔRMA DE PILARES RETANGULARES E ESTRUTURAS SIMILARES, PÉ-DIREITO SIMPLES, EM MADEIRA SERRADA | S37: M2 | T37: =OFFSET(CÁLCULO!H$15,ROW($T37)-ROW(T$15),0) -> 10.8 | U37: 75 | V37: BDI 1 | W37: 90.26 | X37: 974.81 | Y37: RA | Z37: =IF(AND($C37="S",$X37>0),IF(ISBLANK($Y37),"RA",LEFT($Y37,2)),"") -> RA | AA37: =IF($C37="S",IF($Z37="CP",$X37,IF($Z37="RA",(($X37)*QCI!$AA$3),0)),SomaAgrup) -> 974.81 | AB37: 0 | AD37: =IF(C37<=CRONO.NivelExibicao,MAX($AD$15:OFFSET(AD37,-1,0))+IF($C37<>1,1,MAX(1,COUNTIF(QCI!$A$13:$A$24,OFFSET($E37,-1,0)))),"") ->  | AE37: SINAPI 92413 | AF37: 2137 | AG37: 97.48 | AH37: 0.2035 | AJ37: 10.8 | AM37: 974.81 | AN37: 90.26
A38: S | B38: 2 | C38: S | D38: 0 | E38: =IF($C38=1,OFFSET(E38,-1,0)+MAX(1,COUNTIF(QCI!$A$13:$A$24,OFFSET(ORÇAMENTO!E38,-1,0))),OFFSET(E38,-1,0)) -> 1 | F38: 2 | G38: 0 | H38: 0 | I38: 19 | J38: 0 | K38: =IF(OR($C38="S",$C38=0),0,MATCH(OFFSET($D38,0,$C38)+IF($C38<>1,1,COUNTIF(QCI!$A$13:$A$24,ORÇAMENTO!E38)),OFFSET($D38,1,$C38,ROW($C$154)-ROW($C38)),0)) -> 0 | L38: F | M38: Serviço | N38: Serviço | O38: 1.2.19. | P38: SINAPI | Q38: 96536 | R38: FABRICAÇÃO, MONTAGEM E DESMONTAGEM DE FÔRMA PARA VIGA, EM MADEIRA SERRADA, E=25 MM | S38: M2 | T38: =OFFSET(CÁLCULO!H$15,ROW($T38)-ROW(T$15),0) -> 91.29 | U38: 30 | V38: BDI 1 | W38: 36.11 | X38: 3296.48 | Y38: RA | Z38: RA | AA38: =IF($C38="S",IF($Z38="CP",$X38,IF($Z38="RA",(($X38)*QCI!$AA$3),0)),SomaAgrup) -> 3296.48 | AB38: 0 | AD38: =IF(C38<=CRONO.NivelExibicao,MAX($AD$15:OFFSET(AD38,-1,0))+IF($C38<>1,1,MAX(1,COUNTIF(QCI!$A$13:$A$24,OFFSET($E38,-1,0)))),"") ->  | AE38: SINAPI 96536 | AF38: 2283 | AG38: 66.57 | AH38: 0.2035 | AJ38: =64.14+27.15 -> 91.29 | AM38: 3296.48 | AN38: 36.11
A39: =CHOOSE(1+LOG(1+2*(ORÇAMENTO.Nivel="Meta")+4*(ORÇAMENTO.Nivel="Nível 2")+8*(ORÇAMENTO.Nivel="Nível 3")+16*(ORÇAMENTO.Nivel="Nível 4")+32*(ORÇAMENTO.Nivel="Serviço"),2),0,1,2,3,4,"S") -> S | B39: 2 | C39: S | D39: 0 | E39: =IF($C39=1,OFFSET(E39,-1,0)+MAX(1,COUNTIF(QCI!$A$13:$A$24,OFFSET(ORÇAMENTO!E39,-1,0))),OFFSET(E39,-1,0)) -> 1 | F39: 2 | G39: 0 | H39: 0 | I39: 20 | J39: 0 | K39: =IF(OR($C39="S",$C39=0),0,MATCH(OFFSET($D39,0,$C39)+IF($C39<>1,1,COUNTIF(QCI!$A$13:$A$24,ORÇAMENTO!E39)),OFFSET($D39,1,$C39,ROW($C$154)-ROW($C39)),0)) -> 0 | L39: F | M39: Serviço | N39: Serviço | O39: 1.2.20. | P39: SINAPI | Q39: 97086 | R39: FABRICAÇÃO, MONTAGEM E DESMONTAGEM DE FORMA PARA RADIER, EM MADEIRA SERRADA, 4 UTILIZAÇÕES. AF_09/2017 | S39: M2 | T39: =OFFSET(CÁLCULO!H$15,ROW($T39)-ROW(T$15),0) -> 2.74 | U39: 80 | V39: BDI 1 | W39: =IF($C39="S",ROUND(IF(TIPOORCAMENTO="Proposto",ORÇAMENTO.CustoUnitario*(1+$AH39),ORÇAMENTO.PrecoUnitarioLicitado),15-13*$AF$10),0) -> 96.28 | X39: =IF($C39="S",VTOTAL1,IF($C39=0,0,ROUND(SomaAgrup,15-13*$AF$11))) -> 263.81 | Y39: RA | Z39: RA | AA39: =IF($C39="S",IF($Z39="CP",$X39,IF($Z39="RA",(($X39)*QCI!$AA$3),0)),SomaAgrup) -> 263.81 | AB39: =IF($C39="S",IF($Z39="OU",ROUND($X39,2),0),SomaAgrup) -> 0 | AC39: =IF($N39="","",IF(ORÇAMENTO.Descricao="","DESCRIÇÃO",IF(AND($C39="S",ORÇAMENTO.Unidade=""),"UNIDADE",IF($X39<0,"VALOR NEGATIVO",IF(OR(AND(TIPOORCAMENTO="Proposto",$AG39<>"",$AG39>0,ORÇAMENTO.CustoUnitario>$AG39),AND(TIPOORCAMENTO="LICITADO",ORÇAMENTO.PrecoUnitarioLicitado>$AN39)),"ACIMA REF.",""))))) ->  | AD39: =IF(C39<=CRONO.NivelExibicao,MAX($AD$15:OFFSET(AD39,-1,0))+IF($C39<>1,1,MAX(1,COUNTIF(QCI!$A$13:$A$24,OFFSET($E39,-1,0)))),"") ->  | AE39: =IF(AND($C39="S",ORÇAMENTO.CodBarra<>""),IF(ORÇAMENTO.Fonte="",ORÇAMENTO.CodBarra,CONCATENATE(ORÇAMENTO.Fonte," ",ORÇAMENTO.CodBarra))) -> SINAPI 97086 | AF39: =IF(ISERROR(INDIRECT(ORÇAMENTO.BancoRef)),"(abra o arquivo 'Referência "&Excel_BuiltIn_Database&".xls)",IF(OR($C39<>"S",ORÇAMENTO.CodBarra=""),"(Sem Código)",IF(ISERROR(MATCH($AE39,INDIRECT(ORÇAMENTO.BancoRef),0)),"(Código não identificado nas referências)",MATCH($AE39,INDIRECT(ORÇAMENTO.BancoRef),0)))) -> 2102 | AG39: =ROUND(IF(DESONERACAO="sim",REFERENCIA.Desonerado,REFERENCIA.NaoDesonerado),2) -> 119.65 | AH39: =ROUND(IF(ISNUMBER(ORÇAMENTO.OpcaoBDI),ORÇAMENTO.OpcaoBDI,IF(LEFT(ORÇAMENTO.OpcaoBDI,3)="BDI",HLOOKUP(ORÇAMENTO.OpcaoBDI,$F$4:$H$5,2,FALSE),0)),15-11*$AF$9) -> 0.2035 | AJ39: 2.74 | AM39: 263.81 | AN39: =ROUND(ORÇAMENTO.CustoUnitario*(1+$AH39),2) -> 96.28
A40: =CHOOSE(1+LOG(1+2*(ORÇAMENTO.Nivel="Meta")+4*(ORÇAMENTO.Nivel="Nível 2")+8*(ORÇAMENTO.Nivel="Nível 3")+16*(ORÇAMENTO.Nivel="Nível 4")+32*(ORÇAMENTO.Nivel="Serviço"),2),0,1,2,3,4,"S") -> S | B40: 2 | C40: S | D40: 0 | E40: =IF($C40=1,OFFSET(E40,-1,0)+MAX(1,COUNTIF(QCI!$A$13:$A$24,OFFSET(ORÇAMENTO!E40,-1,0))),OFFSET(E40,-1,0)) -> 1 | F40: 2 | G40: 0 | H40: 0 | I40: 21 | J40: 0 | K40: =IF(OR($C40="S",$C40=0),0,MATCH(OFFSET($D40,0,$C40)+IF($C40<>1,1,COUNTIF(QCI!$A$13:$A$24,ORÇAMENTO!E40)),OFFSET($D40,1,$C40,ROW($C$154)-ROW($C40)),0)) -> 0 | L40: F | M40: Serviço | N40: Serviço | O40: 1.2.21. | P40: SINAPI | Q40: 92510 | R40: MONTAGEM E DESMONTAGEM DE FÔRMA DE LAJE MACIÇA COM ÁREA MÉDIA MAIOR QUE 20 M², PÉ-DIREITO SIMPLES, EM CHAPA DE MADEIRA COMPENSADA RESINADA, 2 UTILIZAÇÕES. AF_12/2015 | S40: M2 | T40: =OFFSET(CÁLCULO!H$15,ROW($T40)-ROW(T$15),0) -> 69.44 | U40: 30 | V40: BDI 1 | W40: =IF($C40="S",ROUND(IF(TIPOORCAMENTO="Proposto",ORÇAMENTO.CustoUnitario*(1+$AH40),ORÇAMENTO.PrecoUnitarioLicitado),15-13*$AF$10),0) -> 36.11 | X40: =IF($C40="S",VTOTAL1,IF($C40=0,0,ROUND(SomaAgrup,15-13*$AF$11))) -> 2507.48 | Y40: RA | Z40: RA | AA40: =IF($C40="S",IF($Z40="CP",$X40,IF($Z40="RA",(($X40)*QCI!$AA$3),0)),SomaAgrup) -> 2507.48 | AB40: =IF($C40="S",IF($Z40="OU",ROUND($X40,2),0),SomaAgrup) -> 0 | AC40: =IF($N40="","",IF(ORÇAMENTO.Descricao="","DESCRIÇÃO",IF(AND($C40="S",ORÇAMENTO.Unidade=""),"UNIDADE",IF($X40<0,"VALOR NEGATIVO",IF(OR(AND(TIPOORCAMENTO="Proposto",$AG40<>"",$AG40>0,ORÇAMENTO.CustoUnitario>$AG40),AND(TIPOORCAMENTO="LICITADO",ORÇAMENTO.PrecoUnitarioLicitado>$AN40)),"ACIMA REF.",""))))) ->  | AD40: =IF(C40<=CRONO.NivelExibicao,MAX($AD$15:OFFSET(AD40,-1,0))+IF($C40<>1,1,MAX(1,COUNTIF(QCI!$A$13:$A$24,OFFSET($E40,-1,0)))),"") ->  | AE40: =IF(AND($C40="S",ORÇAMENTO.CodBarra<>""),IF(ORÇAMENTO.Fonte="",ORÇAMENTO.CodBarra,CONCATENATE(ORÇAMENTO.Fonte," ",ORÇAMENTO.CodBarra))) -> SINAPI 92510 | AF40: =IF(ISERROR(INDIRECT(ORÇAMENTO.BancoRef)),"(abra o arquivo 'Referência "&Excel_BuiltIn_Database&".xls)",IF(OR($C40<>"S",ORÇAMENTO.CodBarra=""),"(Sem Código)",IF(ISERROR(MATCH($AE40,INDIRECT(ORÇAMENTO.BancoRef),0)),"(Código não identificado nas referências)",MATCH($AE40,INDIRECT(ORÇAMENTO.BancoRef),0)))) -> 2234 | AG40: =ROUND(IF(DESONERACAO="sim",REFERENCIA.Desonerado,REFERENCIA.NaoDesonerado),2) -> 45.35 | AH40: =ROUND(IF(ISNUMBER(ORÇAMENTO.OpcaoBDI),ORÇAMENTO.OpcaoBDI,IF(LEFT(ORÇAMENTO.OpcaoBDI,3)="BDI",HLOOKUP(ORÇAMENTO.OpcaoBDI,$F$4:$H$5,2,FALSE),0)),15-11*$AF$9) -> 0.2035 | AJ40: 69.44 | AM40: 2507.48 | AN40: =ROUND(ORÇAMENTO.CustoUnitario*(1+$AH40),2) -> 36.11
A41: =CHOOSE(1+LOG(1+2*(ORÇAMENTO.Nivel="Meta")+4*(ORÇAMENTO.Nivel="Nível 2")+8*(ORÇAMENTO.Nivel="Nível 3")+16*(ORÇAMENTO.Nivel="Nível 4")+32*(ORÇAMENTO.Nivel="Serviço"),2),0,1,2,3,4,"S") -> S | B41: 2 | C41: S | D41: 0 | E41: =IF($C41=1,OFFSET(E41,-1,0)+MAX(1,COUNTIF(QCI!$A$13:$A$24,OFFSET(ORÇAMENTO!E41,-1,0))),OFFSET(E41,-1,0)) -> 1 | F41: 2 | G41: 0 | H41: 0 | I41: 22 | J41: 0 | K41: =IF(OR($C41="S",$C41=0),0,MATCH(OFFSET($D41,0,$C41)+IF($C41<>1,1,COUNTIF(QCI!$A$13:$A$24,ORÇAMENTO!E41)),OFFSET($D41,1,$C41,ROW($C$154)-ROW($C41)),0)) -> 0 | L41: F | M41: Serviço | N41: Serviço | O41: 1.2.22. | P41: SINAPI | Q41: 73301 | R41: ESCORAMENTO FORMAS ATE H = 3,30M, COM MADEIRA DE 3A QUALIDADE, NAO APARELHADA, APROVEITAMENTO TABUAS 3X E PRUMOS 4X. | S41: M3 | T41: =OFFSET(CÁLCULO!H$15,ROW($T41)-ROW(T$15),0) -> 265.07 | U41: 8 | V41: BDI 1 | W41: =IF($C41="S",ROUND(IF(TIPOORCAMENTO="Proposto",ORÇAMENTO.CustoUnitario*(1+$AH41),ORÇAMENTO.PrecoUnitarioLicitado),15-13*$AF$10),0) -> 9.63 | X41: =IF($C41="S",VTOTAL1,IF($C41=0,0,ROUND(SomaAgrup,15-13*$AF$11))) -> 2552.62 | Y41: RA | Z41: RA | AA41: =IF($C41="S",IF($Z41="CP",$X41,IF($Z41="RA",(($X41)*QCI!$AA$3),0)),SomaAgrup) -> 2552.62 | AB41: =IF($C41="S",IF($Z41="OU",ROUND($X41,2),0),SomaAgrup) -> 0 | AC41: =IF($N41="","",IF(ORÇAMENTO.Descricao="","DESCRIÇÃO",IF(AND($C41="S",ORÇAMENTO.Unidade=""),"UNIDADE",IF($X41<0,"VALOR NEGATIVO",IF(OR(AND(TIPOORCAMENTO="Proposto",$AG41<>"",$AG41>0,ORÇAMENTO.CustoUnitario>$AG41),AND(TIPOORCAMENTO="LICITADO",ORÇAMENTO.PrecoUnitarioLicitado>$AN41)),"ACIMA REF.",""))))) ->  | AD41: =IF(C41<=CRONO.NivelExibicao,MAX($AD$15:OFFSET(AD41,-1,0))+IF($C41<>1,1,MAX(1,COUNTIF(QCI!$A$13:$A$24,OFFSET($E41,-1,0)))),"") ->  | AE41: =IF(AND($C41="S",ORÇAMENTO.CodBarra<>""),IF(ORÇAMENTO.Fonte="",ORÇAMENTO.CodBarra,CONCATENATE(ORÇAMENTO.Fonte," ",ORÇAMENTO.CodBarra))) -> SINAPI 73301 | AF41: =IF(ISERROR(INDIRECT(ORÇAMENTO.BancoRef)),"(abra o arquivo 'Referência "&Excel_BuiltIn_Database&".xls)",IF(OR($C41<>"S",ORÇAMENTO.CodBarra=""),"(Sem Código)",IF(ISERROR(MATCH($AE41,INDIRECT(ORÇAMENTO.BancoRef),0)),"(Código não identificado nas referências)",MATCH($AE41,INDIRECT(ORÇAMENTO.BancoRef),0)))) -> 1869 | AG41: =ROUND(IF(DESONERACAO="sim",REFERENCIA.Desonerado,REFERENCIA.NaoDesonerado),2) -> 10.11 | AH41: =ROUND(IF(ISNUMBER(ORÇAMENTO.OpcaoBDI),ORÇAMENTO.OpcaoBDI,IF(LEFT(ORÇAMENTO.OpcaoBDI,3)="BDI",HLOOKUP(ORÇAMENTO.OpcaoBDI,$F$4:$H$5,2,FALSE),0)),15-11*$AF$9) -> 0.2035 | AJ41: =3.3*15.3*5.25 -> 265.0725 | AM41: 2552.62 | AN41: =ROUND(ORÇAMENTO.CustoUnitario*(1+$AH41),2) -> 9.63
A42: =CHOOSE(1+LOG(1+2*(ORÇAMENTO.Nivel="Meta")+4*(ORÇAMENTO.Nivel="Nível 2")+8*(ORÇAMENTO.Nivel="Nível 3")+16*(ORÇAMENTO.Nivel="Nível 4")+32*(ORÇAMENTO.Nivel="Serviço"),2),0,1,2,3,4,"S") -> S | B42: 2 | C42: S | D42: 0 | E42: =IF($C42=1,OFFSET(E42,-1,0)+MAX(1,COUNTIF(QCI!$A$13:$A$24,OFFSET(ORÇAMENTO!E42,-1,0))),OFFSET(E42,-1,0)) -> 1 | F42: 2 | G42: 0 | H42: 0 | I42: 23 | J42: 0 | K42: =IF(OR($C42="S",$C42=0),0,MATCH(OFFSET($D42,0,$C42)+IF($C42<>1,1,COUNTIF(QCI!$A$13:$A$24,ORÇAMENTO!E42)),OFFSET($D42,1,$C42,ROW($C$154)-ROW($C42)),0)) -> 0 | L42: F | M42: Serviço | N42: Serviço | O42: 1.2.23. | P42: SINAPI | Q42: 95939 | R42: MONTAGEM E DESMONTAGEM DE FÔRMA PARA ESCADAS, COM 2 LANCES, EM CHAPA DE MADEIRA COMPENSADA RESINADA, 4 UTILIZAÇÕES. AF_01/2017 | S42: M2 | T42: =OFFSET(CÁLCULO!H$15,ROW($T42)-ROW(T$15),0) -> 21.1 | U42: 70 | V42: BDI 1 | W42: =IF($C42="S",ROUND(IF(TIPOORCAMENTO="Proposto",ORÇAMENTO.CustoUnitario*(1+$AH42),ORÇAMENTO.PrecoUnitarioLicitado),15-13*$AF$10),0) -> 84.25 | X42: =IF($C42="S",VTOTAL1,IF($C42=0,0,ROUND(SomaAgrup,15-13*$AF$11))) -> 1777.68 | Y42: RA | Z42: RA | AA42: =IF($C42="S",IF($Z42="CP",$X42,IF($Z42="RA",(($X42)*QCI!$AA$3),0)),SomaAgrup) -> 1777.68 | AB42: =IF($C42="S",IF($Z42="OU",ROUND($X42,2),0),SomaAgrup) -> 0 | AC42: =IF($N42="","",IF(ORÇAMENTO.Descricao="","DESCRIÇÃO",IF(AND($C42="S",ORÇAMENTO.Unidade=""),"UNIDADE",IF($X42<0,"VALOR NEGATIVO",IF(OR(AND(TIPOORCAMENTO="Proposto",$AG42<>"",$AG42>0,ORÇAMENTO.CustoUnitario>$AG42),AND(TIPOORCAMENTO="LICITADO",ORÇAMENTO.PrecoUnitarioLicitado>$AN42)),"ACIMA REF.",""))))) ->  | AD42: =IF(C42<=CRONO.NivelExibicao,MAX($AD$15:OFFSET(AD42,-1,0))+IF($C42<>1,1,MAX(1,COUNTIF(QCI!$A$13:$A$24,OFFSET($E42,-1,0)))),"") ->  | AE42: =IF(AND($C42="S",ORÇAMENTO.CodBarra<>""),IF(ORÇAMENTO.Fonte="",ORÇAMENTO.CodBarra,CONCATENATE(ORÇAMENTO.Fonte," ",ORÇAMENTO.CodBarra))) -> SINAPI 95939 | AF42: =IF(ISERROR(INDIRECT(ORÇAMENTO.BancoRef)),"(abra o arquivo 'Referência "&Excel_BuiltIn_Database&".xls)",IF(OR($C42<>"S",ORÇAMENTO.CodBarra=""),"(Sem Código)",IF(ISERROR(MATCH($AE42,INDIRECT(ORÇAMENTO.BancoRef),0)),"(Código não identificado nas referências)",MATCH($AE42,INDIRECT(ORÇAMENTO.BancoRef),0)))) -> 2268 | AG42: =ROUND(IF(DESONERACAO="sim",REFERENCIA.Desonerado,REFERENCIA.NaoDesonerado),2) -> 180.49 | AH42: =ROUND(IF(ISNUMBER(ORÇAMENTO.OpcaoBDI),ORÇAMENTO.OpcaoBDI,IF(LEFT(ORÇAMENTO.OpcaoBDI,3)="BDI",HLOOKUP(ORÇAMENTO.OpcaoBDI,$F$4:$H$5,2,FALSE),0)),15-11*$AF$9) -> 0.2035 | AJ42: 21.1 | AM42: 1777.68 | AN42: =ROUND(ORÇAMENTO.CustoUnitario*(1+$AH42),2) -> 84.25
A43: =CHOOSE(1+LOG(1+2*(ORÇAMENTO.Nivel="Meta")+4*(ORÇAMENTO.Nivel="Nível 2")+8*(ORÇAMENTO.Nivel="Nível 3")+16*(ORÇAMENTO.Nivel="Nível 4")+32*(ORÇAMENTO.Nivel="Serviço"),2),0,1,2,3,4,"S") -> S | B43: 2 | C43: S | D43: 0 | E43: =IF($C43=1,OFFSET(E43,-1,0)+MAX(1,COUNTIF(QCI!$A$13:$A$24,OFFSET(ORÇAMENTO!E43,-1,0))),OFFSET(E43,-1,0)) -> 1 | F43: 2 | G43: 0 | H43: 0 | I43: 24 | J43: 0 | K43: =IF(OR($C43="S",$C43=0),0,MATCH(OFFSET($D43,0,$C43)+IF($C43<>1,1,COUNTIF(QCI!$A$13:$A$24,ORÇAMENTO!E43)),OFFSET($D43,1,$C43,ROW($C$154)-ROW($C43)),0)) -> 0 | L43: F | M43: Serviço | N43: Serviço | O43: 1.2.24. | P43: SINAPI | Q43: 96624 | R43: LASTRO COM MATERIAL GRANULAR (PEDRA BRITADA N.2), APLICADO EM RADIERS E VIGAS DE BALDRAME, ESPESSURA DE 10 CM | S43: M3 | T43: =OFFSET(CÁLCULO!H$15,ROW($T43)-ROW(T$15),0) -> 6.25 | U43: 90 | V43: BDI 1 | W43: =IF($C43="S",ROUND(IF(TIPOORCAMENTO="Proposto",ORÇAMENTO.CustoUnitario*(1+$AH43),ORÇAMENTO.PrecoUnitarioLicitado),15-13*$AF$10),0) -> 108.32 | X43: =IF($C43="S",VTOTAL1,IF($C43=0,0,ROUND(SomaAgrup,15-13*$AF$11))) -> 677 | Y43: RA | Z43: RA | AA43: =IF($C43="S",IF($Z43="CP",$X43,IF($Z43="RA",(($X43)*QCI!$AA$3),0)),SomaAgrup) -> 677 | AB43: =IF($C43="S",IF($Z43="OU",ROUND($X43,2),0),SomaAgrup) -> 0 | AC43: =IF($N43="","",IF(ORÇAMENTO.Descricao="","DESCRIÇÃO",IF(AND($C43="S",ORÇAMENTO.Unidade=""),"UNIDADE",IF($X43<0,"VALOR NEGATIVO",IF(OR(AND(TIPOORCAMENTO="Proposto",$AG43<>"",$AG43>0,ORÇAMENTO.CustoUnitario>$AG43),AND(TIPOORCAMENTO="LICITADO",ORÇAMENTO.PrecoUnitarioLicitado>$AN43)),"ACIMA REF.",""))))) ->  | AD43: =IF(C43<=CRONO.NivelExibicao,MAX($AD$15:OFFSET(AD43,-1,0))+IF($C43<>1,1,MAX(1,COUNTIF(QCI!$A$13:$A$24,OFFSET($E43,-1,0)))),"") ->  | AE43: =IF(AND($C43="S",ORÇAMENTO.CodBarra<>""),IF(ORÇAMENTO.Fonte="",ORÇAMENTO.CodBarra,CONCATENATE(ORÇAMENTO.Fonte," ",ORÇAMENTO.CodBarra))) -> SINAPI 96624 | AF43: =IF(ISERROR(INDIRECT(ORÇAMENTO.BancoRef)),"(abra o arquivo 'Referência "&Excel_BuiltIn_Database&".xls)",IF(OR($C43<>"S",ORÇAMENTO.CodBarra=""),"(Sem Código)",IF(ISERROR(MATCH($AE43,INDIRECT(ORÇAMENTO.BancoRef),0)),"(Código não identificado nas referências)",MATCH($AE43,INDIRECT(ORÇAMENTO.BancoRef),0)))) -> 2098 | AG43: =ROUND(IF(DESONERACAO="sim",REFERENCIA.Desonerado,REFERENCIA.NaoDesonerado),2) -> 100.16 | AH43: =ROUND(IF(ISNUMBER(ORÇAMENTO.OpcaoBDI),ORÇAMENTO.OpcaoBDI,IF(LEFT(ORÇAMENTO.OpcaoBDI,3)="BDI",HLOOKUP(ORÇAMENTO.OpcaoBDI,$F$4:$H$5,2,FALSE),0)),15-11*$AF$9) -> 0.2035 | AJ43: =((15.3*2)+(4.75*5)+8.1)*0.1 -> 6.245 | AM43: 677 | AN43: =ROUND(ORÇAMENTO.CustoUnitario*(1+$AH43),2) -> 108.32
A44: S | B44: 2 | C44: S | D44: 0 | E44: =IF($C44=1,OFFSET(E44,-1,0)+MAX(1,COUNTIF(QCI!$A$13:$A$24,OFFSET(ORÇAMENTO!E44,-1,0))),OFFSET(E44,-1,0)) -> 1 | F44: 2 | G44: 0 | H44: 0 | I44: 25 | J44: 0 | K44: =IF(OR($C44="S",$C44=0),0,MATCH(OFFSET($D44,0,$C44)+IF($C44<>1,1,COUNTIF(QCI!$A$13:$A$24,ORÇAMENTO!E44)),OFFSET($D44,1,$C44,ROW($C$154)-ROW($C44)),0)) -> 0 | L44: F | M44: Serviço | N44: Serviço | O44: 1.2.25. | P44: SINAPI | Q44: 98557 | R44: IMPERMEABILIZAÇÃO DE SUPERFÍCIE COM EMULSÃO ASFÁLTICA, 2 DEMÃOS | S44: M2 | T44: =OFFSET(CÁLCULO!H$15,ROW($T44)-ROW(T$15),0) -> 66.88 | U44: 25 | V44: BDI 1 | W44: 30.09 | X44: 2012.42 | Y44: RA | Z44: RA | AA44: =IF($C44="S",IF($Z44="CP",$X44,IF($Z44="RA",(($X44)*QCI!$AA$3),0)),SomaAgrup) -> 2012.42 | AB44: 0 | AD44: =IF(C44<=CRONO.NivelExibicao,MAX($AD$15:OFFSET(AD44,-1,0))+IF($C44<>1,1,MAX(1,COUNTIF(QCI!$A$13:$A$24,OFFSET($E44,-1,0)))),"") ->  | AE44: SINAPI 98557 | AF44: 2588 | AG44: 30.35 | AH44: 0.2035 | AJ44: =2.74+64.14 -> 66.88 | AM44: 2012.42 | AN44: 30.09
A45: S | B45: 2 | C45: S | D45: 0 | E45: =IF($C45=1,OFFSET(E45,-1,0)+MAX(1,COUNTIF(QCI!$A$13:$A$24,OFFSET(ORÇAMENTO!E45,-1,0))),OFFSET(E45,-1,0)) -> 1 | F45: 2 | G45: 0 | H45: 0 | I45: 26 | J45: 0 | K45: =IF(OR($C45="S",$C45=0),0,MATCH(OFFSET($D45,0,$C45)+IF($C45<>1,1,COUNTIF(QCI!$A$13:$A$24,ORÇAMENTO!E45)),OFFSET($D45,1,$C45,ROW($C$154)-ROW($C45)),0)) -> 0 | L45: F | M45: Serviço | N45: Serviço | O45: 1.2.26. | P45: SINAPI | Q45: 96557 | R45: CONCRETAGEM DE ESTRUTURAS DE CONCRETO ARMADO, FCK 30 MPA, COM USO DE BOMBA - LANÇAMENTO, ADENSAMENTO E ACABAMENTO | S45: M3 | T45: =OFFSET(CÁLCULO!H$15,ROW($T45)-ROW(T$15),0) -> 21.08 | U45: 380 | V45: BDI 1 | W45: 457.33 | X45: 9640.52 | Y45: RA | Z45: RA | AA45: =IF($C45="S",IF($Z45="CP",$X45,IF($Z45="RA",(($X45)*QCI!$AA$3),0)),SomaAgrup) -> 9640.52 | AB45: 0 | AD45: =IF(C45<=CRONO.NivelExibicao,MAX($AD$15:OFFSET(AD45,-1,0))+IF($C45<>1,1,MAX(1,COUNTIF(QCI!$A$13:$A$24,OFFSET($E45,-1,0)))),"") ->  | AE45: SINAPI 96557 | AF45: 2477 | AG45: 420.48 | AH45: 0.2035 | AJ45: =1.62+0.61+5.34+9.72+1.64+2.15 -> 21.08 | AM45: 9640.52 | AN45: 457.33
A46: =CHOOSE(1+LOG(1+2*(ORÇAMENTO.Nivel="Meta")+4*(ORÇAMENTO.Nivel="Nível 2")+8*(ORÇAMENTO.Nivel="Nível 3")+16*(ORÇAMENTO.Nivel="Nível 4")+32*(ORÇAMENTO.Nivel="Serviço"),2),0,1,2,3,4,"S") -> 2 | B46: =IF(OR(C46="s",C46=0),OFFSET(B46,-1,0),C46) -> 2 | C46: =IF(OFFSET(C46,-1,0)="L",1,IF(OFFSET(C46,-1,0)=1,2,IF(OR(A46="s",A46=0),"S",IF(AND(OFFSET(C46,-1,0)=2,A46=4),3,IF(AND(OR(OFFSET(C46,-1,0)="s",OFFSET(C46,-1,0)=0),A46<>"s",A46>OFFSET(B46,-1,0)),OFFSET(B46,-1,0),A46))))) -> 2 | D46: =IF(OR(C46="S",C46=0),0,IF(ISERROR(K46),J46,SMALL(J46:K46,1))) -> 10 | E46: =IF($C46=1,OFFSET(E46,-1,0)+MAX(1,COUNTIF(QCI!$A$13:$A$24,OFFSET(ORÇAMENTO!E46,-1,0))),OFFSET(E46,-1,0)) -> 1 | F46: =IF($C46=1,0,IF($C46=2,OFFSET(F46,-1,0)+1,OFFSET(F46,-1,0))) -> 3 | G46: =IF(AND($C46<=2,$C46<>0),0,IF($C46=3,OFFSET(G46,-1,0)+1,OFFSET(G46,-1,0))) -> 0 | H46: =IF(AND($C46<=3,$C46<>0),0,IF($C46=4,OFFSET(H46,-1,0)+1,OFFSET(H46,-1,0))) -> 0 | I46: =IF(AND($C46<=4,$C46<>0),0,IF(AND($C46="S",$X46>0),OFFSET(I46,-1,0)+1,OFFSET(I46,-1,0))) -> 0 | J46: 108 | K46: =IF(OR($C46="S",$C46=0),0,MATCH(OFFSET($D46,0,$C46)+IF($C46<>1,1,COUNTIF(QCI!$A$13:$A$24,ORÇAMENTO!E46)),OFFSET($D46,1,$C46,ROW($C$154)-ROW($C46)),0)) -> 10 | L46: =IF(OR($X46>0,$C46=1,$C46=2,$C46=3,$C46=4),"F","") -> F | M46: Nível 2 | N46: =CHOOSE(1+LOG(1+2*(C46=1)+4*(C46=2)+8*(C46=3)+16*(C46=4)+32*(C46="S"),2),"","Meta","Nível 2","Nível 3","Nível 4","Serviço") -> Nível 2 | O46: =IF(OR($C46=0,$L46=""),"-",CONCATENATE(E46&".",IF(AND($A$5>=2,$C46>=2),F46&".",""),IF(AND($A$5>=3,$C46>=3),G46&".",""),IF(AND($A$5>=4,$C46>=4),H46&".",""),IF($C46="S",I46&".",""))) -> 1.3. | R46: ALVENARIA, REVESTIMENTO E PINTURA | S46: - | T46: =OFFSET(CÁLCULO!H$15,ROW($T46)-ROW(T$15),0) -> 0 | U46: 0 | V46: BDI 1 | W46: =IF($C46="S",ROUND(IF(TIPOORCAMENTO="Proposto",ORÇAMENTO.CustoUnitario*(1+$AH46),ORÇAMENTO.PrecoUnitarioLicitado),15-13*$AF$10),0) -> 0 | X46: =IF($C46="S",VTOTAL1,IF($C46=0,0,ROUND(SomaAgrup,15-13*$AF$11))) -> 61155.35 | Y46: RA | Z46: =IF(AND($C46="S",$X46>0),IF(ISBLANK($Y46),"RA",LEFT($Y46,2)),"") ->  | AA46: =IF($C46="S",IF($Z46="CP",$X46,IF($Z46="RA",(($X46)*QCI!$AA$3),0)),SomaAgrup) -> 61155.35 | AB46: =IF($C46="S",IF($Z46="OU",ROUND($X46,2),0),SomaAgrup) -> 0 | AC46: =IF($N46="","",IF(ORÇAMENTO.Descricao="","DESCRIÇÃO",IF(AND($C46="S",ORÇAMENTO.Unidade=""),"UNIDADE",IF($X46<0,"VALOR NEGATIVO",IF(OR(AND(TIPOORCAMENTO="Proposto",$AG46<>"",$AG46>0,ORÇAMENTO.CustoUnitario>$AG46),AND(TIPOORCAMENTO="LICITADO",ORÇAMENTO.PrecoUnitarioLicitado>$AN46)),"ACIMA REF.",""))))) ->  | AD46: =IF(C46<=CRONO.NivelExibicao,MAX($AD$15:OFFSET(AD46,-1,0))+IF($C46<>1,1,MAX(1,COUNTIF(QCI!$A$13:$A$24,OFFSET($E46,-1,0)))),"") -> 4 | AE46: =IF(AND($C46="S",ORÇAMENTO.CodBarra<>""),IF(ORÇAMENTO.Fonte="",ORÇAMENTO.CodBarra,CONCATENATE(ORÇAMENTO.Fonte," ",ORÇAMENTO.CodBarra))) -> FALSE | AF46: =IF(ISERROR(INDIRECT(ORÇAMENTO.BancoRef)),"(abra o arquivo 'Referência "&Excel_BuiltIn_Database&".xls)",IF(OR($C46<>"S",ORÇAMENTO.CodBarra=""),"(Sem Código)",IF(ISERROR(MATCH($AE46,INDIRECT(ORÇAMENTO.BancoRef),0)),"(Código não identificado nas referências)",MATCH($AE46,INDIRECT(ORÇAMENTO.BancoRef),0)))) -> (Sem Código) | AG46: =ROUND(IF(DESONERACAO="sim",REFERENCIA.Desonerado,REFERENCIA.NaoDesonerado),2) -> 0 | AH46: =ROUND(IF(ISNUMBER(ORÇAMENTO.OpcaoBDI),ORÇAMENTO.OpcaoBDI,IF(LEFT(ORÇAMENTO.OpcaoBDI,3)="BDI",HLOOKUP(ORÇAMENTO.OpcaoBDI,$F$4:$H$5,2,FALSE),0)),15-11*$AF$9) -> 0.2035 | AM46: 61155.35 | AN46: =ROUND(ORÇAMENTO.CustoUnitario*(1+$AH46),2) -> 0
A47: =CHOOSE(1+LOG(1+2*(ORÇAMENTO.Nivel="Meta")+4*(ORÇAMENTO.Nivel="Nível 2")+8*(ORÇAMENTO.Nivel="Nível 3")+16*(ORÇAMENTO.Nivel="Nível 4")+32*(ORÇAMENTO.Nivel="Serviço"),2),0,1,2,3,4,"S") -> S | B47: =IF(OR(C47="s",C47=0),OFFSET(B47,-1,0),C47) -> 2 | C47: =IF(OFFSET(C47,-1,0)="L",1,IF(OFFSET(C47,-1,0)=1,2,IF(OR(A47="s",A47=0),"S",IF(AND(OFFSET(C47,-1,0)=2,A47=4),3,IF(AND(OR(OFFSET(C47,-1,0)="s",OFFSET(C47,-1,0)=0),A47<>"s",A47>OFFSET(B47,-1,0)),OFFSET(B47,-1,0),A47))))) -> S | D47: =IF(OR(C47="S",C47=0),0,IF(ISERROR(K47),J47,SMALL(J47:K47,1))) -> 0 | E47: =IF($C47=1,OFFSET(E47,-1,0)+MAX(1,COUNTIF(QCI!$A$13:$A$24,OFFSET(ORÇAMENTO!E47,-1,0))),OFFSET(E47,-1,0)) -> 1 | F47: =IF($C47=1,0,IF($C47=2,OFFSET(F47,-1,0)+1,OFFSET(F47,-1,0))) -> 3 | G47: =IF(AND($C47<=2,$C47<>0),0,IF($C47=3,OFFSET(G47,-1,0)+1,OFFSET(G47,-1,0))) -> 0 | H47: =IF(AND($C47<=3,$C47<>0),0,IF($C47=4,OFFSET(H47,-1,0)+1,OFFSET(H47,-1,0))) -> 0 | I47: =IF(AND($C47<=4,$C47<>0),0,IF(AND($C47="S",$X47>0),OFFSET(I47,-1,0)+1,OFFSET(I47,-1,0))) -> 1 | J47: =IF(OR($C47="S",$C47=0),0,MATCH(0,OFFSET($D47,1,$C47,ROW($C$154)-ROW($C47)),0)) -> 0 | K47: =IF(OR($C47="S",$C47=0),0,MATCH(OFFSET($D47,0,$C47)+IF($C47<>1,1,COUNTIF(QCI!$A$13:$A$24,ORÇAMENTO!E47)),OFFSET($D47,1,$C47,ROW($C$154)-ROW($C47)),0)) -> 0 | L47: =IF(OR($X47>0,$C47=1,$C47=2,$C47=3,$C47=4),"F","") -> F | M47: Serviço | N47: =CHOOSE(1+LOG(1+2*(C47=1)+4*(C47=2)+8*(C47=3)+16*(C47=4)+32*(C47="S"),2),"","Meta","Nível 2","Nível 3","Nível 4","Serviço") -> Serviço | O47: =IF(OR($C47=0,$L47=""),"-",CONCATENATE(E47&".",IF(AND($A$5>=2,$C47>=2),F47&".",""),IF(AND($A$5>=3,$C47>=3),G47&".",""),IF(AND($A$5>=4,$C47>=4),H47&".",""),IF($C47="S",I47&".",""))) -> 1.3.1. | P47: SINAPI | Q47: 89296 | R47: ALVENARIA BLOCOS CERÂMICOS APARENTE (ESPESSURA DE 14 CM), PARA PAREDES COM VÃOS, UTILIZANDO PALHETA E ARGAMASSA DE ASSENTAMENTO COM PREPARO EM BETONEIRA | S47: =REFERENCIA.Unidade -> M2 | T47: =OFFSET(CÁLCULO!H$15,ROW($T47)-ROW(T$15),0) -> 338.84 | U47: 40 | V47: BDI 1 | W47: =IF($C47="S",ROUND(IF(TIPOORCAMENTO="Proposto",ORÇAMENTO.CustoUnitario*(1+$AH47),ORÇAMENTO.PrecoUnitarioLicitado),15-13*$AF$10),0) -> 48.14 | X47: =IF($C47="S",VTOTAL1,IF($C47=0,0,ROUND(SomaAgrup,15-13*$AF$11))) -> 16311.76 | Y47: RA | Z47: =IF(AND($C47="S",$X47>0),IF(ISBLANK($Y47),"RA",LEFT($Y47,2)),"") -> RA | AA47: =IF($C47="S",IF($Z47="CP",$X47,IF($Z47="RA",(($X47)*QCI!$AA$3),0)),SomaAgrup) -> 16311.76 | AB47: =IF($C47="S",IF($Z47="OU",ROUND($X47,2),0),SomaAgrup) -> 0 | AC47: =IF($N47="","",IF(ORÇAMENTO.Descricao="","DESCRIÇÃO",IF(AND($C47="S",ORÇAMENTO.Unidade=""),"UNIDADE",IF($X47<0,"VALOR NEGATIVO",IF(OR(AND(TIPOORCAMENTO="Proposto",$AG47<>"",$AG47>0,ORÇAMENTO.CustoUnitario>$AG47),AND(TIPOORCAMENTO="LICITADO",ORÇAMENTO.PrecoUnitarioLicitado>$AN47)),"ACIMA REF.",""))))) ->  | AD47: =IF(C47<=CRONO.NivelExibicao,MAX($AD$15:OFFSET(AD47,-1,0))+IF($C47<>1,1,MAX(1,COUNTIF(QCI!$A$13:$A$24,OFFSET($E47,-1,0)))),"") ->  | AE47: =IF(AND($C47="S",ORÇAMENTO.CodBarra<>""),IF(ORÇAMENTO.Fonte="",ORÇAMENTO.CodBarra,CONCATENATE(ORÇAMENTO.Fonte," ",ORÇAMENTO.CodBarra))) -> SINAPI 89296 | AF47: =IF(ISERROR(INDIRECT(ORÇAMENTO.BancoRef)),"(abra o arquivo 'Referência "&Excel_BuiltIn_Database&".xls)",IF(OR($C47<>"S",ORÇAMENTO.CodBarra=""),"(Sem Código)",IF(ISERROR(MATCH($AE47,INDIRECT(ORÇAMENTO.BancoRef),0)),"(Código não identificado nas referências)",MATCH($AE47,INDIRECT(ORÇAMENTO.BancoRef),0)))) -> 5170 | AG47: =ROUND(IF(DESONERACAO="sim",REFERENCIA.Desonerado,REFERENCIA.NaoDesonerado),2) -> 62.86 | AH47: =ROUND(IF(ISNUMBER(ORÇAMENTO.OpcaoBDI),ORÇAMENTO.OpcaoBDI,IF(LEFT(ORÇAMENTO.OpcaoBDI,3)="BDI",HLOOKUP(ORÇAMENTO.OpcaoBDI,$F$4:$H$5,2,FALSE),0)),15-11*$AF$9) -> 0.2035 | AJ47: 338.84 | AM47: 16311.76 | AN47: =ROUND(ORÇAMENTO.CustoUnitario*(1+$AH47),2) -> 48.14
A48: S | B48: 2 | C48: S | D48: 0 | E48: =IF($C48=1,OFFSET(E48,-1,0)+MAX(1,COUNTIF(QCI!$A$13:$A$24,OFFSET(ORÇAMENTO!E48,-1,0))),OFFSET(E48,-1,0)) -> 1 | F48: 3 | G48: 0 | H48: 0 | I48: 2 | J48: 0 | K48: =IF(OR($C48="S",$C48=0),0,MATCH(OFFSET($D48,0,$C48)+IF($C48<>1,1,COUNTIF(QCI!$A$13:$A$24,ORÇAMENTO!E48)),OFFSET($D48,1,$C48,ROW($C$154)-ROW($C48)),0)) -> 0 | L48: F | M48: Serviço | N48: Serviço | O48: 1.3.2. | P48: SINAPI | Q48: 87879 | R48: CHAPISCO APLICADO EM ALVENARIAS E ESTRUTURAS DE CONCRETO INTERNAS, ARGAMASSA TRAÇO 1:3 COM PREPARO MECÂNICO | S48: M2 | T48: =OFFSET(CÁLCULO!H$15,ROW($T48)-ROW(T$15),0) -> 45.23 | U48: 3 | V48: BDI 1 | W48: 3.61 | X48: 163.28 | Y48: RA | Z48: RA | AA48: =IF($C48="S",IF($Z48="CP",$X48,IF($Z48="RA",(($X48)*QCI!$AA$3),0)),SomaAgrup) -> 163.28 | AB48: 0 | AD48: =IF(C48<=CRONO.NivelExibicao,MAX($AD$15:OFFSET(AD48,-1,0))+IF($C48<>1,1,MAX(1,COUNTIF(QCI!$A$13:$A$24,OFFSET($E48,-1,0)))),"") ->  | AE48: SINAPI 87879 | AF48: 5635 | AG48: 3.32 | AH48: 0.2035 | AJ48: =AJ50 -> 45.225 | AM48: 163.28 | AN48: 3.61
A49: S | B49: 2 | C49: S | D49: 0 | E49: =IF($C49=1,OFFSET(E49,-1,0)+MAX(1,COUNTIF(QCI!$A$13:$A$24,OFFSET(ORÇAMENTO!E49,-1,0))),OFFSET(E49,-1,0)) -> 1 | F49: 3 | G49: 0 | H49: 0 | I49: 3 | J49: 0 | K49: =IF(OR($C49="S",$C49=0),0,MATCH(OFFSET($D49,0,$C49)+IF($C49<>1,1,COUNTIF(QCI!$A$13:$A$24,ORÇAMENTO!E49)),OFFSET($D49,1,$C49,ROW($C$154)-ROW($C49)),0)) -> 0 | L49: F | M49: Serviço | N49: Serviço | O49: 1.3.3. | P49: SINAPI | Q49: 87531 | R49: EMBOÇO, PARA RECEBIMENTO DE CERÂMICA, EM ARGAMASSA TRAÇO 1:2:8, PREPARO MECÂNICO, APLICADO MANUALMENTE EM FACES INTERNAS DE PAREDES, ESPESSURA DE 20MM, COM EXECUÇÃO DE TALISCAS | S49: M2 | T49: =OFFSET(CÁLCULO!H$15,ROW($T49)-ROW(T$15),0) -> 45.23 | U49: 20 | V49: BDI 1 | W49: 24.07 | X49: 1088.69 | Y49: RA | Z49: RA | AA49: =IF($C49="S",IF($Z49="CP",$X49,IF($Z49="RA",(($X49)*QCI!$AA$3),0)),SomaAgrup) -> 1088.69 | AB49: 0 | AD49: =IF(C49<=CRONO.NivelExibicao,MAX($AD$15:OFFSET(AD49,-1,0))+IF($C49<>1,1,MAX(1,COUNTIF(QCI!$A$13:$A$24,OFFSET($E49,-1,0)))),"") ->  | AE49: SINAPI 87531 | AF49: 5694 | AG49: 25.76 | AH49: 0.2035 | AJ49: =AJ48 -> 45.225 | AM49: 1088.69 | AN49: 24.07
A50: S | B50: 2 | C50: S | D50: 0 | E50: =IF($C50=1,OFFSET(E50,-1,0)+MAX(1,COUNTIF(QCI!$A$13:$A$24,OFFSET(ORÇAMENTO!E50,-1,0))),OFFSET(E50,-1,0)) -> 1 | F50: 3 | G50: 0 | H50: 0 | I50: 4 | J50: 0 | K50: =IF(OR($C50="S",$C50=0),0,MATCH(OFFSET($D50,0,$C50)+IF($C50<>1,1,COUNTIF(QCI!$A$13:$A$24,ORÇAMENTO!E50)),OFFSET($D50,1,$C50,ROW($C$154)-ROW($C50)),0)) -> 0 | L50: F | M50: Serviço | N50: Serviço | O50: 1.3.4. | P50: SINAPI | Q50: 87273 | R50: REVESTIMENTO CERÂMICO PARA PAREDES INTERNAS COM PLACAS TIPO ESMALTADA EXTRA DE DIMENSÕES 33X45 CM | S50: M2 | T50: =OFFSET(CÁLCULO!H$15,ROW($T50)-ROW(T$15),0) -> 45.23 | U50: 45 | V50: BDI 1 | W50: 54.16 | X50: 2449.66 | Y50: RA | Z50: RA | AA50: =IF($C50="S",IF($Z50="CP",$X50,IF($Z50="RA",(($X50)*QCI!$AA$3),0)),SomaAgrup) -> 2449.66 | AB50: 0 | AD50: =IF(C50<=CRONO.NivelExibicao,MAX($AD$15:OFFSET(AD50,-1,0))+IF($C50<>1,1,MAX(1,COUNTIF(QCI!$A$13:$A$24,OFFSET($E50,-1,0)))),"") ->  | AE50: SINAPI 87273 | AF50: 5804 | AG50: 55.49 | AH50: 0.2035 | AJ50: =(2.4+1.6+1.05+1.7)*2*3.35 -> 45.225 | AM50: 2449.66 | AN50: 54.16
A51: S | B51: 2 | C51: S | D51: 0 | E51: =IF($C51=1,OFFSET(E51,-1,0)+MAX(1,COUNTIF(QCI!$A$13:$A$24,OFFSET(ORÇAMENTO!E51,-1,0))),OFFSET(E51,-1,0)) -> 1 | F51: 3 | G51: 0 | H51: 0 | I51: 5 | J51: 0 | K51: =IF(OR($C51="S",$C51=0),0,MATCH(OFFSET($D51,0,$C51)+IF($C51<>1,1,COUNTIF(QCI!$A$13:$A$24,ORÇAMENTO!E51)),OFFSET($D51,1,$C51,ROW($C$154)-ROW($C51)),0)) -> 0 | L51: F | M51: Serviço | N51: Serviço | O51: 1.3.5. | P51: SINAPI | Q51: 88484 | R51: =IF($C51="S",REFERENCIA.Descricao,"(digite a descrição aqui)") -> APLICAÇÃO DE FUNDO SELADOR ACRÍLICO EM TETO, UMA DEMÃO. AF_06/2014 | S51: =REFERENCIA.Unidade -> M2 | T51: =OFFSET(CÁLCULO!H$15,ROW($T51)-ROW(T$15),0) -> 71.39 | U51: 2.2 | V51: BDI 1 | W51: 2.65 | X51: 189.18 | Y51: RA | Z51: RA | AA51: =IF($C51="S",IF($Z51="CP",$X51,IF($Z51="RA",(($X51)*QCI!$AA$3),0)),SomaAgrup) -> 189.18 | AB51: 0 | AD51: =IF(C51<=CRONO.NivelExibicao,MAX($AD$15:OFFSET(AD51,-1,0))+IF($C51<>1,1,MAX(1,COUNTIF(QCI!$A$13:$A$24,OFFSET($E51,-1,0)))),"") ->  | AE51: SINAPI 88484 | AF51: 5384 | AG51: 2.44 | AH51: 0.2035 | AJ51: =27.96+3.84+5.64+1.78+18.81+13.36 -> 71.39 | AM51: 189.18 | AN51: 2.65
A52: S | B52: 2 | C52: S | D52: 0 | E52: =IF($C52=1,OFFSET(E52,-1,0)+MAX(1,COUNTIF(QCI!$A$13:$A$24,OFFSET(ORÇAMENTO!E52,-1,0))),OFFSET(E52,-1,0)) -> 1 | F52: 3 | G52: 0 | H52: 0 | I52: 6 | J52: 0 | K52: =IF(OR($C52="S",$C52=0),0,MATCH(OFFSET($D52,0,$C52)+IF($C52<>1,1,COUNTIF(QCI!$A$13:$A$24,ORÇAMENTO!E52)),OFFSET($D52,1,$C52,ROW($C$154)-ROW($C52)),0)) -> 0 | L52: F | M52: Serviço | N52: Serviço | O52: 1.3.6. | P52: SINAPI | Q52: 88488 | R52: =IF($C52="S",REFERENCIA.Descricao,"(digite a descrição aqui)") -> APLICAÇÃO MANUAL DE PINTURA COM TINTA LÁTEX ACRÍLICA EM TETO, DUAS DEMÃOS. AF_06/2014 | S52: =REFERENCIA.Unidade -> M2 | T52: =OFFSET(CÁLCULO!H$15,ROW($T52)-ROW(T$15),0) -> 71.39 | U52: 12 | V52: BDI 1 | W52: 14.44 | X52: 1030.87 | Y52: RA | Z52: RA | AA52: =IF($C52="S",IF($Z52="CP",$X52,IF($Z52="RA",(($X52)*QCI!$AA$3),0)),SomaAgrup) -> 1030.87 | AB52: 0 | AD52: =IF(C52<=CRONO.NivelExibicao,MAX($AD$15:OFFSET(AD52,-1,0))+IF($C52<>1,1,MAX(1,COUNTIF(QCI!$A$13:$A$24,OFFSET($E52,-1,0)))),"") ->  | AE52: SINAPI 88488 | AF52: 5388 | AG52: 14.42 | AH52: 0.2035 | AJ52: =AJ51 -> 71.39 | AM52: 1030.87 | AN52: 14.44
A53: =CHOOSE(1+LOG(1+2*(ORÇAMENTO.Nivel="Meta")+4*(ORÇAMENTO.Nivel="Nível 2")+8*(ORÇAMENTO.Nivel="Nível 3")+16*(ORÇAMENTO.Nivel="Nível 4")+32*(ORÇAMENTO.Nivel="Serviço"),2),0,1,2,3,4,"S") -> S | B53: =IF(OR(C53="s",C53=0),OFFSET(B53,-1,0),C53) -> 2 | C53: =IF(OFFSET(C53,-1,0)="L",1,IF(OFFSET(C53,-1,0)=1,2,IF(OR(A53="s",A53=0),"S",IF(AND(OFFSET(C53,-1,0)=2,A53=4),3,IF(AND(OR(OFFSET(C53,-1,0)="s",OFFSET(C53,-1,0)=0),A53<>"s",A53>OFFSET(B53,-1,0)),OFFSET(B53,-1,0),A53))))) -> S | D53: =IF(OR(C53="S",C53=0),0,IF(ISERROR(K53),J53,SMALL(J53:K53,1))) -> 0 | E53: =IF($C53=1,OFFSET(E53,-1,0)+MAX(1,COUNTIF(QCI!$A$13:$A$24,OFFSET(ORÇAMENTO!E53,-1,0))),OFFSET(E53,-1,0)) -> 1 | F53: =IF($C53=1,0,IF($C53=2,OFFSET(F53,-1,0)+1,OFFSET(F53,-1,0))) -> 3 | G53: =IF(AND($C53<=2,$C53<>0),0,IF($C53=3,OFFSET(G53,-1,0)+1,OFFSET(G53,-1,0))) -> 0 | H53: =IF(AND($C53<=3,$C53<>0),0,IF($C53=4,OFFSET(H53,-1,0)+1,OFFSET(H53,-1,0))) -> 0 | I53: =IF(AND($C53<=4,$C53<>0),0,IF(AND($C53="S",$X53>0),OFFSET(I53,-1,0)+1,OFFSET(I53,-1,0))) -> 7 | J53: 0 | K53: =IF(OR($C53="S",$C53=0),0,MATCH(OFFSET($D53,0,$C53)+IF($C53<>1,1,COUNTIF(QCI!$A$13:$A$24,ORÇAMENTO!E53)),OFFSET($D53,1,$C53,ROW($C$154)-ROW($C53)),0)) -> 0 | L53: =IF(OR($X53>0,$C53=1,$C53=2,$C53=3,$C53=4),"F","") -> F | M53: Serviço | N53: =CHOOSE(1+LOG(1+2*(C53=1)+4*(C53=2)+8*(C53=3)+16*(C53=4)+32*(C53="S"),2),"","Meta","Nível 2","Nível 3","Nível 4","Serviço") -> Serviço | O53: =IF(OR($C53=0,$L53=""),"-",CONCATENATE(E53&".",IF(AND($A$5>=2,$C53>=2),F53&".",""),IF(AND($A$5>=3,$C53>=3),G53&".",""),IF(AND($A$5>=4,$C53>=4),H53&".",""),IF($C53="S",I53&".",""))) -> 1.3.7. | P53: SINAPI | Q53: 79466 | R53: =IF($C53="S",REFERENCIA.Descricao,"(digite a descrição aqui)") -> PINTURA COM VERNIZ POLIURETANO, 2 DEMAOS | S53: =REFERENCIA.Unidade -> M2 | T53: =OFFSET(CÁLCULO!H$15,ROW($T53)-ROW(T$15),0) -> 904.78 | U53: 15 | V53: BDI 1 | W53: =IF($C53="S",ROUND(IF(TIPOORCAMENTO="Proposto",ORÇAMENTO.CustoUnitario*(1+$AH53),ORÇAMENTO.PrecoUnitarioLicitado),15-13*$AF$10),0) -> 18.05 | X53: =IF($C53="S",VTOTAL1,IF($C53=0,0,ROUND(SomaAgrup,15-13*$AF$11))) -> 16331.28 | Y53: RA | Z53: =IF(AND($C53="S",$X53>0),IF(ISBLANK($Y53),"RA",LEFT($Y53,2)),"") -> RA | AA53: =IF($C53="S",IF($Z53="CP",$X53,IF($Z53="RA",(($X53)*QCI!$AA$3),0)),SomaAgrup) -> 16331.28 | AB53: =IF($C53="S",IF($Z53="OU",ROUND($X53,2),0),SomaAgrup) -> 0 | AC53: =IF($N53="","",IF(ORÇAMENTO.Descricao="","DESCRIÇÃO",IF(AND($C53="S",ORÇAMENTO.Unidade=""),"UNIDADE",IF($X53<0,"VALOR NEGATIVO",IF(OR(AND(TIPOORCAMENTO="Proposto",$AG53<>"",$AG53>0,ORÇAMENTO.CustoUnitario>$AG53),AND(TIPOORCAMENTO="LICITADO",ORÇAMENTO.PrecoUnitarioLicitado>$AN53)),"ACIMA REF.",""))))) ->  | AD53: =IF(C53<=CRONO.NivelExibicao,MAX($AD$15:OFFSET(AD53,-1,0))+IF($C53<>1,1,MAX(1,COUNTIF(QCI!$A$13:$A$24,OFFSET($E53,-1,0)))),"") ->  | AE53: =IF(AND($C53="S",ORÇAMENTO.CodBarra<>""),IF(ORÇAMENTO.Fonte="",ORÇAMENTO.CodBarra,CONCATENATE(ORÇAMENTO.Fonte," ",ORÇAMENTO.CodBarra))) -> SINAPI 79466 | AF53: =IF(ISERROR(INDIRECT(ORÇAMENTO.BancoRef)),"(abra o arquivo 'Referência "&Excel_BuiltIn_Database&".xls)",IF(OR($C53<>"S",ORÇAMENTO.CodBarra=""),"(Sem Código)",IF(ISERROR(MATCH($AE53,INDIRECT(ORÇAMENTO.BancoRef),0)),"(Código não identificado nas referências)",MATCH($AE53,INDIRECT(ORÇAMENTO.BancoRef),0)))) -> 5423 | AG53: =ROUND(IF(DESONERACAO="sim",REFERENCIA.Desonerado,REFERENCIA.NaoDesonerado),2) -> 20.03 | AH53: =ROUND(IF(ISNUMBER(ORÇAMENTO.OpcaoBDI),ORÇAMENTO.OpcaoBDI,IF(LEFT(ORÇAMENTO.OpcaoBDI,3)="BDI",HLOOKUP(ORÇAMENTO.OpcaoBDI,$F$4:$H$5,2,FALSE),0)),15-11*$AF$9) -> 0.2035 | AJ53: =950-AJ50 -> 904.775 | AM53: 16331.28 | AN53: =ROUND(ORÇAMENTO.CustoUnitario*(1+$AH53),2) -> 18.05
A54: =CHOOSE(1+LOG(1+2*(ORÇAMENTO.Nivel="Meta")+4*(ORÇAMENTO.Nivel="Nível 2")+8*(ORÇAMENTO.Nivel="Nível 3")+16*(ORÇAMENTO.Nivel="Nível 4")+32*(ORÇAMENTO.Nivel="Serviço"),2),0,1,2,3,4,"S") -> S | B54: =IF(OR(C54="s",C54=0),OFFSET(B54,-1,0),C54) -> 2 | C54: =IF(OFFSET(C54,-1,0)="L",1,IF(OFFSET(C54,-1,0)=1,2,IF(OR(A54="s",A54=0),"S",IF(AND(OFFSET(C54,-1,0)=2,A54=4),3,IF(AND(OR(OFFSET(C54,-1,0)="s",OFFSET(C54,-1,0)=0),A54<>"s",A54>OFFSET(B54,-1,0)),OFFSET(B54,-1,0),A54))))) -> S | D54: =IF(OR(C54="S",C54=0),0,IF(ISERROR(K54),J54,SMALL(J54:K54,1))) -> 0 | E54: =IF($C54=1,OFFSET(E54,-1,0)+MAX(1,COUNTIF(QCI!$A$13:$A$24,OFFSET(ORÇAMENTO!E54,-1,0))),OFFSET(E54,-1,0)) -> 1 | F54: =IF($C54=1,0,IF($C54=2,OFFSET(F54,-1,0)+1,OFFSET(F54,-1,0))) -> 3 | G54: =IF(AND($C54<=2,$C54<>0),0,IF($C54=3,OFFSET(G54,-1,0)+1,OFFSET(G54,-1,0))) -> 0 | H54: =IF(AND($C54<=3,$C54<>0),0,IF($C54=4,OFFSET(H54,-1,0)+1,OFFSET(H54,-1,0))) -> 0 | I54: =IF(AND($C54<=4,$C54<>0),0,IF(AND($C54="S",$X54>0),OFFSET(I54,-1,0)+1,OFFSET(I54,-1,0))) -> 8 | J54: 0 | K54: =IF(OR($C54="S",$C54=0),0,MATCH(OFFSET($D54,0,$C54)+IF($C54<>1,1,COUNTIF(QCI!$A$13:$A$24,ORÇAMENTO!E54)),OFFSET($D54,1,$C54,ROW($C$154)-ROW($C54)),0)) -> 0 | L54: =IF(OR($X54>0,$C54=1,$C54=2,$C54=3,$C54=4),"F","") -> F | M54: Serviço | N54: =CHOOSE(1+LOG(1+2*(C54=1)+4*(C54=2)+8*(C54=3)+16*(C54=4)+32*(C54="S"),2),"","Meta","Nível 2","Nível 3","Nível 4","Serviço") -> Serviço | O54: =IF(OR($C54=0,$L54=""),"-",CONCATENATE(E54&".",IF(AND($A$5>=2,$C54>=2),F54&".",""),IF(AND($A$5>=3,$C54>=3),G54&".",""),IF(AND($A$5>=4,$C54>=4),H54&".",""),IF($C54="S",I54&".",""))) -> 1.3.8. | P54: SINAPI | Q54: 94213 | R54: TELHAMENTO COM TELHA DE AÇO/ALUMÍNIO E = 0,5 MM, INCLUSO IÇAMENTO | S54: M2 | T54: =OFFSET(CÁLCULO!H$15,ROW($T54)-ROW(T$15),0) -> 311.14 | U54: 39 | V54: BDI 1 | W54: =IF($C54="S",ROUND(IF(TIPOORCAMENTO="Proposto",ORÇAMENTO.CustoUnitario*(1+$AH54),ORÇAMENTO.PrecoUnitarioLicitado),15-13*$AF$10),0) -> 46.94 | X54: =IF($C54="S",VTOTAL1,IF($C54=0,0,ROUND(SomaAgrup,15-13*$AF$11))) -> 14604.91 | Y54: RA | Z54: =IF(AND($C54="S",$X54>0),IF(ISBLANK($Y54),"RA",LEFT($Y54,2)),"") -> RA | AA54: =IF($C54="S",IF($Z54="CP",$X54,IF($Z54="RA",(($X54)*QCI!$AA$3),0)),SomaAgrup) -> 14604.91 | AB54: =IF($C54="S",IF($Z54="OU",ROUND($X54,2),0),SomaAgrup) -> 0 | AC54: =IF($N54="","",IF(ORÇAMENTO.Descricao="","DESCRIÇÃO",IF(AND($C54="S",ORÇAMENTO.Unidade=""),"UNIDADE",IF($X54<0,"VALOR NEGATIVO",IF(OR(AND(TIPOORCAMENTO="Proposto",$AG54<>"",$AG54>0,ORÇAMENTO.CustoUnitario>$AG54),AND(TIPOORCAMENTO="LICITADO",ORÇAMENTO.PrecoUnitarioLicitado>$AN54)),"ACIMA REF.",""))))) ->  | AD54: =IF(C54<=CRONO.NivelExibicao,MAX($AD$15:OFFSET(AD54,-1,0))+IF($C54<>1,1,MAX(1,COUNTIF(QCI!$A$13:$A$24,OFFSET($E54,-1,0)))),"") ->  | AE54: =IF(AND($C54="S",ORÇAMENTO.CodBarra<>""),IF(ORÇAMENTO.Fonte="",ORÇAMENTO.CodBarra,CONCATENATE(ORÇAMENTO.Fonte," ",ORÇAMENTO.CodBarra))) -> SINAPI 94213 | AF54: =IF(ISERROR(INDIRECT(ORÇAMENTO.BancoRef)),"(abra o arquivo 'Referência "&Excel_BuiltIn_Database&".xls)",IF(OR($C54<>"S",ORÇAMENTO.CodBarra=""),"(Sem Código)",IF(ISERROR(MATCH($AE54,INDIRECT(ORÇAMENTO.BancoRef),0)),"(Código não identificado nas referências)",MATCH($AE54,INDIRECT(ORÇAMENTO.BancoRef),0)))) -> 1447 | AG54: =ROUND(IF(DESONERACAO="sim",REFERENCIA.Desonerado,REFERENCIA.NaoDesonerado),2) -> 47.17 | AH54: =ROUND(IF(ISNUMBER(ORÇAMENTO.OpcaoBDI),ORÇAMENTO.OpcaoBDI,IF(LEFT(ORÇAMENTO.OpcaoBDI,3)="BDI",HLOOKUP(ORÇAMENTO.OpcaoBDI,$F$4:$H$5,2,FALSE),0)),15-11*$AF$9) -> 0.2035 | AJ54: =(42.75*6.1)+(25.18*2) -> 311.135 | AM54: 14604.91 | AN54: =ROUND(ORÇAMENTO.CustoUnitario*(1+$AH54),2) -> 46.94
A55: =CHOOSE(1+LOG(1+2*(ORÇAMENTO.Nivel="Meta")+4*(ORÇAMENTO.Nivel="Nível 2")+8*(ORÇAMENTO.Nivel="Nível 3")+16*(ORÇAMENTO.Nivel="Nível 4")+32*(ORÇAMENTO.Nivel="Serviço"),2),0,1,2,3,4,"S") -> S | B55: =IF(OR(C55="s",C55=0),OFFSET(B55,-1,0),C55) -> 2 | C55: =IF(OFFSET(C55,-1,0)="L",1,IF(OFFSET(C55,-1,0)=1,2,IF(OR(A55="s",A55=0),"S",IF(AND(OFFSET(C55,-1,0)=2,A55=4),3,IF(AND(OR(OFFSET(C55,-1,0)="s",OFFSET(C55,-1,0)=0),A55<>"s",A55>OFFSET(B55,-1,0)),OFFSET(B55,-1,0),A55))))) -> S | D55: =IF(OR(C55="S",C55=0),0,IF(ISERROR(K55),J55,SMALL(J55:K55,1))) -> 0 | E55: =IF($C55=1,OFFSET(E55,-1,0)+MAX(1,COUNTIF(QCI!$A$13:$A$24,OFFSET(ORÇAMENTO!E55,-1,0))),OFFSET(E55,-1,0)) -> 1 | F55: =IF($C55=1,0,IF($C55=2,OFFSET(F55,-1,0)+1,OFFSET(F55,-1,0))) -> 3 | G55: =IF(AND($C55<=2,$C55<>0),0,IF($C55=3,OFFSET(G55,-1,0)+1,OFFSET(G55,-1,0))) -> 0 | H55: =IF(AND($C55<=3,$C55<>0),0,IF($C55=4,OFFSET(H55,-1,0)+1,OFFSET(H55,-1,0))) -> 0 | I55: =IF(AND($C55<=4,$C55<>0),0,IF(AND($C55="S",$X55>0),OFFSET(I55,-1,0)+1,OFFSET(I55,-1,0))) -> 9 | J55: 0 | K55: =IF(OR($C55="S",$C55=0),0,MATCH(OFFSET($D55,0,$C55)+IF($C55<>1,1,COUNTIF(QCI!$A$13:$A$24,ORÇAMENTO!E55)),OFFSET($D55,1,$C55,ROW($C$154)-ROW($C55)),0)) -> 0 | L55: =IF(OR($X55>0,$C55=1,$C55=2,$C55=3,$C55=4),"F","") -> F | M55: Serviço | N55: =CHOOSE(1+LOG(1+2*(C55=1)+4*(C55=2)+8*(C55=3)+16*(C55=4)+32*(C55="S"),2),"","Meta","Nível 2","Nível 3","Nível 4","Serviço") -> Serviço | O55: =IF(OR($C55=0,$L55=""),"-",CONCATENATE(E55&".",IF(AND($A$5>=2,$C55>=2),F55&".",""),IF(AND($A$5>=3,$C55>=3),G55&".",""),IF(AND($A$5>=4,$C55>=4),H55&".",""),IF($C55="S",I55&".",""))) -> 1.3.9. | P55: AMMOC | Q55: 113 | R55: ESTRUTURA EM AÇO GALVANIZADO PARA FIXAÇÃO DE TELHA EM FECHAMENTO VERTICAL | S55: M² | T55: =OFFSET(CÁLCULO!H$15,ROW($T55)-ROW(T$15),0) -> 311.14 | U55: 24 | V55: BDI 1 | W55: =IF($C55="S",ROUND(IF(TIPOORCAMENTO="Proposto",ORÇAMENTO.CustoUnitario*(1+$AH55),ORÇAMENTO.PrecoUnitarioLicitado),15-13*$AF$10),0) -> 28.88 | X55: =IF($C55="S",VTOTAL1,IF($C55=0,0,ROUND(SomaAgrup,15-13*$AF$11))) -> 8985.72 | Y55: RA | Z55: =IF(AND($C55="S",$X55>0),IF(ISBLANK($Y55),"RA",LEFT($Y55,2)),"") -> RA | AA55: =IF($C55="S",IF($Z55="CP",$X55,IF($Z55="RA",(($X55)*QCI!$AA$3),0)),SomaAgrup) -> 8985.72 | AB55: =IF($C55="S",IF($Z55="OU",ROUND($X55,2),0),SomaAgrup) -> 0 | AC55: =IF($N55="","",IF(ORÇAMENTO.Descricao="","DESCRIÇÃO",IF(AND($C55="S",ORÇAMENTO.Unidade=""),"UNIDADE",IF($X55<0,"VALOR NEGATIVO",IF(OR(AND(TIPOORCAMENTO="Proposto",$AG55<>"",$AG55>0,ORÇAMENTO.CustoUnitario>$AG55),AND(TIPOORCAMENTO="LICITADO",ORÇAMENTO.PrecoUnitarioLicitado>$AN55)),"ACIMA REF.",""))))) ->  | AD55: =IF(C55<=CRONO.NivelExibicao,MAX($AD$15:OFFSET(AD55,-1,0))+IF($C55<>1,1,MAX(1,COUNTIF(QCI!$A$13:$A$24,OFFSET($E55,-1,0)))),"") ->  | AE55: =IF(AND($C55="S",ORÇAMENTO.CodBarra<>""),IF(ORÇAMENTO.Fonte="",ORÇAMENTO.CodBarra,CONCATENATE(ORÇAMENTO.Fonte," ",ORÇAMENTO.CodBarra))) -> AMMOC 113 | AF55: =IF(ISERROR(INDIRECT(ORÇAMENTO.BancoRef)),"(abra o arquivo 'Referência "&Excel_BuiltIn_Database&".xls)",IF(OR($C55<>"S",ORÇAMENTO.CodBarra=""),"(Sem Código)",IF(ISERROR(MATCH($AE55,INDIRECT(ORÇAMENTO.BancoRef),0)),"(Código não identificado nas referências)",MATCH($AE55,INDIRECT(ORÇAMENTO.BancoRef),0)))) -> 115 | AG55: =ROUND(IF(DESONERACAO="sim",REFERENCIA.Desonerado,REFERENCIA.NaoDesonerado),2) -> 29.01 | AH55: =ROUND(IF(ISNUMBER(ORÇAMENTO.OpcaoBDI),ORÇAMENTO.OpcaoBDI,IF(LEFT(ORÇAMENTO.OpcaoBDI,3)="BDI",HLOOKUP(ORÇAMENTO.OpcaoBDI,$F$4:$H$5,2,FALSE),0)),15-11*$AF$9) -> 0.2035 | AJ55: =AJ54 -> 311.135 | AM55: 8985.72 | AN55: =ROUND(ORÇAMENTO.CustoUnitario*(1+$AH55),2) -> 28.88
A56: 2 | B56: 2 | C56: 2 | D56: 3 | E56: =IF($C56=1,OFFSET(E56,-1,0)+MAX(1,COUNTIF(QCI!$A$13:$A$24,OFFSET(ORÇAMENTO!E56,-1,0))),OFFSET(E56,-1,0)) -> 1 | F56: 4 | G56: 0 | H56: 0 | I56: 0 | J56: 98 | K56: =IF(OR($C56="S",$C56=0),0,MATCH(OFFSET($D56,0,$C56)+IF($C56<>1,1,COUNTIF(QCI!$A$13:$A$24,ORÇAMENTO!E56)),OFFSET($D56,1,$C56,ROW($C$154)-ROW($C56)),0)) -> 3 | L56: F | M56: Nível 2 | N56: Nível 2 | O56: 1.4. | P56: SINAPI | R56: FORRO | S56: - | T56: =OFFSET(CÁLCULO!H$15,ROW($T56)-ROW(T$15),0) -> 0 | U56: 0 | V56: BDI 1 | W56: 0 | X56: 3828.95 | Y56: RA | AA56: =IF($C56="S",IF($Z56="CP",$X56,IF($Z56="RA",(($X56)*QCI!$AA$3),0)),SomaAgrup) -> 3828.95 | AB56: 0 | AD56: =IF(C56<=CRONO.NivelExibicao,MAX($AD$15:OFFSET(AD56,-1,0))+IF($C56<>1,1,MAX(1,COUNTIF(QCI!$A$13:$A$24,OFFSET($E56,-1,0)))),"") -> 5 | AE56: FALSE | AF56: (Sem Código) | AG56: 0 | AH56: 0.2035 | AM56: 3828.95 | AN56: 0
A57: =CHOOSE(1+LOG(1+2*(ORÇAMENTO.Nivel="Meta")+4*(ORÇAMENTO.Nivel="Nível 2")+8*(ORÇAMENTO.Nivel="Nível 3")+16*(ORÇAMENTO.Nivel="Nível 4")+32*(ORÇAMENTO.Nivel="Serviço"),2),0,1,2,3,4,"S") -> S | B57: =IF(OR(C57="s",C57=0),OFFSET(B57,-1,0),C57) -> 2 | C57: =IF(OFFSET(C57,-1,0)="L",1,IF(OFFSET(C57,-1,0)=1,2,IF(OR(A57="s",A57=0),"S",IF(AND(OFFSET(C57,-1,0)=2,A57=4),3,IF(AND(OR(OFFSET(C57,-1,0)="s",OFFSET(C57,-1,0)=0),A57<>"s",A57>OFFSET(B57,-1,0)),OFFSET(B57,-1,0),A57))))) -> S | D57: =IF(OR(C57="S",C57=0),0,IF(ISERROR(K57),J57,SMALL(J57:K57,1))) -> 0 | E57: =IF($C57=1,OFFSET(E57,-1,0)+MAX(1,COUNTIF(QCI!$A$13:$A$24,OFFSET(ORÇAMENTO!E57,-1,0))),OFFSET(E57,-1,0)) -> 1 | F57: =IF($C57=1,0,IF($C57=2,OFFSET(F57,-1,0)+1,OFFSET(F57,-1,0))) -> 4 | G57: =IF(AND($C57<=2,$C57<>0),0,IF($C57=3,OFFSET(G57,-1,0)+1,OFFSET(G57,-1,0))) -> 0 | H57: =IF(AND($C57<=3,$C57<>0),0,IF($C57=4,OFFSET(H57,-1,0)+1,OFFSET(H57,-1,0))) -> 0 | I57: =IF(AND($C57<=4,$C57<>0),0,IF(AND($C57="S",$X57>0),OFFSET(I57,-1,0)+1,OFFSET(I57,-1,0))) -> 1 | J57: 0 | K57: =IF(OR($C57="S",$C57=0),0,MATCH(OFFSET($D57,0,$C57)+IF($C57<>1,1,COUNTIF(QCI!$A$13:$A$24,ORÇAMENTO!E57)),OFFSET($D57,1,$C57,ROW($C$154)-ROW($C57)),0)) -> 0 | L57: =IF(OR($X57>0,$C57=1,$C57=2,$C57=3,$C57=4),"F","") -> F | M57: Serviço | N57: =CHOOSE(1+LOG(1+2*(C57=1)+4*(C57=2)+8*(C57=3)+16*(C57=4)+32*(C57="S"),2),"","Meta","Nível 2","Nível 3","Nível 4","Serviço") -> Serviço | O57: =IF(OR($C57=0,$L57=""),"-",CONCATENATE(E57&".",IF(AND($A$5>=2,$C57>=2),F57&".",""),IF(AND($A$5>=3,$C57>=3),G57&".",""),IF(AND($A$5>=4,$C57>=4),H57&".",""),IF($C57="S",I57&".",""))) -> 1.4.1. | P57: SINAPI | Q57: 96116 | R57: FORRO EM RÉGUAS DE PVC, FRISADO, PARA AMBIENTES COMERCIAIS, INCLUSIVE ESTRUTURA DE FIXAÇÃO | S57: M2 | T57: =OFFSET(CÁLCULO!H$15,ROW($T57)-ROW(T$15),0) -> 72.59 | U57: 38 | V57: BDI 1 | W57: =IF($C57="S",ROUND(IF(TIPOORCAMENTO="Proposto",ORÇAMENTO.CustoUnitario*(1+$AH57),ORÇAMENTO.PrecoUnitarioLicitado),15-13*$AF$10),0) -> 45.73 | X57: =IF($C57="S",VTOTAL1,IF($C57=0,0,ROUND(SomaAgrup,15-13*$AF$11))) -> 3319.54 | Y57: RA | Z57: =IF(AND($C57="S",$X57>0),IF(ISBLANK($Y57),"RA",LEFT($Y57,2)),"") -> RA | AA57: =IF($C57="S",IF($Z57="CP",$X57,IF($Z57="RA",(($X57)*QCI!$AA$3),0)),SomaAgrup) -> 3319.54 | AB57: =IF($C57="S",IF($Z57="OU",ROUND($X57,2),0),SomaAgrup) -> 0 | AC57: =IF($N57="","",IF(ORÇAMENTO.Descricao="","DESCRIÇÃO",IF(AND($C57="S",ORÇAMENTO.Unidade=""),"UNIDADE",IF($X57<0,"VALOR NEGATIVO",IF(OR(AND(TIPOORCAMENTO="Proposto",$AG57<>"",$AG57>0,ORÇAMENTO.CustoUnitario>$AG57),AND(TIPOORCAMENTO="LICITADO",ORÇAMENTO.PrecoUnitarioLicitado>$AN57)),"ACIMA REF.",""))))) ->  | AD57: =IF(C57<=CRONO.NivelExibicao,MAX($AD$15:OFFSET(AD57,-1,0))+IF($C57<>1,1,MAX(1,COUNTIF(QCI!$A$13:$A$24,OFFSET($E57,-1,0)))),"") ->  | AE57: =IF(AND($C57="S",ORÇAMENTO.CodBarra<>""),IF(ORÇAMENTO.Fonte="",ORÇAMENTO.CodBarra,CONCATENATE(ORÇAMENTO.Fonte," ",ORÇAMENTO.CodBarra))) -> SINAPI 96116 | AF57: =IF(ISERROR(INDIRECT(ORÇAMENTO.BancoRef)),"(abra o arquivo 'Referência "&Excel_BuiltIn_Database&".xls)",IF(OR($C57<>"S",ORÇAMENTO.CodBarra=""),"(Sem Código)",IF(ISERROR(MATCH($AE57,INDIRECT(ORÇAMENTO.BancoRef),0)),"(Código não identificado nas referências)",MATCH($AE57,INDIRECT(ORÇAMENTO.BancoRef),0)))) -> 5836 | AG57: =ROUND(IF(DESONERACAO="sim",REFERENCIA.Desonerado,REFERENCIA.NaoDesonerado),2) -> 44.43 | AH57: =ROUND(IF(ISNUMBER(ORÇAMENTO.OpcaoBDI),ORÇAMENTO.OpcaoBDI,IF(LEFT(ORÇAMENTO.OpcaoBDI,3)="BDI",HLOOKUP(ORÇAMENTO.OpcaoBDI,$F$4:$H$5,2,FALSE),0)),15-11*$AF$9) -> 0.2035 | AJ57: =32.91+35.01+4.67 -> 72.59 | AM57: 3319.54 | AN57: =ROUND(ORÇAMENTO.CustoUnitario*(1+$AH57),2) -> 45.73
A58: =CHOOSE(1+LOG(1+2*(ORÇAMENTO.Nivel="Meta")+4*(ORÇAMENTO.Nivel="Nível 2")+8*(ORÇAMENTO.Nivel="Nível 3")+16*(ORÇAMENTO.Nivel="Nível 4")+32*(ORÇAMENTO.Nivel="Serviço"),2),0,1,2,3,4,"S") -> S | B58: =IF(OR(C58="s",C58=0),OFFSET(B58,-1,0),C58) -> 2 | C58: =IF(OFFSET(C58,-1,0)="L",1,IF(OFFSET(C58,-1,0)=1,2,IF(OR(A58="s",A58=0),"S",IF(AND(OFFSET(C58,-1,0)=2,A58=4),3,IF(AND(OR(OFFSET(C58,-1,0)="s",OFFSET(C58,-1,0)=0),A58<>"s",A58>OFFSET(B58,-1,0)),OFFSET(B58,-1,0),A58))))) -> S | D58: =IF(OR(C58="S",C58=0),0,IF(ISERROR(K58),J58,SMALL(J58:K58,1))) -> 0 | E58: =IF($C58=1,OFFSET(E58,-1,0)+MAX(1,COUNTIF(QCI!$A$13:$A$24,OFFSET(ORÇAMENTO!E58,-1,0))),OFFSET(E58,-1,0)) -> 1 | F58: =IF($C58=1,0,IF($C58=2,OFFSET(F58,-1,0)+1,OFFSET(F58,-1,0))) -> 4 | G58: =IF(AND($C58<=2,$C58<>0),0,IF($C58=3,OFFSET(G58,-1,0)+1,OFFSET(G58,-1,0))) -> 0 | H58: =IF(AND($C58<=3,$C58<>0),0,IF($C58=4,OFFSET(H58,-1,0)+1,OFFSET(H58,-1,0))) -> 0 | I58: =IF(AND($C58<=4,$C58<>0),0,IF(AND($C58="S",$X58>0),OFFSET(I58,-1,0)+1,OFFSET(I58,-1,0))) -> 2 | J58: 0 | K58: =IF(OR($C58="S",$C58=0),0,MATCH(OFFSET($D58,0,$C58)+IF($C58<>1,1,COUNTIF(QCI!$A$13:$A$24,ORÇAMENTO!E58)),OFFSET($D58,1,$C58,ROW($C$154)-ROW($C58)),0)) -> 0 | L58: =IF(OR($X58>0,$C58=1,$C58=2,$C58=3,$C58=4),"F","") -> F | M58: Serviço | N58: =CHOOSE(1+LOG(1+2*(C58=1)+4*(C58=2)+8*(C58=3)+16*(C58=4)+32*(C58="S"),2),"","Meta","Nível 2","Nível 3","Nível 4","Serviço") -> Serviço | O58: =IF(OR($C58=0,$L58=""),"-",CONCATENATE(E58&".",IF(AND($A$5>=2,$C58>=2),F58&".",""),IF(AND($A$5>=3,$C58>=3),G58&".",""),IF(AND($A$5>=4,$C58>=4),H58&".",""),IF($C58="S",I58&".",""))) -> 1.4.2. | P58: SINAPI | Q58: 96121 | R58: ACABAMENTOS PARA FORRO (RODA-FORRO EM PVC) | S58: M | T58: =OFFSET(CÁLCULO!H$15,ROW($T58)-ROW(T$15),0) -> 60.5 | U58: 7 | V58: BDI 1 | W58: =IF($C58="S",ROUND(IF(TIPOORCAMENTO="Proposto",ORÇAMENTO.CustoUnitario*(1+$AH58),ORÇAMENTO.PrecoUnitarioLicitado),15-13*$AF$10),0) -> 8.42 | X58: =IF($C58="S",VTOTAL1,IF($C58=0,0,ROUND(SomaAgrup,15-13*$AF$11))) -> 509.41 | Y58: RA | Z58: =IF(AND($C58="S",$X58>0),IF(ISBLANK($Y58),"RA",LEFT($Y58,2)),"") -> RA | AA58: =IF($C58="S",IF($Z58="CP",$X58,IF($Z58="RA",(($X58)*QCI!$AA$3),0)),SomaAgrup) -> 509.41 | AB58: =IF($C58="S",IF($Z58="OU",ROUND($X58,2),0),SomaAgrup) -> 0 | AC58: =IF($N58="","",IF(ORÇAMENTO.Descricao="","DESCRIÇÃO",IF(AND($C58="S",ORÇAMENTO.Unidade=""),"UNIDADE",IF($X58<0,"VALOR NEGATIVO",IF(OR(AND(TIPOORCAMENTO="Proposto",$AG58<>"",$AG58>0,ORÇAMENTO.CustoUnitario>$AG58),AND(TIPOORCAMENTO="LICITADO",ORÇAMENTO.PrecoUnitarioLicitado>$AN58)),"ACIMA REF.",""))))) ->  | AD58: =IF(C58<=CRONO.NivelExibicao,MAX($AD$15:OFFSET(AD58,-1,0))+IF($C58<>1,1,MAX(1,COUNTIF(QCI!$A$13:$A$24,OFFSET($E58,-1,0)))),"") ->  | AE58: =IF(AND($C58="S",ORÇAMENTO.CodBarra<>""),IF(ORÇAMENTO.Fonte="",ORÇAMENTO.CodBarra,CONCATENATE(ORÇAMENTO.Fonte," ",ORÇAMENTO.CodBarra))) -> SINAPI 96121 | AF58: =IF(ISERROR(INDIRECT(ORÇAMENTO.BancoRef)),"(abra o arquivo 'Referência "&Excel_BuiltIn_Database&".xls)",IF(OR($C58<>"S",ORÇAMENTO.CodBarra=""),"(Sem Código)",IF(ISERROR(MATCH($AE58,INDIRECT(ORÇAMENTO.BancoRef),0)),"(Código não identificado nas referências)",MATCH($AE58,INDIRECT(ORÇAMENTO.BancoRef),0)))) -> 5837 | AG58: =ROUND(IF(DESONERACAO="sim",REFERENCIA.Desonerado,REFERENCIA.NaoDesonerado),2) -> 8.15 | AH58: =ROUND(IF(ISNUMBER(ORÇAMENTO.OpcaoBDI),ORÇAMENTO.OpcaoBDI,IF(LEFT(ORÇAMENTO.OpcaoBDI,3)="BDI",HLOOKUP(ORÇAMENTO.OpcaoBDI,$F$4:$H$5,2,FALSE),0)),15-11*$AF$9) -> 0.2035 | AJ58: =26.3+11+23.2 -> 60.5 | AM58: 509.41 | AN58: =ROUND(ORÇAMENTO.CustoUnitario*(1+$AH58),2) -> 8.42
A59: 2 | B59: 2 | C59: 2 | D59: 8 | E59: =IF($C59=1,OFFSET(E59,-1,0)+MAX(1,COUNTIF(QCI!$A$13:$A$24,OFFSET(ORÇAMENTO!E59,-1,0))),OFFSET(E59,-1,0)) -> 1 | F59: 5 | G59: 0 | H59: 0 | I59: 0 | J59: 95 | K59: =IF(OR($C59="S",$C59=0),0,MATCH(OFFSET($D59,0,$C59)+IF($C59<>1,1,COUNTIF(QCI!$A$13:$A$24,ORÇAMENTO!E59)),OFFSET($D59,1,$C59,ROW($C$154)-ROW($C59)),0)) -> 8 | L59: F | M59: Nível 2 | N59: Nível 2 | O59: 1.5. | P59: SINAPI | R59: ESQUADRIAS | S59: - | T59: =OFFSET(CÁLCULO!H$15,ROW($T59)-ROW(T$15),0) -> 0 | U59: 0 | V59: BDI 1 | W59: 0 | X59: 20845.04 | Y59: RA | AA59: =IF($C59="S",IF($Z59="CP",$X59,IF($Z59="RA",(($X59)*QCI!$AA$3),0)),SomaAgrup) -> 20845.04 | AB59: 0 | AD59: =IF(C59<=CRONO.NivelExibicao,MAX($AD$15:OFFSET(AD59,-1,0))+IF($C59<>1,1,MAX(1,COUNTIF(QCI!$A$13:$A$24,OFFSET($E59,-1,0)))),"") -> 6 | AE59: FALSE | AF59: (Sem Código) | AG59: 0 | AH59: 0.2035 | AM59: 20845.04 | AN59: 0
A60: S | B60: 2 | C60: S | D60: 0 | E60: =IF($C60=1,OFFSET(E60,-1,0)+MAX(1,COUNTIF(QCI!$A$13:$A$24,OFFSET(ORÇAMENTO!E60,-1,0))),OFFSET(E60,-1,0)) -> 1 | F60: 5 | G60: 0 | H60: 0 | I60: 1 | J60: 0 | K60: =IF(OR($C60="S",$C60=0),0,MATCH(OFFSET($D60,0,$C60)+IF($C60<>1,1,COUNTIF(QCI!$A$13:$A$24,ORÇAMENTO!E60)),OFFSET($D60,1,$C60,ROW($C$154)-ROW($C60)),0)) -> 0 | L60: F | M60: Serviço | N60: Serviço | O60: 1.5.1. | P60: SINAPI | Q60: 94570 | R60: JANELA DE ALUMÍNIO DE CORRER COM 2 FOLHAS PARA VIDROS, COM VIDROS, BATENTE, ACABAMENTO COM ACETATO OU BRILHANTE E FERRAGENS. FORNECIMENTO E INSTALAÇÃO | S60: M2 | T60: =OFFSET(CÁLCULO!H$15,ROW($T60)-ROW(T$15),0) -> 5.4 | U60: 270 | V60: BDI 1 | W60: 324.95 | X60: 1754.73 | Y60: RA | Z60: RA | AA60: =IF($C60="S",IF($Z60="CP",$X60,IF($Z60="RA",(($X60)*QCI!$AA$3),0)),SomaAgrup) -> 1754.73 | AB60: 0 | AD60: =IF(C60<=CRONO.NivelExibicao,MAX($AD$15:OFFSET(AD60,-1,0))+IF($C60<>1,1,MAX(1,COUNTIF(QCI!$A$13:$A$24,OFFSET($E60,-1,0)))),"") ->  | AE60: SINAPI 94570 | AF60: 2028 | AG60: 288.1 | AH60: 0.2035 | AJ60: =1.5*1.2*3 -> 5.4 | AM60: 1754.73 | AN60: 324.95
A61: S | B61: 2 | C61: S | D61: 0 | E61: =IF($C61=1,OFFSET(E61,-1,0)+MAX(1,COUNTIF(QCI!$A$13:$A$24,OFFSET(ORÇAMENTO!E61,-1,0))),OFFSET(E61,-1,0)) -> 1 | F61: 5 | G61: 0 | H61: 0 | I61: 2 | J61: 0 | K61: =IF(OR($C61="S",$C61=0),0,MATCH(OFFSET($D61,0,$C61)+IF($C61<>1,1,COUNTIF(QCI!$A$13:$A$24,ORÇAMENTO!E61)),OFFSET($D61,1,$C61,ROW($C$154)-ROW($C61)),0)) -> 0 | L61: F | M61: Serviço | N61: Serviço | O61: 1.5.2. | P61: SINAPI | Q61: 94573 | R61: JANELA DE ALUMÍNIO DE CORRER COM 4 FOLHAS PARA VIDROS, COM VIDROS, BATENTE, ACABAMENTO COM ACETATO OU BRILHANTE E FERRAGENS. FORNECIMENTO E INSTALAÇÃO | S61: M2 | T61: =OFFSET(CÁLCULO!H$15,ROW($T61)-ROW(T$15),0) -> 16.56 | U61: 295 | V61: BDI 1 | W61: 355.03 | X61: 5879.3 | Y61: RA | Z61: RA | AA61: =IF($C61="S",IF($Z61="CP",$X61,IF($Z61="RA",(($X61)*QCI!$AA$3),0)),SomaAgrup) -> 5879.3 | AB61: 0 | AD61: =IF(C61<=CRONO.NivelExibicao,MAX($AD$15:OFFSET(AD61,-1,0))+IF($C61<>1,1,MAX(1,COUNTIF(QCI!$A$13:$A$24,OFFSET($E61,-1,0)))),"") ->  | AE61: SINAPI 94573 | AF61: 2030 | AG61: 334.87 | AH61: 0.2035 | AJ61: =(0.9*2.4*5)+(2*1.2*2.4) -> 16.56 | AM61: 5879.3 | AN61: 355.03
A62: S | B62: 2 | C62: S | D62: 0 | E62: =IF($C62=1,OFFSET(E62,-1,0)+MAX(1,COUNTIF(QCI!$A$13:$A$24,OFFSET(ORÇAMENTO!E62,-1,0))),OFFSET(E62,-1,0)) -> 1 | F62: 5 | G62: 0 | H62: 0 | I62: 3 | J62: 0 | K62: =IF(OR($C62="S",$C62=0),0,MATCH(OFFSET($D62,0,$C62)+IF($C62<>1,1,COUNTIF(QCI!$A$13:$A$24,ORÇAMENTO!E62)),OFFSET($D62,1,$C62,ROW($C$154)-ROW($C62)),0)) -> 0 | L62: F | M62: Serviço | N62: Serviço | O62: 1.5.3. | P62: SINAPI | Q62: 94559 | R62: JANELA DE AÇO TIPO BASCULANTE PARA VIDROS, COM BATENTE, FERRAGENS E PINTURA ANTICORROSIVA. EXCLUSIVE VIDROS. FORNECIMENTO E INSTALAÇÃO | S62: M2 | T62: =OFFSET(CÁLCULO!H$15,ROW($T62)-ROW(T$15),0) -> 0.84 | U62: 570 | V62: BDI 1 | W62: 686 | X62: 576.24 | Y62: RA | Z62: RA | AA62: =IF($C62="S",IF($Z62="CP",$X62,IF($Z62="RA",(($X62)*QCI!$AA$3),0)),SomaAgrup) -> 576.24 | AB62: 0 | AD62: =IF(C62<=CRONO.NivelExibicao,MAX($AD$15:OFFSET(AD62,-1,0))+IF($C62<>1,1,MAX(1,COUNTIF(QCI!$A$13:$A$24,OFFSET($E62,-1,0)))),"") ->  | AE62: SINAPI 94559 | AF62: 1979 | AG62: 607.3 | AH62: 0.2035 | AJ62: =0.7*0.6*2 -> 0.84 | AM62: 576.24 | AN62: 686
A63: S | B63: 2 | C63: S | D63: 0 | E63: =IF($C63=1,OFFSET(E63,-1,0)+MAX(1,COUNTIF(QCI!$A$13:$A$24,OFFSET(ORÇAMENTO!E63,-1,0))),OFFSET(E63,-1,0)) -> 1 | F63: 5 | G63: 0 | H63: 0 | I63: 4 | J63: 0 | K63: =IF(OR($C63="S",$C63=0),0,MATCH(OFFSET($D63,0,$C63)+IF($C63<>1,1,COUNTIF(QCI!$A$13:$A$24,ORÇAMENTO!E63)),OFFSET($D63,1,$C63,ROW($C$154)-ROW($C63)),0)) -> 0 | L63: F | M63: Serviço | N63: Serviço | O63: 1.5.4. | P63: SINAPI | Q63: 72120 | R63: VIDRO TEMPERADO INCOLOR, ESPESSURA 10 MM, FORNECIMENTO E INSTALACAO, INCLUSIVE MASSA PARA VEDAÇÃO | S63: M2 | T63: =OFFSET(CÁLCULO!H$15,ROW($T63)-ROW(T$15),0) -> 0.84 | U63: 220 | V63: BDI 1 | W63: 264.77 | X63: 222.41 | Y63: RA | Z63: RA | AA63: =IF($C63="S",IF($Z63="CP",$X63,IF($Z63="RA",(($X63)*QCI!$AA$3),0)),SomaAgrup) -> 222.41 | AB63: 0 | AD63: =IF(C63<=CRONO.NivelExibicao,MAX($AD$15:OFFSET(AD63,-1,0))+IF($C63<>1,1,MAX(1,COUNTIF(QCI!$A$13:$A$24,OFFSET($E63,-1,0)))),"") ->  | AE63: SINAPI 72120 | AF63: 2015 | AG63: 232.5 | AH63: 0.2035 | AJ63: =AJ62 -> 0.84 | AM63: 222.41 | AN63: 264.77
A64: S | B64: 2 | C64: S | D64: 0 | E64: =IF($C64=1,OFFSET(E64,-1,0)+MAX(1,COUNTIF(QCI!$A$13:$A$24,OFFSET(ORÇAMENTO!E64,-1,0))),OFFSET(E64,-1,0)) -> 1 | F64: 5 | G64: 0 | H64: 0 | I64: 5 | J64: 0 | K64: =IF(OR($C64="S",$C64=0),0,MATCH(OFFSET($D64,0,$C64)+IF($C64<>1,1,COUNTIF(QCI!$A$13:$A$24,ORÇAMENTO!E64)),OFFSET($D64,1,$C64,ROW($C$154)-ROW($C64)),0)) -> 0 | L64: F | M64: Serviço | N64: Serviço | O64: 1.5.5. | P64: SINAPI | Q64: 91341 | R64: PORTA EM ALUMÍNIO DE ABRIR TIPO VENEZIANA COM GUARNIÇÃO, FIXAÇÃO COM PARAFUSOS - FORNECIMENTO E INSTALAÇÃO | S64: M2 | T64: =OFFSET(CÁLCULO!H$15,ROW($T64)-ROW(T$15),0) -> 3.57 | U64: 550 | V64: BDI 1 | W64: 661.93 | X64: 2363.09 | Y64: RA | Z64: RA | AA64: =IF($C64="S",IF($Z64="CP",$X64,IF($Z64="RA",(($X64)*QCI!$AA$3),0)),SomaAgrup) -> 2363.09 | AB64: 0 | AD64: =IF(C64<=CRONO.NivelExibicao,MAX($AD$15:OFFSET(AD64,-1,0))+IF($C64<>1,1,MAX(1,COUNTIF(QCI!$A$13:$A$24,OFFSET($E64,-1,0)))),"") ->  | AE64: SINAPI 91341 | AF64: 1996 | AG64: 651.19 | AH64: 0.2035 | AJ64: =(0.9*2.1)+(0.8*2.1) -> 3.57 | AM64: 2363.09 | AN64: 661.93
A65: S | B65: 2 | C65: S | D65: 0 | E65: =IF($C65=1,OFFSET(E65,-1,0)+MAX(1,COUNTIF(QCI!$A$13:$A$24,OFFSET(ORÇAMENTO!E65,-1,0))),OFFSET(E65,-1,0)) -> 1 | F65: 5 | G65: 0 | H65: 0 | I65: 6 | J65: 0 | K65: =IF(OR($C65="S",$C65=0),0,MATCH(OFFSET($D65,0,$C65)+IF($C65<>1,1,COUNTIF(QCI!$A$13:$A$24,ORÇAMENTO!E65)),OFFSET($D65,1,$C65,ROW($C$154)-ROW($C65)),0)) -> 0 | L65: F | M65: Serviço | N65: Serviço | O65: 1.5.6. | P65: SINAPI | Q65: 91338 | R65: PORTA DE ALUMÍNIO DE ABRIR COM LAMBRI, COM GUARNIÇÃO, FIXAÇÃO COM PARAFUSOS - FORNECIMENTO E INSTALAÇÃO | S65: M2 | T65: =OFFSET(CÁLCULO!H$15,ROW($T65)-ROW(T$15),0) -> 9.24 | U65: 750 | V65: BDI 1 | W65: 902.63 | X65: 8340.3 | Y65: RA | Z65: RA | AA65: =IF($C65="S",IF($Z65="CP",$X65,IF($Z65="RA",(($X65)*QCI!$AA$3),0)),SomaAgrup) -> 8340.3 | AB65: 0 | AD65: =IF(C65<=CRONO.NivelExibicao,MAX($AD$15:OFFSET(AD65,-1,0))+IF($C65<>1,1,MAX(1,COUNTIF(QCI!$A$13:$A$24,OFFSET($E65,-1,0)))),"") ->  | AE65: SINAPI 91338 | AF65: 1995 | AG65: 899.09 | AH65: 0.2035 | AJ65: =(0.9*2.1*4)+(0.8*2.1*1) -> 9.24 | AM65: 8340.3 | AN65: 902.63
A66: =CHOOSE(1+LOG(1+2*(ORÇAMENTO.Nivel="Meta")+4*(ORÇAMENTO.Nivel="Nível 2")+8*(ORÇAMENTO.Nivel="Nível 3")+16*(ORÇAMENTO.Nivel="Nível 4")+32*(ORÇAMENTO.Nivel="Serviço"),2),0,1,2,3,4,"S") -> S | B66: =IF(OR(C66="s",C66=0),OFFSET(B66,-1,0),C66) -> 2 | C66: =IF(OFFSET(C66,-1,0)="L",1,IF(OFFSET(C66,-1,0)=1,2,IF(OR(A66="s",A66=0),"S",IF(AND(OFFSET(C66,-1,0)=2,A66=4),3,IF(AND(OR(OFFSET(C66,-1,0)="s",OFFSET(C66,-1,0)=0),A66<>"s",A66>OFFSET(B66,-1,0)),OFFSET(B66,-1,0),A66))))) -> S | D66: =IF(OR(C66="S",C66=0),0,IF(ISERROR(K66),J66,SMALL(J66:K66,1))) -> 0 | E66: =IF($C66=1,OFFSET(E66,-1,0)+MAX(1,COUNTIF(QCI!$A$13:$A$24,OFFSET(ORÇAMENTO!E66,-1,0))),OFFSET(E66,-1,0)) -> 1 | F66: =IF($C66=1,0,IF($C66=2,OFFSET(F66,-1,0)+1,OFFSET(F66,-1,0))) -> 5 | G66: =IF(AND($C66<=2,$C66<>0),0,IF($C66=3,OFFSET(G66,-1,0)+1,OFFSET(G66,-1,0))) -> 0 | H66: =IF(AND($C66<=3,$C66<>0),0,IF($C66=4,OFFSET(H66,-1,0)+1,OFFSET(H66,-1,0))) -> 0 | I66: =IF(AND($C66<=4,$C66<>0),0,IF(AND($C66="S",$X66>0),OFFSET(I66,-1,0)+1,OFFSET(I66,-1,0))) -> 7 | J66: 0 | K66: =IF(OR($C66="S",$C66=0),0,MATCH(OFFSET($D66,0,$C66)+IF($C66<>1,1,COUNTIF(QCI!$A$13:$A$24,ORÇAMENTO!E66)),OFFSET($D66,1,$C66,ROW($C$154)-ROW($C66)),0)) -> 0 | L66: =IF(OR($X66>0,$C66=1,$C66=2,$C66=3,$C66=4),"F","") -> F | M66: Serviço | N66: =CHOOSE(1+LOG(1+2*(C66=1)+4*(C66=2)+8*(C66=3)+16*(C66=4)+32*(C66="S"),2),"","Meta","Nível 2","Nível 3","Nível 4","Serviço") -> Serviço | O66: =IF(OR($C66=0,$L66=""),"-",CONCATENATE(E66&".",IF(AND($A$5>=2,$C66>=2),F66&".",""),IF(AND($A$5>=3,$C66>=3),G66&".",""),IF(AND($A$5>=4,$C66>=4),H66&".",""),IF($C66="S",I66&".",""))) -> 1.5.7. | P66: SINAPI | Q66: 94587 | R66: CONTRAMARCO DE AÇO, FIXAÇÃO COM ARGAMASSA - FORNECIMENTO E INSTALAÇÃO | S66: M | T66: =OFFSET(CÁLCULO!H$15,ROW($T66)-ROW(T$15),0) -> 35.5 | U66: 40 | V66: BDI 1 | W66: =IF($C66="S",ROUND(IF(TIPOORCAMENTO="Proposto",ORÇAMENTO.CustoUnitario*(1+$AH66),ORÇAMENTO.PrecoUnitarioLicitado),15-13*$AF$10),0) -> 48.14 | X66: =IF($C66="S",VTOTAL1,IF($C66=0,0,ROUND(SomaAgrup,15-13*$AF$11))) -> 1708.97 | Y66: RA | Z66: =IF(AND($C66="S",$X66>0),IF(ISBLANK($Y66),"RA",LEFT($Y66,2)),"") -> RA | AA66: =IF($C66="S",IF($Z66="CP",$X66,IF($Z66="RA",(($X66)*QCI!$AA$3),0)),SomaAgrup) -> 1708.97 | AB66: =IF($C66="S",IF($Z66="OU",ROUND($X66,2),0),SomaAgrup) -> 0 | AC66: =IF($N66="","",IF(ORÇAMENTO.Descricao="","DESCRIÇÃO",IF(AND($C66="S",ORÇAMENTO.Unidade=""),"UNIDADE",IF($X66<0,"VALOR NEGATIVO",IF(OR(AND(TIPOORCAMENTO="Proposto",$AG66<>"",$AG66>0,ORÇAMENTO.CustoUnitario>$AG66),AND(TIPOORCAMENTO="LICITADO",ORÇAMENTO.PrecoUnitarioLicitado>$AN66)),"ACIMA REF.",""))))) ->  | AD66: =IF(C66<=CRONO.NivelExibicao,MAX($AD$15:OFFSET(AD66,-1,0))+IF($C66<>1,1,MAX(1,COUNTIF(QCI!$A$13:$A$24,OFFSET($E66,-1,0)))),"") ->  | AE66: =IF(AND($C66="S",ORÇAMENTO.CodBarra<>""),IF(ORÇAMENTO.Fonte="",ORÇAMENTO.CodBarra,CONCATENATE(ORÇAMENTO.Fonte," ",ORÇAMENTO.CodBarra))) -> SINAPI 94587 | AF66: =IF(ISERROR(INDIRECT(ORÇAMENTO.BancoRef)),"(abra o arquivo 'Referência "&Excel_BuiltIn_Database&".xls)",IF(OR($C66<>"S",ORÇAMENTO.CodBarra=""),"(Sem Código)",IF(ISERROR(MATCH($AE66,INDIRECT(ORÇAMENTO.BancoRef),0)),"(Código não identificado nas referências)",MATCH($AE66,INDIRECT(ORÇAMENTO.BancoRef),0)))) -> 1983 | AG66: =ROUND(IF(DESONERACAO="sim",REFERENCIA.Desonerado,REFERENCIA.NaoDesonerado),2) -> 43.16 | AH66: =ROUND(IF(ISNUMBER(ORÇAMENTO.OpcaoBDI),ORÇAMENTO.OpcaoBDI,IF(LEFT(ORÇAMENTO.OpcaoBDI,3)="BDI",HLOOKUP(ORÇAMENTO.OpcaoBDI,$F$4:$H$5,2,FALSE),0)),15-11*$AF$9) -> 0.2035 | AJ66: =((0.8+2.1+2.1)*2)+((0.9+2.1+2.1)*5) -> 35.5 | AM66: 1708.97 | AN66: =ROUND(ORÇAMENTO.CustoUnitario*(1+$AH66),2) -> 48.14
A67: 2 | B67: 2 | C67: 2 | D67: 8 | E67: =IF($C67=1,OFFSET(E67,-1,0)+MAX(1,COUNTIF(QCI!$A$13:$A$24,OFFSET(ORÇAMENTO!E67,-1,0))),OFFSET(E67,-1,0)) -> 1 | F67: 6 | G67: 0 | H67: 0 | I67: 0 | J67: 87 | K67: =IF(OR($C67="S",$C67=0),0,MATCH(OFFSET($D67,0,$C67)+IF($C67<>1,1,COUNTIF(QCI!$A$13:$A$24,ORÇAMENTO!E67)),OFFSET($D67,1,$C67,ROW($C$154)-ROW($C67)),0)) -> 8 | L67: F | M67: Nível 2 | N67: Nível 2 | O67: 1.6. | P67: SINAPI | R67: PAVIMENTAÇÃO | S67: - | T67: =OFFSET(CÁLCULO!H$15,ROW($T67)-ROW(T$15),0) -> 0 | U67: 0 | V67: BDI 1 | W67: 0 | X67: 22800.52 | Y67: RA | AA67: =IF($C67="S",IF($Z67="CP",$X67,IF($Z67="RA",(($X67)*QCI!$AA$3),0)),SomaAgrup) -> 22800.52 | AB67: 0 | AD67: =IF(C67<=CRONO.NivelExibicao,MAX($AD$15:OFFSET(AD67,-1,0))+IF($C67<>1,1,MAX(1,COUNTIF(QCI!$A$13:$A$24,OFFSET($E67,-1,0)))),"") -> 7 | AE67: FALSE | AF67: (Sem Código) | AG67: 0 | AH67: 0.2035 | AM67: 22800.52 | AN67: 0
A68: S | B68: 2 | C68: S | D68: 0 | E68: =IF($C68=1,OFFSET(E68,-1,0)+MAX(1,COUNTIF(QCI!$A$13:$A$24,OFFSET(ORÇAMENTO!E68,-1,0))),OFFSET(E68,-1,0)) -> 1 | F68: 6 | G68: 0 | H68: 0 | I68: 1 | J68: 0 | K68: =IF(OR($C68="S",$C68=0),0,MATCH(OFFSET($D68,0,$C68)+IF($C68<>1,1,COUNTIF(QCI!$A$13:$A$24,ORÇAMENTO!E68)),OFFSET($D68,1,$C68,ROW($C$154)-ROW($C68)),0)) -> 0 | L68: F | M68: Serviço | N68: Serviço | O68: 1.6.1. | P68: SINAPI | Q68: 96622 | R68: LASTRO COM MATERIAL GRANULAR, APLICAÇÃO EM PISOS OU RADIERS, ESPESSURA DE 5 CM | S68: M3 | T68: =OFFSET(CÁLCULO!H$15,ROW($T68)-ROW(T$15),0) -> 1.14 | U68: 85 | V68: BDI 1 | W68: 102.3 | X68: 116.62 | Y68: RA | Z68: RA | AA68: =IF($C68="S",IF($Z68="CP",$X68,IF($Z68="RA",(($X68)*QCI!$AA$3),0)),SomaAgrup) -> 116.62 | AB68: 0 | AD68: =IF(C68<=CRONO.NivelExibicao,MAX($AD$15:OFFSET(AD68,-1,0))+IF($C68<>1,1,MAX(1,COUNTIF(QCI!$A$13:$A$24,OFFSET($E68,-1,0)))),"") ->  | AE68: SINAPI 96622 | AF68: 2096 | AG68: 105.39 | AH68: 0.2035 | AJ68: =0.05*22.72 -> 1.136 | AM68: 116.62 | AN68: 102.3
A69: S | B69: 2 | C69: S | D69: 0 | E69: =IF($C69=1,OFFSET(E69,-1,0)+MAX(1,COUNTIF(QCI!$A$13:$A$24,OFFSET(ORÇAMENTO!E69,-1,0))),OFFSET(E69,-1,0)) -> 1 | F69: 6 | G69: 0 | H69: 0 | I69: 2 | J69: 0 | K69: =IF(OR($C69="S",$C69=0),0,MATCH(OFFSET($D69,0,$C69)+IF($C69<>1,1,COUNTIF(QCI!$A$13:$A$24,ORÇAMENTO!E69)),OFFSET($D69,1,$C69,ROW($C$154)-ROW($C69)),0)) -> 0 | L69: F | M69: Serviço | N69: Serviço | O69: 1.6.2. | P69: SINAPI | Q69: 94995 | R69: EXECUÇÃO DE PASSEIO (CALÇADA) OU PISO DE CONCRETO COM CONCRETO MOLDADO IN LOCO, USINADO, ACABAMENTO CONVENCIONAL, ESPESSURA 8 CM, ARMADO | S69: M2 | T69: =OFFSET(CÁLCULO!H$15,ROW($T69)-ROW(T$15),0) -> 22.72 | U69: 60 | V69: BDI 1 | W69: 72.21 | X69: 1640.61 | Y69: RA | Z69: RA | AA69: =IF($C69="S",IF($Z69="CP",$X69,IF($Z69="RA",(($X69)*QCI!$AA$3),0)),SomaAgrup) -> 1640.61 | AB69: 0 | AD69: =IF(C69<=CRONO.NivelExibicao,MAX($AD$15:OFFSET(AD69,-1,0))+IF($C69<>1,1,MAX(1,COUNTIF(QCI!$A$13:$A$24,OFFSET($E69,-1,0)))),"") ->  | AE69: SINAPI 94995 | AF69: 5548 | AG69: 64.44 | AH69: 0.2035 | AJ69: 22.72 | AM69: 1640.61 | AN69: 72.21
A70: =CHOOSE(1+LOG(1+2*(ORÇAMENTO.Nivel="Meta")+4*(ORÇAMENTO.Nivel="Nível 2")+8*(ORÇAMENTO.Nivel="Nível 3")+16*(ORÇAMENTO.Nivel="Nível 4")+32*(ORÇAMENTO.Nivel="Serviço"),2),0,1,2,3,4,"S") -> S | B70: =IF(OR(C70="s",C70=0),OFFSET(B70,-1,0),C70) -> 2 | C70: =IF(OFFSET(C70,-1,0)="L",1,IF(OFFSET(C70,-1,0)=1,2,IF(OR(A70="s",A70=0),"S",IF(AND(OFFSET(C70,-1,0)=2,A70=4),3,IF(AND(OR(OFFSET(C70,-1,0)="s",OFFSET(C70,-1,0)=0),A70<>"s",A70>OFFSET(B70,-1,0)),OFFSET(B70,-1,0),A70))))) -> S | D70: =IF(OR(C70="S",C70=0),0,IF(ISERROR(K70),J70,SMALL(J70:K70,1))) -> 0 | E70: =IF($C70=1,OFFSET(E70,-1,0)+MAX(1,COUNTIF(QCI!$A$13:$A$24,OFFSET(ORÇAMENTO!E70,-1,0))),OFFSET(E70,-1,0)) -> 1 | F70: =IF($C70=1,0,IF($C70=2,OFFSET(F70,-1,0)+1,OFFSET(F70,-1,0))) -> 6 | G70: =IF(AND($C70<=2,$C70<>0),0,IF($C70=3,OFFSET(G70,-1,0)+1,OFFSET(G70,-1,0))) -> 0 | H70: =IF(AND($C70<=3,$C70<>0),0,IF($C70=4,OFFSET(H70,-1,0)+1,OFFSET(H70,-1,0))) -> 0 | I70: =IF(AND($C70<=4,$C70<>0),0,IF(AND($C70="S",$X70>0),OFFSET(I70,-1,0)+1,OFFSET(I70,-1,0))) -> 3 | J70: 0 | K70: =IF(OR($C70="S",$C70=0),0,MATCH(OFFSET($D70,0,$C70)+IF($C70<>1,1,COUNTIF(QCI!$A$13:$A$24,ORÇAMENTO!E70)),OFFSET($D70,1,$C70,ROW($C$154)-ROW($C70)),0)) -> 0 | L70: =IF(OR($X70>0,$C70=1,$C70=2,$C70=3,$C70=4),"F","") -> F | M70: Serviço | N70: =CHOOSE(1+LOG(1+2*(C70=1)+4*(C70=2)+8*(C70=3)+16*(C70=4)+32*(C70="S"),2),"","Meta","Nível 2","Nível 3","Nível 4","Serviço") -> Serviço | O70: =IF(OR($C70=0,$L70=""),"-",CONCATENATE(E70&".",IF(AND($A$5>=2,$C70>=2),F70&".",""),IF(AND($A$5>=3,$C70>=3),G70&".",""),IF(AND($A$5>=4,$C70>=4),H70&".",""),IF($C70="S",I70&".",""))) -> 1.6.3. | P70: SINAPI | Q70: 87642 | R70: CONTRAPISO EM ARGAMASSA TRAÇO 1:4 (CIMENTO E AREIA), PREPARO MANUAL, APLICADO EM ÁREAS SECAS SOBRE LAJE, ADERIDO, ESPESSURA 4 CM | S70: M2 | T70: =OFFSET(CÁLCULO!H$15,ROW($T70)-ROW(T$15),0) -> 174.91 | U70: 30 | V70: BDI 1 | W70: =IF($C70="S",ROUND(IF(TIPOORCAMENTO="Proposto",ORÇAMENTO.CustoUnitario*(1+$AH70),ORÇAMENTO.PrecoUnitarioLicitado),15-13*$AF$10),0) -> 36.11 | X70: =IF($C70="S",VTOTAL1,IF($C70=0,0,ROUND(SomaAgrup,15-13*$AF$11))) -> 6316 | Y70: RA | Z70: =IF(AND($C70="S",$X70>0),IF(ISBLANK($Y70),"RA",LEFT($Y70,2)),"") -> RA | AA70: =IF($C70="S",IF($Z70="CP",$X70,IF($Z70="RA",(($X70)*QCI!$AA$3),0)),SomaAgrup) -> 6316 | AB70: =IF($C70="S",IF($Z70="OU",ROUND($X70,2),0),SomaAgrup) -> 0 | AC70: =IF($N70="","",IF(ORÇAMENTO.Descricao="","DESCRIÇÃO",IF(AND($C70="S",ORÇAMENTO.Unidade=""),"UNIDADE",IF($X70<0,"VALOR NEGATIVO",IF(OR(AND(TIPOORCAMENTO="Proposto",$AG70<>"",$AG70>0,ORÇAMENTO.CustoUnitario>$AG70),AND(TIPOORCAMENTO="LICITADO",ORÇAMENTO.PrecoUnitarioLicitado>$AN70)),"ACIMA REF.",""))))) ->  | AD70: =IF(C70<=CRONO.NivelExibicao,MAX($AD$15:OFFSET(AD70,-1,0))+IF($C70<>1,1,MAX(1,COUNTIF(QCI!$A$13:$A$24,OFFSET($E70,-1,0)))),"") ->  | AE70: =IF(AND($C70="S",ORÇAMENTO.CodBarra<>""),IF(ORÇAMENTO.Fonte="",ORÇAMENTO.CodBarra,CONCATENATE(ORÇAMENTO.Fonte," ",ORÇAMENTO.CodBarra))) -> SINAPI 87642 | AF70: =IF(ISERROR(INDIRECT(ORÇAMENTO.BancoRef)),"(abra o arquivo 'Referência "&Excel_BuiltIn_Database&".xls)",IF(OR($C70<>"S",ORÇAMENTO.CodBarra=""),"(Sem Código)",IF(ISERROR(MATCH($AE70,INDIRECT(ORÇAMENTO.BancoRef),0)),"(Código não identificado nas referências)",MATCH($AE70,INDIRECT(ORÇAMENTO.BancoRef),0)))) -> 5562 | AG70: =ROUND(IF(DESONERACAO="sim",REFERENCIA.Desonerado,REFERENCIA.NaoDesonerado),2) -> 42.91 | AH70: =ROUND(IF(ISNUMBER(ORÇAMENTO.OpcaoBDI),ORÇAMENTO.OpcaoBDI,IF(LEFT(ORÇAMENTO.OpcaoBDI,3)="BDI",HLOOKUP(ORÇAMENTO.OpcaoBDI,$F$4:$H$5,2,FALSE),0)),15-11*$AF$9) -> 0.2035 | AJ70: =27.96+3.84+5.64+1.78+18.81+13.36+12+6.72+6.48+2.4+3.12+35.01+4.88+32.91 -> 174.91 | AM70: 6316 | AN70: =ROUND(ORÇAMENTO.CustoUnitario*(1+$AH70),2) -> 36.11
A71: S | B71: =IF(OR(C71="s",C71=0),OFFSET(B71,-1,0),C71) -> 2 | C71: =IF(OFFSET(C71,-1,0)="L",1,IF(OFFSET(C71,-1,0)=1,2,IF(OR(A71="s",A71=0),"S",IF(AND(OFFSET(C71,-1,0)=2,A71=4),3,IF(AND(OR(OFFSET(C71,-1,0)="s",OFFSET(C71,-1,0)=0),A71<>"s",A71>OFFSET(B71,-1,0)),OFFSET(B71,-1,0),A71))))) -> S | D71: =IF(OR(C71="S",C71=0),0,IF(ISERROR(K71),J71,SMALL(J71:K71,1))) -> 0 | E71: =IF($C71=1,OFFSET(E71,-1,0)+MAX(1,COUNTIF(QCI!$A$13:$A$24,OFFSET(ORÇAMENTO!E71,-1,0))),OFFSET(E71,-1,0)) -> 1 | F71: =IF($C71=1,0,IF($C71=2,OFFSET(F71,-1,0)+1,OFFSET(F71,-1,0))) -> 6 | G71: =IF(AND($C71<=2,$C71<>0),0,IF($C71=3,OFFSET(G71,-1,0)+1,OFFSET(G71,-1,0))) -> 0 | H71: =IF(AND($C71<=3,$C71<>0),0,IF($C71=4,OFFSET(H71,-1,0)+1,OFFSET(H71,-1,0))) -> 0 | I71: =IF(AND($C71<=4,$C71<>0),0,IF(AND($C71="S",$X71>0),OFFSET(I71,-1,0)+1,OFFSET(I71,-1,0))) -> 4 | J71: 0 | K71: =IF(OR($C71="S",$C71=0),0,MATCH(OFFSET($D71,0,$C71)+IF($C71<>1,1,COUNTIF(QCI!$A$13:$A$24,ORÇAMENTO!E71)),OFFSET($D71,1,$C71,ROW($C$154)-ROW($C71)),0)) -> 0 | L71: =IF(OR($X71>0,$C71=1,$C71=2,$C71=3,$C71=4),"F","") -> F | M71: Serviço | N71: =CHOOSE(1+LOG(1+2*(C71=1)+4*(C71=2)+8*(C71=3)+16*(C71=4)+32*(C71="S"),2),"","Meta","Nível 2","Nível 3","Nível 4","Serviço") -> Serviço | O71: =IF(OR($C71=0,$L71=""),"-",CONCATENATE(E71&".",IF(AND($A$5>=2,$C71>=2),F71&".",""),IF(AND($A$5>=3,$C71>=3),G71&".",""),IF(AND($A$5>=4,$C71>=4),H71&".",""),IF($C71="S",I71&".",""))) -> 1.6.4. | P71: SINAPI | Q71: 98557 | R71: IMPERMEABILIZAÇÃO DE SUPERFÍCIE COM EMULSÃO ASFÁLTICA, 2 DEMÃOS | S71: M2 | T71: =OFFSET(CÁLCULO!H$15,ROW($T71)-ROW(T$15),0) -> 5.62 | U71: 28 | V71: BDI 1 | W71: 33.7 | X71: 189.39 | Y71: RA | Z71: =IF(AND($C71="S",$X71>0),IF(ISBLANK($Y71),"RA",LEFT($Y71,2)),"") -> RA | AA71: =IF($C71="S",IF($Z71="CP",$X71,IF($Z71="RA",(($X71)*QCI!$AA$3),0)),SomaAgrup) -> 189.39 | AB71: 0 | AD71: =IF(C71<=CRONO.NivelExibicao,MAX($AD$15:OFFSET(AD71,-1,0))+IF($C71<>1,1,MAX(1,COUNTIF(QCI!$A$13:$A$24,OFFSET($E71,-1,0)))),"") ->  | AE71: SINAPI 98557 | AF71: 2588 | AG71: 30.35 | AH71: 0.2035 | AJ71: =3.84+1.78 -> 5.62 | AM71: 189.39 | AN71: 33.7
A72: S | B72: 2 | C72: S | D72: 0 | E72: =IF($C72=1,OFFSET(E72,-1,0)+MAX(1,COUNTIF(QCI!$A$13:$A$24,OFFSET(ORÇAMENTO!E72,-1,0))),OFFSET(E72,-1,0)) -> 1 | F72: 6 | G72: 0 | H72: 0 | I72: 5 | J72: 0 | K72: =IF(OR($C72="S",$C72=0),0,MATCH(OFFSET($D72,0,$C72)+IF($C72<>1,1,COUNTIF(QCI!$A$13:$A$24,ORÇAMENTO!E72)),OFFSET($D72,1,$C72,ROW($C$154)-ROW($C72)),0)) -> 0 | L72: F | M72: Serviço | N72: Serviço | O72: 1.6.5. | P72: SINAPI | Q72: 87251 | R72: REVESTIMENTO CERÂMICO PARA PISO COM PLACAS TIPO ESMALTADA EXTRA DE DIMENSÕES 60X60 CM | S72: M2 | T72: =OFFSET(CÁLCULO!H$15,ROW($T72)-ROW(T$15),0) -> 174.91 | U72: 30 | V72: BDI 1 | W72: 36.11 | X72: 6316 | Y72: RA | Z72: RA | AA72: =IF($C72="S",IF($Z72="CP",$X72,IF($Z72="RA",(($X72)*QCI!$AA$3),0)),SomaAgrup) -> 6316 | AB72: 0 | AD72: =IF(C72<=CRONO.NivelExibicao,MAX($AD$15:OFFSET(AD72,-1,0))+IF($C72<>1,1,MAX(1,COUNTIF(QCI!$A$13:$A$24,OFFSET($E72,-1,0)))),"") ->  | AE72: SINAPI 87251 | AF72: 5487 | AG72: 34.23 | AH72: 0.2035 | AJ72: =AJ70 -> 174.91 | AM72: 6316 | AN72: 36.11
A73: S | B73: 2 | C73: S | D73: 0 | E73: =IF($C73=1,OFFSET(E73,-1,0)+MAX(1,COUNTIF(QCI!$A$13:$A$24,OFFSET(ORÇAMENTO!E73,-1,0))),OFFSET(E73,-1,0)) -> 1 | F73: 6 | G73: 0 | H73: 0 | I73: 6 | J73: 0 | K73: =IF(OR($C73="S",$C73=0),0,MATCH(OFFSET($D73,0,$C73)+IF($C73<>1,1,COUNTIF(QCI!$A$13:$A$24,ORÇAMENTO!E73)),OFFSET($D73,1,$C73,ROW($C$154)-ROW($C73)),0)) -> 0 | L73: F | M73: Serviço | N73: Serviço | O73: 1.6.6. | P73: SINAPI | Q73: 88649 | R73: RODAPÉ CERÂMICO DE 7 CM DE ALTURA COM PLACAS TIPO ESMALTADA EXTRA DE DIMENSÕES 60X60 CM | S73: M | T73: =OFFSET(CÁLCULO!H$15,ROW($T73)-ROW(T$15),0) -> 138 | U73: 5.5 | V73: BDI 1 | W73: 6.62 | X73: 913.56 | Y73: RA | Z73: RA | AA73: =IF($C73="S",IF($Z73="CP",$X73,IF($Z73="RA",(($X73)*QCI!$AA$3),0)),SomaAgrup) -> 913.56 | AB73: 0 | AD73: =IF(C73<=CRONO.NivelExibicao,MAX($AD$15:OFFSET(AD73,-1,0))+IF($C73<>1,1,MAX(1,COUNTIF(QCI!$A$13:$A$24,OFFSET($E73,-1,0)))),"") ->  | AE73: SINAPI 88649 | AF73: 5535 | AG73: 5.9 | AH73: 0.2035 | AJ73: =21.2+11.5+17.5+15.3+10+5.15+7.85+26.3+23.2 -> 138 | AM73: 913.56 | AN73: 6.62
A74: S | B74: 2 | C74: S | D74: 0 | E74: =IF($C74=1,OFFSET(E74,-1,0)+MAX(1,COUNTIF(QCI!$A$13:$A$24,OFFSET(ORÇAMENTO!E74,-1,0))),OFFSET(E74,-1,0)) -> 1 | F74: 6 | G74: 0 | H74: 0 | I74: 7 | J74: 0 | K74: =IF(OR($C74="S",$C74=0),0,MATCH(OFFSET($D74,0,$C74)+IF($C74<>1,1,COUNTIF(QCI!$A$13:$A$24,ORÇAMENTO!E74)),OFFSET($D74,1,$C74,ROW($C$154)-ROW($C74)),0)) -> 0 | L74: F | M74: Serviço | N74: Serviço | O74: 1.6.7. | P74: SINAPI | Q74: 99837 | R74: GUARDA-CORPO DE AÇO GALVANIZADO DE 1,10M, MONTANTES TUBULARES DE 1.1/4" ESPAÇADOS DE 1,20M, TRAVESSA SUPERIOR DE 1.1/2", GRADIL FORMADO POR TUBOS HORIZONTAIS DE 1" E VERTICAIS DE 3/4", FIXADO COM CHUMBADOR MECÂNICO | S74: M | T74: =OFFSET(CÁLCULO!H$15,ROW($T74)-ROW(T$15),0) -> 17.35 | U74: 350 | V74: BDI 1 | W74: 421.23 | X74: 7308.34 | Y74: RA | Z74: RA | AA74: =IF($C74="S",IF($Z74="CP",$X74,IF($Z74="RA",(($X74)*QCI!$AA$3),0)),SomaAgrup) -> 7308.34 | AB74: 0 | AD74: =IF(C74<=CRONO.NivelExibicao,MAX($AD$15:OFFSET(AD74,-1,0))+IF($C74<>1,1,MAX(1,COUNTIF(QCI!$A$13:$A$24,OFFSET($E74,-1,0)))),"") ->  | AE74: SINAPI 99837 | AF74: 1985 | AG74: 399.62 | AH74: 0.2035 | AJ74: 17.35 | AM74: 7308.34 | AN74: 421.23
A75: =CHOOSE(1+LOG(1+2*(ORÇAMENTO.Nivel="Meta")+4*(ORÇAMENTO.Nivel="Nível 2")+8*(ORÇAMENTO.Nivel="Nível 3")+16*(ORÇAMENTO.Nivel="Nível 4")+32*(ORÇAMENTO.Nivel="Serviço"),2),0,1,2,3,4,"S") -> 2 | B75: 2 | C75: 2 | D75: 17 | E75: =IF($C75=1,OFFSET(E75,-1,0)+MAX(1,COUNTIF(QCI!$A$13:$A$24,OFFSET(ORÇAMENTO!E75,-1,0))),OFFSET(E75,-1,0)) -> 1 | F75: 7 | G75: 0 | H75: 0 | I75: 0 | J75: 79 | K75: =IF(OR($C75="S",$C75=0),0,MATCH(OFFSET($D75,0,$C75)+IF($C75<>1,1,COUNTIF(QCI!$A$13:$A$24,ORÇAMENTO!E75)),OFFSET($D75,1,$C75,ROW($C$154)-ROW($C75)),0)) -> 17 | L75: F | M75: Nível 2 | N75: Nível 2 | O75: 1.7. | P75: SINAPI | R75: APARELHOS SANITÁRIOS | S75: - | T75: =OFFSET(CÁLCULO!H$15,ROW($T75)-ROW(T$15),0) -> 0 | U75: 0 | V75: BDI 1 | W75: =IF($C75="S",ROUND(IF(TIPOORCAMENTO="Proposto",ORÇAMENTO.CustoUnitario*(1+$AH75),ORÇAMENTO.PrecoUnitarioLicitado),15-13*$AF$10),0) -> 0 | X75: =IF($C75="S",VTOTAL1,IF($C75=0,0,ROUND(SomaAgrup,15-13*$AF$11))) -> 7122.12 | Y75: RA | AA75: =IF($C75="S",IF($Z75="CP",$X75,IF($Z75="RA",(($X75)*QCI!$AA$3),0)),SomaAgrup) -> 7122.12 | AB75: =IF($C75="S",IF($Z75="OU",ROUND($X75,2),0),SomaAgrup) -> 0 | AC75: =IF($N75="","",IF(ORÇAMENTO.Descricao="","DESCRIÇÃO",IF(AND($C75="S",ORÇAMENTO.Unidade=""),"UNIDADE",IF($X75<0,"VALOR NEGATIVO",IF(OR(AND(TIPOORCAMENTO="Proposto",$AG75<>"",$AG75>0,ORÇAMENTO.CustoUnitario>$AG75),AND(TIPOORCAMENTO="LICITADO",ORÇAMENTO.PrecoUnitarioLicitado>$AN75)),"ACIMA REF.",""))))) ->  | AD75: =IF(C75<=CRONO.NivelExibicao,MAX($AD$15:OFFSET(AD75,-1,0))+IF($C75<>1,1,MAX(1,COUNTIF(QCI!$A$13:$A$24,OFFSET($E75,-1,0)))),"") -> 8 | AE75: =IF(AND($C75="S",ORÇAMENTO.CodBarra<>""),IF(ORÇAMENTO.Fonte="",ORÇAMENTO.CodBarra,CONCATENATE(ORÇAMENTO.Fonte," ",ORÇAMENTO.CodBarra))) -> FALSE | AF75: =IF(ISERROR(INDIRECT(ORÇAMENTO.BancoRef)),"(abra o arquivo 'Referência "&Excel_BuiltIn_Database&".xls)",IF(OR($C75<>"S",ORÇAMENTO.CodBarra=""),"(Sem Código)",IF(ISERROR(MATCH($AE75,INDIRECT(ORÇAMENTO.BancoRef),0)),"(Código não identificado nas referências)",MATCH($AE75,INDIRECT(ORÇAMENTO.BancoRef),0)))) -> (Sem Código) | AG75: =ROUND(IF(DESONERACAO="sim",REFERENCIA.Desonerado,REFERENCIA.NaoDesonerado),2) -> 0 | AH75: =ROUND(IF(ISNUMBER(ORÇAMENTO.OpcaoBDI),ORÇAMENTO.OpcaoBDI,IF(LEFT(ORÇAMENTO.OpcaoBDI,3)="BDI",HLOOKUP(ORÇAMENTO.OpcaoBDI,$F$4:$H$5,2,FALSE),0)),15-11*$AF$9) -> 0.2035 | AM75: 7122.12 | AN75: =ROUND(ORÇAMENTO.CustoUnitario*(1+$AH75),2) -> 0
A76: S | B76: 2 | C76: S | D76: 0 | E76: =IF($C76=1,OFFSET(E76,-1,0)+MAX(1,COUNTIF(QCI!$A$13:$A$24,OFFSET(ORÇAMENTO!E76,-1,0))),OFFSET(E76,-1,0)) -> 1 | F76: 7 | G76: 0 | H76: 0 | I76: 1 | J76: 0 | K76: =IF(OR($C76="S",$C76=0),0,MATCH(OFFSET($D76,0,$C76)+IF($C76<>1,1,COUNTIF(QCI!$A$13:$A$24,ORÇAMENTO!E76)),OFFSET($D76,1,$C76,ROW($C$154)-ROW($C76)),0)) -> 0 | L76: F | M76: Serviço | N76: Serviço | O76: 1.7.1. | P76: SINAPI | Q76: 86942 | R76: LAVATÓRIO LOUÇA BRANCA SUSPENSO OU EMBUTIDO, 29,5X39 CM OU EQUIVALENTE, PADRÃO POPULAR, INCLUSO SIFÃO TIPO GARRAFA EM PVC, VÁLVULA E ENGATE FLEXÍVEL 30 CM EM PLÁSTICO E TORNEIRA CROMADA DE MESA, PADRÃO POPULAR - FORNECIMENTO E INSTALAÇÃO | S76: UN | T76: =OFFSET(CÁLCULO!H$15,ROW($T76)-ROW(T$15),0) -> 2 | U76: 175 | V76: BDI 1 | W76: 210.61 | X76: 421.22 | Y76: RA | Z76: RA | AA76: =IF($C76="S",IF($Z76="CP",$X76,IF($Z76="RA",(($X76)*QCI!$AA$3),0)),SomaAgrup) -> 421.22 | AB76: 0 | AD76: =IF(C76<=CRONO.NivelExibicao,MAX($AD$15:OFFSET(AD76,-1,0))+IF($C76<>1,1,MAX(1,COUNTIF(QCI!$A$13:$A$24,OFFSET($E76,-1,0)))),"") ->  | AE76: SINAPI 86942 | AF76: 4618 | AG76: 186.31 | AH76: 0.2035 | AJ76: 2 | AM76: 421.22 | AN76: 210.61
A77: S | B77: 2 | C77: S | D77: 0 | E77: =IF($C77=1,OFFSET(E77,-1,0)+MAX(1,COUNTIF(QCI!$A$13:$A$24,OFFSET(ORÇAMENTO!E77,-1,0))),OFFSET(E77,-1,0)) -> 1 | F77: 7 | G77: 0 | H77: 0 | I77: 2 | J77: 0 | K77: =IF(OR($C77="S",$C77=0),0,MATCH(OFFSET($D77,0,$C77)+IF($C77<>1,1,COUNTIF(QCI!$A$13:$A$24,ORÇAMENTO!E77)),OFFSET($D77,1,$C77,ROW($C$154)-ROW($C77)),0)) -> 0 | L77: F | M77: Serviço | N77: Serviço | O77: 1.7.2. | P77: SINAPI | Q77: 95472 | R77: VASO SANITÁRIO SIFONADO CONVENCIONAL PARA PCD SEM FURO FRONTAL COM LOUÇA BRANCA SEM ASSENTO, INCLUSO CONJUNTO DE LIGAÇÃO PARA BACIA SANITÁRIA AJUSTÁVEL - FORNECIMENTO E INSTALAÇÃO | S77: UN | T77: =OFFSET(CÁLCULO!H$15,ROW($T77)-ROW(T$15),0) -> 1 | U77: 590 | V77: BDI 1 | W77: 710.07 | X77: 710.07 | Y77: RA | Z77: RA | AA77: =IF($C77="S",IF($Z77="CP",$X77,IF($Z77="RA",(($X77)*QCI!$AA$3),0)),SomaAgrup) -> 710.07 | AB77: 0 | AD77: =IF(C77<=CRONO.NivelExibicao,MAX($AD$15:OFFSET(AD77,-1,0))+IF($C77<>1,1,MAX(1,COUNTIF(QCI!$A$13:$A$24,OFFSET($E77,-1,0)))),"") ->  | AE77: SINAPI 95472 | AF77: 4627 | AG77: 624.55 | AH77: 0.2035 | AJ77: 1 | AM77: 710.07 | AN77: 710.07
A78: S | B78: 2 | C78: S | D78: 0 | E78: =IF($C78=1,OFFSET(E78,-1,0)+MAX(1,COUNTIF(QCI!$A$13:$A$24,OFFSET(ORÇAMENTO!E78,-1,0))),OFFSET(E78,-1,0)) -> 1 | F78: 7 | G78: 0 | H78: 0 | I78: 3 | J78: 0 | K78: =IF(OR($C78="S",$C78=0),0,MATCH(OFFSET($D78,0,$C78)+IF($C78<>1,1,COUNTIF(QCI!$A$13:$A$24,ORÇAMENTO!E78)),OFFSET($D78,1,$C78,ROW($C$154)-ROW($C78)),0)) -> 0 | L78: F | M78: Serviço | N78: Serviço | O78: 1.7.3. | P78: SINAPI | Q78: 95470 | R78: VASO SANITÁRIO SIFONADO CONVENCIONAL COM LOUÇA BRANCA, INCLUSO CONJUNTO DE LIGAÇÃO PARA BACIA SANITÁRIA AJUSTÁVEL - FORNECIMENTO E INSTALAÇÃO | S78: UN | T78: =OFFSET(CÁLCULO!H$15,ROW($T78)-ROW(T$15),0) -> 1 | U78: 155 | V78: BDI 1 | W78: 186.54 | X78: 186.54 | Y78: RA | Z78: RA | AA78: =IF($C78="S",IF($Z78="CP",$X78,IF($Z78="RA",(($X78)*QCI!$AA$3),0)),SomaAgrup) -> 186.54 | AB78: 0 | AD78: =IF(C78<=CRONO.NivelExibicao,MAX($AD$15:OFFSET(AD78,-1,0))+IF($C78<>1,1,MAX(1,COUNTIF(QCI!$A$13:$A$24,OFFSET($E78,-1,0)))),"") ->  | AE78: SINAPI 95470 | AF78: 4625 | AG78: 164.71 | AH78: 0.2035 | AJ78: 1 | AM78: 186.54 | AN78: 186.54
A79: S | B79: 2 | C79: S | D79: 0 | E79: =IF($C79=1,OFFSET(E79,-1,0)+MAX(1,COUNTIF(QCI!$A$13:$A$24,OFFSET(ORÇAMENTO!E79,-1,0))),OFFSET(E79,-1,0)) -> 1 | F79: 7 | G79: 0 | H79: 0 | I79: 4 | J79: 0 | K79: =IF(OR($C79="S",$C79=0),0,MATCH(OFFSET($D79,0,$C79)+IF($C79<>1,1,COUNTIF(QCI!$A$13:$A$24,ORÇAMENTO!E79)),OFFSET($D79,1,$C79,ROW($C$154)-ROW($C79)),0)) -> 0 | L79: F | M79: Serviço | N79: Serviço | O79: 1.7.4. | P79: SINAPI | Q79: 99635 | R79: VÁLVULA DE DESCARGA METÁLICA, BASE 1 1/2 ", ACABAMENTO METALICO CROMADO - FORNECIMENTO E INSTALAÇÃO | S79: UN | T79: =OFFSET(CÁLCULO!H$15,ROW($T79)-ROW(T$15),0) -> 2 | U79: 205 | V79: BDI 1 | W79: 246.72 | X79: 493.44 | Y79: RA | Z79: RA | AA79: =IF($C79="S",IF($Z79="CP",$X79,IF($Z79="RA",(($X79)*QCI!$AA$3),0)),SomaAgrup) -> 493.44 | AB79: 0 | AD79: =IF(C79<=CRONO.NivelExibicao,MAX($AD$15:OFFSET(AD79,-1,0))+IF($C79<>1,1,MAX(1,COUNTIF(QCI!$A$13:$A$24,OFFSET($E79,-1,0)))),"") ->  | AE79: SINAPI 99635 | AF79: 4765 | AG79: 216.27 | AH79: 0.2035 | AJ79: 2 | AM79: 493.44 | AN79: 246.72
A80: S | B80: 2 | C80: S | D80: 0 | E80: =IF($C80=1,OFFSET(E80,-1,0)+MAX(1,COUNTIF(QCI!$A$13:$A$24,OFFSET(ORÇAMENTO!E80,-1,0))),OFFSET(E80,-1,0)) -> 1 | F80: 7 | G80: 0 | H80: 0 | I80: 5 | J80: 0 | K80: =IF(OR($C80="S",$C80=0),0,MATCH(OFFSET($D80,0,$C80)+IF($C80<>1,1,COUNTIF(QCI!$A$13:$A$24,ORÇAMENTO!E80)),OFFSET($D80,1,$C80,ROW($C$154)-ROW($C80)),0)) -> 0 | L80: F | M80: Serviço | N80: Serviço | O80: 1.7.5. | P80: SINAPI-I | Q80: 36795 | R80: TORNEIRA CROMADA DE MESA PARA LAVATORIO COM SENSOR DE PRESENCA | S80: UN | T80: =OFFSET(CÁLCULO!H$15,ROW($T80)-ROW(T$15),0) -> 2 | U80: 600 | V80: BDI 1 | W80: 722.1 | X80: 1444.2 | Y80: RA | Z80: RA | AA80: =IF($C80="S",IF($Z80="CP",$X80,IF($Z80="RA",(($X80)*QCI!$AA$3),0)),SomaAgrup) -> 1444.2 | AB80: 0 | AD80: =IF(C80<=CRONO.NivelExibicao,MAX($AD$15:OFFSET(AD80,-1,0))+IF($C80<>1,1,MAX(1,COUNTIF(QCI!$A$13:$A$24,OFFSET($E80,-1,0)))),"") ->  | AE80: SINAPI-I 36795 | AF80: 11212 | AG80: 647.12 | AH80: 0.2035 | AJ80: 2 | AM80: 1444.2 | AN80: 722.1
A81: S | B81: 2 | C81: S | D81: 0 | E81: =IF($C81=1,OFFSET(E81,-1,0)+MAX(1,COUNTIF(QCI!$A$13:$A$24,OFFSET(ORÇAMENTO!E81,-1,0))),OFFSET(E81,-1,0)) -> 1 | F81: 7 | G81: 0 | H81: 0 | I81: 6 | J81: 0 | K81: =IF(OR($C81="S",$C81=0),0,MATCH(OFFSET($D81,0,$C81)+IF($C81<>1,1,COUNTIF(QCI!$A$13:$A$24,ORÇAMENTO!E81)),OFFSET($D81,1,$C81,ROW($C$154)-ROW($C81)),0)) -> 0 | L81: F | M81: Serviço | N81: Serviço | O81: 1.7.6. | P81: SINAPI-I | Q81: 37400 | R81: PAPELEIRA PLASTICA TIPO DISPENSER PARA PAPEL HIGIENICO ROLAO | S81: UN | T81: =OFFSET(CÁLCULO!H$15,ROW($T81)-ROW(T$15),0) -> 2 | U81: 50 | V81: BDI 1 | W81: 60.18 | X81: 120.36 | Y81: RA | Z81: RA | AA81: =IF($C81="S",IF($Z81="CP",$X81,IF($Z81="RA",(($X81)*QCI!$AA$3),0)),SomaAgrup) -> 120.36 | AB81: 0 | AD81: =IF(C81<=CRONO.NivelExibicao,MAX($AD$15:OFFSET(AD81,-1,0))+IF($C81<>1,1,MAX(1,COUNTIF(QCI!$A$13:$A$24,OFFSET($E81,-1,0)))),"") ->  | AE81: SINAPI-I 37400 | AF81: 9991 | AG81: 53.51 | AH81: 0.2035 | AJ81: 2 | AM81: 120.36 | AN81: 60.18
A82: =CHOOSE(1+LOG(1+2*(ORÇAMENTO.Nivel="Meta")+4*(ORÇAMENTO.Nivel="Nível 2")+8*(ORÇAMENTO.Nivel="Nível 3")+16*(ORÇAMENTO.Nivel="Nível 4")+32*(ORÇAMENTO.Nivel="Serviço"),2),0,1,2,3,4,"S") -> S | B82: =IF(OR(C82="s",C82=0),OFFSET(B82,-1,0),C82) -> 2 | C82: =IF(OFFSET(C82,-1,0)="L",1,IF(OFFSET(C82,-1,0)=1,2,IF(OR(A82="s",A82=0),"S",IF(AND(OFFSET(C82,-1,0)=2,A82=4),3,IF(AND(OR(OFFSET(C82,-1,0)="s",OFFSET(C82,-1,0)=0),A82<>"s",A82>OFFSET(B82,-1,0)),OFFSET(B82,-1,0),A82))))) -> S | D82: =IF(OR(C82="S",C82=0),0,IF(ISERROR(K82),J82,SMALL(J82:K82,1))) -> 0 | E82: =IF($C82=1,OFFSET(E82,-1,0)+MAX(1,COUNTIF(QCI!$A$13:$A$24,OFFSET(ORÇAMENTO!E82,-1,0))),OFFSET(E82,-1,0)) -> 1 | F82: =IF($C82=1,0,IF($C82=2,OFFSET(F82,-1,0)+1,OFFSET(F82,-1,0))) -> 7 | G82: =IF(AND($C82<=2,$C82<>0),0,IF($C82=3,OFFSET(G82,-1,0)+1,OFFSET(G82,-1,0))) -> 0 | H82: =IF(AND($C82<=3,$C82<>0),0,IF($C82=4,OFFSET(H82,-1,0)+1,OFFSET(H82,-1,0))) -> 0 | I82: =IF(AND($C82<=4,$C82<>0),0,IF(AND($C82="S",$X82>0),OFFSET(I82,-1,0)+1,OFFSET(I82,-1,0))) -> 7 | J82: 0 | K82: =IF(OR($C82="S",$C82=0),0,MATCH(OFFSET($D82,0,$C82)+IF($C82<>1,1,COUNTIF(QCI!$A$13:$A$24,ORÇAMENTO!E82)),OFFSET($D82,1,$C82,ROW($C$154)-ROW($C82)),0)) -> 0 | L82: =IF(OR($X82>0,$C82=1,$C82=2,$C82=3,$C82=4),"F","") -> F | M82: Serviço | N82: =CHOOSE(1+LOG(1+2*(C82=1)+4*(C82=2)+8*(C82=3)+16*(C82=4)+32*(C82="S"),2),"","Meta","Nível 2","Nível 3","Nível 4","Serviço") -> Serviço | O82: =IF(OR($C82=0,$L82=""),"-",CONCATENATE(E82&".",IF(AND($A$5>=2,$C82>=2),F82&".",""),IF(AND($A$5>=3,$C82>=3),G82&".",""),IF(AND($A$5>=4,$C82>=4),H82&".",""),IF($C82="S",I82&".",""))) -> 1.7.7. | P82: SINAPI-I | Q82: 37401 | R82: TOALHEIRO PLASTICO TIPO DISPENSER PARA PAPEL TOALHA INTERFOLHADO | S82: UN | T82: =OFFSET(CÁLCULO!H$15,ROW($T82)-ROW(T$15),0) -> 2 | U82: 50 | V82: BDI 1 | W82: =IF($C82="S",ROUND(IF(TIPOORCAMENTO="Proposto",ORÇAMENTO.CustoUnitario*(1+$AH82),ORÇAMENTO.PrecoUnitarioLicitado),15-13*$AF$10),0) -> 60.18 | X82: =IF($C82="S",VTOTAL1,IF($C82=0,0,ROUND(SomaAgrup,15-13*$AF$11))) -> 120.36 | Y82: RA | Z82: =IF(AND($C82="S",$X82>0),IF(ISBLANK($Y82),"RA",LEFT($Y82,2)),"") -> RA | AA82: =IF($C82="S",IF($Z82="CP",$X82,IF($Z82="RA",(($X82)*QCI!$AA$3),0)),SomaAgrup) -> 120.36 | AB82: =IF($C82="S",IF($Z82="OU",ROUND($X82,2),0),SomaAgrup) -> 0 | AC82: =IF($N82="","",IF(ORÇAMENTO.Descricao="","DESCRIÇÃO",IF(AND($C82="S",ORÇAMENTO.Unidade=""),"UNIDADE",IF($X82<0,"VALOR NEGATIVO",IF(OR(AND(TIPOORCAMENTO="Proposto",$AG82<>"",$AG82>0,ORÇAMENTO.CustoUnitario>$AG82),AND(TIPOORCAMENTO="LICITADO",ORÇAMENTO.PrecoUnitarioLicitado>$AN82)),"ACIMA REF.",""))))) ->  | AD82: =IF(C82<=CRONO.NivelExibicao,MAX($AD$15:OFFSET(AD82,-1,0))+IF($C82<>1,1,MAX(1,COUNTIF(QCI!$A$13:$A$24,OFFSET($E82,-1,0)))),"") ->  | AE82: =IF(AND($C82="S",ORÇAMENTO.CodBarra<>""),IF(ORÇAMENTO.Fonte="",ORÇAMENTO.CodBarra,CONCATENATE(ORÇAMENTO.Fonte," ",ORÇAMENTO.CodBarra))) -> SINAPI-I 37401 | AF82: =IF(ISERROR(INDIRECT(ORÇAMENTO.BancoRef)),"(abra o arquivo 'Referência "&Excel_BuiltIn_Database&".xls)",IF(OR($C82<>"S",ORÇAMENTO.CodBarra=""),"(Sem Código)",IF(ISERROR(MATCH($AE82,INDIRECT(ORÇAMENTO.BancoRef),0)),"(Código não identificado nas referências)",MATCH($AE82,INDIRECT(ORÇAMENTO.BancoRef),0)))) -> 11191 | AG82: =ROUND(IF(DESONERACAO="sim",REFERENCIA.Desonerado,REFERENCIA.NaoDesonerado),2) -> 53.51 | AH82: =ROUND(IF(ISNUMBER(ORÇAMENTO.OpcaoBDI),ORÇAMENTO.OpcaoBDI,IF(LEFT(ORÇAMENTO.OpcaoBDI,3)="BDI",HLOOKUP(ORÇAMENTO.OpcaoBDI,$F$4:$H$5,2,FALSE),0)),15-11*$AF$9) -> 0.2035 | AJ82: 2 | AM82: 120.36 | AN82: =ROUND(ORÇAMENTO.CustoUnitario*(1+$AH82),2) -> 60.18
A83: S | B83: 2 | C83: S | D83: 0 | E83: =IF($C83=1,OFFSET(E83,-1,0)+MAX(1,COUNTIF(QCI!$A$13:$A$24,OFFSET(ORÇAMENTO!E83,-1,0))),OFFSET(E83,-1,0)) -> 1 | F83: 7 | G83: 0 | H83: 0 | I83: 8 | J83: 0 | K83: =IF(OR($C83="S",$C83=0),0,MATCH(OFFSET($D83,0,$C83)+IF($C83<>1,1,COUNTIF(QCI!$A$13:$A$24,ORÇAMENTO!E83)),OFFSET($D83,1,$C83,ROW($C$154)-ROW($C83)),0)) -> 0 | L83: F | M83: Serviço | N83: Serviço | O83: 1.7.8. | P83: SINAPI-I | Q83: 11758 | R83: SABONETEIRA PLASTICA TIPO DISPENSER PARA SABONETE LIQUIDO COM RESERVATORIO 800 A 1500 ML | S83: UN | T83: =OFFSET(CÁLCULO!H$15,ROW($T83)-ROW(T$15),0) -> 2 | U83: 48 | V83: BDI 1 | W83: 57.77 | X83: 115.54 | Y83: RA | Z83: RA | AA83: =IF($C83="S",IF($Z83="CP",$X83,IF($Z83="RA",(($X83)*QCI!$AA$3),0)),SomaAgrup) -> 115.54 | AB83: 0 | AD83: =IF(C83<=CRONO.NivelExibicao,MAX($AD$15:OFFSET(AD83,-1,0))+IF($C83<>1,1,MAX(1,COUNTIF(QCI!$A$13:$A$24,OFFSET($E83,-1,0)))),"") ->  | AE83: SINAPI-I 11758 | AF83: 10626 | AG83: 51.4 | AH83: 0.2035 | AJ83: 2 | AM83: 115.54 | AN83: 57.77
A84: S | B84: 2 | C84: S | D84: 0 | E84: =IF($C84=1,OFFSET(E84,-1,0)+MAX(1,COUNTIF(QCI!$A$13:$A$24,OFFSET(ORÇAMENTO!E84,-1,0))),OFFSET(E84,-1,0)) -> 1 | F84: 7 | G84: 0 | H84: 0 | I84: 9 | J84: =IF(OR($C84="S",$C84=0),0,MATCH(0,OFFSET($D84,1,$C84,ROW($C$154)-ROW($C84)),0)) -> 0 | K84: =IF(OR($C84="S",$C84=0),0,MATCH(OFFSET($D84,0,$C84)+IF($C84<>1,1,COUNTIF(QCI!$A$13:$A$24,ORÇAMENTO!E84)),OFFSET($D84,1,$C84,ROW($C$154)-ROW($C84)),0)) -> 0 | L84: F | M84: Serviço | N84: Serviço | O84: 1.7.9. | P84: SINAPI-I | Q84: 37399 | R84: CABIDE/GANCHO DE BANHEIRO SIMPLES EM METAL CROMADO | S84: UN | T84: =OFFSET(CÁLCULO!H$15,ROW($T84)-ROW(T$15),0) -> 2 | U84: 18 | V84: BDI 1 | W84: 21.66 | X84: 43.32 | Y84: RA | Z84: RA | AA84: =IF($C84="S",IF($Z84="CP",$X84,IF($Z84="RA",(($X84)*QCI!$AA$3),0)),SomaAgrup) -> 43.32 | AB84: 0 | AD84: =IF(C84<=CRONO.NivelExibicao,MAX($AD$15:OFFSET(AD84,-1,0))+IF($C84<>1,1,MAX(1,COUNTIF(QCI!$A$13:$A$24,OFFSET($E84,-1,0)))),"") ->  | AE84: SINAPI-I 37399 | AF84: 7301 | AG84: 19.17 | AH84: 0.2035 | AJ84: 2 | AM84: 43.32 | AN84: 21.66
A85: S | B85: 2 | C85: S | D85: 0 | E85: =IF($C85=1,OFFSET(E85,-1,0)+MAX(1,COUNTIF(QCI!$A$13:$A$24,OFFSET(ORÇAMENTO!E85,-1,0))),OFFSET(E85,-1,0)) -> 1 | F85: 7 | G85: 0 | H85: 0 | I85: 10 | J85: 0 | K85: =IF(OR($C85="S",$C85=0),0,MATCH(OFFSET($D85,0,$C85)+IF($C85<>1,1,COUNTIF(QCI!$A$13:$A$24,ORÇAMENTO!E85)),OFFSET($D85,1,$C85,ROW($C$154)-ROW($C85)),0)) -> 0 | L85: F | M85: Serviço | N85: Serviço | O85: 1.7.10. | P85: SINAPI-I | Q85: 11795 | R85: GRANITO PARA BANCADA, POLIDO, TIPO ANDORINHA/ QUARTZ/ CASTELO/ CORUMBA OU OUTROS EQUIVALENTES DA REGIÃO, E= 2,5 CM | S85: M2 | T85: =OFFSET(CÁLCULO!H$15,ROW($T85)-ROW(T$15),0) -> 1.6 | U85: 390 | V85: BDI 1 | W85: 469.37 | X85: 750.99 | Y85: RA | Z85: RA | AA85: =IF($C85="S",IF($Z85="CP",$X85,IF($Z85="RA",(($X85)*QCI!$AA$3),0)),SomaAgrup) -> 750.99 | AB85: 0 | AD85: =IF(C85<=CRONO.NivelExibicao,MAX($AD$15:OFFSET(AD85,-1,0))+IF($C85<>1,1,MAX(1,COUNTIF(QCI!$A$13:$A$24,OFFSET($E85,-1,0)))),"") ->  | AE85: SINAPI-I 11795 | AF85: 8932 | AG85: 418.86 | AH85: 0.2035 | AJ85: =1*0.8*2 -> 1.6 | AM85: 750.99 | AN85: 469.37
A86: S | B86: 2 | C86: S | D86: 0 | E86: =IF($C86=1,OFFSET(E86,-1,0)+MAX(1,COUNTIF(QCI!$A$13:$A$24,OFFSET(ORÇAMENTO!E86,-1,0))),OFFSET(E86,-1,0)) -> 1 | F86: 7 | G86: 0 | H86: 0 | I86: 11 | J86: 0 | K86: =IF(OR($C86="S",$C86=0),0,MATCH(OFFSET($D86,0,$C86)+IF($C86<>1,1,COUNTIF(QCI!$A$13:$A$24,ORÇAMENTO!E86)),OFFSET($D86,1,$C86,ROW($C$154)-ROW($C86)),0)) -> 0 | L86: F | M86: Serviço | N86: Serviço | O86: 1.7.11. | P86: SINAPI-I | Q86: 11186 | R86: ESPELHO CRISTAL E = 4 MM | S86: M2 | T86: =OFFSET(CÁLCULO!H$15,ROW($T86)-ROW(T$15),0) -> 1.92 | U86: 290 | V86: BDI 1 | W86: 349.02 | X86: 670.12 | Y86: RA | Z86: RA | AA86: =IF($C86="S",IF($Z86="CP",$X86,IF($Z86="RA",(($X86)*QCI!$AA$3),0)),SomaAgrup) -> 670.12 | AB86: 0 | AD86: =IF(C86<=CRONO.NivelExibicao,MAX($AD$15:OFFSET(AD86,-1,0))+IF($C86<>1,1,MAX(1,COUNTIF(QCI!$A$13:$A$24,OFFSET($E86,-1,0)))),"") ->  | AE86: SINAPI-I 11186 | AF86: 8665 | AG86: 315.33 | AH86: 0.2035 | AJ86: =1.2*0.8*2 -> 1.92 | AM86: 670.12 | AN86: 349.02
A87: S | B87: 2 | C87: S | D87: 0 | E87: =IF($C87=1,OFFSET(E87,-1,0)+MAX(1,COUNTIF(QCI!$A$13:$A$24,OFFSET(ORÇAMENTO!E87,-1,0))),OFFSET(E87,-1,0)) -> 1 | F87: 7 | G87: 0 | H87: 0 | I87: 12 | J87: 0 | K87: =IF(OR($C87="S",$C87=0),0,MATCH(OFFSET($D87,0,$C87)+IF($C87<>1,1,COUNTIF(QCI!$A$13:$A$24,ORÇAMENTO!E87)),OFFSET($D87,1,$C87,ROW($C$154)-ROW($C87)),0)) -> 0 | L87: F | M87: Serviço | N87: Serviço | O87: 1.7.12. | P87: SINAPI | Q87: 86920 | R87: TANQUE DE LOUÇA BRANCA COM COLUNA, 30 L OU EQUIVALENTE, INCLUSO SIFÃO FLEXÍVEL EM PVC, VÁLVULA PLÁSTICA E TORNEIRA DE METAL CROMADO PADRÃO POPULAR - FORNECIMENTO E INSTALAÇÃO | S87: UN | T87: =OFFSET(CÁLCULO!H$15,ROW($T87)-ROW(T$15),0) -> 1 | U87: 600 | V87: BDI 1 | W87: 722.1 | X87: 722.1 | Y87: RA | Z87: RA | AA87: =IF($C87="S",IF($Z87="CP",$X87,IF($Z87="RA",(($X87)*QCI!$AA$3),0)),SomaAgrup) -> 722.1 | AB87: 0 | AD87: =IF(C87<=CRONO.NivelExibicao,MAX($AD$15:OFFSET(AD87,-1,0))+IF($C87<>1,1,MAX(1,COUNTIF(QCI!$A$13:$A$24,OFFSET($E87,-1,0)))),"") ->  | AE87: SINAPI 86920 | AF87: 4596 | AG87: 633.58 | AH87: 0.2035 | AJ87: 1 | AM87: 722.1 | AN87: 722.1
A88: S | B88: =IF(OR(C88="s",C88=0),OFFSET(B88,-1,0),C88) -> 2 | C88: =IF(OFFSET(C88,-1,0)="L",1,IF(OFFSET(C88,-1,0)=1,2,IF(OR(A88="s",A88=0),"S",IF(AND(OFFSET(C88,-1,0)=2,A88=4),3,IF(AND(OR(OFFSET(C88,-1,0)="s",OFFSET(C88,-1,0)=0),A88<>"s",A88>OFFSET(B88,-1,0)),OFFSET(B88,-1,0),A88))))) -> S | D88: =IF(OR(C88="S",C88=0),0,IF(ISERROR(K88),J88,SMALL(J88:K88,1))) -> 0 | E88: =IF($C88=1,OFFSET(E88,-1,0)+MAX(1,COUNTIF(QCI!$A$13:$A$24,OFFSET(ORÇAMENTO!E88,-1,0))),OFFSET(E88,-1,0)) -> 1 | F88: =IF($C88=1,0,IF($C88=2,OFFSET(F88,-1,0)+1,OFFSET(F88,-1,0))) -> 7 | G88: =IF(AND($C88<=2,$C88<>0),0,IF($C88=3,OFFSET(G88,-1,0)+1,OFFSET(G88,-1,0))) -> 0 | H88: =IF(AND($C88<=3,$C88<>0),0,IF($C88=4,OFFSET(H88,-1,0)+1,OFFSET(H88,-1,0))) -> 0 | I88: =IF(AND($C88<=4,$C88<>0),0,IF(AND($C88="S",$X88>0),OFFSET(I88,-1,0)+1,OFFSET(I88,-1,0))) -> 13 | J88: 0 | K88: =IF(OR($C88="S",$C88=0),0,MATCH(OFFSET($D88,0,$C88)+IF($C88<>1,1,COUNTIF(QCI!$A$13:$A$24,ORÇAMENTO!E88)),OFFSET($D88,1,$C88,ROW($C$154)-ROW($C88)),0)) -> 0 | L88: =IF(OR($X88>0,$C88=1,$C88=2,$C88=3,$C88=4),"F","") -> F | M88: Serviço | N88: =CHOOSE(1+LOG(1+2*(C88=1)+4*(C88=2)+8*(C88=3)+16*(C88=4)+32*(C88="S"),2),"","Meta","Nível 2","Nível 3","Nível 4","Serviço") -> Serviço | O88: =IF(OR($C88=0,$L88=""),"-",CONCATENATE(E88&".",IF(AND($A$5>=2,$C88>=2),F88&".",""),IF(AND($A$5>=3,$C88>=3),G88&".",""),IF(AND($A$5>=4,$C88>=4),H88&".",""),IF($C88="S",I88&".",""))) -> 1.7.13. | P88: Cotação | Q88: 22 AMMOC | R88: BARRA DE APOIO INOX POLIDO 40 CM | S88: UN | T88: =OFFSET(CÁLCULO!H$15,ROW($T88)-ROW(T$15),0) -> 3 | U88: 100 | V88: BDI 1 | W88: 120.35 | X88: 361.05 | Y88: RA | Z88: =IF(AND($C88="S",$X88>0),IF(ISBLANK($Y88),"RA",LEFT($Y88,2)),"") -> RA | AA88: =IF($C88="S",IF($Z88="CP",$X88,IF($Z88="RA",(($X88)*QCI!$AA$3),0)),SomaAgrup) -> 361.05 | AB88: 0 | AD88: =IF(C88<=CRONO.NivelExibicao,MAX($AD$15:OFFSET(AD88,-1,0))+IF($C88<>1,1,MAX(1,COUNTIF(QCI!$A$13:$A$24,OFFSET($E88,-1,0)))),"") ->  | AE88: Cotação 22 AMMOC | AF88: 161 | AG88: 114 | AH88: 0.2035 | AJ88: 3 | AM88: 361.05 | AN88: 120.35
A89: S | B89: =IF(OR(C89="s",C89=0),OFFSET(B89,-1,0),C89) -> 2 | C89: =IF(OFFSET(C89,-1,0)="L",1,IF(OFFSET(C89,-1,0)=1,2,IF(OR(A89="s",A89=0),"S",IF(AND(OFFSET(C89,-1,0)=2,A89=4),3,IF(AND(OR(OFFSET(C89,-1,0)="s",OFFSET(C89,-1,0)=0),A89<>"s",A89>OFFSET(B89,-1,0)),OFFSET(B89,-1,0),A89))))) -> S | D89: =IF(OR(C89="S",C89=0),0,IF(ISERROR(K89),J89,SMALL(J89:K89,1))) -> 0 | E89: =IF($C89=1,OFFSET(E89,-1,0)+MAX(1,COUNTIF(QCI!$A$13:$A$24,OFFSET(ORÇAMENTO!E89,-1,0))),OFFSET(E89,-1,0)) -> 1 | F89: =IF($C89=1,0,IF($C89=2,OFFSET(F89,-1,0)+1,OFFSET(F89,-1,0))) -> 7 | G89: =IF(AND($C89<=2,$C89<>0),0,IF($C89=3,OFFSET(G89,-1,0)+1,OFFSET(G89,-1,0))) -> 0 | H89: =IF(AND($C89<=3,$C89<>0),0,IF($C89=4,OFFSET(H89,-1,0)+1,OFFSET(H89,-1,0))) -> 0 | I89: =IF(AND($C89<=4,$C89<>0),0,IF(AND($C89="S",$X89>0),OFFSET(I89,-1,0)+1,OFFSET(I89,-1,0))) -> 14 | J89: 0 | K89: =IF(OR($C89="S",$C89=0),0,MATCH(OFFSET($D89,0,$C89)+IF($C89<>1,1,COUNTIF(QCI!$A$13:$A$24,ORÇAMENTO!E89)),OFFSET($D89,1,$C89,ROW($C$154)-ROW($C89)),0)) -> 0 | L89: =IF(OR($X89>0,$C89=1,$C89=2,$C89=3,$C89=4),"F","") -> F | M89: Serviço | N89: =CHOOSE(1+LOG(1+2*(C89=1)+4*(C89=2)+8*(C89=3)+16*(C89=4)+32*(C89="S"),2),"","Meta","Nível 2","Nível 3","Nível 4","Serviço") -> Serviço | O89: =IF(OR($C89=0,$L89=""),"-",CONCATENATE(E89&".",IF(AND($A$5>=2,$C89>=2),F89&".",""),IF(AND($A$5>=3,$C89>=3),G89&".",""),IF(AND($A$5>=4,$C89>=4),H89&".",""),IF($C89="S",I89&".",""))) -> 1.7.14. | P89: SINAPI-I | Q89: 36081 | R89: BARRA DE APOIO RETA, EM AÇO INOX POLIDO, COMPRIMENTO 80 CM, DIÂMETRO MINIMO 3 CM | S89: UN | T89: =OFFSET(CÁLCULO!H$15,ROW($T89)-ROW(T$15),0) -> 2 | U89: 160 | V89: BDI 1 | W89: 192.56 | X89: 385.12 | Y89: RA | Z89: =IF(AND($C89="S",$X89>0),IF(ISBLANK($Y89),"RA",LEFT($Y89,2)),"") -> RA | AA89: =IF($C89="S",IF($Z89="CP",$X89,IF($Z89="RA",(($X89)*QCI!$AA$3),0)),SomaAgrup) -> 385.12 | AB89: 0 | AD89: =IF(C89<=CRONO.NivelExibicao,MAX($AD$15:OFFSET(AD89,-1,0))+IF($C89<>1,1,MAX(1,COUNTIF(QCI!$A$13:$A$24,OFFSET($E89,-1,0)))),"") ->  | AE89: SINAPI-I 36081 | AF89: 7019 | AG89: 178.9 | AH89: 0.2035 | AJ89: 2 | AM89: 385.12 | AN89: 192.56
A90: S | B90: 2 | C90: S | D90: 0 | E90: =IF($C90=1,OFFSET(E90,-1,0)+MAX(1,COUNTIF(QCI!$A$13:$A$24,OFFSET(ORÇAMENTO!E90,-1,0))),OFFSET(E90,-1,0)) -> 1 | F90: 7 | G90: 0 | H90: 0 | I90: 15 | J90: 0 | K90: =IF(OR($C90="S",$C90=0),0,MATCH(OFFSET($D90,0,$C90)+IF($C90<>1,1,COUNTIF(QCI!$A$13:$A$24,ORÇAMENTO!E90)),OFFSET($D90,1,$C90,ROW($C$154)-ROW($C90)),0)) -> 0 | L90: F | M90: Serviço | N90: Serviço | O90: 1.7.15. | P90: SINAPI-I | Q90: 36205 | R90: BARRA DE APOIO RETA, EM ACO INOX POLIDO, COMPRIMENTO 70 CM, DIÂMETRO MINIMO 3 CM | S90: UN | T90: =OFFSET(CÁLCULO!H$15,ROW($T90)-ROW(T$15),0) -> 1 | U90: 150 | V90: BDI 1 | W90: 180.53 | X90: 180.53 | Y90: RA | Z90: RA | AA90: =IF($C90="S",IF($Z90="CP",$X90,IF($Z90="RA",(($X90)*QCI!$AA$3),0)),SomaAgrup) -> 180.53 | AB90: 0 | AD90: =IF(C90<=CRONO.NivelExibicao,MAX($AD$15:OFFSET(AD90,-1,0))+IF($C90<>1,1,MAX(1,COUNTIF(QCI!$A$13:$A$24,OFFSET($E90,-1,0)))),"") ->  | AE90: SINAPI-I 36205 | AF90: 7018 | AG90: 167.78 | AH90: 0.2035 | AJ90: 1 | AM90: 180.53 | AN90: 180.53
A91: S | B91: 2 | C91: S | D91: 0 | E91: =IF($C91=1,OFFSET(E91,-1,0)+MAX(1,COUNTIF(QCI!$A$13:$A$24,OFFSET(ORÇAMENTO!E91,-1,0))),OFFSET(E91,-1,0)) -> 1 | F91: 7 | G91: 0 | H91: 0 | I91: 16 | J91: 0 | K91: =IF(OR($C91="S",$C91=0),0,MATCH(OFFSET($D91,0,$C91)+IF($C91<>1,1,COUNTIF(QCI!$A$13:$A$24,ORÇAMENTO!E91)),OFFSET($D91,1,$C91,ROW($C$154)-ROW($C91)),0)) -> 0 | L91: F | M91: Serviço | N91: Serviço | O91: 1.7.16. | P91: Cotação | Q91: 5 AMMOC | R91: SIRENE AUDIOVISUAL PCD (NBR 9050), INCLUSO TODO O SISTEMA COM ACIONADOR E INSTALAÇÃO | S91: UN | T91: =OFFSET(CÁLCULO!H$15,ROW($T91)-ROW(T$15),0) -> 1 | U91: 330 | V91: BDI 1 | W91: 397.16 | X91: 397.16 | Y91: RA | Z91: RA | AA91: =IF($C91="S",IF($Z91="CP",$X91,IF($Z91="RA",(($X91)*QCI!$AA$3),0)),SomaAgrup) -> 397.16 | AB91: 0 | AD91: =IF(C91<=CRONO.NivelExibicao,MAX($AD$15:OFFSET(AD91,-1,0))+IF($C91<>1,1,MAX(1,COUNTIF(QCI!$A$13:$A$24,OFFSET($E91,-1,0)))),"") ->  | AE91: Cotação 5 AMMOC | AF91: 144 | AG91: 350 | AH91: 0.2035 | AJ91: 1 | AM91: 397.16 | AN91: 397.16
A92: 2 | B92: 2 | C92: 2 | D92: 22 | E92: =IF($C92=1,OFFSET(E92,-1,0)+MAX(1,COUNTIF(QCI!$A$13:$A$24,OFFSET(ORÇAMENTO!E92,-1,0))),OFFSET(E92,-1,0)) -> 1 | F92: 8 | G92: 0 | H92: 0 | I92: 0 | J92: 62 | K92: =IF(OR($C92="S",$C92=0),0,MATCH(OFFSET($D92,0,$C92)+IF($C92<>1,1,COUNTIF(QCI!$A$13:$A$24,ORÇAMENTO!E92)),OFFSET($D92,1,$C92,ROW($C$154)-ROW($C92)),0)) -> 22 | L92: F | M92: Nível 2 | N92: Nível 2 | O92: 1.8. | P92: SINAPI | R92: INSTALAÇÕES HIDROSSANITÁRIAS | S92: - | T92: =OFFSET(CÁLCULO!H$15,ROW($T92)-ROW(T$15),0) -> 0 | U92: 0 | V92: BDI 1 | W92: 0 | X92: 12251.45 | Y92: RA | AA92: =IF($C92="S",IF($Z92="CP",$X92,IF($Z92="RA",(($X92)*QCI!$AA$3),0)),SomaAgrup) -> 12251.45 | AB92: 0 | AD92: =IF(C92<=CRONO.NivelExibicao,MAX($AD$15:OFFSET(AD92,-1,0))+IF($C92<>1,1,MAX(1,COUNTIF(QCI!$A$13:$A$24,OFFSET($E92,-1,0)))),"") -> 9 | AE92: FALSE | AF92: (Sem Código) | AG92: 0 | AH92: 0.2035 | AM92: 12251.45 | AN92: 0
A93: S | B93: 2 | C93: S | D93: 0 | E93: =IF($C93=1,OFFSET(E93,-1,0)+MAX(1,COUNTIF(QCI!$A$13:$A$24,OFFSET(ORÇAMENTO!E93,-1,0))),OFFSET(E93,-1,0)) -> 1 | F93: 8 | G93: 0 | H93: 0 | I93: 1 | J93: 0 | K93: =IF(OR($C93="S",$C93=0),0,MATCH(OFFSET($D93,0,$C93)+IF($C93<>1,1,COUNTIF(QCI!$A$13:$A$24,ORÇAMENTO!E93)),OFFSET($D93,1,$C93,ROW($C$154)-ROW($C93)),0)) -> 0 | L93: F | M93: Serviço | N93: Serviço | O93: 1.8.1. | P93: SINAPI | Q93: 95675 | R93: HIDRÔMETRO DN 25 (3/4), 5,0 M³/H FORNECIMENTO E INSTALAÇÃO | S93: UN | T93: =OFFSET(CÁLCULO!H$15,ROW($T93)-ROW(T$15),0) -> 1 | U93: 180 | V93: BDI 1 | W93: 216.63 | X93: 216.63 | Y93: RA | Z93: RA | AA93: =IF($C93="S",IF($Z93="CP",$X93,IF($Z93="RA",(($X93)*QCI!$AA$3),0)),SomaAgrup) -> 216.63 | AB93: 0 | AD93: =IF(C93<=CRONO.NivelExibicao,MAX($AD$15:OFFSET(AD93,-1,0))+IF($C93<>1,1,MAX(1,COUNTIF(QCI!$A$13:$A$24,OFFSET($E93,-1,0)))),"") ->  | AE93: SINAPI 95675 | AF93: 4780 | AG93: 193.63 | AH93: 0.2035 | AJ93: 1 | AM93: 216.63 | AN93: 216.63
A94: S | B94: 2 | C94: S | D94: 0 | E94: =IF($C94=1,OFFSET(E94,-1,0)+MAX(1,COUNTIF(QCI!$A$13:$A$24,OFFSET(ORÇAMENTO!E94,-1,0))),OFFSET(E94,-1,0)) -> 1 | F94: 8 | G94: 0 | H94: 0 | I94: 2 | J94: 0 | K94: =IF(OR($C94="S",$C94=0),0,MATCH(OFFSET($D94,0,$C94)+IF($C94<>1,1,COUNTIF(QCI!$A$13:$A$24,ORÇAMENTO!E94)),OFFSET($D94,1,$C94,ROW($C$154)-ROW($C94)),0)) -> 0 | L94: F | M94: Serviço | N94: Serviço | O94: 1.8.2. | P94: SINAPI | Q94: 95635 | R94: KIT CAVALETE PARA MEDIÇÃO DE ÁGUA - ENTRADA PRINCIPAL, EM PVC SOLDÁVEL DN 25 (3/4") FORNECIMENTO E INSTALAÇÃO (EXCLUSIVE HIDRÔMETRO) | S94: UN | T94: =OFFSET(CÁLCULO!H$15,ROW($T94)-ROW(T$15),0) -> 1 | U94: 120 | V94: BDI 1 | W94: 144.42 | X94: 144.42 | Y94: RA | Z94: RA | AA94: =IF($C94="S",IF($Z94="CP",$X94,IF($Z94="RA",(($X94)*QCI!$AA$3),0)),SomaAgrup) -> 144.42 | AB94: 0 | AD94: =IF(C94<=CRONO.NivelExibicao,MAX($AD$15:OFFSET(AD94,-1,0))+IF($C94<>1,1,MAX(1,COUNTIF(QCI!$A$13:$A$24,OFFSET($E94,-1,0)))),"") ->  | AE94: SINAPI 95635 | AF94: 4767 | AG94: 129.57 | AH94: 0.2035 | AJ94: 1 | AM94: 144.42 | AN94: 144.42
A95: S | B95: 2 | C95: S | D95: 0 | E95: =IF($C95=1,OFFSET(E95,-1,0)+MAX(1,COUNTIF(QCI!$A$13:$A$24,OFFSET(ORÇAMENTO!E95,-1,0))),OFFSET(E95,-1,0)) -> 1 | F95: 8 | G95: 0 | H95: 0 | I95: 3 | J95: 0 | K95: =IF(OR($C95="S",$C95=0),0,MATCH(OFFSET($D95,0,$C95)+IF($C95<>1,1,COUNTIF(QCI!$A$13:$A$24,ORÇAMENTO!E95)),OFFSET($D95,1,$C95,ROW($C$154)-ROW($C95)),0)) -> 0 | L95: F | M95: Serviço | N95: Serviço | O95: 1.8.3. | P95: SINAPI | Q95: 95676 | R95: CAIXA EM CONCRETO PRÉ-MOLDADO PARA ABRIGO DE HIDRÔMETRO COM DN 20 (1/2) FORNECIMENTO E INSTALAÇÃO | S95: UN | T95: =OFFSET(CÁLCULO!H$15,ROW($T95)-ROW(T$15),0) -> 1 | U95: 70 | V95: BDI 1 | W95: 84.25 | X95: 84.25 | Y95: RA | Z95: RA | AA95: =IF($C95="S",IF($Z95="CP",$X95,IF($Z95="RA",(($X95)*QCI!$AA$3),0)),SomaAgrup) -> 84.25 | AB95: 0 | AD95: =IF(C95<=CRONO.NivelExibicao,MAX($AD$15:OFFSET(AD95,-1,0))+IF($C95<>1,1,MAX(1,COUNTIF(QCI!$A$13:$A$24,OFFSET($E95,-1,0)))),"") ->  | AE95: SINAPI 95676 | AF95: 4781 | AG95: 74.36 | AH95: 0.2035 | AJ95: 1 | AM95: 84.25 | AN95: 84.25
A96: S | B96: 2 | C96: S | D96: 0 | E96: =IF($C96=1,OFFSET(E96,-1,0)+MAX(1,COUNTIF(QCI!$A$13:$A$24,OFFSET(ORÇAMENTO!E96,-1,0))),OFFSET(E96,-1,0)) -> 1 | F96: 8 | G96: 0 | H96: 0 | I96: 4 | J96: 0 | K96: =IF(OR($C96="S",$C96=0),0,MATCH(OFFSET($D96,0,$C96)+IF($C96<>1,1,COUNTIF(QCI!$A$13:$A$24,ORÇAMENTO!E96)),OFFSET($D96,1,$C96,ROW($C$154)-ROW($C96)),0)) -> 0 | L96: F | M96: Serviço | N96: Serviço | O96: 1.8.4. | P96: SINAPI | Q96: 91784 | R96: INSTALAÇÃO DE TUBOS DE PVC, SOLDÁVEL, ÁGUA FRIA, DN 20 MM (INSTALADO EM RAMAL, SUB-RAMAL OU RAMAL DE DISTRIBUIÇÃO), INCLUSIVE CONEXÕES, CORTES E FIXAÇÕES | S96: M | T96: =OFFSET(CÁLCULO!H$15,ROW($T96)-ROW(T$15),0) -> 20 | U96: 30 | V96: BDI 1 | W96: 36.11 | X96: 722.2 | Y96: RA | Z96: RA | AA96: =IF($C96="S",IF($Z96="CP",$X96,IF($Z96="RA",(($X96)*QCI!$AA$3),0)),SomaAgrup) -> 722.2 | AB96: 0 | AD96: =IF(C96<=CRONO.NivelExibicao,MAX($AD$15:OFFSET(AD96,-1,0))+IF($C96<>1,1,MAX(1,COUNTIF(QCI!$A$13:$A$24,OFFSET($E96,-1,0)))),"") ->  | AE96: SINAPI 91784 | AF96: 3238 | AG96: 35.91 | AH96: 0.2035 | AJ96: 20 | AM96: 722.2 | AN96: 36.11
A97: S | B97: 2 | C97: S | D97: 0 | E97: =IF($C97=1,OFFSET(E97,-1,0)+MAX(1,COUNTIF(QCI!$A$13:$A$24,OFFSET(ORÇAMENTO!E97,-1,0))),OFFSET(E97,-1,0)) -> 1 | F97: 8 | G97: 0 | H97: 0 | I97: 5 | J97: 0 | K97: =IF(OR($C97="S",$C97=0),0,MATCH(OFFSET($D97,0,$C97)+IF($C97<>1,1,COUNTIF(QCI!$A$13:$A$24,ORÇAMENTO!E97)),OFFSET($D97,1,$C97,ROW($C$154)-ROW($C97)),0)) -> 0 | L97: F | M97: Serviço | N97: Serviço | O97: 1.8.5. | P97: SINAPI | Q97: 91785 | R97: INSTALAÇÃO DE TUBOS DE PVC, SOLDÁVEL, ÁGUA FRIA, DN 25 MM (INSTALADO EM RAMAL, SUB-RAMAL, RAMAL DE DISTRIBUIÇÃO OU PRUMADA), INCLUSIVE CONEXÕES, CORTES E FIXAÇÕES | S97: M | T97: =OFFSET(CÁLCULO!H$15,ROW($T97)-ROW(T$15),0) -> 40.9 | U97: 30 | V97: BDI 1 | W97: 36.11 | X97: 1476.9 | Y97: RA | Z97: RA | AA97: =IF($C97="S",IF($Z97="CP",$X97,IF($Z97="RA",(($X97)*QCI!$AA$3),0)),SomaAgrup) -> 1476.9 | AB97: 0 | AD97: =IF(C97<=CRONO.NivelExibicao,MAX($AD$15:OFFSET(AD97,-1,0))+IF($C97<>1,1,MAX(1,COUNTIF(QCI!$A$13:$A$24,OFFSET($E97,-1,0)))),"") ->  | AE97: SINAPI 91785 | AF97: 3239 | AG97: 35.35 | AH97: 0.2035 | AJ97: =27.2674*1.5 -> 40.9011 | AM97: 1476.9 | AN97: 36.11
A98: S | B98: 2 | C98: S | D98: 0 | E98: =IF($C98=1,OFFSET(E98,-1,0)+MAX(1,COUNTIF(QCI!$A$13:$A$24,OFFSET(ORÇAMENTO!E98,-1,0))),OFFSET(E98,-1,0)) -> 1 | F98: 8 | G98: 0 | H98: 0 | I98: 6 | J98: 0 | K98: =IF(OR($C98="S",$C98=0),0,MATCH(OFFSET($D98,0,$C98)+IF($C98<>1,1,COUNTIF(QCI!$A$13:$A$24,ORÇAMENTO!E98)),OFFSET($D98,1,$C98,ROW($C$154)-ROW($C98)),0)) -> 0 | L98: F | M98: Serviço | N98: Serviço | O98: 1.8.6. | P98: SINAPI | Q98: 91786 | R98: INSTALAÇÃO TUBOS DE PVC, SOLDÁVEL, ÁGUA FRIA, DN 32 MM (INSTALADO EM RAMAL, SUB-RAMAL, RAMAL DE DISTRIBUIÇÃO OU PRUMADA), INCLUSIVE CONEXÕES, CORTES E FIXAÇÕES | S98: M | T98: =OFFSET(CÁLCULO!H$15,ROW($T98)-ROW(T$15),0) -> 5 | U98: 20 | V98: BDI 1 | W98: 24.07 | X98: 120.35 | Y98: RA | Z98: RA | AA98: =IF($C98="S",IF($Z98="CP",$X98,IF($Z98="RA",(($X98)*QCI!$AA$3),0)),SomaAgrup) -> 120.35 | AB98: 0 | AD98: =IF(C98<=CRONO.NivelExibicao,MAX($AD$15:OFFSET(AD98,-1,0))+IF($C98<>1,1,MAX(1,COUNTIF(QCI!$A$13:$A$24,OFFSET($E98,-1,0)))),"") ->  | AE98: SINAPI 91786 | AF98: 3240 | AG98: 21.27 | AH98: 0.2035 | AJ98: 5 | AM98: 120.35 | AN98: 24.07
A99: =CHOOSE(1+LOG(1+2*(ORÇAMENTO.Nivel="Meta")+4*(ORÇAMENTO.Nivel="Nível 2")+8*(ORÇAMENTO.Nivel="Nível 3")+16*(ORÇAMENTO.Nivel="Nível 4")+32*(ORÇAMENTO.Nivel="Serviço"),2),0,1,2,3,4,"S") -> S | B99: =IF(OR(C99="s",C99=0),OFFSET(B99,-1,0),C99) -> 2 | C99: =IF(OFFSET(C99,-1,0)="L",1,IF(OFFSET(C99,-1,0)=1,2,IF(OR(A99="s",A99=0),"S",IF(AND(OFFSET(C99,-1,0)=2,A99=4),3,IF(AND(OR(OFFSET(C99,-1,0)="s",OFFSET(C99,-1,0)=0),A99<>"s",A99>OFFSET(B99,-1,0)),OFFSET(B99,-1,0),A99))))) -> S | D99: =IF(OR(C99="S",C99=0),0,IF(ISERROR(K99),J99,SMALL(J99:K99,1))) -> 0 | E99: =IF($C99=1,OFFSET(E99,-1,0)+MAX(1,COUNTIF(QCI!$A$13:$A$24,OFFSET(ORÇAMENTO!E99,-1,0))),OFFSET(E99,-1,0)) -> 1 | F99: =IF($C99=1,0,IF($C99=2,OFFSET(F99,-1,0)+1,OFFSET(F99,-1,0))) -> 8 | G99: =IF(AND($C99<=2,$C99<>0),0,IF($C99=3,OFFSET(G99,-1,0)+1,OFFSET(G99,-1,0))) -> 0 | H99: =IF(AND($C99<=3,$C99<>0),0,IF($C99=4,OFFSET(H99,-1,0)+1,OFFSET(H99,-1,0))) -> 0 | I99: =IF(AND($C99<=4,$C99<>0),0,IF(AND($C99="S",$X99>0),OFFSET(I99,-1,0)+1,OFFSET(I99,-1,0))) -> 7 | J99: 0 | K99: =IF(OR($C99="S",$C99=0),0,MATCH(OFFSET($D99,0,$C99)+IF($C99<>1,1,COUNTIF(QCI!$A$13:$A$24,ORÇAMENTO!E99)),OFFSET($D99,1,$C99,ROW($C$154)-ROW($C99)),0)) -> 0 | L99: =IF(OR($X99>0,$C99=1,$C99=2,$C99=3,$C99=4),"F","") -> F | M99: Serviço | N99: =CHOOSE(1+LOG(1+2*(C99=1)+4*(C99=2)+8*(C99=3)+16*(C99=4)+32*(C99="S"),2),"","Meta","Nível 2","Nível 3","Nível 4","Serviço") -> Serviço | O99: =IF(OR($C99=0,$L99=""),"-",CONCATENATE(E99&".",IF(AND($A$5>=2,$C99>=2),F99&".",""),IF(AND($A$5>=3,$C99>=3),G99&".",""),IF(AND($A$5>=4,$C99>=4),H99&".",""),IF($C99="S",I99&".",""))) -> 1.8.7. | P99: SINAPI | Q99: 91788 | R99: (COMPOSIÇÃO REPRESENTATIVA) DO SERVIÇO DE INSTALAÇÃO DE TUBOS DE PVC, SOLDÁVEL, ÁGUA FRIA, DN 50 MM (INSTALADO EM PRUMADA), INCLUSIVE CONEXÕES, CORTES E FIXAÇÕES, PARA PRÉDIOS | S99: M | T99: =OFFSET(CÁLCULO!H$15,ROW($T99)-ROW(T$15),0) -> 14 | U99: 25 | V99: BDI 1 | W99: =IF($C99="S",ROUND(IF(TIPOORCAMENTO="Proposto",ORÇAMENTO.CustoUnitario*(1+$AH99),ORÇAMENTO.PrecoUnitarioLicitado),15-13*$AF$10),0) -> 30.09 | X99: =IF($C99="S",VTOTAL1,IF($C99=0,0,ROUND(SomaAgrup,15-13*$AF$11))) -> 421.26 | Y99: RA | Z99: =IF(AND($C99="S",$X99>0),IF(ISBLANK($Y99),"RA",LEFT($Y99,2)),"") -> RA | AA99: =IF($C99="S",IF($Z99="CP",$X99,IF($Z99="RA",(($X99)*QCI!$AA$3),0)),SomaAgrup) -> 421.26 | AB99: =IF($C99="S",IF($Z99="OU",ROUND($X99,2),0),SomaAgrup) -> 0 | AC99: =IF($N99="","",IF(ORÇAMENTO.Descricao="","DESCRIÇÃO",IF(AND($C99="S",ORÇAMENTO.Unidade=""),"UNIDADE",IF($X99<0,"VALOR NEGATIVO",IF(OR(AND(TIPOORCAMENTO="Proposto",$AG99<>"",$AG99>0,ORÇAMENTO.CustoUnitario>$AG99),AND(TIPOORCAMENTO="LICITADO",ORÇAMENTO.PrecoUnitarioLicitado>$AN99)),"ACIMA REF.",""))))) ->  | AD99: =IF(C99<=CRONO.NivelExibicao,MAX($AD$15:OFFSET(AD99,-1,0))+IF($C99<>1,1,MAX(1,COUNTIF(QCI!$A$13:$A$24,OFFSET($E99,-1,0)))),"") ->  | AE99: =IF(AND($C99="S",ORÇAMENTO.CodBarra<>""),IF(ORÇAMENTO.Fonte="",ORÇAMENTO.CodBarra,CONCATENATE(ORÇAMENTO.Fonte," ",ORÇAMENTO.CodBarra))) -> SINAPI 91788 | AF99: =IF(ISERROR(INDIRECT(ORÇAMENTO.BancoRef)),"(abra o arquivo 'Referência "&Excel_BuiltIn_Database&".xls)",IF(OR($C99<>"S",ORÇAMENTO.CodBarra=""),"(Sem Código)",IF(ISERROR(MATCH($AE99,INDIRECT(ORÇAMENTO.BancoRef),0)),"(Código não identificado nas referências)",MATCH($AE99,INDIRECT(ORÇAMENTO.BancoRef),0)))) -> 3242 | AG99: =ROUND(IF(DESONERACAO="sim",REFERENCIA.Desonerado,REFERENCIA.NaoDesonerado),2) -> 28.08 | AH99: =ROUND(IF(ISNUMBER(ORÇAMENTO.OpcaoBDI),ORÇAMENTO.OpcaoBDI,IF(LEFT(ORÇAMENTO.OpcaoBDI,3)="BDI",HLOOKUP(ORÇAMENTO.OpcaoBDI,$F$4:$H$5,2,FALSE),0)),15-11*$AF$9) -> 0.2035 | AJ99: 14 | AM99: 421.26 | AN99: =ROUND(ORÇAMENTO.CustoUnitario*(1+$AH99),2) -> 30.09
A100: =CHOOSE(1+LOG(1+2*(ORÇAMENTO.Nivel="Meta")+4*(ORÇAMENTO.Nivel="Nível 2")+8*(ORÇAMENTO.Nivel="Nível 3")+16*(ORÇAMENTO.Nivel="Nível 4")+32*(ORÇAMENTO.Nivel="Serviço"),2),0,1,2,3,4,"S") -> S | B100: =IF(OR(C100="s",C100=0),OFFSET(B100,-1,0),C100) -> 2 | C100: =IF(OFFSET(C100,-1,0)="L",1,IF(OFFSET(C100,-1,0)=1,2,IF(OR(A100="s",A100=0),"S",IF(AND(OFFSET(C100,-1,0)=2,A100=4),3,IF(AND(OR(OFFSET(C100,-1,0)="s",OFFSET(C100,-1,0)=0),A100<>"s",A100>OFFSET(B100,-1,0)),OFFSET(B100,-1,0),A100))))) -> S | D100: =IF(OR(C100="S",C100=0),0,IF(ISERROR(K100),J100,SMALL(J100:K100,1))) -> 0 | E100: =IF($C100=1,OFFSET(E100,-1,0)+MAX(1,COUNTIF(QCI!$A$13:$A$24,OFFSET(ORÇAMENTO!E100,-1,0))),OFFSET(E100,-1,0)) -> 1 | F100: =IF($C100=1,0,IF($C100=2,OFFSET(F100,-1,0)+1,OFFSET(F100,-1,0))) -> 8 | G100: =IF(AND($C100<=2,$C100<>0),0,IF($C100=3,OFFSET(G100,-1,0)+1,OFFSET(G100,-1,0))) -> 0 | H100: =IF(AND($C100<=3,$C100<>0),0,IF($C100=4,OFFSET(H100,-1,0)+1,OFFSET(H100,-1,0))) -> 0 | I100: =IF(AND($C100<=4,$C100<>0),0,IF(AND($C100="S",$X100>0),OFFSET(I100,-1,0)+1,OFFSET(I100,-1,0))) -> 8 | J100: 0 | K100: =IF(OR($C100="S",$C100=0),0,MATCH(OFFSET($D100,0,$C100)+IF($C100<>1,1,COUNTIF(QCI!$A$13:$A$24,ORÇAMENTO!E100)),OFFSET($D100,1,$C100,ROW($C$154)-ROW($C100)),0)) -> 0 | L100: =IF(OR($X100>0,$C100=1,$C100=2,$C100=3,$C100=4),"F","") -> F | M100: Serviço | N100: =CHOOSE(1+LOG(1+2*(C100=1)+4*(C100=2)+8*(C100=3)+16*(C100=4)+32*(C100="S"),2),"","Meta","Nível 2","Nível 3","Nível 4","Serviço") -> Serviço | O100: =IF(OR($C100=0,$L100=""),"-",CONCATENATE(E100&".",IF(AND($A$5>=2,$C100>=2),F100&".",""),IF(AND($A$5>=3,$C100>=3),G100&".",""),IF(AND($A$5>=4,$C100>=4),H100&".",""),IF($C100="S",I100&".",""))) -> 1.8.8. | P100: SINAPI | Q100: 88504 | R100: CAIXA D´AGUA EM POLIETILENO, 500 LITROS, COM ACESSÓRIOS | S100: UN | T100: =OFFSET(CÁLCULO!H$15,ROW($T100)-ROW(T$15),0) -> 1 | U100: 500 | V100: BDI 1 | W100: =IF($C100="S",ROUND(IF(TIPOORCAMENTO="Proposto",ORÇAMENTO.CustoUnitario*(1+$AH100),ORÇAMENTO.PrecoUnitarioLicitado),15-13*$AF$10),0) -> 601.75 | X100: =IF($C100="S",VTOTAL1,IF($C100=0,0,ROUND(SomaAgrup,15-13*$AF$11))) -> 601.75 | Y100: RA | Z100: =IF(AND($C100="S",$X100>0),IF(ISBLANK($Y100),"RA",LEFT($Y100,2)),"") -> RA | AA100: =IF($C100="S",IF($Z100="CP",$X100,IF($Z100="RA",(($X100)*QCI!$AA$3),0)),SomaAgrup) -> 601.75 | AB100: =IF($C100="S",IF($Z100="OU",ROUND($X100,2),0),SomaAgrup) -> 0 | AC100: =IF($N100="","",IF(ORÇAMENTO.Descricao="","DESCRIÇÃO",IF(AND($C100="S",ORÇAMENTO.Unidade=""),"UNIDADE",IF($X100<0,"VALOR NEGATIVO",IF(OR(AND(TIPOORCAMENTO="Proposto",$AG100<>"",$AG100>0,ORÇAMENTO.CustoUnitario>$AG100),AND(TIPOORCAMENTO="LICITADO",ORÇAMENTO.PrecoUnitarioLicitado>$AN100)),"ACIMA REF.",""))))) ->  | AD100: =IF(C100<=CRONO.NivelExibicao,MAX($AD$15:OFFSET(AD100,-1,0))+IF($C100<>1,1,MAX(1,COUNTIF(QCI!$A$13:$A$24,OFFSET($E100,-1,0)))),"") ->  | AE100: =IF(AND($C100="S",ORÇAMENTO.CodBarra<>""),IF(ORÇAMENTO.Fonte="",ORÇAMENTO.CodBarra,CONCATENATE(ORÇAMENTO.Fonte," ",ORÇAMENTO.CodBarra))) -> SINAPI 88504 | AF100: =IF(ISERROR(INDIRECT(ORÇAMENTO.BancoRef)),"(abra o arquivo 'Referência "&Excel_BuiltIn_Database&".xls)",IF(OR($C100<>"S",ORÇAMENTO.CodBarra=""),"(Sem Código)",IF(ISERROR(MATCH($AE100,INDIRECT(ORÇAMENTO.BancoRef),0)),"(Código não identificado nas referências)",MATCH($AE100,INDIRECT(ORÇAMENTO.BancoRef),0)))) -> 4526 | AG100: =ROUND(IF(DESONERACAO="sim",REFERENCIA.Desonerado,REFERENCIA.NaoDesonerado),2) -> 582.17 | AH100: =ROUND(IF(ISNUMBER(ORÇAMENTO.OpcaoBDI),ORÇAMENTO.OpcaoBDI,IF(LEFT(ORÇAMENTO.OpcaoBDI,3)="BDI",HLOOKUP(ORÇAMENTO.OpcaoBDI,$F$4:$H$5,2,FALSE),0)),15-11*$AF$9) -> 0.2035 | AJ100: 1 | AM100: 601.75 | AN100: =ROUND(ORÇAMENTO.CustoUnitario*(1+$AH100),2) -> 601.75
A101: =CHOOSE(1+LOG(1+2*(ORÇAMENTO.Nivel="Meta")+4*(ORÇAMENTO.Nivel="Nível 2")+8*(ORÇAMENTO.Nivel="Nível 3")+16*(ORÇAMENTO.Nivel="Nível 4")+32*(ORÇAMENTO.Nivel="Serviço"),2),0,1,2,3,4,"S") -> S | B101: 2 | C101: S | D101: 0 | E101: =IF($C101=1,OFFSET(E101,-1,0)+MAX(1,COUNTIF(QCI!$A$13:$A$24,OFFSET(ORÇAMENTO!E101,-1,0))),OFFSET(E101,-1,0)) -> 1 | F101: 8 | G101: 0 | H101: 0 | I101: 9 | J101: 0 | K101: =IF(OR($C101="S",$C101=0),0,MATCH(OFFSET($D101,0,$C101)+IF($C101<>1,1,COUNTIF(QCI!$A$13:$A$24,ORÇAMENTO!E101)),OFFSET($D101,1,$C101,ROW($C$154)-ROW($C101)),0)) -> 0 | L101: F | M101: Serviço | N101: Serviço | O101: 1.8.9. | P101: SINAPI | Q101: 94497 | R101: REGISTRO DE GAVETA BRUTO, LATÃO, ROSCÁVEL, 1 1/2, INSTALADO EM RESERVAÇÃO DE ÁGUA DE EDIFICAÇÃO QUE POSSUA RESERVATÓRIO DE FIBRA/FIBROCIMENTO  FORNECIMENTO E INSTALAÇÃO | S101: UN | T101: =OFFSET(CÁLCULO!H$15,ROW($T101)-ROW(T$15),0) -> 1 | U101: 95 | V101: BDI 1 | W101: =IF($C101="S",ROUND(IF(TIPOORCAMENTO="Proposto",ORÇAMENTO.CustoUnitario*(1+$AH101),ORÇAMENTO.PrecoUnitarioLicitado),15-13*$AF$10),0) -> 114.33 | X101: =IF($C101="S",VTOTAL1,IF($C101=0,0,ROUND(SomaAgrup,15-13*$AF$11))) -> 114.33 | Y101: RA | Z101: RA | AA101: =IF($C101="S",IF($Z101="CP",$X101,IF($Z101="RA",(($X101)*QCI!$AA$3),0)),SomaAgrup) -> 114.33 | AB101: =IF($C101="S",IF($Z101="OU",ROUND($X101,2),0),SomaAgrup) -> 0 | AC101: =IF($N101="","",IF(ORÇAMENTO.Descricao="","DESCRIÇÃO",IF(AND($C101="S",ORÇAMENTO.Unidade=""),"UNIDADE",IF($X101<0,"VALOR NEGATIVO",IF(OR(AND(TIPOORCAMENTO="Proposto",$AG101<>"",$AG101>0,ORÇAMENTO.CustoUnitario>$AG101),AND(TIPOORCAMENTO="LICITADO",ORÇAMENTO.PrecoUnitarioLicitado>$AN101)),"ACIMA REF.",""))))) ->  | AD101: =IF(C101<=CRONO.NivelExibicao,MAX($AD$15:OFFSET(AD101,-1,0))+IF($C101<>1,1,MAX(1,COUNTIF(QCI!$A$13:$A$24,OFFSET($E101,-1,0)))),"") ->  | AE101: =IF(AND($C101="S",ORÇAMENTO.CodBarra<>""),IF(ORÇAMENTO.Fonte="",ORÇAMENTO.CodBarra,CONCATENATE(ORÇAMENTO.Fonte," ",ORÇAMENTO.CodBarra))) -> SINAPI 94497 | AF101: =IF(ISERROR(INDIRECT(ORÇAMENTO.BancoRef)),"(abra o arquivo 'Referência "&Excel_BuiltIn_Database&".xls)",IF(OR($C101<>"S",ORÇAMENTO.CodBarra=""),"(Sem Código)",IF(ISERROR(MATCH($AE101,INDIRECT(ORÇAMENTO.BancoRef),0)),"(Código não identificado nas referências)",MATCH($AE101,INDIRECT(ORÇAMENTO.BancoRef),0)))) -> 4729 | AG101: =ROUND(IF(DESONERACAO="sim",REFERENCIA.Desonerado,REFERENCIA.NaoDesonerado),2) -> 101.66 | AH101: =ROUND(IF(ISNUMBER(ORÇAMENTO.OpcaoBDI),ORÇAMENTO.OpcaoBDI,IF(LEFT(ORÇAMENTO.OpcaoBDI,3)="BDI",HLOOKUP(ORÇAMENTO.OpcaoBDI,$F$4:$H$5,2,FALSE),0)),15-11*$AF$9) -> 0.2035 | AJ101: 1 | AM101: 114.33 | AN101: =ROUND(ORÇAMENTO.CustoUnitario*(1+$AH101),2) -> 114.33
A102: S | B102: 2 | C102: S | D102: 0 | E102: =IF($C102=1,OFFSET(E102,-1,0)+MAX(1,COUNTIF(QCI!$A$13:$A$24,OFFSET(ORÇAMENTO!E102,-1,0))),OFFSET(E102,-1,0)) -> 1 | F102: 8 | G102: 0 | H102: 0 | I102: 10 | J102: 0 | K102: =IF(OR($C102="S",$C102=0),0,MATCH(OFFSET($D102,0,$C102)+IF($C102<>1,1,COUNTIF(QCI!$A$13:$A$24,ORÇAMENTO!E102)),OFFSET($D102,1,$C102,ROW($C$154)-ROW($C102)),0)) -> 0 | L102: F | M102: Serviço | N102: Serviço | O102: 1.8.10. | P102: SINAPI | Q102: 94495 | R102: REGISTRO DE GAVETA BRUTO, LATÃO, ROSCÁVEL, 1, INSTALADO EM RESERVAÇÃO DE ÁGUA DE EDIFICAÇÃO QUE POSSUA RESERVATÓRIO DE FIBRA/FIBROCIMENTO  FORNECIMENTO E INSTALAÇÃO | S102: UN | T102: =OFFSET(CÁLCULO!H$15,ROW($T102)-ROW(T$15),0) -> 1 | U102: 65 | V102: BDI 1 | W102: 78.23 | X102: 78.23 | Y102: RA | Z102: RA | AA102: =IF($C102="S",IF($Z102="CP",$X102,IF($Z102="RA",(($X102)*QCI!$AA$3),0)),SomaAgrup) -> 78.23 | AB102: 0 | AD102: =IF(C102<=CRONO.NivelExibicao,MAX($AD$15:OFFSET(AD102,-1,0))+IF($C102<>1,1,MAX(1,COUNTIF(QCI!$A$13:$A$24,OFFSET($E102,-1,0)))),"") ->  | AE102: SINAPI 94495 | AF102: 4727 | AG102: 71.97 | AH102: 0.2035 | AJ102: 1 | AM102: 78.23 | AN102: 78.23
A103: =CHOOSE(1+LOG(1+2*(ORÇAMENTO.Nivel="Meta")+4*(ORÇAMENTO.Nivel="Nível 2")+8*(ORÇAMENTO.Nivel="Nível 3")+16*(ORÇAMENTO.Nivel="Nível 4")+32*(ORÇAMENTO.Nivel="Serviço"),2),0,1,2,3,4,"S") -> S | B103: =IF(OR(C103="s",C103=0),OFFSET(B103,-1,0),C103) -> 2 | C103: =IF(OFFSET(C103,-1,0)="L",1,IF(OFFSET(C103,-1,0)=1,2,IF(OR(A103="s",A103=0),"S",IF(AND(OFFSET(C103,-1,0)=2,A103=4),3,IF(AND(OR(OFFSET(C103,-1,0)="s",OFFSET(C103,-1,0)=0),A103<>"s",A103>OFFSET(B103,-1,0)),OFFSET(B103,-1,0),A103))))) -> S | D103: =IF(OR(C103="S",C103=0),0,IF(ISERROR(K103),J103,SMALL(J103:K103,1))) -> 0 | E103: =IF($C103=1,OFFSET(E103,-1,0)+MAX(1,COUNTIF(QCI!$A$13:$A$24,OFFSET(ORÇAMENTO!E103,-1,0))),OFFSET(E103,-1,0)) -> 1 | F103: =IF($C103=1,0,IF($C103=2,OFFSET(F103,-1,0)+1,OFFSET(F103,-1,0))) -> 8 | G103: =IF(AND($C103<=2,$C103<>0),0,IF($C103=3,OFFSET(G103,-1,0)+1,OFFSET(G103,-1,0))) -> 0 | H103: =IF(AND($C103<=3,$C103<>0),0,IF($C103=4,OFFSET(H103,-1,0)+1,OFFSET(H103,-1,0))) -> 0 | I103: =IF(AND($C103<=4,$C103<>0),0,IF(AND($C103="S",$X103>0),OFFSET(I103,-1,0)+1,OFFSET(I103,-1,0))) -> 11 | J103: 0 | K103: =IF(OR($C103="S",$C103=0),0,MATCH(OFFSET($D103,0,$C103)+IF($C103<>1,1,COUNTIF(QCI!$A$13:$A$24,ORÇAMENTO!E103)),OFFSET($D103,1,$C103,ROW($C$154)-ROW($C103)),0)) -> 0 | L103: =IF(OR($X103>0,$C103=1,$C103=2,$C103=3,$C103=4),"F","") -> F | M103: Serviço | N103: =CHOOSE(1+LOG(1+2*(C103=1)+4*(C103=2)+8*(C103=3)+16*(C103=4)+32*(C103="S"),2),"","Meta","Nível 2","Nível 3","Nível 4","Serviço") -> Serviço | O103: =IF(OR($C103=0,$L103=""),"-",CONCATENATE(E103&".",IF(AND($A$5>=2,$C103>=2),F103&".",""),IF(AND($A$5>=3,$C103>=3),G103&".",""),IF(AND($A$5>=4,$C103>=4),H103&".",""),IF($C103="S",I103&".",""))) -> 1.8.11. | P103: SINAPI | Q103: 89353 | R103: REGISTRO DE GAVETA BRUTO, LATÃO, ROSCÁVEL, 3/4", FORNECIDO E INSTALADO EM RAMAL DE ÁGUA | S103: UN | T103: =OFFSET(CÁLCULO!H$15,ROW($T103)-ROW(T$15),0) -> 1 | U103: 30 | V103: BDI 1 | W103: =IF($C103="S",ROUND(IF(TIPOORCAMENTO="Proposto",ORÇAMENTO.CustoUnitario*(1+$AH103),ORÇAMENTO.PrecoUnitarioLicitado),15-13*$AF$10),0) -> 36.11 | X103: =IF($C103="S",VTOTAL1,IF($C103=0,0,ROUND(SomaAgrup,15-13*$AF$11))) -> 36.11 | Y103: RA | Z103: =IF(AND($C103="S",$X103>0),IF(ISBLANK($Y103),"RA",LEFT($Y103,2)),"") -> RA | AA103: =IF($C103="S",IF($Z103="CP",$X103,IF($Z103="RA",(($X103)*QCI!$AA$3),0)),SomaAgrup) -> 36.11 | AB103: =IF($C103="S",IF($Z103="OU",ROUND($X103,2),0),SomaAgrup) -> 0 | AC103: =IF($N103="","",IF(ORÇAMENTO.Descricao="","DESCRIÇÃO",IF(AND($C103="S",ORÇAMENTO.Unidade=""),"UNIDADE",IF($X103<0,"VALOR NEGATIVO",IF(OR(AND(TIPOORCAMENTO="Proposto",$AG103<>"",$AG103>0,ORÇAMENTO.CustoUnitario>$AG103),AND(TIPOORCAMENTO="LICITADO",ORÇAMENTO.PrecoUnitarioLicitado>$AN103)),"ACIMA REF.",""))))) ->  | AD103: =IF(C103<=CRONO.NivelExibicao,MAX($AD$15:OFFSET(AD103,-1,0))+IF($C103<>1,1,MAX(1,COUNTIF(QCI!$A$13:$A$24,OFFSET($E103,-1,0)))),"") ->  | AE103: =IF(AND($C103="S",ORÇAMENTO.CodBarra<>""),IF(ORÇAMENTO.Fonte="",ORÇAMENTO.CodBarra,CONCATENATE(ORÇAMENTO.Fonte," ",ORÇAMENTO.CodBarra))) -> SINAPI 89353 | AF103: =IF(ISERROR(INDIRECT(ORÇAMENTO.BancoRef)),"(abra o arquivo 'Referência "&Excel_BuiltIn_Database&".xls)",IF(OR($C103<>"S",ORÇAMENTO.CodBarra=""),"(Sem Código)",IF(ISERROR(MATCH($AE103,INDIRECT(ORÇAMENTO.BancoRef),0)),"(Código não identificado nas referências)",MATCH($AE103,INDIRECT(ORÇAMENTO.BancoRef),0)))) -> 4708 | AG103: =ROUND(IF(DESONERACAO="sim",REFERENCIA.Desonerado,REFERENCIA.NaoDesonerado),2) -> 33.79 | AH103: =ROUND(IF(ISNUMBER(ORÇAMENTO.OpcaoBDI),ORÇAMENTO.OpcaoBDI,IF(LEFT(ORÇAMENTO.OpcaoBDI,3)="BDI",HLOOKUP(ORÇAMENTO.OpcaoBDI,$F$4:$H$5,2,FALSE),0)),15-11*$AF$9) -> 0.2035 | AJ103: 1 | AM103: 36.11 | AN103: =ROUND(ORÇAMENTO.CustoUnitario*(1+$AH103),2) -> 36.11
A104: =CHOOSE(1+LOG(1+2*(ORÇAMENTO.Nivel="Meta")+4*(ORÇAMENTO.Nivel="Nível 2")+8*(ORÇAMENTO.Nivel="Nível 3")+16*(ORÇAMENTO.Nivel="Nível 4")+32*(ORÇAMENTO.Nivel="Serviço"),2),0,1,2,3,4,"S") -> S | B104: =IF(OR(C104="s",C104=0),OFFSET(B104,-1,0),C104) -> 2 | C104: =IF(OFFSET(C104,-1,0)="L",1,IF(OFFSET(C104,-1,0)=1,2,IF(OR(A104="s",A104=0),"S",IF(AND(OFFSET(C104,-1,0)=2,A104=4),3,IF(AND(OR(OFFSET(C104,-1,0)="s",OFFSET(C104,-1,0)=0),A104<>"s",A104>OFFSET(B104,-1,0)),OFFSET(B104,-1,0),A104))))) -> S | D104: =IF(OR(C104="S",C104=0),0,IF(ISERROR(K104),J104,SMALL(J104:K104,1))) -> 0 | E104: =IF($C104=1,OFFSET(E104,-1,0)+MAX(1,COUNTIF(QCI!$A$13:$A$24,OFFSET(ORÇAMENTO!E104,-1,0))),OFFSET(E104,-1,0)) -> 1 | F104: =IF($C104=1,0,IF($C104=2,OFFSET(F104,-1,0)+1,OFFSET(F104,-1,0))) -> 8 | G104: =IF(AND($C104<=2,$C104<>0),0,IF($C104=3,OFFSET(G104,-1,0)+1,OFFSET(G104,-1,0))) -> 0 | H104: =IF(AND($C104<=3,$C104<>0),0,IF($C104=4,OFFSET(H104,-1,0)+1,OFFSET(H104,-1,0))) -> 0 | I104: =IF(AND($C104<=4,$C104<>0),0,IF(AND($C104="S",$X104>0),OFFSET(I104,-1,0)+1,OFFSET(I104,-1,0))) -> 12 | J104: 0 | K104: =IF(OR($C104="S",$C104=0),0,MATCH(OFFSET($D104,0,$C104)+IF($C104<>1,1,COUNTIF(QCI!$A$13:$A$24,ORÇAMENTO!E104)),OFFSET($D104,1,$C104,ROW($C$154)-ROW($C104)),0)) -> 0 | L104: =IF(OR($X104>0,$C104=1,$C104=2,$C104=3,$C104=4),"F","") -> F | M104: Serviço | N104: =CHOOSE(1+LOG(1+2*(C104=1)+4*(C104=2)+8*(C104=3)+16*(C104=4)+32*(C104="S"),2),"","Meta","Nível 2","Nível 3","Nível 4","Serviço") -> Serviço | O104: =IF(OR($C104=0,$L104=""),"-",CONCATENATE(E104&".",IF(AND($A$5>=2,$C104>=2),F104&".",""),IF(AND($A$5>=3,$C104>=3),G104&".",""),IF(AND($A$5>=4,$C104>=4),H104&".",""),IF($C104="S",I104&".",""))) -> 1.8.12. | P104: SINAPI | Q104: 89352 | R104: REGISTRO DE GAVETA BRUTO, LATÃO, ROSCÁVEL, 1/2", FORNECIDO E INSTALADO EM RAMAL DE ÁGUA | S104: UN | T104: =OFFSET(CÁLCULO!H$15,ROW($T104)-ROW(T$15),0) -> 1 | U104: 30 | V104: BDI 1 | W104: =IF($C104="S",ROUND(IF(TIPOORCAMENTO="Proposto",ORÇAMENTO.CustoUnitario*(1+$AH104),ORÇAMENTO.PrecoUnitarioLicitado),15-13*$AF$10),0) -> 36.11 | X104: =IF($C104="S",VTOTAL1,IF($C104=0,0,ROUND(SomaAgrup,15-13*$AF$11))) -> 36.11 | Y104: RA | Z104: =IF(AND($C104="S",$X104>0),IF(ISBLANK($Y104),"RA",LEFT($Y104,2)),"") -> RA | AA104: =IF($C104="S",IF($Z104="CP",$X104,IF($Z104="RA",(($X104)*QCI!$AA$3),0)),SomaAgrup) -> 36.11 | AB104: =IF($C104="S",IF($Z104="OU",ROUND($X104,2),0),SomaAgrup) -> 0 | AC104: =IF($N104="","",IF(ORÇAMENTO.Descricao="","DESCRIÇÃO",IF(AND($C104="S",ORÇAMENTO.Unidade=""),"UNIDADE",IF($X104<0,"VALOR NEGATIVO",IF(OR(AND(TIPOORCAMENTO="Proposto",$AG104<>"",$AG104>0,ORÇAMENTO.CustoUnitario>$AG104),AND(TIPOORCAMENTO="LICITADO",ORÇAMENTO.PrecoUnitarioLicitado>$AN104)),"ACIMA REF.",""))))) ->  | AD104: =IF(C104<=CRONO.NivelExibicao,MAX($AD$15:OFFSET(AD104,-1,0))+IF($C104<>1,1,MAX(1,COUNTIF(QCI!$A$13:$A$24,OFFSET($E104,-1,0)))),"") ->  | AE104: =IF(AND($C104="S",ORÇAMENTO.CodBarra<>""),IF(ORÇAMENTO.Fonte="",ORÇAMENTO.CodBarra,CONCATENATE(ORÇAMENTO.Fonte," ",ORÇAMENTO.CodBarra))) -> SINAPI 89352 | AF104: =IF(ISERROR(INDIRECT(ORÇAMENTO.BancoRef)),"(abra o arquivo 'Referência "&Excel_BuiltIn_Database&".xls)",IF(OR($C104<>"S",ORÇAMENTO.CodBarra=""),"(Sem Código)",IF(ISERROR(MATCH($AE104,INDIRECT(ORÇAMENTO.BancoRef),0)),"(Código não identificado nas referências)",MATCH($AE104,INDIRECT(ORÇAMENTO.BancoRef),0)))) -> 4707 | AG104: =ROUND(IF(DESONERACAO="sim",REFERENCIA.Desonerado,REFERENCIA.NaoDesonerado),2) -> 32.47 | AH104: =ROUND(IF(ISNUMBER(ORÇAMENTO.OpcaoBDI),ORÇAMENTO.OpcaoBDI,IF(LEFT(ORÇAMENTO.OpcaoBDI,3)="BDI",HLOOKUP(ORÇAMENTO.OpcaoBDI,$F$4:$H$5,2,FALSE),0)),15-11*$AF$9) -> 0.2035 | AJ104: 1 | AM104: 36.11 | AN104: =ROUND(ORÇAMENTO.CustoUnitario*(1+$AH104),2) -> 36.11
A105: S | B105: 2 | C105: S | D105: 0 | E105: =IF($C105=1,OFFSET(E105,-1,0)+MAX(1,COUNTIF(QCI!$A$13:$A$24,OFFSET(ORÇAMENTO!E105,-1,0))),OFFSET(E105,-1,0)) -> 1 | F105: 8 | G105: 0 | H105: 0 | I105: 13 | J105: 0 | K105: =IF(OR($C105="S",$C105=0),0,MATCH(OFFSET($D105,0,$C105)+IF($C105<>1,1,COUNTIF(QCI!$A$13:$A$24,ORÇAMENTO!E105)),OFFSET($D105,1,$C105,ROW($C$154)-ROW($C105)),0)) -> 0 | L105: F | M105: Serviço | N105: Serviço | O105: 1.8.13. | P105: SINAPI | Q105: 91792 | R105: INSTALAÇÃO DE TUBO DE PVC, SÉRIE NORMAL, ESGOTO PREDIAL, DN 40 MM (INSTALADO EM RAMAL DE DESCARGA OU RAMAL DE ESGOTO SANITÁRIO), INCLUSIVE CONEXÕES, CORTES E FIXAÇÕES | S105: M | T105: =OFFSET(CÁLCULO!H$15,ROW($T105)-ROW(T$15),0) -> 4 | U105: 40 | V105: BDI 1 | W105: 48.14 | X105: 192.56 | Y105: RA | Z105: RA | AA105: =IF($C105="S",IF($Z105="CP",$X105,IF($Z105="RA",(($X105)*QCI!$AA$3),0)),SomaAgrup) -> 192.56 | AB105: 0 | AD105: =IF(C105<=CRONO.NivelExibicao,MAX($AD$15:OFFSET(AD105,-1,0))+IF($C105<>1,1,MAX(1,COUNTIF(QCI!$A$13:$A$24,OFFSET($E105,-1,0)))),"") ->  | AE105: SINAPI 91792 | AF105: 3246 | AG105: 46.8 | AH105: 0.2035 | AJ105: 4 | AM105: 192.56 | AN105: 48.14
A106: S | B106: 2 | C106: S | D106: 0 | E106: =IF($C106=1,OFFSET(E106,-1,0)+MAX(1,COUNTIF(QCI!$A$13:$A$24,OFFSET(ORÇAMENTO!E106,-1,0))),OFFSET(E106,-1,0)) -> 1 | F106: 8 | G106: 0 | H106: 0 | I106: 14 | J106: 0 | K106: =IF(OR($C106="S",$C106=0),0,MATCH(OFFSET($D106,0,$C106)+IF($C106<>1,1,COUNTIF(QCI!$A$13:$A$24,ORÇAMENTO!E106)),OFFSET($D106,1,$C106,ROW($C$154)-ROW($C106)),0)) -> 0 | L106: F | M106: Serviço | N106: Serviço | O106: 1.8.14. | P106: SINAPI | Q106: 91793 | R106: INSTALAÇÃO DE TUBO DE PVC, SÉRIE NORMAL, ESGOTO PREDIAL, DN 50 MM (INSTALADO EM RAMAL DE DESCARGA OU RAMAL DE ESGOTO SANITÁRIO), INCLUSIVE CONEXÕES, CORTES E FIXAÇÕES | S106: M | T106: =OFFSET(CÁLCULO!H$15,ROW($T106)-ROW(T$15),0) -> 10 | U106: 60 | V106: BDI 1 | W106: 72.21 | X106: 722.1 | Y106: RA | Z106: RA | AA106: =IF($C106="S",IF($Z106="CP",$X106,IF($Z106="RA",(($X106)*QCI!$AA$3),0)),SomaAgrup) -> 722.1 | AB106: 0 | AD106: =IF(C106<=CRONO.NivelExibicao,MAX($AD$15:OFFSET(AD106,-1,0))+IF($C106<>1,1,MAX(1,COUNTIF(QCI!$A$13:$A$24,OFFSET($E106,-1,0)))),"") ->  | AE106: SINAPI 91793 | AF106: 3247 | AG106: 67.18 | AH106: 0.2035 | AJ106: 10 | AM106: 722.1 | AN106: 72.21
A107: S | B107: 2 | C107: S | D107: 0 | E107: =IF($C107=1,OFFSET(E107,-1,0)+MAX(1,COUNTIF(QCI!$A$13:$A$24,OFFSET(ORÇAMENTO!E107,-1,0))),OFFSET(E107,-1,0)) -> 1 | F107: 8 | G107: 0 | H107: 0 | I107: 15 | J107: 0 | K107: =IF(OR($C107="S",$C107=0),0,MATCH(OFFSET($D107,0,$C107)+IF($C107<>1,1,COUNTIF(QCI!$A$13:$A$24,ORÇAMENTO!E107)),OFFSET($D107,1,$C107,ROW($C$154)-ROW($C107)),0)) -> 0 | L107: F | M107: Serviço | N107: Serviço | O107: 1.8.15. | P107: SINAPI | Q107: 91795 | R107: INSTALAÇÃO TUBO PVC, SÉRIE N, ESGOTO PREDIAL, 100 MM (INSTALADO RAMAL DESCARGA, RAMAL DE ESGOTO, PRUMADA, VENTILAÇÃO OU SUB-COLETOR AÉREO), INCLUSIVE CONEXÕES E CORTES, FIXAÇÕES | S107: M | T107: =OFFSET(CÁLCULO!H$15,ROW($T107)-ROW(T$15),0) -> 25 | U107: 45 | V107: BDI 1 | W107: 54.16 | X107: 1354 | Y107: RA | Z107: RA | AA107: =IF($C107="S",IF($Z107="CP",$X107,IF($Z107="RA",(($X107)*QCI!$AA$3),0)),SomaAgrup) -> 1354 | AB107: 0 | AD107: =IF(C107<=CRONO.NivelExibicao,MAX($AD$15:OFFSET(AD107,-1,0))+IF($C107<>1,1,MAX(1,COUNTIF(QCI!$A$13:$A$24,OFFSET($E107,-1,0)))),"") ->  | AE107: SINAPI 91795 | AF107: 3249 | AG107: 49.61 | AH107: 0.2035 | AJ107: 25 | AM107: 1354 | AN107: 54.16
A108: S | B108: 2 | C108: S | D108: 0 | E108: =IF($C108=1,OFFSET(E108,-1,0)+MAX(1,COUNTIF(QCI!$A$13:$A$24,OFFSET(ORÇAMENTO!E108,-1,0))),OFFSET(E108,-1,0)) -> 1 | F108: 8 | G108: 0 | H108: 0 | I108: 16 | J108: 0 | K108: =IF(OR($C108="S",$C108=0),0,MATCH(OFFSET($D108,0,$C108)+IF($C108<>1,1,COUNTIF(QCI!$A$13:$A$24,ORÇAMENTO!E108)),OFFSET($D108,1,$C108,ROW($C$154)-ROW($C108)),0)) -> 0 | L108: F | M108: Serviço | N108: Serviço | O108: 1.8.16. | P108: SINAPI | Q108: 98104 | R108: CAIXA DE GORDURA SIMPLES (CAPACIDADE: 36 L), RETANGULAR, EM ALVENARIA COM TIJOLOS CERÂMICOS MACIÇOS, DIMENSÕES INTERNAS = 0,4X0,4 M, ALTURA INTERNA MÁXIMA = 0,8 M | S108: UN | T108: =OFFSET(CÁLCULO!H$15,ROW($T108)-ROW(T$15),0) -> 1 | U108: 300 | V108: BDI 1 | W108: 361.05 | X108: 361.05 | Y108: RA | Z108: RA | AA108: =IF($C108="S",IF($Z108="CP",$X108,IF($Z108="RA",(($X108)*QCI!$AA$3),0)),SomaAgrup) -> 361.05 | AB108: 0 | AD108: =IF(C108<=CRONO.NivelExibicao,MAX($AD$15:OFFSET(AD108,-1,0))+IF($C108<>1,1,MAX(1,COUNTIF(QCI!$A$13:$A$24,OFFSET($E108,-1,0)))),"") ->  | AE108: SINAPI 98104 | AF108: 4538 | AG108: 320.18 | AH108: 0.2035 | AJ108: 1 | AM108: 361.05 | AN108: 361.05
A109: S | B109: 2 | C109: S | D109: 0 | E109: =IF($C109=1,OFFSET(E109,-1,0)+MAX(1,COUNTIF(QCI!$A$13:$A$24,OFFSET(ORÇAMENTO!E109,-1,0))),OFFSET(E109,-1,0)) -> 1 | F109: 8 | G109: 0 | H109: 0 | I109: 17 | J109: 0 | K109: =IF(OR($C109="S",$C109=0),0,MATCH(OFFSET($D109,0,$C109)+IF($C109<>1,1,COUNTIF(QCI!$A$13:$A$24,ORÇAMENTO!E109)),OFFSET($D109,1,$C109,ROW($C$154)-ROW($C109)),0)) -> 0 | L109: F | M109: Serviço | N109: Serviço | O109: 1.8.17. | P109: SINAPI | Q109: 74166/1 | R109: CAIXA DE INSPEÇÃO EM CONCRETO PRÉ-MOLDADO DN 60 CM COM TAMPA H= 60 CM - FORNECIMENTO E INSTALAÇÃO | S109: UN | T109: =OFFSET(CÁLCULO!H$15,ROW($T109)-ROW(T$15),0) -> 3 | U109: 200 | V109: BDI 1 | W109: 240.7 | X109: 722.1 | Y109: RA | Z109: RA | AA109: =IF($C109="S",IF($Z109="CP",$X109,IF($Z109="RA",(($X109)*QCI!$AA$3),0)),SomaAgrup) -> 722.1 | AB109: 0 | AD109: =IF(C109<=CRONO.NivelExibicao,MAX($AD$15:OFFSET(AD109,-1,0))+IF($C109<>1,1,MAX(1,COUNTIF(QCI!$A$13:$A$24,OFFSET($E109,-1,0)))),"") ->  | AE109: SINAPI 74166/1 | AF109: 4523 | AG109: 210.73 | AH109: 0.2035 | AJ109: 3 | AM109: 722.1 | AN109: 240.7
A110: =CHOOSE(1+LOG(1+2*(ORÇAMENTO.Nivel="Meta")+4*(ORÇAMENTO.Nivel="Nível 2")+8*(ORÇAMENTO.Nivel="Nível 3")+16*(ORÇAMENTO.Nivel="Nível 4")+32*(ORÇAMENTO.Nivel="Serviço"),2),0,1,2,3,4,"S") -> S | B110: =IF(OR(C110="s",C110=0),OFFSET(B110,-1,0),C110) -> 2 | C110: =IF(OFFSET(C110,-1,0)="L",1,IF(OFFSET(C110,-1,0)=1,2,IF(OR(A110="s",A110=0),"S",IF(AND(OFFSET(C110,-1,0)=2,A110=4),3,IF(AND(OR(OFFSET(C110,-1,0)="s",OFFSET(C110,-1,0)=0),A110<>"s",A110>OFFSET(B110,-1,0)),OFFSET(B110,-1,0),A110))))) -> S | D110: =IF(OR(C110="S",C110=0),0,IF(ISERROR(K110),J110,SMALL(J110:K110,1))) -> 0 | E110: =IF($C110=1,OFFSET(E110,-1,0)+MAX(1,COUNTIF(QCI!$A$13:$A$24,OFFSET(ORÇAMENTO!E110,-1,0))),OFFSET(E110,-1,0)) -> 1 | F110: =IF($C110=1,0,IF($C110=2,OFFSET(F110,-1,0)+1,OFFSET(F110,-1,0))) -> 8 | G110: =IF(AND($C110<=2,$C110<>0),0,IF($C110=3,OFFSET(G110,-1,0)+1,OFFSET(G110,-1,0))) -> 0 | H110: =IF(AND($C110<=3,$C110<>0),0,IF($C110=4,OFFSET(H110,-1,0)+1,OFFSET(H110,-1,0))) -> 0 | I110: =IF(AND($C110<=4,$C110<>0),0,IF(AND($C110="S",$X110>0),OFFSET(I110,-1,0)+1,OFFSET(I110,-1,0))) -> 18 | J110: 0 | K110: =IF(OR($C110="S",$C110=0),0,MATCH(OFFSET($D110,0,$C110)+IF($C110<>1,1,COUNTIF(QCI!$A$13:$A$24,ORÇAMENTO!E110)),OFFSET($D110,1,$C110,ROW($C$154)-ROW($C110)),0)) -> 0 | L110: =IF(OR($X110>0,$C110=1,$C110=2,$C110=3,$C110=4),"F","") -> F | M110: Serviço | N110: =CHOOSE(1+LOG(1+2*(C110=1)+4*(C110=2)+8*(C110=3)+16*(C110=4)+32*(C110="S"),2),"","Meta","Nível 2","Nível 3","Nível 4","Serviço") -> Serviço | O110: =IF(OR($C110=0,$L110=""),"-",CONCATENATE(E110&".",IF(AND($A$5>=2,$C110>=2),F110&".",""),IF(AND($A$5>=3,$C110>=3),G110&".",""),IF(AND($A$5>=4,$C110>=4),H110&".",""),IF($C110="S",I110&".",""))) -> 1.8.18. | P110: SINAPI | Q110: 89710 | R110: RALO SECO, PVC, DN 100 X 40 MM, JUNTA SOLDÁVEL, FORNECIDO E INSTALADO EM RAMAL DE DESCARGA OU EM RAMAL DE ESGOTO SANITÁRIO | S110: UN | T110: =OFFSET(CÁLCULO!H$15,ROW($T110)-ROW(T$15),0) -> 1 | U110: 7.5 | V110: BDI 1 | W110: =IF($C110="S",ROUND(IF(TIPOORCAMENTO="Proposto",ORÇAMENTO.CustoUnitario*(1+$AH110),ORÇAMENTO.PrecoUnitarioLicitado),15-13*$AF$10),0) -> 9.03 | X110: =IF($C110="S",VTOTAL1,IF($C110=0,0,ROUND(SomaAgrup,15-13*$AF$11))) -> 9.03 | Y110: RA | Z110: =IF(AND($C110="S",$X110>0),IF(ISBLANK($Y110),"RA",LEFT($Y110,2)),"") -> RA | AA110: =IF($C110="S",IF($Z110="CP",$X110,IF($Z110="RA",(($X110)*QCI!$AA$3),0)),SomaAgrup) -> 9.03 | AB110: =IF($C110="S",IF($Z110="OU",ROUND($X110,2),0),SomaAgrup) -> 0 | AC110: =IF($N110="","",IF(ORÇAMENTO.Descricao="","DESCRIÇÃO",IF(AND($C110="S",ORÇAMENTO.Unidade=""),"UNIDADE",IF($X110<0,"VALOR NEGATIVO",IF(OR(AND(TIPOORCAMENTO="Proposto",$AG110<>"",$AG110>0,ORÇAMENTO.CustoUnitario>$AG110),AND(TIPOORCAMENTO="LICITADO",ORÇAMENTO.PrecoUnitarioLicitado>$AN110)),"ACIMA REF.",""))))) ->  | AD110: =IF(C110<=CRONO.NivelExibicao,MAX($AD$15:OFFSET(AD110,-1,0))+IF($C110<>1,1,MAX(1,COUNTIF(QCI!$A$13:$A$24,OFFSET($E110,-1,0)))),"") ->  | AE110: =IF(AND($C110="S",ORÇAMENTO.CodBarra<>""),IF(ORÇAMENTO.Fonte="",ORÇAMENTO.CodBarra,CONCATENATE(ORÇAMENTO.Fonte," ",ORÇAMENTO.CodBarra))) -> SINAPI 89710 | AF110: =IF(ISERROR(INDIRECT(ORÇAMENTO.BancoRef)),"(abra o arquivo 'Referência "&Excel_BuiltIn_Database&".xls)",IF(OR($C110<>"S",ORÇAMENTO.CodBarra=""),"(Sem Código)",IF(ISERROR(MATCH($AE110,INDIRECT(ORÇAMENTO.BancoRef),0)),"(Código não identificado nas referências)",MATCH($AE110,INDIRECT(ORÇAMENTO.BancoRef),0)))) -> 4558 | AG110: =ROUND(IF(DESONERACAO="sim",REFERENCIA.Desonerado,REFERENCIA.NaoDesonerado),2) -> 8.4 | AH110: =ROUND(IF(ISNUMBER(ORÇAMENTO.OpcaoBDI),ORÇAMENTO.OpcaoBDI,IF(LEFT(ORÇAMENTO.OpcaoBDI,3)="BDI",HLOOKUP(ORÇAMENTO.OpcaoBDI,$F$4:$H$5,2,FALSE),0)),15-11*$AF$9) -> 0.2035 | AJ110: 1 | AM110: 9.03 | AN110: =ROUND(ORÇAMENTO.CustoUnitario*(1+$AH110),2) -> 9.03
A111: S | B111: 2 | C111: S | D111: 0 | E111: =IF($C111=1,OFFSET(E111,-1,0)+MAX(1,COUNTIF(QCI!$A$13:$A$24,OFFSET(ORÇAMENTO!E111,-1,0))),OFFSET(E111,-1,0)) -> 1 | F111: 8 | G111: 0 | H111: 0 | I111: 19 | J111: 0 | K111: =IF(OR($C111="S",$C111=0),0,MATCH(OFFSET($D111,0,$C111)+IF($C111<>1,1,COUNTIF(QCI!$A$13:$A$24,ORÇAMENTO!E111)),OFFSET($D111,1,$C111,ROW($C$154)-ROW($C111)),0)) -> 0 | L111: F | M111: Serviço | N111: Serviço | O111: 1.8.19. | P111: SINAPI-I | Q111: 11712 | R111: CAIXA SIFONADA PVC, 150 X 150 X 50 MM, COM GRELHA QUADRADA BRANCA (NBR 5688) | S111: UN | T111: =OFFSET(CÁLCULO!H$15,ROW($T111)-ROW(T$15),0) -> 1 | U111: 20 | V111: BDI 1 | W111: 24.07 | X111: 24.07 | Y111: RA | Z111: RA | AA111: =IF($C111="S",IF($Z111="CP",$X111,IF($Z111="RA",(($X111)*QCI!$AA$3),0)),SomaAgrup) -> 24.07 | AB111: 0 | AD111: =IF(C111<=CRONO.NivelExibicao,MAX($AD$15:OFFSET(AD111,-1,0))+IF($C111<>1,1,MAX(1,COUNTIF(QCI!$A$13:$A$24,OFFSET($E111,-1,0)))),"") ->  | AE111: SINAPI-I 11712 | AF111: 7535 | AG111: 23 | AH111: 0.2035 | AJ111: 1 | AM111: 24.07 | AN111: 24.07
A112: =CHOOSE(1+LOG(1+2*(ORÇAMENTO.Nivel="Meta")+4*(ORÇAMENTO.Nivel="Nível 2")+8*(ORÇAMENTO.Nivel="Nível 3")+16*(ORÇAMENTO.Nivel="Nível 4")+32*(ORÇAMENTO.Nivel="Serviço"),2),0,1,2,3,4,"S") -> S | B112: =IF(OR(C112="s",C112=0),OFFSET(B112,-1,0),C112) -> 2 | C112: =IF(OFFSET(C112,-1,0)="L",1,IF(OFFSET(C112,-1,0)=1,2,IF(OR(A112="s",A112=0),"S",IF(AND(OFFSET(C112,-1,0)=2,A112=4),3,IF(AND(OR(OFFSET(C112,-1,0)="s",OFFSET(C112,-1,0)=0),A112<>"s",A112>OFFSET(B112,-1,0)),OFFSET(B112,-1,0),A112))))) -> S | D112: =IF(OR(C112="S",C112=0),0,IF(ISERROR(K112),J112,SMALL(J112:K112,1))) -> 0 | E112: =IF($C112=1,OFFSET(E112,-1,0)+MAX(1,COUNTIF(QCI!$A$13:$A$24,OFFSET(ORÇAMENTO!E112,-1,0))),OFFSET(E112,-1,0)) -> 1 | F112: =IF($C112=1,0,IF($C112=2,OFFSET(F112,-1,0)+1,OFFSET(F112,-1,0))) -> 8 | G112: =IF(AND($C112<=2,$C112<>0),0,IF($C112=3,OFFSET(G112,-1,0)+1,OFFSET(G112,-1,0))) -> 0 | H112: =IF(AND($C112<=3,$C112<>0),0,IF($C112=4,OFFSET(H112,-1,0)+1,OFFSET(H112,-1,0))) -> 0 | I112: =IF(AND($C112<=4,$C112<>0),0,IF(AND($C112="S",$X112>0),OFFSET(I112,-1,0)+1,OFFSET(I112,-1,0))) -> 20 | J112: 0 | K112: =IF(OR($C112="S",$C112=0),0,MATCH(OFFSET($D112,0,$C112)+IF($C112<>1,1,COUNTIF(QCI!$A$13:$A$24,ORÇAMENTO!E112)),OFFSET($D112,1,$C112,ROW($C$154)-ROW($C112)),0)) -> 0 | L112: =IF(OR($X112>0,$C112=1,$C112=2,$C112=3,$C112=4),"F","") -> F | M112: Serviço | N112: =CHOOSE(1+LOG(1+2*(C112=1)+4*(C112=2)+8*(C112=3)+16*(C112=4)+32*(C112="S"),2),"","Meta","Nível 2","Nível 3","Nível 4","Serviço") -> Serviço | O112: =IF(OR($C112=0,$L112=""),"-",CONCATENATE(E112&".",IF(AND($A$5>=2,$C112>=2),F112&".",""),IF(AND($A$5>=3,$C112>=3),G112&".",""),IF(AND($A$5>=4,$C112>=4),H112&".",""),IF($C112="S",I112&".",""))) -> 1.8.20. | P112: SINAPI | Q112: 98054 | R112: TANQUE SÉPTICO CIRCULAR, EM CONCRETO PRÉ-MOLDADO, DIÂMETRO INTERNO = 1,88 M, ALTURA INTERNA = 2,50 M, VOLUME ÚTIL: 6245,8 L (PARA 32 CONTRIBUINTES) | S112: UN | T112: =OFFSET(CÁLCULO!H$15,ROW($T112)-ROW(T$15),0) -> 1 | U112: 2200 | V112: BDI 1 | W112: =IF($C112="S",ROUND(IF(TIPOORCAMENTO="Proposto",ORÇAMENTO.CustoUnitario*(1+$AH112),ORÇAMENTO.PrecoUnitarioLicitado),15-13*$AF$10),0) -> 2647.7 | X112: =IF($C112="S",VTOTAL1,IF($C112=0,0,ROUND(SomaAgrup,15-13*$AF$11))) -> 2647.7 | Y112: RA | Z112: =IF(AND($C112="S",$X112>0),IF(ISBLANK($Y112),"RA",LEFT($Y112,2)),"") -> RA | AA112: =IF($C112="S",IF($Z112="CP",$X112,IF($Z112="RA",(($X112)*QCI!$AA$3),0)),SomaAgrup) -> 2647.7 | AB112: =IF($C112="S",IF($Z112="OU",ROUND($X112,2),0),SomaAgrup) -> 0 | AC112: =IF($N112="","",IF(ORÇAMENTO.Descricao="","DESCRIÇÃO",IF(AND($C112="S",ORÇAMENTO.Unidade=""),"UNIDADE",IF($X112<0,"VALOR NEGATIVO",IF(OR(AND(TIPOORCAMENTO="Proposto",$AG112<>"",$AG112>0,ORÇAMENTO.CustoUnitario>$AG112),AND(TIPOORCAMENTO="LICITADO",ORÇAMENTO.PrecoUnitarioLicitado>$AN112)),"ACIMA REF.",""))))) ->  | AD112: =IF(C112<=CRONO.NivelExibicao,MAX($AD$15:OFFSET(AD112,-1,0))+IF($C112<>1,1,MAX(1,COUNTIF(QCI!$A$13:$A$24,OFFSET($E112,-1,0)))),"") ->  | AE112: =IF(AND($C112="S",ORÇAMENTO.CodBarra<>""),IF(ORÇAMENTO.Fonte="",ORÇAMENTO.CodBarra,CONCATENATE(ORÇAMENTO.Fonte," ",ORÇAMENTO.CodBarra))) -> SINAPI 98054 | AF112: =IF(ISERROR(INDIRECT(ORÇAMENTO.BancoRef)),"(abra o arquivo 'Referência "&Excel_BuiltIn_Database&".xls)",IF(OR($C112<>"S",ORÇAMENTO.CodBarra=""),"(Sem Código)",IF(ISERROR(MATCH($AE112,INDIRECT(ORÇAMENTO.BancoRef),0)),"(Código não identificado nas referências)",MATCH($AE112,INDIRECT(ORÇAMENTO.BancoRef),0)))) -> 4662 | AG112: =ROUND(IF(DESONERACAO="sim",REFERENCIA.Desonerado,REFERENCIA.NaoDesonerado),2) -> 2488.57 | AH112: =ROUND(IF(ISNUMBER(ORÇAMENTO.OpcaoBDI),ORÇAMENTO.OpcaoBDI,IF(LEFT(ORÇAMENTO.OpcaoBDI,3)="BDI",HLOOKUP(ORÇAMENTO.OpcaoBDI,$F$4:$H$5,2,FALSE),0)),15-11*$AF$9) -> 0.2035 | AJ112: 1 | AM112: 2647.7 | AN112: =ROUND(ORÇAMENTO.CustoUnitario*(1+$AH112),2) -> 2647.7
A113: =CHOOSE(1+LOG(1+2*(ORÇAMENTO.Nivel="Meta")+4*(ORÇAMENTO.Nivel="Nível 2")+8*(ORÇAMENTO.Nivel="Nível 3")+16*(ORÇAMENTO.Nivel="Nível 4")+32*(ORÇAMENTO.Nivel="Serviço"),2),0,1,2,3,4,"S") -> S | B113: =IF(OR(C113="s",C113=0),OFFSET(B113,-1,0),C113) -> 2 | C113: =IF(OFFSET(C113,-1,0)="L",1,IF(OFFSET(C113,-1,0)=1,2,IF(OR(A113="s",A113=0),"S",IF(AND(OFFSET(C113,-1,0)=2,A113=4),3,IF(AND(OR(OFFSET(C113,-1,0)="s",OFFSET(C113,-1,0)=0),A113<>"s",A113>OFFSET(B113,-1,0)),OFFSET(B113,-1,0),A113))))) -> S | D113: =IF(OR(C113="S",C113=0),0,IF(ISERROR(K113),J113,SMALL(J113:K113,1))) -> 0 | E113: =IF($C113=1,OFFSET(E113,-1,0)+MAX(1,COUNTIF(QCI!$A$13:$A$24,OFFSET(ORÇAMENTO!E113,-1,0))),OFFSET(E113,-1,0)) -> 1 | F113: =IF($C113=1,0,IF($C113=2,OFFSET(F113,-1,0)+1,OFFSET(F113,-1,0))) -> 8 | G113: =IF(AND($C113<=2,$C113<>0),0,IF($C113=3,OFFSET(G113,-1,0)+1,OFFSET(G113,-1,0))) -> 0 | H113: =IF(AND($C113<=3,$C113<>0),0,IF($C113=4,OFFSET(H113,-1,0)+1,OFFSET(H113,-1,0))) -> 0 | I113: =IF(AND($C113<=4,$C113<>0),0,IF(AND($C113="S",$X113>0),OFFSET(I113,-1,0)+1,OFFSET(I113,-1,0))) -> 21 | J113: 0 | K113: =IF(OR($C113="S",$C113=0),0,MATCH(OFFSET($D113,0,$C113)+IF($C113<>1,1,COUNTIF(QCI!$A$13:$A$24,ORÇAMENTO!E113)),OFFSET($D113,1,$C113,ROW($C$154)-ROW($C113)),0)) -> 0 | L113: =IF(OR($X113>0,$C113=1,$C113=2,$C113=3,$C113=4),"F","") -> F | M113: Serviço | N113: =CHOOSE(1+LOG(1+2*(C113=1)+4*(C113=2)+8*(C113=3)+16*(C113=4)+32*(C113="S"),2),"","Meta","Nível 2","Nível 3","Nível 4","Serviço") -> Serviço | O113: =IF(OR($C113=0,$L113=""),"-",CONCATENATE(E113&".",IF(AND($A$5>=2,$C113>=2),F113&".",""),IF(AND($A$5>=3,$C113>=3),G113&".",""),IF(AND($A$5>=4,$C113>=4),H113&".",""),IF($C113="S",I113&".",""))) -> 1.8.21. | P113: AMMOC | Q113: 137 | R113: SUMIDOURO EM ANEL PRÉ MOLDADO FURADO D=2M, H= 2,00 M, INCLUSO ESCAVAÇÃO, REJUNTAMENTO, FUNDO, PREENCHIMENTO EM RACHÃO E TAMPA | S113: UN | T113: =OFFSET(CÁLCULO!H$15,ROW($T113)-ROW(T$15),0) -> 1 | U113: 1800 | V113: BDI 1 | W113: =IF($C113="S",ROUND(IF(TIPOORCAMENTO="Proposto",ORÇAMENTO.CustoUnitario*(1+$AH113),ORÇAMENTO.PrecoUnitarioLicitado),15-13*$AF$10),0) -> 2166.3 | X113: =IF($C113="S",VTOTAL1,IF($C113=0,0,ROUND(SomaAgrup,15-13*$AF$11))) -> 2166.3 | Y113: RA | Z113: =IF(AND($C113="S",$X113>0),IF(ISBLANK($Y113),"RA",LEFT($Y113,2)),"") -> RA | AA113: =IF($C113="S",IF($Z113="CP",$X113,IF($Z113="RA",(($X113)*QCI!$AA$3),0)),SomaAgrup) -> 2166.3 | AB113: =IF($C113="S",IF($Z113="OU",ROUND($X113,2),0),SomaAgrup) -> 0 | AC113: =IF($N113="","",IF(ORÇAMENTO.Descricao="","DESCRIÇÃO",IF(AND($C113="S",ORÇAMENTO.Unidade=""),"UNIDADE",IF($X113<0,"VALOR NEGATIVO",IF(OR(AND(TIPOORCAMENTO="Proposto",$AG113<>"",$AG113>0,ORÇAMENTO.CustoUnitario>$AG113),AND(TIPOORCAMENTO="LICITADO",ORÇAMENTO.PrecoUnitarioLicitado>$AN113)),"ACIMA REF.",""))))) ->  | AD113: =IF(C113<=CRONO.NivelExibicao,MAX($AD$15:OFFSET(AD113,-1,0))+IF($C113<>1,1,MAX(1,COUNTIF(QCI!$A$13:$A$24,OFFSET($E113,-1,0)))),"") ->  | AE113: =IF(AND($C113="S",ORÇAMENTO.CodBarra<>""),IF(ORÇAMENTO.Fonte="",ORÇAMENTO.CodBarra,CONCATENATE(ORÇAMENTO.Fonte," ",ORÇAMENTO.CodBarra))) -> AMMOC 137 | AF113: =IF(ISERROR(INDIRECT(ORÇAMENTO.BancoRef)),"(abra o arquivo 'Referência "&Excel_BuiltIn_Database&".xls)",IF(OR($C113<>"S",ORÇAMENTO.CodBarra=""),"(Sem Código)",IF(ISERROR(MATCH($AE113,INDIRECT(ORÇAMENTO.BancoRef),0)),"(Código não identificado nas referências)",MATCH($AE113,INDIRECT(ORÇAMENTO.BancoRef),0)))) -> 138 | AG113: =ROUND(IF(DESONERACAO="sim",REFERENCIA.Desonerado,REFERENCIA.NaoDesonerado),2) -> 2081.15 | AH113: =ROUND(IF(ISNUMBER(ORÇAMENTO.OpcaoBDI),ORÇAMENTO.OpcaoBDI,IF(LEFT(ORÇAMENTO.OpcaoBDI,3)="BDI",HLOOKUP(ORÇAMENTO.OpcaoBDI,$F$4:$H$5,2,FALSE),0)),15-11*$AF$9) -> 0.2035 | AJ113: 1 | AM113: 2166.3 | AN113: =ROUND(ORÇAMENTO.CustoUnitario*(1+$AH113),2) -> 2166.3
A114: 2 | B114: 2 | C114: 2 | D114: 21 | E114: =IF($C114=1,OFFSET(E114,-1,0)+MAX(1,COUNTIF(QCI!$A$13:$A$24,OFFSET(ORÇAMENTO!E114,-1,0))),OFFSET(E114,-1,0)) -> 1 | F114: 9 | G114: 0 | H114: 0 | I114: 0 | J114: 40 | K114: =IF(OR($C114="S",$C114=0),0,MATCH(OFFSET($D114,0,$C114)+IF($C114<>1,1,COUNTIF(QCI!$A$13:$A$24,ORÇAMENTO!E114)),OFFSET($D114,1,$C114,ROW($C$154)-ROW($C114)),0)) -> 21 | L114: F | M114: Nível 2 | N114: Nível 2 | O114: 1.9. | P114: SINAPI | R114: INSTALAÇÕES ELÉTRICAS | S114: - | T114: =OFFSET(CÁLCULO!H$15,ROW($T114)-ROW(T$15),0) -> 0 | U114: 0 | V114: BDI 1 | W114: 0 | X114: 17071.47 | Y114: RA | AA114: =IF($C114="S",IF($Z114="CP",$X114,IF($Z114="RA",(($X114)*QCI!$AA$3),0)),SomaAgrup) -> 17071.47 | AB114: 0 | AD114: =IF(C114<=CRONO.NivelExibicao,MAX($AD$15:OFFSET(AD114,-1,0))+IF($C114<>1,1,MAX(1,COUNTIF(QCI!$A$13:$A$24,OFFSET($E114,-1,0)))),"") -> 10 | AE114: FALSE | AF114: (Sem Código) | AG114: 0 | AH114: 0.2035 | AM114: 17071.47 | AN114: 0
A115: =CHOOSE(1+LOG(1+2*(ORÇAMENTO.Nivel="Meta")+4*(ORÇAMENTO.Nivel="Nível 2")+8*(ORÇAMENTO.Nivel="Nível 3")+16*(ORÇAMENTO.Nivel="Nível 4")+32*(ORÇAMENTO.Nivel="Serviço"),2),0,1,2,3,4,"S") -> S | B115: =IF(OR(C115="s",C115=0),OFFSET(B115,-1,0),C115) -> 2 | C115: =IF(OFFSET(C115,-1,0)="L",1,IF(OFFSET(C115,-1,0)=1,2,IF(OR(A115="s",A115=0),"S",IF(AND(OFFSET(C115,-1,0)=2,A115=4),3,IF(AND(OR(OFFSET(C115,-1,0)="s",OFFSET(C115,-1,0)=0),A115<>"s",A115>OFFSET(B115,-1,0)),OFFSET(B115,-1,0),A115))))) -> S | D115: =IF(OR(C115="S",C115=0),0,IF(ISERROR(K115),J115,SMALL(J115:K115,1))) -> 0 | E115: =IF($C115=1,OFFSET(E115,-1,0)+MAX(1,COUNTIF(QCI!$A$13:$A$24,OFFSET(ORÇAMENTO!E115,-1,0))),OFFSET(E115,-1,0)) -> 1 | F115: =IF($C115=1,0,IF($C115=2,OFFSET(F115,-1,0)+1,OFFSET(F115,-1,0))) -> 9 | G115: =IF(AND($C115<=2,$C115<>0),0,IF($C115=3,OFFSET(G115,-1,0)+1,OFFSET(G115,-1,0))) -> 0 | H115: =IF(AND($C115<=3,$C115<>0),0,IF($C115=4,OFFSET(H115,-1,0)+1,OFFSET(H115,-1,0))) -> 0 | I115: =IF(AND($C115<=4,$C115<>0),0,IF(AND($C115="S",$X115>0),OFFSET(I115,-1,0)+1,OFFSET(I115,-1,0))) -> 1 | J115: 0 | K115: =IF(OR($C115="S",$C115=0),0,MATCH(OFFSET($D115,0,$C115)+IF($C115<>1,1,COUNTIF(QCI!$A$13:$A$24,ORÇAMENTO!E115)),OFFSET($D115,1,$C115,ROW($C$154)-ROW($C115)),0)) -> 0 | L115: =IF(OR($X115>0,$C115=1,$C115=2,$C115=3,$C115=4),"F","") -> F | M115: Serviço | N115: =CHOOSE(1+LOG(1+2*(C115=1)+4*(C115=2)+8*(C115=3)+16*(C115=4)+32*(C115="S"),2),"","Meta","Nível 2","Nível 3","Nível 4","Serviço") -> Serviço | O115: =IF(OR($C115=0,$L115=""),"-",CONCATENATE(E115&".",IF(AND($A$5>=2,$C115>=2),F115&".",""),IF(AND($A$5>=3,$C115>=3),G115&".",""),IF(AND($A$5>=4,$C115>=4),H115&".",""),IF($C115="S",I115&".",""))) -> 1.9.1. | P115: AMMOC | Q115: 72 | R115: ENTRADA DE ENERGIA ELÉTRICA POSTE PADRÃO CELESC | S115: UN | T115: =OFFSET(CÁLCULO!H$15,ROW($T115)-ROW(T$15),0) -> 1 | U115: 1800 | V115: BDI 1 | W115: =IF($C115="S",ROUND(IF(TIPOORCAMENTO="Proposto",ORÇAMENTO.CustoUnitario*(1+$AH115),ORÇAMENTO.PrecoUnitarioLicitado),15-13*$AF$10),0) -> 2166.3 | X115: =IF($C115="S",VTOTAL1,IF($C115=0,0,ROUND(SomaAgrup,15-13*$AF$11))) -> 2166.3 | Y115: RA | Z115: =IF(AND($C115="S",$X115>0),IF(ISBLANK($Y115),"RA",LEFT($Y115,2)),"") -> RA | AA115: =IF($C115="S",IF($Z115="CP",$X115,IF($Z115="RA",(($X115)*QCI!$AA$3),0)),SomaAgrup) -> 2166.3 | AB115: =IF($C115="S",IF($Z115="OU",ROUND($X115,2),0),SomaAgrup) -> 0 | AC115: =IF($N115="","",IF(ORÇAMENTO.Descricao="","DESCRIÇÃO",IF(AND($C115="S",ORÇAMENTO.Unidade=""),"UNIDADE",IF($X115<0,"VALOR NEGATIVO",IF(OR(AND(TIPOORCAMENTO="Proposto",$AG115<>"",$AG115>0,ORÇAMENTO.CustoUnitario>$AG115),AND(TIPOORCAMENTO="LICITADO",ORÇAMENTO.PrecoUnitarioLicitado>$AN115)),"ACIMA REF.",""))))) ->  | AD115: =IF(C115<=CRONO.NivelExibicao,MAX($AD$15:OFFSET(AD115,-1,0))+IF($C115<>1,1,MAX(1,COUNTIF(QCI!$A$13:$A$24,OFFSET($E115,-1,0)))),"") ->  | AE115: =IF(AND($C115="S",ORÇAMENTO.CodBarra<>""),IF(ORÇAMENTO.Fonte="",ORÇAMENTO.CodBarra,CONCATENATE(ORÇAMENTO.Fonte," ",ORÇAMENTO.CodBarra))) -> AMMOC 72 | AF115: =IF(ISERROR(INDIRECT(ORÇAMENTO.BancoRef)),"(abra o arquivo 'Referência "&Excel_BuiltIn_Database&".xls)",IF(OR($C115<>"S",ORÇAMENTO.CodBarra=""),"(Sem Código)",IF(ISERROR(MATCH($AE115,INDIRECT(ORÇAMENTO.BancoRef),0)),"(Código não identificado nas referências)",MATCH($AE115,INDIRECT(ORÇAMENTO.BancoRef),0)))) -> 74 | AG115: =ROUND(IF(DESONERACAO="sim",REFERENCIA.Desonerado,REFERENCIA.NaoDesonerado),2) -> 1952.83 | AH115: =ROUND(IF(ISNUMBER(ORÇAMENTO.OpcaoBDI),ORÇAMENTO.OpcaoBDI,IF(LEFT(ORÇAMENTO.OpcaoBDI,3)="BDI",HLOOKUP(ORÇAMENTO.OpcaoBDI,$F$4:$H$5,2,FALSE),0)),15-11*$AF$9) -> 0.2035 | AJ115: 1 | AM115: 2166.3 | AN115: =ROUND(ORÇAMENTO.CustoUnitario*(1+$AH115),2) -> 2166.3
A116: =CHOOSE(1+LOG(1+2*(ORÇAMENTO.Nivel="Meta")+4*(ORÇAMENTO.Nivel="Nível 2")+8*(ORÇAMENTO.Nivel="Nível 3")+16*(ORÇAMENTO.Nivel="Nível 4")+32*(ORÇAMENTO.Nivel="Serviço"),2),0,1,2,3,4,"S") -> S | B116: =IF(OR(C116="s",C116=0),OFFSET(B116,-1,0),C116) -> 2 | C116: =IF(OFFSET(C116,-1,0)="L",1,IF(OFFSET(C116,-1,0)=1,2,IF(OR(A116="s",A116=0),"S",IF(AND(OFFSET(C116,-1,0)=2,A116=4),3,IF(AND(OR(OFFSET(C116,-1,0)="s",OFFSET(C116,-1,0)=0),A116<>"s",A116>OFFSET(B116,-1,0)),OFFSET(B116,-1,0),A116))))) -> S | D116: =IF(OR(C116="S",C116=0),0,IF(ISERROR(K116),J116,SMALL(J116:K116,1))) -> 0 | E116: =IF($C116=1,OFFSET(E116,-1,0)+MAX(1,COUNTIF(QCI!$A$13:$A$24,OFFSET(ORÇAMENTO!E116,-1,0))),OFFSET(E116,-1,0)) -> 1 | F116: =IF($C116=1,0,IF($C116=2,OFFSET(F116,-1,0)+1,OFFSET(F116,-1,0))) -> 9 | G116: =IF(AND($C116<=2,$C116<>0),0,IF($C116=3,OFFSET(G116,-1,0)+1,OFFSET(G116,-1,0))) -> 0 | H116: =IF(AND($C116<=3,$C116<>0),0,IF($C116=4,OFFSET(H116,-1,0)+1,OFFSET(H116,-1,0))) -> 0 | I116: =IF(AND($C116<=4,$C116<>0),0,IF(AND($C116="S",$X116>0),OFFSET(I116,-1,0)+1,OFFSET(I116,-1,0))) -> 2 | J116: =IF(OR($C116="S",$C116=0),0,MATCH(0,OFFSET($D116,1,$C116,ROW($C$154)-ROW($C116)),0)) -> 0 | K116: =IF(OR($C116="S",$C116=0),0,MATCH(OFFSET($D116,0,$C116)+IF($C116<>1,1,COUNTIF(QCI!$A$13:$A$24,ORÇAMENTO!E116)),OFFSET($D116,1,$C116,ROW($C$154)-ROW($C116)),0)) -> 0 | L116: =IF(OR($X116>0,$C116=1,$C116=2,$C116=3,$C116=4),"F","") -> F | M116: Serviço | N116: =CHOOSE(1+LOG(1+2*(C116=1)+4*(C116=2)+8*(C116=3)+16*(C116=4)+32*(C116="S"),2),"","Meta","Nível 2","Nível 3","Nível 4","Serviço") -> Serviço | O116: =IF(OR($C116=0,$L116=""),"-",CONCATENATE(E116&".",IF(AND($A$5>=2,$C116>=2),F116&".",""),IF(AND($A$5>=3,$C116>=3),G116&".",""),IF(AND($A$5>=4,$C116>=4),H116&".",""),IF($C116="S",I116&".",""))) -> 1.9.2. | P116: SINAPI-I | Q116: 11251 | R116: CAIXA DE PASSAGEM/ LUZ / TELEFONIA, DE EMBUTIR, EM CHAPA DE ACO GALVANIZADO, DIMENSOES 40 X 40 X *12* CM (PADRAO CONCESSIONARIA LOCAL) | S116: UN | T116: =OFFSET(CÁLCULO!H$15,ROW($T116)-ROW(T$15),0) -> 1 | U116: 75 | V116: BDI 1 | W116: =IF($C116="S",ROUND(IF(TIPOORCAMENTO="Proposto",ORÇAMENTO.CustoUnitario*(1+$AH116),ORÇAMENTO.PrecoUnitarioLicitado),15-13*$AF$10),0) -> 90.26 | X116: =IF($C116="S",VTOTAL1,IF($C116=0,0,ROUND(SomaAgrup,15-13*$AF$11))) -> 90.26 | Y116: RA | Z116: =IF(AND($C116="S",$X116>0),IF(ISBLANK($Y116),"RA",LEFT($Y116,2)),"") -> RA | AA116: =IF($C116="S",IF($Z116="CP",$X116,IF($Z116="RA",(($X116)*QCI!$AA$3),0)),SomaAgrup) -> 90.26 | AB116: =IF($C116="S",IF($Z116="OU",ROUND($X116,2),0),SomaAgrup) -> 0 | AC116: =IF($N116="","",IF(ORÇAMENTO.Descricao="","DESCRIÇÃO",IF(AND($C116="S",ORÇAMENTO.Unidade=""),"UNIDADE",IF($X116<0,"VALOR NEGATIVO",IF(OR(AND(TIPOORCAMENTO="Proposto",$AG116<>"",$AG116>0,ORÇAMENTO.CustoUnitario>$AG116),AND(TIPOORCAMENTO="LICITADO",ORÇAMENTO.PrecoUnitarioLicitado>$AN116)),"ACIMA REF.",""))))) ->  | AD116: =IF(C116<=CRONO.NivelExibicao,MAX($AD$15:OFFSET(AD116,-1,0))+IF($C116<>1,1,MAX(1,COUNTIF(QCI!$A$13:$A$24,OFFSET($E116,-1,0)))),"") ->  | AE116: =IF(AND($C116="S",ORÇAMENTO.CodBarra<>""),IF(ORÇAMENTO.Fonte="",ORÇAMENTO.CodBarra,CONCATENATE(ORÇAMENTO.Fonte," ",ORÇAMENTO.CodBarra))) -> SINAPI-I 11251 | AF116: =IF(ISERROR(INDIRECT(ORÇAMENTO.BancoRef)),"(abra o arquivo 'Referência "&Excel_BuiltIn_Database&".xls)",IF(OR($C116<>"S",ORÇAMENTO.CodBarra=""),"(Sem Código)",IF(ISERROR(MATCH($AE116,INDIRECT(ORÇAMENTO.BancoRef),0)),"(Código não identificado nas referências)",MATCH($AE116,INDIRECT(ORÇAMENTO.BancoRef),0)))) -> 7506 | AG116: =ROUND(IF(DESONERACAO="sim",REFERENCIA.Desonerado,REFERENCIA.NaoDesonerado),2) -> 81.73 | AH116: =ROUND(IF(ISNUMBER(ORÇAMENTO.OpcaoBDI),ORÇAMENTO.OpcaoBDI,IF(LEFT(ORÇAMENTO.OpcaoBDI,3)="BDI",HLOOKUP(ORÇAMENTO.OpcaoBDI,$F$4:$H$5,2,FALSE),0)),15-11*$AF$9) -> 0.2035 | AJ116: 1 | AM116: 90.26 | AN116: =ROUND(ORÇAMENTO.CustoUnitario*(1+$AH116),2) -> 90.26
A117: =CHOOSE(1+LOG(1+2*(ORÇAMENTO.Nivel="Meta")+4*(ORÇAMENTO.Nivel="Nível 2")+8*(ORÇAMENTO.Nivel="Nível 3")+16*(ORÇAMENTO.Nivel="Nível 4")+32*(ORÇAMENTO.Nivel="Serviço"),2),0,1,2,3,4,"S") -> S | B117: =IF(OR(C117="s",C117=0),OFFSET(B117,-1,0),C117) -> 2 | C117: =IF(OFFSET(C117,-1,0)="L",1,IF(OFFSET(C117,-1,0)=1,2,IF(OR(A117="s",A117=0),"S",IF(AND(OFFSET(C117,-1,0)=2,A117=4),3,IF(AND(OR(OFFSET(C117,-1,0)="s",OFFSET(C117,-1,0)=0),A117<>"s",A117>OFFSET(B117,-1,0)),OFFSET(B117,-1,0),A117))))) -> S | D117: =IF(OR(C117="S",C117=0),0,IF(ISERROR(K117),J117,SMALL(J117:K117,1))) -> 0 | E117: =IF($C117=1,OFFSET(E117,-1,0)+MAX(1,COUNTIF(QCI!$A$13:$A$24,OFFSET(ORÇAMENTO!E117,-1,0))),OFFSET(E117,-1,0)) -> 1 | F117: =IF($C117=1,0,IF($C117=2,OFFSET(F117,-1,0)+1,OFFSET(F117,-1,0))) -> 9 | G117: =IF(AND($C117<=2,$C117<>0),0,IF($C117=3,OFFSET(G117,-1,0)+1,OFFSET(G117,-1,0))) -> 0 | H117: =IF(AND($C117<=3,$C117<>0),0,IF($C117=4,OFFSET(H117,-1,0)+1,OFFSET(H117,-1,0))) -> 0 | I117: =IF(AND($C117<=4,$C117<>0),0,IF(AND($C117="S",$X117>0),OFFSET(I117,-1,0)+1,OFFSET(I117,-1,0))) -> 3 | J117: 0 | K117: =IF(OR($C117="S",$C117=0),0,MATCH(OFFSET($D117,0,$C117)+IF($C117<>1,1,COUNTIF(QCI!$A$13:$A$24,ORÇAMENTO!E117)),OFFSET($D117,1,$C117,ROW($C$154)-ROW($C117)),0)) -> 0 | L117: =IF(OR($X117>0,$C117=1,$C117=2,$C117=3,$C117=4),"F","") -> F | M117: Serviço | N117: =CHOOSE(1+LOG(1+2*(C117=1)+4*(C117=2)+8*(C117=3)+16*(C117=4)+32*(C117="S"),2),"","Meta","Nível 2","Nível 3","Nível 4","Serviço") -> Serviço | O117: =IF(OR($C117=0,$L117=""),"-",CONCATENATE(E117&".",IF(AND($A$5>=2,$C117>=2),F117&".",""),IF(AND($A$5>=3,$C117>=3),G117&".",""),IF(AND($A$5>=4,$C117>=4),H117&".",""),IF($C117="S",I117&".",""))) -> 1.9.3. | P117: SINAPI-I | Q117: 39693 | R117: CAIXA DE PROTECAO EXTERNA PARA MEDIDOR HOROSAZONAL, DE BAIXA TENSAO, COM MODULO, EM CHAPA DE ACO (PADRAO DA CONCESSIONARIA LOCAL) | S117: UN | T117: =OFFSET(CÁLCULO!H$15,ROW($T117)-ROW(T$15),0) -> 1 | U117: 1400 | V117: BDI 1 | W117: =IF($C117="S",ROUND(IF(TIPOORCAMENTO="Proposto",ORÇAMENTO.CustoUnitario*(1+$AH117),ORÇAMENTO.PrecoUnitarioLicitado),15-13*$AF$10),0) -> 1684.9 | X117: =IF($C117="S",VTOTAL1,IF($C117=0,0,ROUND(SomaAgrup,15-13*$AF$11))) -> 1684.9 | Y117: RA | Z117: =IF(AND($C117="S",$X117>0),IF(ISBLANK($Y117),"RA",LEFT($Y117,2)),"") -> RA | AA117: =IF($C117="S",IF($Z117="CP",$X117,IF($Z117="RA",(($X117)*QCI!$AA$3),0)),SomaAgrup) -> 1684.9 | AB117: =IF($C117="S",IF($Z117="OU",ROUND($X117,2),0),SomaAgrup) -> 0 | AC117: =IF($N117="","",IF(ORÇAMENTO.Descricao="","DESCRIÇÃO",IF(AND($C117="S",ORÇAMENTO.Unidade=""),"UNIDADE",IF($X117<0,"VALOR NEGATIVO",IF(OR(AND(TIPOORCAMENTO="Proposto",$AG117<>"",$AG117>0,ORÇAMENTO.CustoUnitario>$AG117),AND(TIPOORCAMENTO="LICITADO",ORÇAMENTO.PrecoUnitarioLicitado>$AN117)),"ACIMA REF.",""))))) ->  | AD117: =IF(C117<=CRONO.NivelExibicao,MAX($AD$15:OFFSET(AD117,-1,0))+IF($C117<>1,1,MAX(1,COUNTIF(QCI!$A$13:$A$24,OFFSET($E117,-1,0)))),"") ->  | AE117: =IF(AND($C117="S",ORÇAMENTO.CodBarra<>""),IF(ORÇAMENTO.Fonte="",ORÇAMENTO.CodBarra,CONCATENATE(ORÇAMENTO.Fonte," ",ORÇAMENTO.CodBarra))) -> SINAPI-I 39693 | AF117: =IF(ISERROR(INDIRECT(ORÇAMENTO.BancoRef)),"(abra o arquivo 'Referência "&Excel_BuiltIn_Database&".xls)",IF(OR($C117<>"S",ORÇAMENTO.CodBarra=""),"(Sem Código)",IF(ISERROR(MATCH($AE117,INDIRECT(ORÇAMENTO.BancoRef),0)),"(Código não identificado nas referências)",MATCH($AE117,INDIRECT(ORÇAMENTO.BancoRef),0)))) -> 7513 | AG117: =ROUND(IF(DESONERACAO="sim",REFERENCIA.Desonerado,REFERENCIA.NaoDesonerado),2) -> 1592.86 | AH117: =ROUND(IF(ISNUMBER(ORÇAMENTO.OpcaoBDI),ORÇAMENTO.OpcaoBDI,IF(LEFT(ORÇAMENTO.OpcaoBDI,3)="BDI",HLOOKUP(ORÇAMENTO.OpcaoBDI,$F$4:$H$5,2,FALSE),0)),15-11*$AF$9) -> 0.2035 | AJ117: 1 | AM117: 1684.9 | AN117: =ROUND(ORÇAMENTO.CustoUnitario*(1+$AH117),2) -> 1684.9
A118: S | B118: 2 | C118: S | D118: 0 | E118: =IF($C118=1,OFFSET(E118,-1,0)+MAX(1,COUNTIF(QCI!$A$13:$A$24,OFFSET(ORÇAMENTO!E118,-1,0))),OFFSET(E118,-1,0)) -> 1 | F118: 9 | G118: 0 | H118: 0 | I118: 4 | J118: 0 | K118: =IF(OR($C118="S",$C118=0),0,MATCH(OFFSET($D118,0,$C118)+IF($C118<>1,1,COUNTIF(QCI!$A$13:$A$24,ORÇAMENTO!E118)),OFFSET($D118,1,$C118,ROW($C$154)-ROW($C118)),0)) -> 0 | L118: F | M118: Serviço | N118: Serviço | O118: 1.9.4. | P118: SINAPI | Q118: 74131/005 | R118: QUADRO DE DISTRIBUIÇÃO DE ENERGIA DE EMBUTIR, EM CHAPA METÁLICA, PARA 24 DISJUNTORES TERMOMAGNÉTICOS MONOPOLARES, COM BARRAMENTO TRIFÁSICO E NEUTRO, FORNECIMENTO E INSTALAÇÃO | S118: UN | T118: =OFFSET(CÁLCULO!H$15,ROW($T118)-ROW(T$15),0) -> 1 | U118: 400 | V118: BDI 1 | W118: 481.4 | X118: 481.4 | Y118: RA | Z118: RA | AA118: =IF($C118="S",IF($Z118="CP",$X118,IF($Z118="RA",(($X118)*QCI!$AA$3),0)),SomaAgrup) -> 481.4 | AB118: 0 | AD118: =IF(C118<=CRONO.NivelExibicao,MAX($AD$15:OFFSET(AD118,-1,0))+IF($C118<>1,1,MAX(1,COUNTIF(QCI!$A$13:$A$24,OFFSET($E118,-1,0)))),"") ->  | AE118: SINAPI 74131/5 | AF118: 2836 | AG118: 460.61 | AH118: 0.2035 | AJ118: 1 | AM118: 481.4 | AN118: 481.4
A119: S | B119: 2 | C119: S | D119: 0 | E119: =IF($C119=1,OFFSET(E119,-1,0)+MAX(1,COUNTIF(QCI!$A$13:$A$24,OFFSET(ORÇAMENTO!E119,-1,0))),OFFSET(E119,-1,0)) -> 1 | F119: 9 | G119: 0 | H119: 0 | I119: 5 | J119: 0 | K119: =IF(OR($C119="S",$C119=0),0,MATCH(OFFSET($D119,0,$C119)+IF($C119<>1,1,COUNTIF(QCI!$A$13:$A$24,ORÇAMENTO!E119)),OFFSET($D119,1,$C119,ROW($C$154)-ROW($C119)),0)) -> 0 | L119: F | M119: Serviço | N119: Serviço | O119: 1.9.5. | P119: SINAPI | Q119: 74130/5 | R119: DISJUNTOR TERMOMAGNÉTICO TRIPOLAR PADRÃO NEMA (AMERICANO) 60 A 100A, 240 V, FORNECIMENTO E INSTALAÇÃO | S119: UN | T119: =OFFSET(CÁLCULO!H$15,ROW($T119)-ROW(T$15),0) -> 1 | U119: 110 | V119: BDI 1 | W119: 132.39 | X119: 132.39 | Y119: RA | Z119: RA | AA119: =IF($C119="S",IF($Z119="CP",$X119,IF($Z119="RA",(($X119)*QCI!$AA$3),0)),SomaAgrup) -> 132.39 | AB119: 0 | AD119: =IF(C119<=CRONO.NivelExibicao,MAX($AD$15:OFFSET(AD119,-1,0))+IF($C119<>1,1,MAX(1,COUNTIF(QCI!$A$13:$A$24,OFFSET($E119,-1,0)))),"") ->  | AE119: SINAPI 74130/5 | AF119: 2828 | AG119: 123.05 | AH119: 0.2035 | AJ119: 1 | AM119: 132.39 | AN119: 132.39
A120: =CHOOSE(1+LOG(1+2*(ORÇAMENTO.Nivel="Meta")+4*(ORÇAMENTO.Nivel="Nível 2")+8*(ORÇAMENTO.Nivel="Nível 3")+16*(ORÇAMENTO.Nivel="Nível 4")+32*(ORÇAMENTO.Nivel="Serviço"),2),0,1,2,3,4,"S") -> S | B120: =IF(OR(C120="s",C120=0),OFFSET(B120,-1,0),C120) -> 2 | C120: =IF(OFFSET(C120,-1,0)="L",1,IF(OFFSET(C120,-1,0)=1,2,IF(OR(A120="s",A120=0),"S",IF(AND(OFFSET(C120,-1,0)=2,A120=4),3,IF(AND(OR(OFFSET(C120,-1,0)="s",OFFSET(C120,-1,0)=0),A120<>"s",A120>OFFSET(B120,-1,0)),OFFSET(B120,-1,0),A120))))) -> S | D120: =IF(OR(C120="S",C120=0),0,IF(ISERROR(K120),J120,SMALL(J120:K120,1))) -> 0 | E120: =IF($C120=1,OFFSET(E120,-1,0)+MAX(1,COUNTIF(QCI!$A$13:$A$24,OFFSET(ORÇAMENTO!E120,-1,0))),OFFSET(E120,-1,0)) -> 1 | F120: =IF($C120=1,0,IF($C120=2,OFFSET(F120,-1,0)+1,OFFSET(F120,-1,0))) -> 9 | G120: =IF(AND($C120<=2,$C120<>0),0,IF($C120=3,OFFSET(G120,-1,0)+1,OFFSET(G120,-1,0))) -> 0 | H120: =IF(AND($C120<=3,$C120<>0),0,IF($C120=4,OFFSET(H120,-1,0)+1,OFFSET(H120,-1,0))) -> 0 | I120: =IF(AND($C120<=4,$C120<>0),0,IF(AND($C120="S",$X120>0),OFFSET(I120,-1,0)+1,OFFSET(I120,-1,0))) -> 6 | J120: 0 | K120: =IF(OR($C120="S",$C120=0),0,MATCH(OFFSET($D120,0,$C120)+IF($C120<>1,1,COUNTIF(QCI!$A$13:$A$24,ORÇAMENTO!E120)),OFFSET($D120,1,$C120,ROW($C$154)-ROW($C120)),0)) -> 0 | L120: =IF(OR($X120>0,$C120=1,$C120=2,$C120=3,$C120=4),"F","") -> F | M120: Serviço | N120: =CHOOSE(1+LOG(1+2*(C120=1)+4*(C120=2)+8*(C120=3)+16*(C120=4)+32*(C120="S"),2),"","Meta","Nível 2","Nível 3","Nível 4","Serviço") -> Serviço | O120: =IF(OR($C120=0,$L120=""),"-",CONCATENATE(E120&".",IF(AND($A$5>=2,$C120>=2),F120&".",""),IF(AND($A$5>=3,$C120>=3),G120&".",""),IF(AND($A$5>=4,$C120>=4),H120&".",""),IF($C120="S",I120&".",""))) -> 1.9.6. | P120: SINAPI | Q120: 93668 | R120: DISJUNTOR TRIPOLAR TIPO DIN, CORRENTE NOMINAL DE 16A - FORNECIMENTO E INSTALAÇÃO. AF_04/2016 | S120: UN | T120: =OFFSET(CÁLCULO!H$15,ROW($T120)-ROW(T$15),0) -> 2 | U120: 60 | V120: BDI 1 | W120: =IF($C120="S",ROUND(IF(TIPOORCAMENTO="Proposto",ORÇAMENTO.CustoUnitario*(1+$AH120),ORÇAMENTO.PrecoUnitarioLicitado),15-13*$AF$10),0) -> 72.21 | X120: =IF($C120="S",VTOTAL1,IF($C120=0,0,ROUND(SomaAgrup,15-13*$AF$11))) -> 144.42 | Y120: RA | Z120: =IF(AND($C120="S",$X120>0),IF(ISBLANK($Y120),"RA",LEFT($Y120,2)),"") -> RA | AA120: =IF($C120="S",IF($Z120="CP",$X120,IF($Z120="RA",(($X120)*QCI!$AA$3),0)),SomaAgrup) -> 144.42 | AB120: =IF($C120="S",IF($Z120="OU",ROUND($X120,2),0),SomaAgrup) -> 0 | AC120: =IF($N120="","",IF(ORÇAMENTO.Descricao="","DESCRIÇÃO",IF(AND($C120="S",ORÇAMENTO.Unidade=""),"UNIDADE",IF($X120<0,"VALOR NEGATIVO",IF(OR(AND(TIPOORCAMENTO="Proposto",$AG120<>"",$AG120>0,ORÇAMENTO.CustoUnitario>$AG120),AND(TIPOORCAMENTO="LICITADO",ORÇAMENTO.PrecoUnitarioLicitado>$AN120)),"ACIMA REF.",""))))) ->  | AD120: =IF(C120<=CRONO.NivelExibicao,MAX($AD$15:OFFSET(AD120,-1,0))+IF($C120<>1,1,MAX(1,COUNTIF(QCI!$A$13:$A$24,OFFSET($E120,-1,0)))),"") ->  | AE120: =IF(AND($C120="S",ORÇAMENTO.CodBarra<>""),IF(ORÇAMENTO.Fonte="",ORÇAMENTO.CodBarra,CONCATENATE(ORÇAMENTO.Fonte," ",ORÇAMENTO.CodBarra))) -> SINAPI 93668 | AF120: =IF(ISERROR(INDIRECT(ORÇAMENTO.BancoRef)),"(abra o arquivo 'Referência "&Excel_BuiltIn_Database&".xls)",IF(OR($C120<>"S",ORÇAMENTO.CodBarra=""),"(Sem Código)",IF(ISERROR(MATCH($AE120,INDIRECT(ORÇAMENTO.BancoRef),0)),"(Código não identificado nas referências)",MATCH($AE120,INDIRECT(ORÇAMENTO.BancoRef),0)))) -> 2857 | AG120: =ROUND(IF(DESONERACAO="sim",REFERENCIA.Desonerado,REFERENCIA.NaoDesonerado),2) -> 68.15 | AH120: =ROUND(IF(ISNUMBER(ORÇAMENTO.OpcaoBDI),ORÇAMENTO.OpcaoBDI,IF(LEFT(ORÇAMENTO.OpcaoBDI,3)="BDI",HLOOKUP(ORÇAMENTO.OpcaoBDI,$F$4:$H$5,2,FALSE),0)),15-11*$AF$9) -> 0.2035 | AJ120: 2 | AM120: 144.42 | AN120: =ROUND(ORÇAMENTO.CustoUnitario*(1+$AH120),2) -> 72.21
A121: =CHOOSE(1+LOG(1+2*(ORÇAMENTO.Nivel="Meta")+4*(ORÇAMENTO.Nivel="Nível 2")+8*(ORÇAMENTO.Nivel="Nível 3")+16*(ORÇAMENTO.Nivel="Nível 4")+32*(ORÇAMENTO.Nivel="Serviço"),2),0,1,2,3,4,"S") -> S | B121: =IF(OR(C121="s",C121=0),OFFSET(B121,-1,0),C121) -> 2 | C121: =IF(OFFSET(C121,-1,0)="L",1,IF(OFFSET(C121,-1,0)=1,2,IF(OR(A121="s",A121=0),"S",IF(AND(OFFSET(C121,-1,0)=2,A121=4),3,IF(AND(OR(OFFSET(C121,-1,0)="s",OFFSET(C121,-1,0)=0),A121<>"s",A121>OFFSET(B121,-1,0)),OFFSET(B121,-1,0),A121))))) -> S | D121: =IF(OR(C121="S",C121=0),0,IF(ISERROR(K121),J121,SMALL(J121:K121,1))) -> 0 | E121: =IF($C121=1,OFFSET(E121,-1,0)+MAX(1,COUNTIF(QCI!$A$13:$A$24,OFFSET(ORÇAMENTO!E121,-1,0))),OFFSET(E121,-1,0)) -> 1 | F121: =IF($C121=1,0,IF($C121=2,OFFSET(F121,-1,0)+1,OFFSET(F121,-1,0))) -> 9 | G121: =IF(AND($C121<=2,$C121<>0),0,IF($C121=3,OFFSET(G121,-1,0)+1,OFFSET(G121,-1,0))) -> 0 | H121: =IF(AND($C121<=3,$C121<>0),0,IF($C121=4,OFFSET(H121,-1,0)+1,OFFSET(H121,-1,0))) -> 0 | I121: =IF(AND($C121<=4,$C121<>0),0,IF(AND($C121="S",$X121>0),OFFSET(I121,-1,0)+1,OFFSET(I121,-1,0))) -> 7 | J121: 0 | K121: =IF(OR($C121="S",$C121=0),0,MATCH(OFFSET($D121,0,$C121)+IF($C121<>1,1,COUNTIF(QCI!$A$13:$A$24,ORÇAMENTO!E121)),OFFSET($D121,1,$C121,ROW($C$154)-ROW($C121)),0)) -> 0 | L121: =IF(OR($X121>0,$C121=1,$C121=2,$C121=3,$C121=4),"F","") -> F | M121: Serviço | N121: =CHOOSE(1+LOG(1+2*(C121=1)+4*(C121=2)+8*(C121=3)+16*(C121=4)+32*(C121="S"),2),"","Meta","Nível 2","Nível 3","Nível 4","Serviço") -> Serviço | O121: =IF(OR($C121=0,$L121=""),"-",CONCATENATE(E121&".",IF(AND($A$5>=2,$C121>=2),F121&".",""),IF(AND($A$5>=3,$C121>=3),G121&".",""),IF(AND($A$5>=4,$C121>=4),H121&".",""),IF($C121="S",I121&".",""))) -> 1.9.7. | P121: SINAPI | Q121: 93672 | R121: DISJUNTOR TRIPOLAR TIPO DIN, CORRENTE NOMINAL DE 40A - FORNECIMENTO E INSTALAÇÃO | S121: UN | T121: =OFFSET(CÁLCULO!H$15,ROW($T121)-ROW(T$15),0) -> 1 | U121: 75 | V121: BDI 1 | W121: =IF($C121="S",ROUND(IF(TIPOORCAMENTO="Proposto",ORÇAMENTO.CustoUnitario*(1+$AH121),ORÇAMENTO.PrecoUnitarioLicitado),15-13*$AF$10),0) -> 90.26 | X121: =IF($C121="S",VTOTAL1,IF($C121=0,0,ROUND(SomaAgrup,15-13*$AF$11))) -> 90.26 | Y121: RA | Z121: =IF(AND($C121="S",$X121>0),IF(ISBLANK($Y121),"RA",LEFT($Y121,2)),"") -> RA | AA121: =IF($C121="S",IF($Z121="CP",$X121,IF($Z121="RA",(($X121)*QCI!$AA$3),0)),SomaAgrup) -> 90.26 | AB121: =IF($C121="S",IF($Z121="OU",ROUND($X121,2),0),SomaAgrup) -> 0 | AC121: =IF($N121="","",IF(ORÇAMENTO.Descricao="","DESCRIÇÃO",IF(AND($C121="S",ORÇAMENTO.Unidade=""),"UNIDADE",IF($X121<0,"VALOR NEGATIVO",IF(OR(AND(TIPOORCAMENTO="Proposto",$AG121<>"",$AG121>0,ORÇAMENTO.CustoUnitario>$AG121),AND(TIPOORCAMENTO="LICITADO",ORÇAMENTO.PrecoUnitarioLicitado>$AN121)),"ACIMA REF.",""))))) ->  | AD121: =IF(C121<=CRONO.NivelExibicao,MAX($AD$15:OFFSET(AD121,-1,0))+IF($C121<>1,1,MAX(1,COUNTIF(QCI!$A$13:$A$24,OFFSET($E121,-1,0)))),"") ->  | AE121: =IF(AND($C121="S",ORÇAMENTO.CodBarra<>""),IF(ORÇAMENTO.Fonte="",ORÇAMENTO.CodBarra,CONCATENATE(ORÇAMENTO.Fonte," ",ORÇAMENTO.CodBarra))) -> SINAPI 93672 | AF121: =IF(ISERROR(INDIRECT(ORÇAMENTO.BancoRef)),"(abra o arquivo 'Referência "&Excel_BuiltIn_Database&".xls)",IF(OR($C121<>"S",ORÇAMENTO.CodBarra=""),"(Sem Código)",IF(ISERROR(MATCH($AE121,INDIRECT(ORÇAMENTO.BancoRef),0)),"(Código não identificado nas referências)",MATCH($AE121,INDIRECT(ORÇAMENTO.BancoRef),0)))) -> 2861 | AG121: =ROUND(IF(DESONERACAO="sim",REFERENCIA.Desonerado,REFERENCIA.NaoDesonerado),2) -> 81.81 | AH121: =ROUND(IF(ISNUMBER(ORÇAMENTO.OpcaoBDI),ORÇAMENTO.OpcaoBDI,IF(LEFT(ORÇAMENTO.OpcaoBDI,3)="BDI",HLOOKUP(ORÇAMENTO.OpcaoBDI,$F$4:$H$5,2,FALSE),0)),15-11*$AF$9) -> 0.2035 | AJ121: 1 | AM121: 90.26 | AN121: =ROUND(ORÇAMENTO.CustoUnitario*(1+$AH121),2) -> 90.26
A122: =CHOOSE(1+LOG(1+2*(ORÇAMENTO.Nivel="Meta")+4*(ORÇAMENTO.Nivel="Nível 2")+8*(ORÇAMENTO.Nivel="Nível 3")+16*(ORÇAMENTO.Nivel="Nível 4")+32*(ORÇAMENTO.Nivel="Serviço"),2),0,1,2,3,4,"S") -> S | B122: =IF(OR(C122="s",C122=0),OFFSET(B122,-1,0),C122) -> 2 | C122: =IF(OFFSET(C122,-1,0)="L",1,IF(OFFSET(C122,-1,0)=1,2,IF(OR(A122="s",A122=0),"S",IF(AND(OFFSET(C122,-1,0)=2,A122=4),3,IF(AND(OR(OFFSET(C122,-1,0)="s",OFFSET(C122,-1,0)=0),A122<>"s",A122>OFFSET(B122,-1,0)),OFFSET(B122,-1,0),A122))))) -> S | D122: =IF(OR(C122="S",C122=0),0,IF(ISERROR(K122),J122,SMALL(J122:K122,1))) -> 0 | E122: =IF($C122=1,OFFSET(E122,-1,0)+MAX(1,COUNTIF(QCI!$A$13:$A$24,OFFSET(ORÇAMENTO!E122,-1,0))),OFFSET(E122,-1,0)) -> 1 | F122: =IF($C122=1,0,IF($C122=2,OFFSET(F122,-1,0)+1,OFFSET(F122,-1,0))) -> 9 | G122: =IF(AND($C122<=2,$C122<>0),0,IF($C122=3,OFFSET(G122,-1,0)+1,OFFSET(G122,-1,0))) -> 0 | H122: =IF(AND($C122<=3,$C122<>0),0,IF($C122=4,OFFSET(H122,-1,0)+1,OFFSET(H122,-1,0))) -> 0 | I122: =IF(AND($C122<=4,$C122<>0),0,IF(AND($C122="S",$X122>0),OFFSET(I122,-1,0)+1,OFFSET(I122,-1,0))) -> 8 | J122: 0 | K122: =IF(OR($C122="S",$C122=0),0,MATCH(OFFSET($D122,0,$C122)+IF($C122<>1,1,COUNTIF(QCI!$A$13:$A$24,ORÇAMENTO!E122)),OFFSET($D122,1,$C122,ROW($C$154)-ROW($C122)),0)) -> 0 | L122: =IF(OR($X122>0,$C122=1,$C122=2,$C122=3,$C122=4),"F","") -> F | M122: Serviço | N122: =CHOOSE(1+LOG(1+2*(C122=1)+4*(C122=2)+8*(C122=3)+16*(C122=4)+32*(C122="S"),2),"","Meta","Nível 2","Nível 3","Nível 4","Serviço") -> Serviço | O122: =IF(OR($C122=0,$L122=""),"-",CONCATENATE(E122&".",IF(AND($A$5>=2,$C122>=2),F122&".",""),IF(AND($A$5>=3,$C122>=3),G122&".",""),IF(AND($A$5>=4,$C122>=4),H122&".",""),IF($C122="S",I122&".",""))) -> 1.9.8. | P122: SINAPI | Q122: 93653 | R122: DISJUNTOR MONOPOLAR TIPO DIN, CORRENTE NOMINAL DE 10A - FORNECIMENTO E INSTALAÇÃO | S122: UN | T122: =OFFSET(CÁLCULO!H$15,ROW($T122)-ROW(T$15),0) -> 9 | U122: 10 | V122: BDI 1 | W122: =IF($C122="S",ROUND(IF(TIPOORCAMENTO="Proposto",ORÇAMENTO.CustoUnitario*(1+$AH122),ORÇAMENTO.PrecoUnitarioLicitado),15-13*$AF$10),0) -> 12.04 | X122: =IF($C122="S",VTOTAL1,IF($C122=0,0,ROUND(SomaAgrup,15-13*$AF$11))) -> 108.36 | Y122: RA | Z122: =IF(AND($C122="S",$X122>0),IF(ISBLANK($Y122),"RA",LEFT($Y122,2)),"") -> RA | AA122: =IF($C122="S",IF($Z122="CP",$X122,IF($Z122="RA",(($X122)*QCI!$AA$3),0)),SomaAgrup) -> 108.36 | AB122: =IF($C122="S",IF($Z122="OU",ROUND($X122,2),0),SomaAgrup) -> 0 | AC122: =IF($N122="","",IF(ORÇAMENTO.Descricao="","DESCRIÇÃO",IF(AND($C122="S",ORÇAMENTO.Unidade=""),"UNIDADE",IF($X122<0,"VALOR NEGATIVO",IF(OR(AND(TIPOORCAMENTO="Proposto",$AG122<>"",$AG122>0,ORÇAMENTO.CustoUnitario>$AG122),AND(TIPOORCAMENTO="LICITADO",ORÇAMENTO.PrecoUnitarioLicitado>$AN122)),"ACIMA REF.",""))))) ->  | AD122: =IF(C122<=CRONO.NivelExibicao,MAX($AD$15:OFFSET(AD122,-1,0))+IF($C122<>1,1,MAX(1,COUNTIF(QCI!$A$13:$A$24,OFFSET($E122,-1,0)))),"") ->  | AE122: =IF(AND($C122="S",ORÇAMENTO.CodBarra<>""),IF(ORÇAMENTO.Fonte="",ORÇAMENTO.CodBarra,CONCATENATE(ORÇAMENTO.Fonte," ",ORÇAMENTO.CodBarra))) -> SINAPI 93653 | AF122: =IF(ISERROR(INDIRECT(ORÇAMENTO.BancoRef)),"(abra o arquivo 'Referência "&Excel_BuiltIn_Database&".xls)",IF(OR($C122<>"S",ORÇAMENTO.CodBarra=""),"(Sem Código)",IF(ISERROR(MATCH($AE122,INDIRECT(ORÇAMENTO.BancoRef),0)),"(Código não identificado nas referências)",MATCH($AE122,INDIRECT(ORÇAMENTO.BancoRef),0)))) -> 2842 | AG122: =ROUND(IF(DESONERACAO="sim",REFERENCIA.Desonerado,REFERENCIA.NaoDesonerado),2) -> 10.72 | AH122: =ROUND(IF(ISNUMBER(ORÇAMENTO.OpcaoBDI),ORÇAMENTO.OpcaoBDI,IF(LEFT(ORÇAMENTO.OpcaoBDI,3)="BDI",HLOOKUP(ORÇAMENTO.OpcaoBDI,$F$4:$H$5,2,FALSE),0)),15-11*$AF$9) -> 0.2035 | AJ122: 9 | AM122: 108.36 | AN122: =ROUND(ORÇAMENTO.CustoUnitario*(1+$AH122),2) -> 12.04
A123: S | B123: 2 | C123: S | D123: 0 | E123: =IF($C123=1,OFFSET(E123,-1,0)+MAX(1,COUNTIF(QCI!$A$13:$A$24,OFFSET(ORÇAMENTO!E123,-1,0))),OFFSET(E123,-1,0)) -> 1 | F123: 9 | G123: 0 | H123: 0 | I123: 9 | J123: 0 | K123: =IF(OR($C123="S",$C123=0),0,MATCH(OFFSET($D123,0,$C123)+IF($C123<>1,1,COUNTIF(QCI!$A$13:$A$24,ORÇAMENTO!E123)),OFFSET($D123,1,$C123,ROW($C$154)-ROW($C123)),0)) -> 0 | L123: F | M123: Serviço | N123: Serviço | O123: 1.9.9. | P123: SINAPI | Q123: 93128 | R123: PONTO DE ILUMINAÇÃO RESIDENCIAL INCLUINDO INTERRUPTOR SIMPLES, CAIXA ELÉTRICA, ELETRODUTO, CABO, RASGO, QUEBRA E CHUMBAMENTO (EXCLUINDO LUMINÁRIA E LÂMPADA) | S123: UN | T123: =OFFSET(CÁLCULO!H$15,ROW($T123)-ROW(T$15),0) -> 26 | U123: 100 | V123: BDI 1 | W123: 120.35 | X123: 3129.1 | Y123: RA | Z123: RA | AA123: =IF($C123="S",IF($Z123="CP",$X123,IF($Z123="RA",(($X123)*QCI!$AA$3),0)),SomaAgrup) -> 3129.1 | AB123: 0 | AD123: =IF(C123<=CRONO.NivelExibicao,MAX($AD$15:OFFSET(AD123,-1,0))+IF($C123<>1,1,MAX(1,COUNTIF(QCI!$A$13:$A$24,OFFSET($E123,-1,0)))),"") ->  | AE123: SINAPI 93128 | AF123: 3089 | AG123: 129.36 | AH123: 0.2035 | AJ123: =1+18+5+2 -> 26 | AM123: 3129.1 | AN123: 120.35
A124: =CHOOSE(1+LOG(1+2*(ORÇAMENTO.Nivel="Meta")+4*(ORÇAMENTO.Nivel="Nível 2")+8*(ORÇAMENTO.Nivel="Nível 3")+16*(ORÇAMENTO.Nivel="Nível 4")+32*(ORÇAMENTO.Nivel="Serviço"),2),0,1,2,3,4,"S") -> S | B124: =IF(OR(C124="s",C124=0),OFFSET(B124,-1,0),C124) -> 2 | C124: =IF(OFFSET(C124,-1,0)="L",1,IF(OFFSET(C124,-1,0)=1,2,IF(OR(A124="s",A124=0),"S",IF(AND(OFFSET(C124,-1,0)=2,A124=4),3,IF(AND(OR(OFFSET(C124,-1,0)="s",OFFSET(C124,-1,0)=0),A124<>"s",A124>OFFSET(B124,-1,0)),OFFSET(B124,-1,0),A124))))) -> S | D124: =IF(OR(C124="S",C124=0),0,IF(ISERROR(K124),J124,SMALL(J124:K124,1))) -> 0 | E124: =IF($C124=1,OFFSET(E124,-1,0)+MAX(1,COUNTIF(QCI!$A$13:$A$24,OFFSET(ORÇAMENTO!E124,-1,0))),OFFSET(E124,-1,0)) -> 1 | F124: =IF($C124=1,0,IF($C124=2,OFFSET(F124,-1,0)+1,OFFSET(F124,-1,0))) -> 9 | G124: =IF(AND($C124<=2,$C124<>0),0,IF($C124=3,OFFSET(G124,-1,0)+1,OFFSET(G124,-1,0))) -> 0 | H124: =IF(AND($C124<=3,$C124<>0),0,IF($C124=4,OFFSET(H124,-1,0)+1,OFFSET(H124,-1,0))) -> 0 | I124: =IF(AND($C124<=4,$C124<>0),0,IF(AND($C124="S",$X124>0),OFFSET(I124,-1,0)+1,OFFSET(I124,-1,0))) -> 10 | J124: 0 | K124: =IF(OR($C124="S",$C124=0),0,MATCH(OFFSET($D124,0,$C124)+IF($C124<>1,1,COUNTIF(QCI!$A$13:$A$24,ORÇAMENTO!E124)),OFFSET($D124,1,$C124,ROW($C$154)-ROW($C124)),0)) -> 0 | L124: =IF(OR($X124>0,$C124=1,$C124=2,$C124=3,$C124=4),"F","") -> F | M124: Serviço | N124: =CHOOSE(1+LOG(1+2*(C124=1)+4*(C124=2)+8*(C124=3)+16*(C124=4)+32*(C124="S"),2),"","Meta","Nível 2","Nível 3","Nível 4","Serviço") -> Serviço | O124: =IF(OR($C124=0,$L124=""),"-",CONCATENATE(E124&".",IF(AND($A$5>=2,$C124>=2),F124&".",""),IF(AND($A$5>=3,$C124>=3),G124&".",""),IF(AND($A$5>=4,$C124>=4),H124&".",""),IF($C124="S",I124&".",""))) -> 1.9.10. | P124: SINAPI | Q124: 93145 | R124: PONTO DE ILUMINAÇÃO E TOMADA, RESIDENCIAL, INCLUINDO INTERRUPTOR SIMPLES E TOMADA 10A/250V, CAIXA ELÉTRICA, ELETRODUTO, CABO, RASGO, QUEBRA E CHUMBAMENTO (EXCLUINDO LUMINÁRIA E LÂMPADA) | S124: UN | T124: =OFFSET(CÁLCULO!H$15,ROW($T124)-ROW(T$15),0) -> 7 | U124: 150 | V124: BDI 1 | W124: =IF($C124="S",ROUND(IF(TIPOORCAMENTO="Proposto",ORÇAMENTO.CustoUnitario*(1+$AH124),ORÇAMENTO.PrecoUnitarioLicitado),15-13*$AF$10),0) -> 180.53 | X124: =IF($C124="S",VTOTAL1,IF($C124=0,0,ROUND(SomaAgrup,15-13*$AF$11))) -> 1263.71 | Y124: RA | Z124: =IF(AND($C124="S",$X124>0),IF(ISBLANK($Y124),"RA",LEFT($Y124,2)),"") -> RA | AA124: =IF($C124="S",IF($Z124="CP",$X124,IF($Z124="RA",(($X124)*QCI!$AA$3),0)),SomaAgrup) -> 1263.71 | AB124: =IF($C124="S",IF($Z124="OU",ROUND($X124,2),0),SomaAgrup) -> 0 | AC124: =IF($N124="","",IF(ORÇAMENTO.Descricao="","DESCRIÇÃO",IF(AND($C124="S",ORÇAMENTO.Unidade=""),"UNIDADE",IF($X124<0,"VALOR NEGATIVO",IF(OR(AND(TIPOORCAMENTO="Proposto",$AG124<>"",$AG124>0,ORÇAMENTO.CustoUnitario>$AG124),AND(TIPOORCAMENTO="LICITADO",ORÇAMENTO.PrecoUnitarioLicitado>$AN124)),"ACIMA REF.",""))))) ->  | AD124: =IF(C124<=CRONO.NivelExibicao,MAX($AD$15:OFFSET(AD124,-1,0))+IF($C124<>1,1,MAX(1,COUNTIF(QCI!$A$13:$A$24,OFFSET($E124,-1,0)))),"") ->  | AE124: =IF(AND($C124="S",ORÇAMENTO.CodBarra<>""),IF(ORÇAMENTO.Fonte="",ORÇAMENTO.CodBarra,CONCATENATE(ORÇAMENTO.Fonte," ",ORÇAMENTO.CodBarra))) -> SINAPI 93145 | AF124: =IF(ISERROR(INDIRECT(ORÇAMENTO.BancoRef)),"(abra o arquivo 'Referência "&Excel_BuiltIn_Database&".xls)",IF(OR($C124<>"S",ORÇAMENTO.CodBarra=""),"(Sem Código)",IF(ISERROR(MATCH($AE124,INDIRECT(ORÇAMENTO.BancoRef),0)),"(Código não identificado nas referências)",MATCH($AE124,INDIRECT(ORÇAMENTO.BancoRef),0)))) -> 3098 | AG124: =ROUND(IF(DESONERACAO="sim",REFERENCIA.Desonerado,REFERENCIA.NaoDesonerado),2) -> 186.73 | AH124: =ROUND(IF(ISNUMBER(ORÇAMENTO.OpcaoBDI),ORÇAMENTO.OpcaoBDI,IF(LEFT(ORÇAMENTO.OpcaoBDI,3)="BDI",HLOOKUP(ORÇAMENTO.OpcaoBDI,$F$4:$H$5,2,FALSE),0)),15-11*$AF$9) -> 0.2035 | AJ124: =5+2 -> 7 | AM124: 1263.71 | AN124: =ROUND(ORÇAMENTO.CustoUnitario*(1+$AH124),2) -> 180.53
A125: S | B125: 2 | C125: S | D125: 0 | E125: =IF($C125=1,OFFSET(E125,-1,0)+MAX(1,COUNTIF(QCI!$A$13:$A$24,OFFSET(ORÇAMENTO!E125,-1,0))),OFFSET(E125,-1,0)) -> 1 | F125: 9 | G125: 0 | H125: 0 | I125: 11 | J125: 0 | K125: =IF(OR($C125="S",$C125=0),0,MATCH(OFFSET($D125,0,$C125)+IF($C125<>1,1,COUNTIF(QCI!$A$13:$A$24,ORÇAMENTO!E125)),OFFSET($D125,1,$C125,ROW($C$154)-ROW($C125)),0)) -> 0 | L125: F | M125: Serviço | N125: Serviço | O125: 1.9.11. | P125: SINAPI | Q125: 93141 | R125: PONTO DE TOMADA RESIDENCIAL INCLUINDO TOMADA 10A/250V, CAIXA ELÉTRICA, ELETRODUTO, CABO, RASGO, QUEBRA E CHUMBAMENTO | S125: UN | T125: =OFFSET(CÁLCULO!H$15,ROW($T125)-ROW(T$15),0) -> 18 | U125: 135 | V125: BDI 1 | W125: 162.47 | X125: 2924.46 | Y125: RA | Z125: RA | AA125: =IF($C125="S",IF($Z125="CP",$X125,IF($Z125="RA",(($X125)*QCI!$AA$3),0)),SomaAgrup) -> 2924.46 | AB125: 0 | AD125: =IF(C125<=CRONO.NivelExibicao,MAX($AD$15:OFFSET(AD125,-1,0))+IF($C125<>1,1,MAX(1,COUNTIF(QCI!$A$13:$A$24,OFFSET($E125,-1,0)))),"") ->  | AE125: SINAPI 93141 | AF125: 3094 | AG125: 154.44 | AH125: 0.2035 | AJ125: 18 | AM125: 2924.46 | AN125: 162.47
A126: S | B126: 2 | C126: S | D126: 0 | E126: =IF($C126=1,OFFSET(E126,-1,0)+MAX(1,COUNTIF(QCI!$A$13:$A$24,OFFSET(ORÇAMENTO!E126,-1,0))),OFFSET(E126,-1,0)) -> 1 | F126: 9 | G126: 0 | H126: 0 | I126: 12 | J126: 0 | K126: =IF(OR($C126="S",$C126=0),0,MATCH(OFFSET($D126,0,$C126)+IF($C126<>1,1,COUNTIF(QCI!$A$13:$A$24,ORÇAMENTO!E126)),OFFSET($D126,1,$C126,ROW($C$154)-ROW($C126)),0)) -> 0 | L126: F | M126: Serviço | N126: Serviço | O126: 1.9.12. | P126: SINAPI | Q126: 97585 | R126: LUMINÁRIA TIPO CALHA, DE SOBREPOR, COM 2 LÂMPADAS TUBULARES FLUORESCENTES DE 18 W, COM REATOR DE PARTIDA RÁPIDA - FORNECIMENTO E INSTALAÇÃO | S126: UN | T126: =OFFSET(CÁLCULO!H$15,ROW($T126)-ROW(T$15),0) -> 14 | U126: 55 | V126: BDI 1 | W126: 66.19 | X126: 926.66 | Y126: RA | Z126: RA | AA126: =IF($C126="S",IF($Z126="CP",$X126,IF($Z126="RA",(($X126)*QCI!$AA$3),0)),SomaAgrup) -> 926.66 | AB126: 0 | AD126: =IF(C126<=CRONO.NivelExibicao,MAX($AD$15:OFFSET(AD126,-1,0))+IF($C126<>1,1,MAX(1,COUNTIF(QCI!$A$13:$A$24,OFFSET($E126,-1,0)))),"") ->  | AE126: SINAPI 97585 | AF126: 2960 | AG126: 61.65 | AH126: 0.2035 | AJ126: 14 | AM126: 926.66 | AN126: 66.19
A127: =CHOOSE(1+LOG(1+2*(ORÇAMENTO.Nivel="Meta")+4*(ORÇAMENTO.Nivel="Nível 2")+8*(ORÇAMENTO.Nivel="Nível 3")+16*(ORÇAMENTO.Nivel="Nível 4")+32*(ORÇAMENTO.Nivel="Serviço"),2),0,1,2,3,4,"S") -> S | B127: =IF(OR(C127="s",C127=0),OFFSET(B127,-1,0),C127) -> 2 | C127: =IF(OFFSET(C127,-1,0)="L",1,IF(OFFSET(C127,-1,0)=1,2,IF(OR(A127="s",A127=0),"S",IF(AND(OFFSET(C127,-1,0)=2,A127=4),3,IF(AND(OR(OFFSET(C127,-1,0)="s",OFFSET(C127,-1,0)=0),A127<>"s",A127>OFFSET(B127,-1,0)),OFFSET(B127,-1,0),A127))))) -> S | D127: =IF(OR(C127="S",C127=0),0,IF(ISERROR(K127),J127,SMALL(J127:K127,1))) -> 0 | E127: =IF($C127=1,OFFSET(E127,-1,0)+MAX(1,COUNTIF(QCI!$A$13:$A$24,OFFSET(ORÇAMENTO!E127,-1,0))),OFFSET(E127,-1,0)) -> 1 | F127: =IF($C127=1,0,IF($C127=2,OFFSET(F127,-1,0)+1,OFFSET(F127,-1,0))) -> 9 | G127: =IF(AND($C127<=2,$C127<>0),0,IF($C127=3,OFFSET(G127,-1,0)+1,OFFSET(G127,-1,0))) -> 0 | H127: =IF(AND($C127<=3,$C127<>0),0,IF($C127=4,OFFSET(H127,-1,0)+1,OFFSET(H127,-1,0))) -> 0 | I127: =IF(AND($C127<=4,$C127<>0),0,IF(AND($C127="S",$X127>0),OFFSET(I127,-1,0)+1,OFFSET(I127,-1,0))) -> 13 | J127: 0 | K127: =IF(OR($C127="S",$C127=0),0,MATCH(OFFSET($D127,0,$C127)+IF($C127<>1,1,COUNTIF(QCI!$A$13:$A$24,ORÇAMENTO!E127)),OFFSET($D127,1,$C127,ROW($C$154)-ROW($C127)),0)) -> 0 | L127: =IF(OR($X127>0,$C127=1,$C127=2,$C127=3,$C127=4),"F","") -> F | M127: Serviço | N127: =CHOOSE(1+LOG(1+2*(C127=1)+4*(C127=2)+8*(C127=3)+16*(C127=4)+32*(C127="S"),2),"","Meta","Nível 2","Nível 3","Nível 4","Serviço") -> Serviço | O127: =IF(OR($C127=0,$L127=""),"-",CONCATENATE(E127&".",IF(AND($A$5>=2,$C127>=2),F127&".",""),IF(AND($A$5>=3,$C127>=3),G127&".",""),IF(AND($A$5>=4,$C127>=4),H127&".",""),IF($C127="S",I127&".",""))) -> 1.9.13. | P127: SINAPI | Q127: 97593 | R127: LUMINÁRIA TIPO SPOT, DE SOBREPOR, COM 1 LÂMPADA FLUORESCENTE DE 15 W, SEM REATOR - FORNECIMENTO E INSTALAÇÃO | S127: UN | T127: =OFFSET(CÁLCULO!H$15,ROW($T127)-ROW(T$15),0) -> 6 | U127: 70 | V127: BDI 1 | W127: =IF($C127="S",ROUND(IF(TIPOORCAMENTO="Proposto",ORÇAMENTO.CustoUnitario*(1+$AH127),ORÇAMENTO.PrecoUnitarioLicitado),15-13*$AF$10),0) -> 84.25 | X127: =IF($C127="S",VTOTAL1,IF($C127=0,0,ROUND(SomaAgrup,15-13*$AF$11))) -> 505.5 | Y127: RA | Z127: =IF(AND($C127="S",$X127>0),IF(ISBLANK($Y127),"RA",LEFT($Y127,2)),"") -> RA | AA127: =IF($C127="S",IF($Z127="CP",$X127,IF($Z127="RA",(($X127)*QCI!$AA$3),0)),SomaAgrup) -> 505.5 | AB127: =IF($C127="S",IF($Z127="OU",ROUND($X127,2),0),SomaAgrup) -> 0 | AC127: =IF($N127="","",IF(ORÇAMENTO.Descricao="","DESCRIÇÃO",IF(AND($C127="S",ORÇAMENTO.Unidade=""),"UNIDADE",IF($X127<0,"VALOR NEGATIVO",IF(OR(AND(TIPOORCAMENTO="Proposto",$AG127<>"",$AG127>0,ORÇAMENTO.CustoUnitario>$AG127),AND(TIPOORCAMENTO="LICITADO",ORÇAMENTO.PrecoUnitarioLicitado>$AN127)),"ACIMA REF.",""))))) ->  | AD127: =IF(C127<=CRONO.NivelExibicao,MAX($AD$15:OFFSET(AD127,-1,0))+IF($C127<>1,1,MAX(1,COUNTIF(QCI!$A$13:$A$24,OFFSET($E127,-1,0)))),"") ->  | AE127: =IF(AND($C127="S",ORÇAMENTO.CodBarra<>""),IF(ORÇAMENTO.Fonte="",ORÇAMENTO.CodBarra,CONCATENATE(ORÇAMENTO.Fonte," ",ORÇAMENTO.CodBarra))) -> SINAPI 97593 | AF127: =IF(ISERROR(INDIRECT(ORÇAMENTO.BancoRef)),"(abra o arquivo 'Referência "&Excel_BuiltIn_Database&".xls)",IF(OR($C127<>"S",ORÇAMENTO.CodBarra=""),"(Sem Código)",IF(ISERROR(MATCH($AE127,INDIRECT(ORÇAMENTO.BancoRef),0)),"(Código não identificado nas referências)",MATCH($AE127,INDIRECT(ORÇAMENTO.BancoRef),0)))) -> 2967 | AG127: =ROUND(IF(DESONERACAO="sim",REFERENCIA.Desonerado,REFERENCIA.NaoDesonerado),2) -> 78.84 | AH127: =ROUND(IF(ISNUMBER(ORÇAMENTO.OpcaoBDI),ORÇAMENTO.OpcaoBDI,IF(LEFT(ORÇAMENTO.OpcaoBDI,3)="BDI",HLOOKUP(ORÇAMENTO.OpcaoBDI,$F$4:$H$5,2,FALSE),0)),15-11*$AF$9) -> 0.2035 | AJ127: 6 | AM127: 505.5 | AN127: =ROUND(ORÇAMENTO.CustoUnitario*(1+$AH127),2) -> 84.25
A128: =CHOOSE(1+LOG(1+2*(ORÇAMENTO.Nivel="Meta")+4*(ORÇAMENTO.Nivel="Nível 2")+8*(ORÇAMENTO.Nivel="Nível 3")+16*(ORÇAMENTO.Nivel="Nível 4")+32*(ORÇAMENTO.Nivel="Serviço"),2),0,1,2,3,4,"S") -> S | B128: =IF(OR(C128="s",C128=0),OFFSET(B128,-1,0),C128) -> 2 | C128: =IF(OFFSET(C128,-1,0)="L",1,IF(OFFSET(C128,-1,0)=1,2,IF(OR(A128="s",A128=0),"S",IF(AND(OFFSET(C128,-1,0)=2,A128=4),3,IF(AND(OR(OFFSET(C128,-1,0)="s",OFFSET(C128,-1,0)=0),A128<>"s",A128>OFFSET(B128,-1,0)),OFFSET(B128,-1,0),A128))))) -> S | D128: =IF(OR(C128="S",C128=0),0,IF(ISERROR(K128),J128,SMALL(J128:K128,1))) -> 0 | E128: =IF($C128=1,OFFSET(E128,-1,0)+MAX(1,COUNTIF(QCI!$A$13:$A$24,OFFSET(ORÇAMENTO!E128,-1,0))),OFFSET(E128,-1,0)) -> 1 | F128: =IF($C128=1,0,IF($C128=2,OFFSET(F128,-1,0)+1,OFFSET(F128,-1,0))) -> 9 | G128: =IF(AND($C128<=2,$C128<>0),0,IF($C128=3,OFFSET(G128,-1,0)+1,OFFSET(G128,-1,0))) -> 0 | H128: =IF(AND($C128<=3,$C128<>0),0,IF($C128=4,OFFSET(H128,-1,0)+1,OFFSET(H128,-1,0))) -> 0 | I128: =IF(AND($C128<=4,$C128<>0),0,IF(AND($C128="S",$X128>0),OFFSET(I128,-1,0)+1,OFFSET(I128,-1,0))) -> 14 | J128: 0 | K128: =IF(OR($C128="S",$C128=0),0,MATCH(OFFSET($D128,0,$C128)+IF($C128<>1,1,COUNTIF(QCI!$A$13:$A$24,ORÇAMENTO!E128)),OFFSET($D128,1,$C128,ROW($C$154)-ROW($C128)),0)) -> 0 | L128: =IF(OR($X128>0,$C128=1,$C128=2,$C128=3,$C128=4),"F","") -> F | M128: Serviço | N128: =CHOOSE(1+LOG(1+2*(C128=1)+4*(C128=2)+8*(C128=3)+16*(C128=4)+32*(C128="S"),2),"","Meta","Nível 2","Nível 3","Nível 4","Serviço") -> Serviço | O128: =IF(OR($C128=0,$L128=""),"-",CONCATENATE(E128&".",IF(AND($A$5>=2,$C128>=2),F128&".",""),IF(AND($A$5>=3,$C128>=3),G128&".",""),IF(AND($A$5>=4,$C128>=4),H128&".",""),IF($C128="S",I128&".",""))) -> 1.9.14. | P128: SINAPI-I | Q128: 39391 | R128: LUMINARIA LED REFLETOR RETANGULAR BIVOLT, LUZ BRANCA, 50 W | S128: UN | T128: =OFFSET(CÁLCULO!H$15,ROW($T128)-ROW(T$15),0) -> 5 | U128: 45 | V128: BDI 1 | W128: =IF($C128="S",ROUND(IF(TIPOORCAMENTO="Proposto",ORÇAMENTO.CustoUnitario*(1+$AH128),ORÇAMENTO.PrecoUnitarioLicitado),15-13*$AF$10),0) -> 54.16 | X128: =IF($C128="S",VTOTAL1,IF($C128=0,0,ROUND(SomaAgrup,15-13*$AF$11))) -> 270.8 | Y128: RA | Z128: =IF(AND($C128="S",$X128>0),IF(ISBLANK($Y128),"RA",LEFT($Y128,2)),"") -> RA | AA128: =IF($C128="S",IF($Z128="CP",$X128,IF($Z128="RA",(($X128)*QCI!$AA$3),0)),SomaAgrup) -> 270.8 | AB128: =IF($C128="S",IF($Z128="OU",ROUND($X128,2),0),SomaAgrup) -> 0 | AC128: =IF($N128="","",IF(ORÇAMENTO.Descricao="","DESCRIÇÃO",IF(AND($C128="S",ORÇAMENTO.Unidade=""),"UNIDADE",IF($X128<0,"VALOR NEGATIVO",IF(OR(AND(TIPOORCAMENTO="Proposto",$AG128<>"",$AG128>0,ORÇAMENTO.CustoUnitario>$AG128),AND(TIPOORCAMENTO="LICITADO",ORÇAMENTO.PrecoUnitarioLicitado>$AN128)),"ACIMA REF.",""))))) ->  | AD128: =IF(C128<=CRONO.NivelExibicao,MAX($AD$15:OFFSET(AD128,-1,0))+IF($C128<>1,1,MAX(1,COUNTIF(QCI!$A$13:$A$24,OFFSET($E128,-1,0)))),"") ->  | AE128: =IF(AND($C128="S",ORÇAMENTO.CodBarra<>""),IF(ORÇAMENTO.Fonte="",ORÇAMENTO.CodBarra,CONCATENATE(ORÇAMENTO.Fonte," ",ORÇAMENTO.CodBarra))) -> SINAPI-I 39391 | AF128: =IF(ISERROR(INDIRECT(ORÇAMENTO.BancoRef)),"(abra o arquivo 'Referência "&Excel_BuiltIn_Database&".xls)",IF(OR($C128<>"S",ORÇAMENTO.CodBarra=""),"(Sem Código)",IF(ISERROR(MATCH($AE128,INDIRECT(ORÇAMENTO.BancoRef),0)),"(Código não identificado nas referências)",MATCH($AE128,INDIRECT(ORÇAMENTO.BancoRef),0)))) -> 9438 | AG128: =ROUND(IF(DESONERACAO="sim",REFERENCIA.Desonerado,REFERENCIA.NaoDesonerado),2) -> 49.87 | AH128: =ROUND(IF(ISNUMBER(ORÇAMENTO.OpcaoBDI),ORÇAMENTO.OpcaoBDI,IF(LEFT(ORÇAMENTO.OpcaoBDI,3)="BDI",HLOOKUP(ORÇAMENTO.OpcaoBDI,$F$4:$H$5,2,FALSE),0)),15-11*$AF$9) -> 0.2035 | AJ128: 5 | AM128: 270.8 | AN128: =ROUND(ORÇAMENTO.CustoUnitario*(1+$AH128),2) -> 54.16
A129: S | B129: 2 | C129: S | D129: 0 | E129: =IF($C129=1,OFFSET(E129,-1,0)+MAX(1,COUNTIF(QCI!$A$13:$A$24,OFFSET(ORÇAMENTO!E129,-1,0))),OFFSET(E129,-1,0)) -> 1 | F129: 9 | G129: 0 | H129: 0 | I129: 15 | J129: 0 | K129: =IF(OR($C129="S",$C129=0),0,MATCH(OFFSET($D129,0,$C129)+IF($C129<>1,1,COUNTIF(QCI!$A$13:$A$24,ORÇAMENTO!E129)),OFFSET($D129,1,$C129,ROW($C$154)-ROW($C129)),0)) -> 0 | L129: F | M129: Serviço | N129: Serviço | O129: 1.9.15. | P129: SINAPI | Q129: 91924 | R129: CABO DE COBRE FLEXÍVEL ISOLADO, 1,5 MM², ANTI-CHAMA 450/750 V, PARA CIRCUITOS TERMINAIS - FORNECIMENTO E INSTALAÇÃO | S129: M | T129: =OFFSET(CÁLCULO!H$15,ROW($T129)-ROW(T$15),0) -> 157.4 | U129: 2 | V129: BDI 1 | W129: 2.41 | X129: 379.33 | Y129: RA | Z129: RA | AA129: =IF($C129="S",IF($Z129="CP",$X129,IF($Z129="RA",(($X129)*QCI!$AA$3),0)),SomaAgrup) -> 379.33 | AB129: 0 | AD129: =IF(C129<=CRONO.NivelExibicao,MAX($AD$15:OFFSET(AD129,-1,0))+IF($C129<>1,1,MAX(1,COUNTIF(QCI!$A$13:$A$24,OFFSET($E129,-1,0)))),"") ->  | AE129: SINAPI 91924 | AF129: 2725 | AG129: 2.15 | AH129: 0.2035 | AJ129: 157.4 | AM129: 379.33 | AN129: 2.41
A130: S | B130: 2 | C130: S | D130: 0 | E130: =IF($C130=1,OFFSET(E130,-1,0)+MAX(1,COUNTIF(QCI!$A$13:$A$24,OFFSET(ORÇAMENTO!E130,-1,0))),OFFSET(E130,-1,0)) -> 1 | F130: 9 | G130: 0 | H130: 0 | I130: 16 | J130: 0 | K130: =IF(OR($C130="S",$C130=0),0,MATCH(OFFSET($D130,0,$C130)+IF($C130<>1,1,COUNTIF(QCI!$A$13:$A$24,ORÇAMENTO!E130)),OFFSET($D130,1,$C130,ROW($C$154)-ROW($C130)),0)) -> 0 | L130: F | M130: Serviço | N130: Serviço | O130: 1.9.16. | P130: SINAPI | Q130: 91926 | R130: CABO DE COBRE FLEXÍVEL ISOLADO, 2,5 MM², ANTI-CHAMA 450/750 V, PARA CIRCUITOS TERMINAIS - FORNECIMENTO E INSTALAÇÃO | S130: M | T130: =OFFSET(CÁLCULO!H$15,ROW($T130)-ROW(T$15),0) -> 402.55 | U130: 2.8 | V130: BDI 1 | W130: 3.37 | X130: 1356.59 | Y130: RA | Z130: RA | AA130: =IF($C130="S",IF($Z130="CP",$X130,IF($Z130="RA",(($X130)*QCI!$AA$3),0)),SomaAgrup) -> 1356.59 | AB130: 0 | AD130: =IF(C130<=CRONO.NivelExibicao,MAX($AD$15:OFFSET(AD130,-1,0))+IF($C130<>1,1,MAX(1,COUNTIF(QCI!$A$13:$A$24,OFFSET($E130,-1,0)))),"") ->  | AE130: SINAPI 91926 | AF130: 2727 | AG130: 3.04 | AH130: 0.2035 | AJ130: 402.55 | AM130: 1356.59 | AN130: 3.37
A131: =CHOOSE(1+LOG(1+2*(ORÇAMENTO.Nivel="Meta")+4*(ORÇAMENTO.Nivel="Nível 2")+8*(ORÇAMENTO.Nivel="Nível 3")+16*(ORÇAMENTO.Nivel="Nível 4")+32*(ORÇAMENTO.Nivel="Serviço"),2),0,1,2,3,4,"S") -> S | B131: =IF(OR(C131="s",C131=0),OFFSET(B131,-1,0),C131) -> 2 | C131: =IF(OFFSET(C131,-1,0)="L",1,IF(OFFSET(C131,-1,0)=1,2,IF(OR(A131="s",A131=0),"S",IF(AND(OFFSET(C131,-1,0)=2,A131=4),3,IF(AND(OR(OFFSET(C131,-1,0)="s",OFFSET(C131,-1,0)=0),A131<>"s",A131>OFFSET(B131,-1,0)),OFFSET(B131,-1,0),A131))))) -> S | D131: =IF(OR(C131="S",C131=0),0,IF(ISERROR(K131),J131,SMALL(J131:K131,1))) -> 0 | E131: =IF($C131=1,OFFSET(E131,-1,0)+MAX(1,COUNTIF(QCI!$A$13:$A$24,OFFSET(ORÇAMENTO!E131,-1,0))),OFFSET(E131,-1,0)) -> 1 | F131: =IF($C131=1,0,IF($C131=2,OFFSET(F131,-1,0)+1,OFFSET(F131,-1,0))) -> 9 | G131: =IF(AND($C131<=2,$C131<>0),0,IF($C131=3,OFFSET(G131,-1,0)+1,OFFSET(G131,-1,0))) -> 0 | H131: =IF(AND($C131<=3,$C131<>0),0,IF($C131=4,OFFSET(H131,-1,0)+1,OFFSET(H131,-1,0))) -> 0 | I131: =IF(AND($C131<=4,$C131<>0),0,IF(AND($C131="S",$X131>0),OFFSET(I131,-1,0)+1,OFFSET(I131,-1,0))) -> 17 | J131: 0 | K131: =IF(OR($C131="S",$C131=0),0,MATCH(OFFSET($D131,0,$C131)+IF($C131<>1,1,COUNTIF(QCI!$A$13:$A$24,ORÇAMENTO!E131)),OFFSET($D131,1,$C131,ROW($C$154)-ROW($C131)),0)) -> 0 | L131: =IF(OR($X131>0,$C131=1,$C131=2,$C131=3,$C131=4),"F","") -> F | M131: Serviço | N131: =CHOOSE(1+LOG(1+2*(C131=1)+4*(C131=2)+8*(C131=3)+16*(C131=4)+32*(C131="S"),2),"","Meta","Nível 2","Nível 3","Nível 4","Serviço") -> Serviço | O131: =IF(OR($C131=0,$L131=""),"-",CONCATENATE(E131&".",IF(AND($A$5>=2,$C131>=2),F131&".",""),IF(AND($A$5>=3,$C131>=3),G131&".",""),IF(AND($A$5>=4,$C131>=4),H131&".",""),IF($C131="S",I131&".",""))) -> 1.9.17. | P131: SINAPI | Q131: 91932 | R131: CABO DE COBRE FLEXÍVEL ISOLADO, 10 MM², ANTI-CHAMA 450/750 V, PARA CIRCUITOS TERMINAIS - FORNECIMENTO E INSTALAÇÃO | S131: M | T131: =OFFSET(CÁLCULO!H$15,ROW($T131)-ROW(T$15),0) -> 20 | U131: 9.9 | V131: BDI 1 | W131: =IF($C131="S",ROUND(IF(TIPOORCAMENTO="Proposto",ORÇAMENTO.CustoUnitario*(1+$AH131),ORÇAMENTO.PrecoUnitarioLicitado),15-13*$AF$10),0) -> 11.91 | X131: =IF($C131="S",VTOTAL1,IF($C131=0,0,ROUND(SomaAgrup,15-13*$AF$11))) -> 238.2 | Y131: RA | Z131: =IF(AND($C131="S",$X131>0),IF(ISBLANK($Y131),"RA",LEFT($Y131,2)),"") -> RA | AA131: =IF($C131="S",IF($Z131="CP",$X131,IF($Z131="RA",(($X131)*QCI!$AA$3),0)),SomaAgrup) -> 238.2 | AB131: =IF($C131="S",IF($Z131="OU",ROUND($X131,2),0),SomaAgrup) -> 0 | AC131: =IF($N131="","",IF(ORÇAMENTO.Descricao="","DESCRIÇÃO",IF(AND($C131="S",ORÇAMENTO.Unidade=""),"UNIDADE",IF($X131<0,"VALOR NEGATIVO",IF(OR(AND(TIPOORCAMENTO="Proposto",$AG131<>"",$AG131>0,ORÇAMENTO.CustoUnitario>$AG131),AND(TIPOORCAMENTO="LICITADO",ORÇAMENTO.PrecoUnitarioLicitado>$AN131)),"ACIMA REF.",""))))) ->  | AD131: =IF(C131<=CRONO.NivelExibicao,MAX($AD$15:OFFSET(AD131,-1,0))+IF($C131<>1,1,MAX(1,COUNTIF(QCI!$A$13:$A$24,OFFSET($E131,-1,0)))),"") ->  | AE131: =IF(AND($C131="S",ORÇAMENTO.CodBarra<>""),IF(ORÇAMENTO.Fonte="",ORÇAMENTO.CodBarra,CONCATENATE(ORÇAMENTO.Fonte," ",ORÇAMENTO.CodBarra))) -> SINAPI 91932 | AF131: =IF(ISERROR(INDIRECT(ORÇAMENTO.BancoRef)),"(abra o arquivo 'Referência "&Excel_BuiltIn_Database&".xls)",IF(OR($C131<>"S",ORÇAMENTO.CodBarra=""),"(Sem Código)",IF(ISERROR(MATCH($AE131,INDIRECT(ORÇAMENTO.BancoRef),0)),"(Código não identificado nas referências)",MATCH($AE131,INDIRECT(ORÇAMENTO.BancoRef),0)))) -> 2733 | AG131: =ROUND(IF(DESONERACAO="sim",REFERENCIA.Desonerado,REFERENCIA.NaoDesonerado),2) -> 10.46 | AH131: =ROUND(IF(ISNUMBER(ORÇAMENTO.OpcaoBDI),ORÇAMENTO.OpcaoBDI,IF(LEFT(ORÇAMENTO.OpcaoBDI,3)="BDI",HLOOKUP(ORÇAMENTO.OpcaoBDI,$F$4:$H$5,2,FALSE),0)),15-11*$AF$9) -> 0.2035 | AJ131: 20 | AM131: 238.2 | AN131: =ROUND(ORÇAMENTO.CustoUnitario*(1+$AH131),2) -> 11.91
A132: =CHOOSE(1+LOG(1+2*(ORÇAMENTO.Nivel="Meta")+4*(ORÇAMENTO.Nivel="Nível 2")+8*(ORÇAMENTO.Nivel="Nível 3")+16*(ORÇAMENTO.Nivel="Nível 4")+32*(ORÇAMENTO.Nivel="Serviço"),2),0,1,2,3,4,"S") -> S | B132: 2 | C132: S | D132: 0 | E132: =IF($C132=1,OFFSET(E132,-1,0)+MAX(1,COUNTIF(QCI!$A$13:$A$24,OFFSET(ORÇAMENTO!E132,-1,0))),OFFSET(E132,-1,0)) -> 1 | F132: 9 | G132: 0 | H132: 0 | I132: 18 | J132: 0 | K132: =IF(OR($C132="S",$C132=0),0,MATCH(OFFSET($D132,0,$C132)+IF($C132<>1,1,COUNTIF(QCI!$A$13:$A$24,ORÇAMENTO!E132)),OFFSET($D132,1,$C132,ROW($C$154)-ROW($C132)),0)) -> 0 | L132: F | M132: Serviço | N132: Serviço | O132: 1.9.18. | P132: SINAPI | Q132: 91834 | R132: ELETRODUTO FLEXÍVEL CORRUGADO, PVC, DN 25 MM (3/4"), PARA CIRCUITOS TERMINAIS, INSTALADO EM FORRO - FORNECIMENTO E INSTALAÇÃO | S132: M | T132: =OFFSET(CÁLCULO!H$15,ROW($T132)-ROW(T$15),0) -> 114.6 | U132: 6 | V132: BDI 1 | W132: =IF($C132="S",ROUND(IF(TIPOORCAMENTO="Proposto",ORÇAMENTO.CustoUnitario*(1+$AH132),ORÇAMENTO.PrecoUnitarioLicitado),15-13*$AF$10),0) -> 7.22 | X132: =IF($C132="S",VTOTAL1,IF($C132=0,0,ROUND(SomaAgrup,15-13*$AF$11))) -> 827.41 | Y132: RA | Z132: RA | AA132: =IF($C132="S",IF($Z132="CP",$X132,IF($Z132="RA",(($X132)*QCI!$AA$3),0)),SomaAgrup) -> 827.41 | AB132: =IF($C132="S",IF($Z132="OU",ROUND($X132,2),0),SomaAgrup) -> 0 | AC132: =IF($N132="","",IF(ORÇAMENTO.Descricao="","DESCRIÇÃO",IF(AND($C132="S",ORÇAMENTO.Unidade=""),"UNIDADE",IF($X132<0,"VALOR NEGATIVO",IF(OR(AND(TIPOORCAMENTO="Proposto",$AG132<>"",$AG132>0,ORÇAMENTO.CustoUnitario>$AG132),AND(TIPOORCAMENTO="LICITADO",ORÇAMENTO.PrecoUnitarioLicitado>$AN132)),"ACIMA REF.",""))))) ->  | AD132: =IF(C132<=CRONO.NivelExibicao,MAX($AD$15:OFFSET(AD132,-1,0))+IF($C132<>1,1,MAX(1,COUNTIF(QCI!$A$13:$A$24,OFFSET($E132,-1,0)))),"") ->  | AE132: =IF(AND($C132="S",ORÇAMENTO.CodBarra<>""),IF(ORÇAMENTO.Fonte="",ORÇAMENTO.CodBarra,CONCATENATE(ORÇAMENTO.Fonte," ",ORÇAMENTO.CodBarra))) -> SINAPI 91834 | AF132: =IF(ISERROR(INDIRECT(ORÇAMENTO.BancoRef)),"(abra o arquivo 'Referência "&Excel_BuiltIn_Database&".xls)",IF(OR($C132<>"S",ORÇAMENTO.CodBarra=""),"(Sem Código)",IF(ISERROR(MATCH($AE132,INDIRECT(ORÇAMENTO.BancoRef),0)),"(Código não identificado nas referências)",MATCH($AE132,INDIRECT(ORÇAMENTO.BancoRef),0)))) -> 2602 | AG132: =ROUND(IF(DESONERACAO="sim",REFERENCIA.Desonerado,REFERENCIA.NaoDesonerado),2) -> 6.82 | AH132: =ROUND(IF(ISNUMBER(ORÇAMENTO.OpcaoBDI),ORÇAMENTO.OpcaoBDI,IF(LEFT(ORÇAMENTO.OpcaoBDI,3)="BDI",HLOOKUP(ORÇAMENTO.OpcaoBDI,$F$4:$H$5,2,FALSE),0)),15-11*$AF$9) -> 0.2035 | AJ132: 114.6 | AM132: 827.41 | AN132: =ROUND(ORÇAMENTO.CustoUnitario*(1+$AH132),2) -> 7.22
A133: =CHOOSE(1+LOG(1+2*(ORÇAMENTO.Nivel="Meta")+4*(ORÇAMENTO.Nivel="Nível 2")+8*(ORÇAMENTO.Nivel="Nível 3")+16*(ORÇAMENTO.Nivel="Nível 4")+32*(ORÇAMENTO.Nivel="Serviço"),2),0,1,2,3,4,"S") -> S | B133: =IF(OR(C133="s",C133=0),OFFSET(B133,-1,0),C133) -> 2 | C133: =IF(OFFSET(C133,-1,0)="L",1,IF(OFFSET(C133,-1,0)=1,2,IF(OR(A133="s",A133=0),"S",IF(AND(OFFSET(C133,-1,0)=2,A133=4),3,IF(AND(OR(OFFSET(C133,-1,0)="s",OFFSET(C133,-1,0)=0),A133<>"s",A133>OFFSET(B133,-1,0)),OFFSET(B133,-1,0),A133))))) -> S | D133: =IF(OR(C133="S",C133=0),0,IF(ISERROR(K133),J133,SMALL(J133:K133,1))) -> 0 | E133: =IF($C133=1,OFFSET(E133,-1,0)+MAX(1,COUNTIF(QCI!$A$13:$A$24,OFFSET(ORÇAMENTO!E133,-1,0))),OFFSET(E133,-1,0)) -> 1 | F133: =IF($C133=1,0,IF($C133=2,OFFSET(F133,-1,0)+1,OFFSET(F133,-1,0))) -> 9 | G133: =IF(AND($C133<=2,$C133<>0),0,IF($C133=3,OFFSET(G133,-1,0)+1,OFFSET(G133,-1,0))) -> 0 | H133: =IF(AND($C133<=3,$C133<>0),0,IF($C133=4,OFFSET(H133,-1,0)+1,OFFSET(H133,-1,0))) -> 0 | I133: =IF(AND($C133<=4,$C133<>0),0,IF(AND($C133="S",$X133>0),OFFSET(I133,-1,0)+1,OFFSET(I133,-1,0))) -> 19 | J133: 0 | K133: =IF(OR($C133="S",$C133=0),0,MATCH(OFFSET($D133,0,$C133)+IF($C133<>1,1,COUNTIF(QCI!$A$13:$A$24,ORÇAMENTO!E133)),OFFSET($D133,1,$C133,ROW($C$154)-ROW($C133)),0)) -> 0 | L133: =IF(OR($X133>0,$C133=1,$C133=2,$C133=3,$C133=4),"F","") -> F | M133: Serviço | N133: =CHOOSE(1+LOG(1+2*(C133=1)+4*(C133=2)+8*(C133=3)+16*(C133=4)+32*(C133="S"),2),"","Meta","Nível 2","Nível 3","Nível 4","Serviço") -> Serviço | O133: =IF(OR($C133=0,$L133=""),"-",CONCATENATE(E133&".",IF(AND($A$5>=2,$C133>=2),F133&".",""),IF(AND($A$5>=3,$C133>=3),G133&".",""),IF(AND($A$5>=4,$C133>=4),H133&".",""),IF($C133="S",I133&".",""))) -> 1.9.19. | P133: SINAPI | Q133: 91836 | R133: ELETRODUTO FLEXÍVEL CORRUGADO, PVC, DN 32 MM (1"), PARA CIRCUITOS TERMINAIS, INSTALADO EM FORRO - FORNECIMENTO E INSTALAÇÃO | S133: M | T133: =OFFSET(CÁLCULO!H$15,ROW($T133)-ROW(T$15),0) -> 8 | U133: 8 | V133: BDI 1 | W133: =IF($C133="S",ROUND(IF(TIPOORCAMENTO="Proposto",ORÇAMENTO.CustoUnitario*(1+$AH133),ORÇAMENTO.PrecoUnitarioLicitado),15-13*$AF$10),0) -> 9.63 | X133: =IF($C133="S",VTOTAL1,IF($C133=0,0,ROUND(SomaAgrup,15-13*$AF$11))) -> 77.04 | Y133: RA | Z133: =IF(AND($C133="S",$X133>0),IF(ISBLANK($Y133),"RA",LEFT($Y133,2)),"") -> RA | AA133: =IF($C133="S",IF($Z133="CP",$X133,IF($Z133="RA",(($X133)*QCI!$AA$3),0)),SomaAgrup) -> 77.04 | AB133: =IF($C133="S",IF($Z133="OU",ROUND($X133,2),0),SomaAgrup) -> 0 | AC133: =IF($N133="","",IF(ORÇAMENTO.Descricao="","DESCRIÇÃO",IF(AND($C133="S",ORÇAMENTO.Unidade=""),"UNIDADE",IF($X133<0,"VALOR NEGATIVO",IF(OR(AND(TIPOORCAMENTO="Proposto",$AG133<>"",$AG133>0,ORÇAMENTO.CustoUnitario>$AG133),AND(TIPOORCAMENTO="LICITADO",ORÇAMENTO.PrecoUnitarioLicitado>$AN133)),"ACIMA REF.",""))))) ->  | AD133: =IF(C133<=CRONO.NivelExibicao,MAX($AD$15:OFFSET(AD133,-1,0))+IF($C133<>1,1,MAX(1,COUNTIF(QCI!$A$13:$A$24,OFFSET($E133,-1,0)))),"") ->  | AE133: =IF(AND($C133="S",ORÇAMENTO.CodBarra<>""),IF(ORÇAMENTO.Fonte="",ORÇAMENTO.CodBarra,CONCATENATE(ORÇAMENTO.Fonte," ",ORÇAMENTO.CodBarra))) -> SINAPI 91836 | AF133: =IF(ISERROR(INDIRECT(ORÇAMENTO.BancoRef)),"(abra o arquivo 'Referência "&Excel_BuiltIn_Database&".xls)",IF(OR($C133<>"S",ORÇAMENTO.CodBarra=""),"(Sem Código)",IF(ISERROR(MATCH($AE133,INDIRECT(ORÇAMENTO.BancoRef),0)),"(Código não identificado nas referências)",MATCH($AE133,INDIRECT(ORÇAMENTO.BancoRef),0)))) -> 2604 | AG133: =ROUND(IF(DESONERACAO="sim",REFERENCIA.Desonerado,REFERENCIA.NaoDesonerado),2) -> 8.73 | AH133: =ROUND(IF(ISNUMBER(ORÇAMENTO.OpcaoBDI),ORÇAMENTO.OpcaoBDI,IF(LEFT(ORÇAMENTO.OpcaoBDI,3)="BDI",HLOOKUP(ORÇAMENTO.OpcaoBDI,$F$4:$H$5,2,FALSE),0)),15-11*$AF$9) -> 0.2035 | AJ133: 8 | AM133: 77.04 | AN133: =ROUND(ORÇAMENTO.CustoUnitario*(1+$AH133),2) -> 9.63
A134: S | B134: 2 | C134: S | D134: 0 | E134: =IF($C134=1,OFFSET(E134,-1,0)+MAX(1,COUNTIF(QCI!$A$13:$A$24,OFFSET(ORÇAMENTO!E134,-1,0))),OFFSET(E134,-1,0)) -> 1 | F134: 9 | G134: 0 | H134: 0 | I134: 20 | J134: 0 | K134: =IF(OR($C134="S",$C134=0),0,MATCH(OFFSET($D134,0,$C134)+IF($C134<>1,1,COUNTIF(QCI!$A$13:$A$24,ORÇAMENTO!E134)),OFFSET($D134,1,$C134,ROW($C$154)-ROW($C134)),0)) -> 0 | L134: F | M134: Serviço | N134: Serviço | O134: 1.9.20. | P134: SINAPI-I | Q134: 3380 | R134: HASTE DE ATERRAMENTO EM ACO COM 3,00 M DE COMPRIMENTO E DN = 5/8", REVESTIDA COM BAIXA CAMADA DE COBRE, COM CONECTOR TIPO GRAMPO | S134: UN | T134: =OFFSET(CÁLCULO!H$15,ROW($T134)-ROW(T$15),0) -> 6 | U134: 38 | V134: BDI 1 | W134: 45.73 | X134: 274.38 | Y134: RA | Z134: RA | AA134: =IF($C134="S",IF($Z134="CP",$X134,IF($Z134="RA",(($X134)*QCI!$AA$3),0)),SomaAgrup) -> 274.38 | AB134: 0 | AD134: =IF(C134<=CRONO.NivelExibicao,MAX($AD$15:OFFSET(AD134,-1,0))+IF($C134<>1,1,MAX(1,COUNTIF(QCI!$A$13:$A$24,OFFSET($E134,-1,0)))),"") ->  | AE134: SINAPI-I 3380 | AF134: 6544 | AG134: 40.76 | AH134: 0.2035 | AJ134: 6 | AM134: 274.38 | AN134: 45.73
A135: 2 | B135: 2 | C135: 2 | D135: 7 | E135: =IF($C135=1,OFFSET(E135,-1,0)+MAX(1,COUNTIF(QCI!$A$13:$A$24,OFFSET(ORÇAMENTO!E135,-1,0))),OFFSET(E135,-1,0)) -> 1 | F135: 10 | G135: 0 | H135: 0 | I135: 0 | J135: 19 | K135: =IF(OR($C135="S",$C135=0),0,MATCH(OFFSET($D135,0,$C135)+IF($C135<>1,1,COUNTIF(QCI!$A$13:$A$24,ORÇAMENTO!E135)),OFFSET($D135,1,$C135,ROW($C$154)-ROW($C135)),0)) -> 7 | L135: F | M135: Nível 2 | N135: Nível 2 | O135: 1.10. | P135: SINAPI | R135: PLUVIAIS | S135: - | T135: =OFFSET(CÁLCULO!H$15,ROW($T135)-ROW(T$15),0) -> 0 | V135: BDI 1 | W135: 0 | X135: 32147.95 | Y135: RA | AA135: =IF($C135="S",IF($Z135="CP",$X135,IF($Z135="RA",(($X135)*QCI!$AA$3),0)),SomaAgrup) -> 32147.95 | AB135: 0 | AD135: =IF(C135<=CRONO.NivelExibicao,MAX($AD$15:OFFSET(AD135,-1,0))+IF($C135<>1,1,MAX(1,COUNTIF(QCI!$A$13:$A$24,OFFSET($E135,-1,0)))),"") -> 11 | AE135: FALSE | AF135: (Sem Código) | AG135: 0 | AH135: 0.2035 | AM135: 32147.95 | AN135: 0
A136: S | B136: 2 | C136: S | D136: 0 | E136: =IF($C136=1,OFFSET(E136,-1,0)+MAX(1,COUNTIF(QCI!$A$13:$A$24,OFFSET(ORÇAMENTO!E136,-1,0))),OFFSET(E136,-1,0)) -> 1 | F136: 10 | G136: 0 | H136: 0 | I136: 1 | J136: 0 | K136: =IF(OR($C136="S",$C136=0),0,MATCH(OFFSET($D136,0,$C136)+IF($C136<>1,1,COUNTIF(QCI!$A$13:$A$24,ORÇAMENTO!E136)),OFFSET($D136,1,$C136,ROW($C$154)-ROW($C136)),0)) -> 0 | L136: F | M136: Serviço | N136: Serviço | O136: 1.10.1. | P136: AMMOC | Q136: 16 | R136: CISTERNA COM RESERVATÓRIO DE 5.000L, PARA COLETAS DE AGUAS DA CHUVA E REUTILIZAÇÃO, COM BOMBA CENTRÍFUGA | S136: UN | T136: =OFFSET(CÁLCULO!H$15,ROW($T136)-ROW(T$15),0) -> 1 | U136: 6400 | V136: BDI 1 | W136: 7702.4 | X136: 7702.4 | Y136: RA | Z136: RA | AA136: =IF($C136="S",IF($Z136="CP",$X136,IF($Z136="RA",(($X136)*QCI!$AA$3),0)),SomaAgrup) -> 7702.4 | AB136: 0 | AD136: =IF(C136<=CRONO.NivelExibicao,MAX($AD$15:OFFSET(AD136,-1,0))+IF($C136<>1,1,MAX(1,COUNTIF(QCI!$A$13:$A$24,OFFSET($E136,-1,0)))),"") ->  | AE136: AMMOC 16 | AF136: 18 | AG136: 6751.12 | AH136: 0.2035 | AJ136: 1 | AM136: 7702.4 | AN136: 7702.4
A137: S | B137: 2 | C137: S | D137: 0 | E137: =IF($C137=1,OFFSET(E137,-1,0)+MAX(1,COUNTIF(QCI!$A$13:$A$24,OFFSET(ORÇAMENTO!E137,-1,0))),OFFSET(E137,-1,0)) -> 1 | F137: 10 | G137: 0 | H137: 0 | I137: 2 | J137: 0 | K137: =IF(OR($C137="S",$C137=0),0,MATCH(OFFSET($D137,0,$C137)+IF($C137<>1,1,COUNTIF(QCI!$A$13:$A$24,ORÇAMENTO!E137)),OFFSET($D137,1,$C137,ROW($C$154)-ROW($C137)),0)) -> 0 | L137: F | M137: Serviço | N137: Serviço | O137: 1.10.2. | P137: SINAPI | Q137: 94229 | R137: CALHA EM CHAPA DE AÇO GALVANIZADO NÚMERO 24, DESENVOLVIMENTO DE 100 CM, INCLUSO TRANSPORTE VERTICAL | S137: M | T137: =OFFSET(CÁLCULO!H$15,ROW($T137)-ROW(T$15),0) -> 103.3 | U137: 100 | V137: BDI 1 | W137: 120.35 | X137: 12432.16 | Y137: RA | Z137: RA | AA137: =IF($C137="S",IF($Z137="CP",$X137,IF($Z137="RA",(($X137)*QCI!$AA$3),0)),SomaAgrup) -> 12432.16 | AB137: 0 | AD137: =IF(C137<=CRONO.NivelExibicao,MAX($AD$15:OFFSET(AD137,-1,0))+IF($C137<>1,1,MAX(1,COUNTIF(QCI!$A$13:$A$24,OFFSET($E137,-1,0)))),"") ->  | AE137: SINAPI 94229 | AF137: 1465 | AG137: 126.03 | AH137: 0.2035 | AJ137: =51.65*2 -> 103.3 | AM137: 12432.16 | AN137: 120.35
A138: S | B138: 2 | C138: S | D138: 0 | E138: =IF($C138=1,OFFSET(E138,-1,0)+MAX(1,COUNTIF(QCI!$A$13:$A$24,OFFSET(ORÇAMENTO!E138,-1,0))),OFFSET(E138,-1,0)) -> 1 | F138: 10 | G138: 0 | H138: 0 | I138: 3 | J138: 0 | K138: =IF(OR($C138="S",$C138=0),0,MATCH(OFFSET($D138,0,$C138)+IF($C138<>1,1,COUNTIF(QCI!$A$13:$A$24,ORÇAMENTO!E138)),OFFSET($D138,1,$C138,ROW($C$154)-ROW($C138)),0)) -> 0 | L138: F | M138: Serviço | N138: Serviço | O138: 1.10.3. | P138: SINAPI | Q138: 91790 | R138: (COMPOSIÇÃO REPRESENTATIVA) DO SERVIÇO DE INSTALAÇÃO DE TUBOS DE PVC, SÉRIE R, ÁGUA PLUVIAL, DN 100 MM (INSTALADO EM RAMAL DE ENCAMINHAMENTO, OU CONDUTORES VERTICAIS), INCLUSIVE CONEXÕES, CORTES E FIXAÇÕES, PARA PRÉDIOS | S138: M | T138: =OFFSET(CÁLCULO!H$15,ROW($T138)-ROW(T$15),0) -> 159.3 | U138: 40 | V138: BDI 1 | W138: 48.14 | X138: 7668.7 | Y138: RA | Z138: RA | AA138: =IF($C138="S",IF($Z138="CP",$X138,IF($Z138="RA",(($X138)*QCI!$AA$3),0)),SomaAgrup) -> 7668.7 | AB138: 0 | AD138: =IF(C138<=CRONO.NivelExibicao,MAX($AD$15:OFFSET(AD138,-1,0))+IF($C138<>1,1,MAX(1,COUNTIF(QCI!$A$13:$A$24,OFFSET($E138,-1,0)))),"") ->  | AE138: SINAPI 91790 | AF138: 3244 | AG138: 45.09 | AH138: 0.2035 | AJ138: =7*8+103.3 -> 159.3 | AM138: 7668.7 | AN138: 48.14
A139: S | B139: 2 | C139: S | D139: 0 | E139: =IF($C139=1,OFFSET(E139,-1,0)+MAX(1,COUNTIF(QCI!$A$13:$A$24,OFFSET(ORÇAMENTO!E139,-1,0))),OFFSET(E139,-1,0)) -> 1 | F139: 10 | G139: 0 | H139: 0 | I139: 4 | J139: 0 | K139: =IF(OR($C139="S",$C139=0),0,MATCH(OFFSET($D139,0,$C139)+IF($C139<>1,1,COUNTIF(QCI!$A$13:$A$24,ORÇAMENTO!E139)),OFFSET($D139,1,$C139,ROW($C$154)-ROW($C139)),0)) -> 0 | L139: F | M139: Serviço | N139: Serviço | O139: 1.10.4. | P139: SINAPI | Q139: 83446 | R139: CAIXA DE PASSAGEM 30X30X40 COM TAMPA E DRENO BRITA | S139: UN | T139: =OFFSET(CÁLCULO!H$15,ROW($T139)-ROW(T$15),0) -> 10 | U139: 150 | V139: BDI 1 | W139: 180.53 | X139: 1805.3 | Y139: RA | Z139: RA | AA139: =IF($C139="S",IF($Z139="CP",$X139,IF($Z139="RA",(($X139)*QCI!$AA$3),0)),SomaAgrup) -> 1805.3 | AB139: 0 | AD139: =IF(C139<=CRONO.NivelExibicao,MAX($AD$15:OFFSET(AD139,-1,0))+IF($C139<>1,1,MAX(1,COUNTIF(QCI!$A$13:$A$24,OFFSET($E139,-1,0)))),"") ->  | AE139: SINAPI 83446 | AF139: 2761 | AG139: 166.33 | AH139: 0.2035 | AJ139: 10 | AM139: 1805.3 | AN139: 180.53
A140: S | B140: 2 | C140: S | D140: 0 | E140: =IF($C140=1,OFFSET(E140,-1,0)+MAX(1,COUNTIF(QCI!$A$13:$A$24,OFFSET(ORÇAMENTO!E140,-1,0))),OFFSET(E140,-1,0)) -> 1 | F140: 10 | G140: 0 | H140: 0 | I140: 5 | J140: 0 | K140: =IF(OR($C140="S",$C140=0),0,MATCH(OFFSET($D140,0,$C140)+IF($C140<>1,1,COUNTIF(QCI!$A$13:$A$24,ORÇAMENTO!E140)),OFFSET($D140,1,$C140,ROW($C$154)-ROW($C140)),0)) -> 0 | L140: F | M140: Serviço | N140: Serviço | O140: 1.10.5. | P140: SINAPI | Q140: 89957 | R140: PONTO DE CONSUMO TERMINAL DE ÁGUA FRIA (SUBRAMAL) COM TUBULAÇÃO DE PVC, DN 25 MM, INSTALADO EM RAMAL DE ÁGUA, INCLUSOS, FIXAÇÃO, TORNEIRA, CHUMBAMENTO | S140: UN | T140: =OFFSET(CÁLCULO!H$15,ROW($T140)-ROW(T$15),0) -> 1 | U140: 110 | V140: BDI 1 | W140: 132.39 | X140: 132.39 | Y140: RA | Z140: RA | AA140: =IF($C140="S",IF($Z140="CP",$X140,IF($Z140="RA",(($X140)*QCI!$AA$3),0)),SomaAgrup) -> 132.39 | AB140: 0 | AD140: =IF(C140<=CRONO.NivelExibicao,MAX($AD$15:OFFSET(AD140,-1,0))+IF($C140<>1,1,MAX(1,COUNTIF(QCI!$A$13:$A$24,OFFSET($E140,-1,0)))),"") ->  | AE140: SINAPI 89957 | AF140: 4703 | AG140: 117.62 | AH140: 0.2035 | AJ140: 1 | AM140: 132.39 | AN140: 132.39
A141: S | B141: 2 | C141: S | D141: 0 | E141: =IF($C141=1,OFFSET(E141,-1,0)+MAX(1,COUNTIF(QCI!$A$13:$A$24,OFFSET(ORÇAMENTO!E141,-1,0))),OFFSET(E141,-1,0)) -> 1 | F141: 10 | G141: 0 | H141: 0 | I141: 6 | J141: 0 | K141: =IF(OR($C141="S",$C141=0),0,MATCH(OFFSET($D141,0,$C141)+IF($C141<>1,1,COUNTIF(QCI!$A$13:$A$24,ORÇAMENTO!E141)),OFFSET($D141,1,$C141,ROW($C$154)-ROW($C141)),0)) -> 0 | L141: F | M141: Serviço | N141: Serviço | O141: 1.10.6. | P141: SINAPI | Q141: 91790 | R141: EXTRAVASOR, DA CISTERNA EM TUBOS DE PVC, SÉRIE R, ÁGUA PLUVIAL, DN 100 MM (INSTALADO EM CONDUTORES VERTICAIS), INCLUSIVE CONEXÕES, CORTES E FIXAÇÕES | S141: M | T141: =OFFSET(CÁLCULO!H$15,ROW($T141)-ROW(T$15),0) -> 50 | U141: 40 | V141: BDI 1 | W141: 48.14 | X141: 2407 | Y141: RA | Z141: RA | AA141: =IF($C141="S",IF($Z141="CP",$X141,IF($Z141="RA",(($X141)*QCI!$AA$3),0)),SomaAgrup) -> 2407 | AB141: 0 | AD141: =IF(C141<=CRONO.NivelExibicao,MAX($AD$15:OFFSET(AD141,-1,0))+IF($C141<>1,1,MAX(1,COUNTIF(QCI!$A$13:$A$24,OFFSET($E141,-1,0)))),"") ->  | AE141: SINAPI 91790 | AF141: 3244 | AG141: 45.09 | AH141: 0.2035 | AJ141: 50 | AM141: 2407 | AN141: 48.14
A142: 2 | B142: 2 | C142: 2 | D142: 7 | E142: =IF($C142=1,OFFSET(E142,-1,0)+MAX(1,COUNTIF(QCI!$A$13:$A$24,OFFSET(ORÇAMENTO!E142,-1,0))),OFFSET(E142,-1,0)) -> 1 | F142: 11 | G142: 0 | H142: 0 | I142: 0 | J142: 12 | K142: =IF(OR($C142="S",$C142=0),0,MATCH(OFFSET($D142,0,$C142)+IF($C142<>1,1,COUNTIF(QCI!$A$13:$A$24,ORÇAMENTO!E142)),OFFSET($D142,1,$C142,ROW($C$154)-ROW($C142)),0)) -> 7 | L142: F | M142: Nível 2 | N142: Nível 2 | O142: 1.11. | P142: SINAPI | R142: PREVENTIVO DE INCÊNDIO | S142: - | T142: =OFFSET(CÁLCULO!H$15,ROW($T142)-ROW(T$15),0) -> 0 | U142: 0 | V142: BDI 1 | W142: 0 | X142: 1733.09 | Y142: RA | AA142: =IF($C142="S",IF($Z142="CP",$X142,IF($Z142="RA",(($X142)*QCI!$AA$3),0)),SomaAgrup) -> 1733.09 | AB142: 0 | AD142: =IF(C142<=CRONO.NivelExibicao,MAX($AD$15:OFFSET(AD142,-1,0))+IF($C142<>1,1,MAX(1,COUNTIF(QCI!$A$13:$A$24,OFFSET($E142,-1,0)))),"") -> 12 | AE142: FALSE | AF142: (Sem Código) | AG142: 0 | AH142: 0.2035 | AM142: 1733.09 | AN142: 0
A143: S | B143: 2 | C143: S | D143: 0 | E143: =IF($C143=1,OFFSET(E143,-1,0)+MAX(1,COUNTIF(QCI!$A$13:$A$24,OFFSET(ORÇAMENTO!E143,-1,0))),OFFSET(E143,-1,0)) -> 1 | F143: 11 | G143: 0 | H143: 0 | I143: 1 | J143: 0 | K143: =IF(OR($C143="S",$C143=0),0,MATCH(OFFSET($D143,0,$C143)+IF($C143<>1,1,COUNTIF(QCI!$A$13:$A$24,ORÇAMENTO!E143)),OFFSET($D143,1,$C143,ROW($C$154)-ROW($C143)),0)) -> 0 | L143: F | M143: Serviço | N143: Serviço | O143: 1.11.1. | P143: SINAPI | Q143: 72553 | R143: EXTINTOR DE PQS 4 KG - FORNECIMENTO E INSTALAÇÃO | S143: UN | T143: =OFFSET(CÁLCULO!H$15,ROW($T143)-ROW(T$15),0) -> 3 | U143: 110 | V143: BDI 1 | W143: 132.39 | X143: 397.17 | Y143: RA | Z143: RA | AA143: =IF($C143="S",IF($Z143="CP",$X143,IF($Z143="RA",(($X143)*QCI!$AA$3),0)),SomaAgrup) -> 397.17 | AB143: 0 | AD143: =IF(C143<=CRONO.NivelExibicao,MAX($AD$15:OFFSET(AD143,-1,0))+IF($C143<>1,1,MAX(1,COUNTIF(QCI!$A$13:$A$24,OFFSET($E143,-1,0)))),"") ->  | AE143: SINAPI 72553 | AF143: 3121 | AG143: 125.25 | AH143: 0.2035 | AJ143: 3 | AM143: 397.17 | AN143: 132.39
A144: S | B144: 2 | C144: S | D144: 0 | E144: =IF($C144=1,OFFSET(E144,-1,0)+MAX(1,COUNTIF(QCI!$A$13:$A$24,OFFSET(ORÇAMENTO!E144,-1,0))),OFFSET(E144,-1,0)) -> 1 | F144: 11 | G144: 0 | H144: 0 | I144: 2 | J144: 0 | K144: =IF(OR($C144="S",$C144=0),0,MATCH(OFFSET($D144,0,$C144)+IF($C144<>1,1,COUNTIF(QCI!$A$13:$A$24,ORÇAMENTO!E144)),OFFSET($D144,1,$C144,ROW($C$154)-ROW($C144)),0)) -> 0 | L144: F | M144: Serviço | N144: Serviço | O144: 1.11.2. | P144: SINAPI | Q144: 97599 | R144: LUMINÁRIA DE EMERGÊNCIA 30 LEDS - FORNECIMENTO E INSTALAÇÃO | S144: UN | T144: =OFFSET(CÁLCULO!H$15,ROW($T144)-ROW(T$15),0) -> 9 | U144: 25 | V144: BDI 1 | W144: 30.09 | X144: 270.81 | Y144: RA | Z144: RA | AA144: =IF($C144="S",IF($Z144="CP",$X144,IF($Z144="RA",(($X144)*QCI!$AA$3),0)),SomaAgrup) -> 270.81 | AB144: 0 | AD144: =IF(C144<=CRONO.NivelExibicao,MAX($AD$15:OFFSET(AD144,-1,0))+IF($C144<>1,1,MAX(1,COUNTIF(QCI!$A$13:$A$24,OFFSET($E144,-1,0)))),"") ->  | AE144: SINAPI 97599 | AF144: 2973 | AG144: 27.78 | AH144: 0.2035 | AJ144: 9 | AM144: 270.81 | AN144: 30.09
A145: =CHOOSE(1+LOG(1+2*(ORÇAMENTO.Nivel="Meta")+4*(ORÇAMENTO.Nivel="Nível 2")+8*(ORÇAMENTO.Nivel="Nível 3")+16*(ORÇAMENTO.Nivel="Nível 4")+32*(ORÇAMENTO.Nivel="Serviço"),2),0,1,2,3,4,"S") -> S | B145: =IF(OR(C145="s",C145=0),OFFSET(B145,-1,0),C145) -> 2 | C145: =IF(OFFSET(C145,-1,0)="L",1,IF(OFFSET(C145,-1,0)=1,2,IF(OR(A145="s",A145=0),"S",IF(AND(OFFSET(C145,-1,0)=2,A145=4),3,IF(AND(OR(OFFSET(C145,-1,0)="s",OFFSET(C145,-1,0)=0),A145<>"s",A145>OFFSET(B145,-1,0)),OFFSET(B145,-1,0),A145))))) -> S | D145: =IF(OR(C145="S",C145=0),0,IF(ISERROR(K145),J145,SMALL(J145:K145,1))) -> 0 | E145: =IF($C145=1,OFFSET(E145,-1,0)+MAX(1,COUNTIF(QCI!$A$13:$A$24,OFFSET(ORÇAMENTO!E145,-1,0))),OFFSET(E145,-1,0)) -> 1 | F145: =IF($C145=1,0,IF($C145=2,OFFSET(F145,-1,0)+1,OFFSET(F145,-1,0))) -> 11 | G145: =IF(AND($C145<=2,$C145<>0),0,IF($C145=3,OFFSET(G145,-1,0)+1,OFFSET(G145,-1,0))) -> 0 | H145: =IF(AND($C145<=3,$C145<>0),0,IF($C145=4,OFFSET(H145,-1,0)+1,OFFSET(H145,-1,0))) -> 0 | I145: =IF(AND($C145<=4,$C145<>0),0,IF(AND($C145="S",$X145>0),OFFSET(I145,-1,0)+1,OFFSET(I145,-1,0))) -> 3 | J145: 0 | K145: =IF(OR($C145="S",$C145=0),0,MATCH(OFFSET($D145,0,$C145)+IF($C145<>1,1,COUNTIF(QCI!$A$13:$A$24,ORÇAMENTO!E145)),OFFSET($D145,1,$C145,ROW($C$154)-ROW($C145)),0)) -> 0 | L145: =IF(OR($X145>0,$C145=1,$C145=2,$C145=3,$C145=4),"F","") -> F | M145: Serviço | N145: =CHOOSE(1+LOG(1+2*(C145=1)+4*(C145=2)+8*(C145=3)+16*(C145=4)+32*(C145="S"),2),"","Meta","Nível 2","Nível 3","Nível 4","Serviço") -> Serviço | O145: =IF(OR($C145=0,$L145=""),"-",CONCATENATE(E145&".",IF(AND($A$5>=2,$C145>=2),F145&".",""),IF(AND($A$5>=3,$C145>=3),G145&".",""),IF(AND($A$5>=4,$C145>=4),H145&".",""),IF($C145="S",I145&".",""))) -> 1.11.3. | P145: Cotação | Q145: 4 AMMOC | R145: LUMINÁRIA DE EMERGÊNCIA, BLOCO AUTONOMO 2 x 55 LEDS, FORNECIMENTO E INSTALAÇÃO | S145: UN | T145: =OFFSET(CÁLCULO!H$15,ROW($T145)-ROW(T$15),0) -> 2 | U145: 330 | V145: BDI 1 | W145: =IF($C145="S",ROUND(IF(TIPOORCAMENTO="Proposto",ORÇAMENTO.CustoUnitario*(1+$AH145),ORÇAMENTO.PrecoUnitarioLicitado),15-13*$AF$10),0) -> 397.16 | X145: =IF($C145="S",VTOTAL1,IF($C145=0,0,ROUND(SomaAgrup,15-13*$AF$11))) -> 794.32 | Y145: RA | Z145: =IF(AND($C145="S",$X145>0),IF(ISBLANK($Y145),"RA",LEFT($Y145,2)),"") -> RA | AA145: =IF($C145="S",IF($Z145="CP",$X145,IF($Z145="RA",(($X145)*QCI!$AA$3),0)),SomaAgrup) -> 794.32 | AB145: =IF($C145="S",IF($Z145="OU",ROUND($X145,2),0),SomaAgrup) -> 0 | AC145: =IF($N145="","",IF(ORÇAMENTO.Descricao="","DESCRIÇÃO",IF(AND($C145="S",ORÇAMENTO.Unidade=""),"UNIDADE",IF($X145<0,"VALOR NEGATIVO",IF(OR(AND(TIPOORCAMENTO="Proposto",$AG145<>"",$AG145>0,ORÇAMENTO.CustoUnitario>$AG145),AND(TIPOORCAMENTO="LICITADO",ORÇAMENTO.PrecoUnitarioLicitado>$AN145)),"ACIMA REF.",""))))) ->  | AD145: =IF(C145<=CRONO.NivelExibicao,MAX($AD$15:OFFSET(AD145,-1,0))+IF($C145<>1,1,MAX(1,COUNTIF(QCI!$A$13:$A$24,OFFSET($E145,-1,0)))),"") ->  | AE145: =IF(AND($C145="S",ORÇAMENTO.CodBarra<>""),IF(ORÇAMENTO.Fonte="",ORÇAMENTO.CodBarra,CONCATENATE(ORÇAMENTO.Fonte," ",ORÇAMENTO.CodBarra))) -> Cotação 4 AMMOC | AF145: =IF(ISERROR(INDIRECT(ORÇAMENTO.BancoRef)),"(abra o arquivo 'Referência "&Excel_BuiltIn_Database&".xls)",IF(OR($C145<>"S",ORÇAMENTO.CodBarra=""),"(Sem Código)",IF(ISERROR(MATCH($AE145,INDIRECT(ORÇAMENTO.BancoRef),0)),"(Código não identificado nas referências)",MATCH($AE145,INDIRECT(ORÇAMENTO.BancoRef),0)))) -> 143 | AG145: =ROUND(IF(DESONERACAO="sim",REFERENCIA.Desonerado,REFERENCIA.NaoDesonerado),2) -> 355 | AH145: =ROUND(IF(ISNUMBER(ORÇAMENTO.OpcaoBDI),ORÇAMENTO.OpcaoBDI,IF(LEFT(ORÇAMENTO.OpcaoBDI,3)="BDI",HLOOKUP(ORÇAMENTO.OpcaoBDI,$F$4:$H$5,2,FALSE),0)),15-11*$AF$9) -> 0.2035 | AJ145: 2 | AM145: 794.32 | AN145: =ROUND(ORÇAMENTO.CustoUnitario*(1+$AH145),2) -> 397.16
A146: S | B146: 2 | C146: S | D146: 0 | E146: =IF($C146=1,OFFSET(E146,-1,0)+MAX(1,COUNTIF(QCI!$A$13:$A$24,OFFSET(ORÇAMENTO!E146,-1,0))),OFFSET(E146,-1,0)) -> 1 | F146: 11 | G146: 0 | H146: 0 | I146: 4 | J146: 0 | K146: =IF(OR($C146="S",$C146=0),0,MATCH(OFFSET($D146,0,$C146)+IF($C146<>1,1,COUNTIF(QCI!$A$13:$A$24,ORÇAMENTO!E146)),OFFSET($D146,1,$C146,ROW($C$154)-ROW($C146)),0)) -> 0 | L146: F | M146: Serviço | N146: Serviço | O146: 1.11.4. | P146: SINAPI-I | Q146: 37558 | R146: PLACA DE SINALIZAÇÃO DE SEGURANCA CONTRA INCÊNDIO, FOTOLUMINESCENTE, RETANGULAR, ATÉ 20X40 CM, EM PVC 2 MM ANTI-CHAMAS (SÍMBOLOS, CORES E PICTOGRAMAS CONFORME NBR 13434) | S146: UN | T146: =OFFSET(CÁLCULO!H$15,ROW($T146)-ROW(T$15),0) -> 2 | U146: 25 | V146: BDI 1 | W146: 30.09 | X146: 60.18 | Y146: RA | Z146: RA | AA146: =IF($C146="S",IF($Z146="CP",$X146,IF($Z146="RA",(($X146)*QCI!$AA$3),0)),SomaAgrup) -> 60.18 | AB146: 0 | AD146: =IF(C146<=CRONO.NivelExibicao,MAX($AD$15:OFFSET(AD146,-1,0))+IF($C146<>1,1,MAX(1,COUNTIF(QCI!$A$13:$A$24,OFFSET($E146,-1,0)))),"") ->  | AE146: SINAPI-I 37558 | AF146: 10240 | AG146: 28.41 | AH146: 0.2035 | AJ146: 2 | AM146: 60.18 | AN146: 30.09
A147: =CHOOSE(1+LOG(1+2*(ORÇAMENTO.Nivel="Meta")+4*(ORÇAMENTO.Nivel="Nível 2")+8*(ORÇAMENTO.Nivel="Nível 3")+16*(ORÇAMENTO.Nivel="Nível 4")+32*(ORÇAMENTO.Nivel="Serviço"),2),0,1,2,3,4,"S") -> S | B147: =IF(OR(C147="s",C147=0),OFFSET(B147,-1,0),C147) -> 2 | C147: =IF(OFFSET(C147,-1,0)="L",1,IF(OFFSET(C147,-1,0)=1,2,IF(OR(A147="s",A147=0),"S",IF(AND(OFFSET(C147,-1,0)=2,A147=4),3,IF(AND(OR(OFFSET(C147,-1,0)="s",OFFSET(C147,-1,0)=0),A147<>"s",A147>OFFSET(B147,-1,0)),OFFSET(B147,-1,0),A147))))) -> S | D147: =IF(OR(C147="S",C147=0),0,IF(ISERROR(K147),J147,SMALL(J147:K147,1))) -> 0 | E147: =IF($C147=1,OFFSET(E147,-1,0)+MAX(1,COUNTIF(QCI!$A$13:$A$24,OFFSET(ORÇAMENTO!E147,-1,0))),OFFSET(E147,-1,0)) -> 1 | F147: =IF($C147=1,0,IF($C147=2,OFFSET(F147,-1,0)+1,OFFSET(F147,-1,0))) -> 11 | G147: =IF(AND($C147<=2,$C147<>0),0,IF($C147=3,OFFSET(G147,-1,0)+1,OFFSET(G147,-1,0))) -> 0 | H147: =IF(AND($C147<=3,$C147<>0),0,IF($C147=4,OFFSET(H147,-1,0)+1,OFFSET(H147,-1,0))) -> 0 | I147: =IF(AND($C147<=4,$C147<>0),0,IF(AND($C147="S",$X147>0),OFFSET(I147,-1,0)+1,OFFSET(I147,-1,0))) -> 5 | J147: 0 | K147: =IF(OR($C147="S",$C147=0),0,MATCH(OFFSET($D147,0,$C147)+IF($C147<>1,1,COUNTIF(QCI!$A$13:$A$24,ORÇAMENTO!E147)),OFFSET($D147,1,$C147,ROW($C$154)-ROW($C147)),0)) -> 0 | L147: =IF(OR($X147>0,$C147=1,$C147=2,$C147=3,$C147=4),"F","") -> F | M147: Serviço | N147: =CHOOSE(1+LOG(1+2*(C147=1)+4*(C147=2)+8*(C147=3)+16*(C147=4)+32*(C147="S"),2),"","Meta","Nível 2","Nível 3","Nível 4","Serviço") -> Serviço | O147: =IF(OR($C147=0,$L147=""),"-",CONCATENATE(E147&".",IF(AND($A$5>=2,$C147>=2),F147&".",""),IF(AND($A$5>=3,$C147>=3),G147&".",""),IF(AND($A$5>=4,$C147>=4),H147&".",""),IF($C147="S",I147&".",""))) -> 1.11.5. | P147: DEINFRA | Q147: 43729 | R147: PLACA DE SINALIZAÇÃO FACE ÚNICA COM LÂMPADA DE LED | S147: UN | T147: =OFFSET(CÁLCULO!H$15,ROW($T147)-ROW(T$15),0) -> 1 | U147: 95 | V147: BDI 1 | W147: =IF($C147="S",ROUND(IF(TIPOORCAMENTO="Proposto",ORÇAMENTO.CustoUnitario*(1+$AH147),ORÇAMENTO.PrecoUnitarioLicitado),15-13*$AF$10),0) -> 114.33 | X147: =IF($C147="S",VTOTAL1,IF($C147=0,0,ROUND(SomaAgrup,15-13*$AF$11))) -> 114.33 | Y147: RA | Z147: =IF(AND($C147="S",$X147>0),IF(ISBLANK($Y147),"RA",LEFT($Y147,2)),"") -> RA | AA147: =IF($C147="S",IF($Z147="CP",$X147,IF($Z147="RA",(($X147)*QCI!$AA$3),0)),SomaAgrup) -> 114.33 | AB147: =IF($C147="S",IF($Z147="OU",ROUND($X147,2),0),SomaAgrup) -> 0 | AC147: =IF($N147="","",IF(ORÇAMENTO.Descricao="","DESCRIÇÃO",IF(AND($C147="S",ORÇAMENTO.Unidade=""),"UNIDADE",IF($X147<0,"VALOR NEGATIVO",IF(OR(AND(TIPOORCAMENTO="Proposto",$AG147<>"",$AG147>0,ORÇAMENTO.CustoUnitario>$AG147),AND(TIPOORCAMENTO="LICITADO",ORÇAMENTO.PrecoUnitarioLicitado>$AN147)),"ACIMA REF.",""))))) ->  | AD147: =IF(C147<=CRONO.NivelExibicao,MAX($AD$15:OFFSET(AD147,-1,0))+IF($C147<>1,1,MAX(1,COUNTIF(QCI!$A$13:$A$24,OFFSET($E147,-1,0)))),"") ->  | AE147: =IF(AND($C147="S",ORÇAMENTO.CodBarra<>""),IF(ORÇAMENTO.Fonte="",ORÇAMENTO.CodBarra,CONCATENATE(ORÇAMENTO.Fonte," ",ORÇAMENTO.CodBarra))) -> DEINFRA 43729 | AF147: =IF(ISERROR(INDIRECT(ORÇAMENTO.BancoRef)),"(abra o arquivo 'Referência "&Excel_BuiltIn_Database&".xls)",IF(OR($C147<>"S",ORÇAMENTO.CodBarra=""),"(Sem Código)",IF(ISERROR(MATCH($AE147,INDIRECT(ORÇAMENTO.BancoRef),0)),"(Código não identificado nas referências)",MATCH($AE147,INDIRECT(ORÇAMENTO.BancoRef),0)))) -> 12886 | AG147: =ROUND(IF(DESONERACAO="sim",REFERENCIA.Desonerado,REFERENCIA.NaoDesonerado),2) -> 102.47 | AH147: =ROUND(IF(ISNUMBER(ORÇAMENTO.OpcaoBDI),ORÇAMENTO.OpcaoBDI,IF(LEFT(ORÇAMENTO.OpcaoBDI,3)="BDI",HLOOKUP(ORÇAMENTO.OpcaoBDI,$F$4:$H$5,2,FALSE),0)),15-11*$AF$9) -> 0.2035 | AJ147: 1 | AM147: 114.33 | AN147: =ROUND(ORÇAMENTO.CustoUnitario*(1+$AH147),2) -> 114.33
A148: =CHOOSE(1+LOG(1+2*(ORÇAMENTO.Nivel="Meta")+4*(ORÇAMENTO.Nivel="Nível 2")+8*(ORÇAMENTO.Nivel="Nível 3")+16*(ORÇAMENTO.Nivel="Nível 4")+32*(ORÇAMENTO.Nivel="Serviço"),2),0,1,2,3,4,"S") -> S | B148: =IF(OR(C148="s",C148=0),OFFSET(B148,-1,0),C148) -> 2 | C148: =IF(OFFSET(C148,-1,0)="L",1,IF(OFFSET(C148,-1,0)=1,2,IF(OR(A148="s",A148=0),"S",IF(AND(OFFSET(C148,-1,0)=2,A148=4),3,IF(AND(OR(OFFSET(C148,-1,0)="s",OFFSET(C148,-1,0)=0),A148<>"s",A148>OFFSET(B148,-1,0)),OFFSET(B148,-1,0),A148))))) -> S | D148: =IF(OR(C148="S",C148=0),0,IF(ISERROR(K148),J148,SMALL(J148:K148,1))) -> 0 | E148: =IF($C148=1,OFFSET(E148,-1,0)+MAX(1,COUNTIF(QCI!$A$13:$A$24,OFFSET(ORÇAMENTO!E148,-1,0))),OFFSET(E148,-1,0)) -> 1 | F148: =IF($C148=1,0,IF($C148=2,OFFSET(F148,-1,0)+1,OFFSET(F148,-1,0))) -> 11 | G148: =IF(AND($C148<=2,$C148<>0),0,IF($C148=3,OFFSET(G148,-1,0)+1,OFFSET(G148,-1,0))) -> 0 | H148: =IF(AND($C148<=3,$C148<>0),0,IF($C148=4,OFFSET(H148,-1,0)+1,OFFSET(H148,-1,0))) -> 0 | I148: =IF(AND($C148<=4,$C148<>0),0,IF(AND($C148="S",$X148>0),OFFSET(I148,-1,0)+1,OFFSET(I148,-1,0))) -> 6 | J148: =IF(OR($C148="S",$C148=0),0,MATCH(0,OFFSET($D148,1,$C148,ROW($C$154)-ROW($C148)),0)) -> 0 | K148: =IF(OR($C148="S",$C148=0),0,MATCH(OFFSET($D148,0,$C148)+IF($C148<>1,1,COUNTIF(QCI!$A$13:$A$24,ORÇAMENTO!E148)),OFFSET($D148,1,$C148,ROW($C$154)-ROW($C148)),0)) -> 0 | L148: =IF(OR($X148>0,$C148=1,$C148=2,$C148=3,$C148=4),"F","") -> F | M148: Serviço | N148: =CHOOSE(1+LOG(1+2*(C148=1)+4*(C148=2)+8*(C148=3)+16*(C148=4)+32*(C148="S"),2),"","Meta","Nível 2","Nível 3","Nível 4","Serviço") -> Serviço | O148: =IF(OR($C148=0,$L148=""),"-",CONCATENATE(E148&".",IF(AND($A$5>=2,$C148>=2),F148&".",""),IF(AND($A$5>=3,$C148>=3),G148&".",""),IF(AND($A$5>=4,$C148>=4),H148&".",""),IF($C148="S",I148&".",""))) -> 1.11.6. | P148: Cotação | Q148: 43 AMMOC | R148: FOGÃO ELÉTRICO 2 BOCAS - 2.000 W - 220 V | S148: UN | T148: =OFFSET(CÁLCULO!H$15,ROW($T148)-ROW(T$15),0) -> 1 | U148: 80 | V148: BDI 1 | W148: =IF($C148="S",ROUND(IF(TIPOORCAMENTO="Proposto",ORÇAMENTO.CustoUnitario*(1+$AH148),ORÇAMENTO.PrecoUnitarioLicitado),15-13*$AF$10),0) -> 96.28 | X148: =IF($C148="S",VTOTAL1,IF($C148=0,0,ROUND(SomaAgrup,15-13*$AF$11))) -> 96.28 | Y148: RA | Z148: =IF(AND($C148="S",$X148>0),IF(ISBLANK($Y148),"RA",LEFT($Y148,2)),"") -> RA | AA148: =IF($C148="S",IF($Z148="CP",$X148,IF($Z148="RA",(($X148)*QCI!$AA$3),0)),SomaAgrup) -> 96.28 | AB148: =IF($C148="S",IF($Z148="OU",ROUND($X148,2),0),SomaAgrup) -> 0 | AC148: =IF($N148="","",IF(ORÇAMENTO.Descricao="","DESCRIÇÃO",IF(AND($C148="S",ORÇAMENTO.Unidade=""),"UNIDADE",IF($X148<0,"VALOR NEGATIVO",IF(OR(AND(TIPOORCAMENTO="Proposto",$AG148<>"",$AG148>0,ORÇAMENTO.CustoUnitario>$AG148),AND(TIPOORCAMENTO="LICITADO",ORÇAMENTO.PrecoUnitarioLicitado>$AN148)),"ACIMA REF.",""))))) ->  | AD148: =IF(C148<=CRONO.NivelExibicao,MAX($AD$15:OFFSET(AD148,-1,0))+IF($C148<>1,1,MAX(1,COUNTIF(QCI!$A$13:$A$24,OFFSET($E148,-1,0)))),"") ->  | AE148: =IF(AND($C148="S",ORÇAMENTO.CodBarra<>""),IF(ORÇAMENTO.Fonte="",ORÇAMENTO.CodBarra,CONCATENATE(ORÇAMENTO.Fonte," ",ORÇAMENTO.CodBarra))) -> Cotação 43 AMMOC | AF148: =IF(ISERROR(INDIRECT(ORÇAMENTO.BancoRef)),"(abra o arquivo 'Referência "&Excel_BuiltIn_Database&".xls)",IF(OR($C148<>"S",ORÇAMENTO.CodBarra=""),"(Sem Código)",IF(ISERROR(MATCH($AE148,INDIRECT(ORÇAMENTO.BancoRef),0)),"(Código não identificado nas referências)",MATCH($AE148,INDIRECT(ORÇAMENTO.BancoRef),0)))) -> 182 | AG148: =ROUND(IF(DESONERACAO="sim",REFERENCIA.Desonerado,REFERENCIA.NaoDesonerado),2) -> 89.1 | AH148: =ROUND(IF(ISNUMBER(ORÇAMENTO.OpcaoBDI),ORÇAMENTO.OpcaoBDI,IF(LEFT(ORÇAMENTO.OpcaoBDI,3)="BDI",HLOOKUP(ORÇAMENTO.OpcaoBDI,$F$4:$H$5,2,FALSE),0)),15-11*$AF$9) -> 0.2035 | AJ148: 1 | AM148: 96.28 | AN148: =ROUND(ORÇAMENTO.CustoUnitario*(1+$AH148),2) -> 96.28
A149: =CHOOSE(1+LOG(1+2*(ORÇAMENTO.Nivel="Meta")+4*(ORÇAMENTO.Nivel="Nível 2")+8*(ORÇAMENTO.Nivel="Nível 3")+16*(ORÇAMENTO.Nivel="Nível 4")+32*(ORÇAMENTO.Nivel="Serviço"),2),0,1,2,3,4,"S") -> 2 | B149: =IF(OR(C149="s",C149=0),OFFSET(B149,-1,0),C149) -> 2 | C149: =IF(OFFSET(C149,-1,0)="L",1,IF(OFFSET(C149,-1,0)=1,2,IF(OR(A149="s",A149=0),"S",IF(AND(OFFSET(C149,-1,0)=2,A149=4),3,IF(AND(OR(OFFSET(C149,-1,0)="s",OFFSET(C149,-1,0)=0),A149<>"s",A149>OFFSET(B149,-1,0)),OFFSET(B149,-1,0),A149))))) -> 2 | D149: =IF(OR(C149="S",C149=0),0,IF(ISERROR(K149),J149,SMALL(J149:K149,1))) -> 3 | E149: =IF($C149=1,OFFSET(E149,-1,0)+MAX(1,COUNTIF(QCI!$A$13:$A$24,OFFSET(ORÇAMENTO!E149,-1,0))),OFFSET(E149,-1,0)) -> 1 | F149: =IF($C149=1,0,IF($C149=2,OFFSET(F149,-1,0)+1,OFFSET(F149,-1,0))) -> 12 | G149: =IF(AND($C149<=2,$C149<>0),0,IF($C149=3,OFFSET(G149,-1,0)+1,OFFSET(G149,-1,0))) -> 0 | H149: =IF(AND($C149<=3,$C149<>0),0,IF($C149=4,OFFSET(H149,-1,0)+1,OFFSET(H149,-1,0))) -> 0 | I149: =IF(AND($C149<=4,$C149<>0),0,IF(AND($C149="S",$X149>0),OFFSET(I149,-1,0)+1,OFFSET(I149,-1,0))) -> 0 | J149: 5 | K149: =IF(OR($C149="S",$C149=0),0,MATCH(OFFSET($D149,0,$C149)+IF($C149<>1,1,COUNTIF(QCI!$A$13:$A$24,ORÇAMENTO!E149)),OFFSET($D149,1,$C149,ROW($C$154)-ROW($C149)),0)) -> 3 | L149: =IF(OR($X149>0,$C149=1,$C149=2,$C149=3,$C149=4),"F","") -> F | M149: Nível 2 | N149: =CHOOSE(1+LOG(1+2*(C149=1)+4*(C149=2)+8*(C149=3)+16*(C149=4)+32*(C149="S"),2),"","Meta","Nível 2","Nível 3","Nível 4","Serviço") -> Nível 2 | O149: =IF(OR($C149=0,$L149=""),"-",CONCATENATE(E149&".",IF(AND($A$5>=2,$C149>=2),F149&".",""),IF(AND($A$5>=3,$C149>=3),G149&".",""),IF(AND($A$5>=4,$C149>=4),H149&".",""),IF($C149="S",I149&".",""))) -> 1.12. | P149: SINAPI | R149: CERCAMENTO | S149: - | T149: =OFFSET(CÁLCULO!H$15,ROW($T149)-ROW(T$15),0) -> 0 | U149: 0 | V149: BDI 1 | W149: =IF($C149="S",ROUND(IF(TIPOORCAMENTO="Proposto",ORÇAMENTO.CustoUnitario*(1+$AH149),ORÇAMENTO.PrecoUnitarioLicitado),15-13*$AF$10),0) -> 0 | X149: =IF($C149="S",VTOTAL1,IF($C149=0,0,ROUND(SomaAgrup,15-13*$AF$11))) -> 81211.95 | Y149: RA | Z149: =IF(AND($C149="S",$X149>0),IF(ISBLANK($Y149),"RA",LEFT($Y149,2)),"") ->  | AA149: =IF($C149="S",IF($Z149="CP",$X149,IF($Z149="RA",(($X149)*QCI!$AA$3),0)),SomaAgrup) -> 81211.95 | AB149: =IF($C149="S",IF($Z149="OU",ROUND($X149,2),0),SomaAgrup) -> 0 | AC149: =IF($N149="","",IF(ORÇAMENTO.Descricao="","DESCRIÇÃO",IF(AND($C149="S",ORÇAMENTO.Unidade=""),"UNIDADE",IF($X149<0,"VALOR NEGATIVO",IF(OR(AND(TIPOORCAMENTO="Proposto",$AG149<>"",$AG149>0,ORÇAMENTO.CustoUnitario>$AG149),AND(TIPOORCAMENTO="LICITADO",ORÇAMENTO.PrecoUnitarioLicitado>$AN149)),"ACIMA REF.",""))))) ->  | AD149: =IF(C149<=CRONO.NivelExibicao,MAX($AD$15:OFFSET(AD149,-1,0))+IF($C149<>1,1,MAX(1,COUNTIF(QCI!$A$13:$A$24,OFFSET($E149,-1,0)))),"") -> 13 | AE149: =IF(AND($C149="S",ORÇAMENTO.CodBarra<>""),IF(ORÇAMENTO.Fonte="",ORÇAMENTO.CodBarra,CONCATENATE(ORÇAMENTO.Fonte," ",ORÇAMENTO.CodBarra))) -> FALSE | AF149: =IF(ISERROR(INDIRECT(ORÇAMENTO.BancoRef)),"(abra o arquivo 'Referência "&Excel_BuiltIn_Database&".xls)",IF(OR($C149<>"S",ORÇAMENTO.CodBarra=""),"(Sem Código)",IF(ISERROR(MATCH($AE149,INDIRECT(ORÇAMENTO.BancoRef),0)),"(Código não identificado nas referências)",MATCH($AE149,INDIRECT(ORÇAMENTO.BancoRef),0)))) -> (Sem Código) | AG149: =ROUND(IF(DESONERACAO="sim",REFERENCIA.Desonerado,REFERENCIA.NaoDesonerado),2) -> 0 | AH149: =ROUND(IF(ISNUMBER(ORÇAMENTO.OpcaoBDI),ORÇAMENTO.OpcaoBDI,IF(LEFT(ORÇAMENTO.OpcaoBDI,3)="BDI",HLOOKUP(ORÇAMENTO.OpcaoBDI,$F$4:$H$5,2,FALSE),0)),15-11*$AF$9) -> 0.2035 | AM149: 81211.95 | AN149: =ROUND(ORÇAMENTO.CustoUnitario*(1+$AH149),2) -> 0
